Workbook

Sheet CB_DATA_ (hidden)
A1: Crystal Ball Data
P2: =_xll.CB.RecalcCounterFN() -> 
A3: Workbook Variables | B3: Last Var Column | C3: 1
A4: Name:
A5: Value:
A7: Worksheet Data | B7: Last Data Column Used
B8: 2
A10: Sheet Ref
A11: =CB_DATA_!#REF! ->  | B11: ='Solar Calculator'!#REF! -> 
A13: Sheet Guid
A14: 6b28b296-06c1-476a-b14f-04c7282bd8c8 | B14: e41e4bbb-fdff-476d-ab2e-8b645bba9147
A16: Deleted sheet count
A19: Last row used
A20: 31 | B20: 31
A25: Data blocks | G25: 1.887597407
A26: CB_Block_0 | B26: CB_Block_7.0.0.0:1
A27: 㜸〱敤㕣㕢㙣ㅣ搵ㄹ摥ㄹ敦慥㜷搶㜶㙣攲㕣㐸戸㤹㝢挰搱ㄲ攷挲愵㌴つ扥攴〶戹㌸戱ㄳ㡡㈸㕤挶扢㘷散㐹㜶㘶㥤㤹㔹㈷愶㘹ㅢ㈸㠵搲㡢㉡攸㐳ぢ愵㉤㐲ㄵ㙡㕦㉡挱〳㠲㤶㍥㔴慡搴慡㠲㡡〷㔴愹て㔵㈹慡摡〷㔰ㄵ愹㉦㍣㈰搱敦㍢㌳戳㍢扢敢ㅤ㍢ㅢ㘸㥤捡㤳散㥦㌳攷㝥捥㝦㍤晦㝦㈶〹㈵㤱㐸㝣㡣㠷晦昲㐹㌲㜱攵挴扣敢〹㉢㌷㕡㉥㤵㐴挱㌳换戶㥢ㅢ㜶ㅣ㝤晥㠰改㝡ㅤ愸㤰捥㥢㈸㜷㔳㜹搷㝣㐴㘴昲㜳挲㜱㔱㈹㤵㐸㘴㌲㥡㡡㜲㜶挲㕦㕦昸愲戱㔵㜷ㄲ㘰㜲㜴攴昰搴〹昴㍡攱㤵ㅤ戱㜹攰戸摦㜶攷搰㔰㙥㈸户㙤晢戶摢㜳㕢㌶て㡣㔶㑡㕥挵ㄱ㍢㙤㔱昱ㅣ扤戴㜹㘰扣㌲㔵㌲ぢ昷㠹昹挹昲㐹㘱敦ㄴ㔳㕢戶㑤改摢敦ㅣ摡扥㘳㠷㜱搷㕤㜷㜶㘳攸挴愱搱㤱㜱㐷ㄸ敥㈷搴㘷㡡㔳摥㍥㈶ち㈶搷㈶㠴㘳摡搳戹搱ㄱ晣㡤捣ㅦ㙦㜷攴㈶㘶㠴昰㌸戴㜰㠴㕤㄰慥㠶㠶㕤搶戰敢㔶慣㔹㙥㥥㘶敤挱㔲ぢ扡敢愵慣㔱㔱㉡㘹㔶搸㙢挶㍡㡣扤㉢改昳摤搶㠴戰㕤搳㌳攷㑣㙦㍥㙤㑤愲愳㘲㡦㜵捣ㄵ㐷㜵㝢㕡ㅣ搲㉤㤱戲昶㔶捣㘲搲㝦ㄲㅤ㌷㠷㕤㐴㈷㈶㤷㥦ㅢ㜶慤搱ㄹ摤㤱㌳㜲戹㌱㌱㜵昷㌸㠵晡扡搷户敥㤷㔳㤷㈳戰捦ㅢ㕢搷㐳挹㜱摤愹搶ㅣ㙣㕤㌳㔸㝣晤っ㙥㙢㕤㍦戲㐷昵㙤㙥㘹摤㐶㙥㘵㝤㙤愵㉢愰㙦戹愳㔸㡣㤶㈶攸㈴挸㄰㄰㠱㕡㤶愰㡢愰ㅢ㐰㐹晥ㅢ㕣ㄲ㙤挸㈲㌵慦慢昹㈹㌵㕦㔰昳㐵㌵㉦搴扣愱收愷搵晣㡣㥡㌷搵晣〹㌵㝦ㄲ㜵挲㈷搳搹愹〶捦愶㔷慥㝢晢㡡て㡡㘳㡦つ扥晥晥挷㤹扦ㄶ扡㔷愱搲㤱㘰㔲㘳㡥㝥ㅡ愴㔶愳攲慤戹㉤晣戳㌸㔷㠰㈹㡣ㅤ挶ㅤ挶搰㔰㜱挷ㄶ㝤㥢㥥攲戲㘲㤰㕦㐷㈸㝤愸摢㙤摣㙦摡挵昲㘹㠹扢㉢㐷㜴㔷搴㌶㙥㌰㈸ㅢ㈹㔷散愲㝢挵挲㠵ㄳ㥥敥㠹㡤㡤㘵戵㑥㥡㥡㑤㠰慤㠴㉢挷扢扡戱搹㜱扤㔴ㄱ挳㘷㑣扦昸慡㠶㘲㙢摣㈹㑦戵㉥摤攳㠸㔳搵搲愶ㄹつ㐳愸捤挹扥㥢㔶改ㄷ昹昳ㅡㄸ㥤㈹扢挲㤶搳ㅢ戴挶捤挲㐹攱㑣〸㡡㐴㔱㤴㑢㕤换愲㠰敢〷て摢㔸㈸戸戵㜸㕤㌴搷搸㝤挶〳㌳㡢㈲收㍢㉢ㅣ㙦㝥㔲㥦㉡㠹㜵㜵㔵晣㌱㔱戰愱㉥㝢㑦戹㔰㜱㐷换戶攷㤴㑢昵㈵挳挵㌹ㅤ㤲愶㜸戰㕣ㄴ挹㘴㐲ち〵〸摣㡥づ㐵㐹摣摡㥡ㄷ㈴㈲㈲㈸㈶㈳㕦㕥㑦㜶戹愳㔸ㅤ㔶㔱ㄲ愴㐹昵㠶㐵㍡攳㝣愵㡣㠹攱挰挸㥡愸㍦㌸攸愶㐵扡慤㘲敥搳慤慣慡晤挱敡㜷捦〹摢摢愷摢挵㤲㜰㘲戵㥦挲ㄹ㘹扤〰愹昳㄰〸㉤㜷㡦慡㑥㌹愳捣愷㑥㥢㐵㙦㈶㍤㈳捣改ㄹて㜹搰㤰㤹っ户戶改搱㉥㐳㤶戶㥡愰ㅦ㈰㥢㑤愴搷戰㔲㍡㡢㈷㤱愲㜴㡡攱攵㍡㐱捥㜶㜵扣摣㙤散㌱㑢㥥昰㠵㜲慦〱㡣昸㕡㑤愲慦㠷㈴敡攸〵㕦㘱慣㌱㐶㐱愵扡㘹㝢昳㌵扥㙤攲ㄲ㥦㠸㔶㘴挱戲㤳〵ㄴ〵昵昲㈰㠶搷㐰㌴つ搲㈰扥㜲㠴㠸挸〶㌱㥡ㅤ㍤搷ㄳㄹ敢挷挸〸搴㡦ㄲ㈱㙢㙦㘹㉤㈳㐸散捤㐴捡㐶㉤昹㜱㐵㥡㉤㘴换晢搲㙣㉤㌶㑥㕢㐷戰㥥攰㜲㠲つ〰捡㍦㈰攱㈸攵㤰慥㝦戴㉢昰慥㕤㐹㜰ㄵ〰攴㤳㐶㤹ㄳ㠸㉡摡㔰㑢戱㈳㔹慦〷㜶戲㌴㡡㝤㔱㐴换戸㙡㘷昶㔸ㄲ搱㠱搵戹㍣㜴㙤㔲敡搸㥢㕡搳㘶㜴㌹愴挸㤸慡搱戵㉥㔲㌵扡ㄱ慣摡愶摥扡〶㑤戵〱㠲㙢〱㝣挵㐲㘳㜷㘹搶㍣捤挹㑢挲㈴昲つ愱㌶㤵㝢㐰挴㌴晦㘳〴㕣搳搱㘵挵㝥愶㈹㌸㘸㕣昲昶昳收搶扣ㅤ㈰扤㐱㘷慥攸ㅣ晡㡡㉥搰㠲扥づ散愵晣愵愵㝥戹〱挵摡㡤〴㌷〱㌴攸ㄷ㥥扣㉦搴㑢㈰㑤㘲㉢㠲戹搵昴戸㐸ぢ㜷㜲㝥㔶㐸敤搳㙤㑣敡捥戴昰攰扤搸㍦〶㍢戸散㌸愲㠴〳㙤㔱㘶昰散戲扥㍥搳摤攳㤴㉤收慦搸挷敥㈵愱ㄸ㤲㐹戵㈳搱㘰ㅦ挷搸㤹ㄱ㝦㔳㠴㜲愸㝦户戵ㄶㄲ㤱㐶昵攴挵㜶昱㘷换ㄵ㐹搲㠶㈴搹㠴㙤搵㙥〱㠰㤴㔰晥搴㔲愲っ戲摡㘶㔹慤摥㕡愵㜷㉦收㘴搲攰㍦㙣㤲㈳㕤扥戳㜶〴扥〳户挷㥡㌰慤慡戰攸戲挶㠵㔳㠰㕦挱㉣㠹慣敦㤲愵愸㔹㤱ㄵ㤷㠸慣攸攸㘸㍡㑢挷昸搶㈴㥤㌴㐸㠹㔸㙥㡦㉤㡣㌹㠷搷㠸㡡㉥㐸ち㤵ㄸ户㔰㔵〲㤱昲㔸㜷㐵挴戴㈱㘲㜲搸㌸敤㌶㠲㉤〴㐳〰愹㍦㐲搲㉣㜵攳ㄹち敢㥣愳㍢㍢㥦㑦㘴㠸〶改ㅥ㝣慢愵戰摡捥㘱㜶㄰摣づ搰㘰晥搰昹ㄸ㐳㠸ㄲ攵ㄱ㐲愴戵愴ㄹ挷㑤㜱㥡㌴戰捡㐰㔰㘹戴攲㝡㘵㡢㔱愵ㅥ㘳慣㝣愸散㡤㤹敥㉣愲㔰晤㐶㤰戸㝦㐶搸愰㉥〷戶㑦㐳㕥㜹㜶㔶ㄴ㌵㘳愲㕣㠱㘸摢㍦戶ㅣづ攵㔸ㅦ㙣㐹㜹㉥㔷ㄵ㍣敤㥤㡤搱㠵㈲㑦挴昰戵搲ㄳ扢㈴捦㌷て㝤扤戵ㅤ㥤㌴扤㤲攸㌲㝣愶㘳㍡㘳㘰ㄷㄱ㌵㈸㜶ㅡ㤳㌳㡥㄰㘳㍤挶㕥挷㉣㤶㑣㕢㄰ㄹ戰㌱ㄹ愸㍢㈰愶ㄱ㈱ㄸ㉦㌳晥㔷戶㝢㡣㐹㐷户摤㔹㥤挱挴昹搵㜵㙦㌲㈴㤲㌲㐶㑣摢挵㌰ㄲ㡢㑣昷ㅡㄳ㌳攵搳㠸搶㔶㉣㝢慦㍥敢㉥ぢ慣㤰攸晤㐷愲㐶㔱ㄵ㔵㔵㌲㙡愶㕤晣昰㐰㥥㐸㙣挵㉦㐹㈰㜱㤵㐸搱㕦ㅥ愳扤㘹搷〷昱ㄹ摡改㥣㔳㌷㈲㐷搵捣㡥㔸㈹㑣㑥搵敥㘴㥢扢〰敥摤㝢㙣㝦㉤㉡㜷㔱昱敡ㄴ㍤晣㌱㌲㕥㤲㐵㌵〸㐲晦摣㉡㥦㔴㤸㐷捡〱〷〲攳㝣㙢㈴扦慣㈱敢㤰晡㔶搵㤲㝢㄰㐵敡㌶づ攸㔳愲㠴㔸戴愵㝢慢晣ㄷ㥡戱㤶㕥㜲㠳戲搱戲㘵改㈴㉤㤲攵㐴㐱㈷〵て㔷扣昲㐱搳搶っ〰㐹㝦㐱㤶㝥〶㔹晡ㄹ㤹搵㙤ㅣ㘵㔸㔰愶搹㔷㜹㕡㜷㑣㙦挶㌲ぢㄹ扥㌰㜴户㉣㘸ㄲ㑣㑥挹ㅢ㍥愱捣ㄸ㘸戰收㡦挱㘴㜳㜳㐰㜷づ㜲㤴㕢㐷昴㠳㜲㔵㈵㡤㍦㑡㥢㡥㈵〸ㄸ改㈵搵敥㐶㙦㈹㜹㌳〲㈲㐷㍥攷挳晢ㄷ攷扦㡡ㅣ摦㉦㐷慣挷㤰〸㍣㠲ㄱ㈱㑦昷㜶摡㌸㘶㥢ㅥ戰㐷㡣敤㌱扤㌱ㄷ㈸〷㐰㔲ㅥ㙦㌷㑡慣㐶ㅡつ㔶戵挲㌵捤㐵㜵㙡攲敡收昲愸摥戸㘱㠱㘲㕦愳㐴ㄴ挹㘲㤵愴㘶㔹㘰㡥换㐹搵㈸㔲㜱㠷摡㐶㠹㜳㥢搶昶㥤㔲攴㈲ㄴ㤳愴㤹㠴戶㔳ㄲち㠲扣愴づ攸㈸晡敢攳挹㈳ㄲ慤愱つ㤰愵㥥昲昳㝡㠲㜰攰㝥㕣㌹㈹㡡㙣昰〶晥㕥ㄵ㈴て㔷扣扡ㄲ晤㑣㝦㔰㌲㕣㉡ㅤ戶㘱㈵ㄴ㜴愷戸㑣㔸ㅡ㙢昳㌵㡣攴捥㜶戵扦扦扤ㄱ㐶っ搸㤰㈱㤱ㄸ㍦㌰搸㄰捣ㄵ㠹愶搲㍡敢攱㔶㔷戳㌳㝣㍢㈸㜴㕢㘲㘰挲㉢㡥㠹㌹㘹㠶搵㉣昹㝥搹愰㝡㕡㤴㜲㔴㌳㠶愷㕣愸㜴㡦㜲㍣㐸㐹〶搷㡣愳㜴㑢攱〲〳挴㙥㤰ㅡ㉦㜸〸敢㔶㍢攰挹㘰昹㘰〷㍢攲㠷㑤㘸㥤㔱㠲愶㘳〸户㝥ㄱ攴㥤㌶㌱ち㐱㙡挸攷㕦扢㤴攷㥥攵昳昳㕤㠹㌰ㄱ㌰ㄱ㐳㕤㌱搶〳㤰ㅢ㡤㑡㤲㡢晡挳㘰戹㉦搹愴搰敡づ昳㘸㘲昴搰攴㜳㍣摣攰㘱ㅣ慢㤷㙣㔳挲ㅤ㌷捦㠴㌶㉤捤慦㌲昶摢㠵㔲愵㈸愴㉡づ㘵戵搴挸换〲㕦昲晡㥦捦㑤㌱晢ㄲ㙣捡㝥ㅣ愵戸㘴㈲愹㝤扢㕢晢ㅣ㥡㑢㈱㠷㍥㝣搹挶攰㘳㡣㕢㑥〶挳㥡敥㈸搰㍥㕣㕤扢扣㈰㉦捥㐱愴㌵㘵㔱㤶ㅤ挰㕤扣㙡〴㔹㜲㕢愴摡㠱昲㠱㌲㙤昶㐸搶㍥搳捦㕡ㄶ㌸挲㍡㝤㠱㤷㑥挳ㄸ㘹㤳㍢搸㐹攲㝣㄰搹㍤晦㔵昹㥡㌸扦㉢㌰㍥ㄴ挶㜷㜹ち㑡㘰㔷挱㐸㌴戸搵㥡搵慤㌰昲㑢换㕢扢〷㐰㘱〸㤸〶㉤㙡晡〶捥〸搲㡢ㅢ㌸っ㐶挶㐴㐷愳㠱㔴挶㈸晢攱戰〷搲挰㑤㍣㐸㑦㤶愱㠴扣㌵昲㔲㔸㜸㉦㜱搰挲ㄱ愸散慣㙢挸ㅣ搷㍤㕣㝤戱㌷㌴㘴てㄷ㡢㌴㜷攱㥦㕢ㄶ㔸挵戵つ摦ㅣ㕤搳㜰㈱㑢慥㠹昶摤昵つ〵挱㐵挱慤㘳戹㝤扡㔷㤸㤹昰收晤㑢㕢敤㤲㐴敡搷昰㐷㉣㌸㍡㙤收愴捤㑢愸㜳摣晢散㐹扢㝣摡㤶昳㑡戹扣昱㐷㉢㔶敢散攴㈴戳㠹㡦昱㐷㍥㙡㈲昵〶㝡㕣捡戴搹㐱捤㐱挲㝥攴攳㑢㠳〱愴㘳攸〴戶㝢昵挶〰改㘴㑤〳㥤㐸㐱戰㐲㈸昶昴㈷㐶㈸捡慦㠰㔶ㄲ㡢㝦㈴挷㥥扦〴搶㔷㝥㠹ㅣ㈲ㅣ敦㠱ㄸ㐹㕤㡢㔴っ敡愴㈰て慥㜷昰㌲挸晦て㤶㐲㙥㕥㤰㥤晥ぢ捣慣扣摥㠸愲慢㠹愲搷㥡㔱挴㐰散〵㠵扣㌹晢㤵愳收愷㝥慤昷㝦㜸搴扣ㄷㄸ收㈳慤㌱〴搵ㄸ㡣慦ㅡ〳ㅤ㑤挶挰㡤㈸㤶挶挰㝤㙣挳㜸扤㙦っ〴摥㡥㠳挸㔸摣ㄸ㘰ㄴ㉦挶攴㡢〴㔵㈳づっ㥥戵搶㔹昴㠴敤挳昵㕡攱㈲㜲て昵攴㡥挲昷戴扥㌹㝢㕣㜷㜴㙢㠳捣摦敢〸愸㉤㘷ㄲ昷戵㘵ㄳ戶搸戸㘰㠹㙣戴㠰㔷㈲昴愷慦㜸㑥㤶㜶㑢ㅤ㤸昲ㅦ摦㔱慦㘴㤴昴㐵昸㐴ㄴ㥥㄰ㄲ㕦㕡昳㡢扤㝦㝢攴昱㕤扣㤷ㄶ搰㙡㡡㠱攰㜶㠲昳戴ㅣ㄰扥㡤㕣〹㔹换捦㙦づ攲㐳㈴㜳戶㈴㐶㜴㐷摡㍢慥㘶㠵㐹㥦昰㈲㠴改ㄳ摦㜲㌰㈶㜱挳挱㌷㈶㜳つ㡥㑤昹昹㤲㜴〶收㈲ㄳ㤷摥扢㌰㐰愸戴㔴㔹㙤摡㤵愹㔷愰㜴㉥㜰㈲昵昶㈰捦㤷㝣ㄴ攵攵㐶慤戶㠳㕡㑤㥡㠹捡㈰㙡㠴㔲ち㤱〶㔲㐸昴挸挲搰扦㤴㔲攳㐸愴㜲〰㌱㌱戴挶㘰㉥㑦晥㉢㐲㐰㔴慦昷戵昹愹ち㜶ㄱ㔸っ扤敥敤㥥㕤㘹㜵㠶慡㠹㐱㔹㜹晡㌸㠲㠴㍣愶㌰㠳㔱㕡㤹㝢ㄴ㠹昰㐹つ㈱戵㘴挷ㄳ〷改戱晣㄰㥢捦搸㈹㡢㕥戵慣戵摢慥攰㡥〷昴㑣㕡㉡っ㝢㌵戳㜱昴㤴搱㌸扦㙡搶捦㈲散昵㤳搵㐶㕤㐱ㄱ㜴㤶扤〱攷㑦㠴昹昸㍤㄰换〷㙢㕤慦㙤㉣愱㡥戳㍢戱㐰晥㘰㝦㕤ㅤ挳搸ㄸ㤵ㅣ〳〹扢愴㕡ㄹ晦ㄲ昸〴㥡㐸㝢㕥搱㙡㐹㡥愵㈸㡣㐶㠷㥣搵愱㌶改㝦挶愹㈵㘷㑤戲㌶〳搶㜵晡晦㌸㌲ㄶ搵晦ち愳㙣ㄲ㘵昷〷〹扥愴ㄸ㈹㔹㌴㌸挳ㅤ㠱てㅢ㘱ㅡ㜹〴搶㘴㤲挱㙤㍦㌵㠱㑦㔴晤㘲㈹挱攱攱㑡㌶㕥㠲愸戶愵㙤摢搵㔲〰㌲ち㤴晡ㄹ㐴㔰换昶㥣㜴昳㌹㌶晤〰戲搷ㅣ㌴ぢ㑥搹㉤ㅢ摥挰〴挲扢〳晣挲捣㠰捤㌳慣扣搴㈸搴慥挷㑥㜴㍦㠸㌶㠷づ㐳㘰ㅦㄲ摥㈷ㄵ㜵㘴っ㘱㘹㌱ぢ㝥㙤搴ㄷ〹㈴㔱㍢戸㤷ㄹ㐷㉡㝡〹ㅦ愸ㅥ㠶㔷搳㘳搶戲㔰㜶扥㙦戹昱㉥〶户づ户戱敥㠳攷㐷㤴㜲〸㠳挹㈵㍣昸㄰昷戵㜱て敡敢〶㙢㜳㔹戳㍤敦㕡㌶昵㔳攰㜴㘹愳搴㤳っ挷攴㜷挷㔹敤㈱㐲挴㜹攸ㅤ㕤扡㉢㤶扤昵㠳捥㠳捦戶改昲ㅡ㉣挱㔱戶㠴㌸昷ㄷ搱㔴戹㠷〰㍦㉤ㅦ㈴昸愲搰㥦㜷㌷ㄳ㉦㘰㔹㘴〰愴ㄳ㘹ㅤ愰㌵㔵晦㜸㈱慡㔶㜸戴㈰ㄵ㘶㤵ㅦ愱㥣扢攴慦戶挸㍣ㅣ㌵攴ㄱ〲㘹㉤㉡戹ㄵㅥ㈱攴昸捦愱㐱㜵晣㘹攴戶ㅥ晦〷ぢ㡥㑦攵㉦搷ㄷ敤扦㉦㔴ㅥ摡〹づ㝤㤲愰㐴㘰〱昴㠵㌵㝢㈹ㄶ㈹㙢搲㝥㄰攱昵㕤㐸攳㜹㍢昸昷摤㕤㙦扤挹攷㠳㕤㡡ㄴ㠴㈸慡㕦〵〵愱㕣挵搳搱㔵捣㈲户昵㉡扥扢搰㉡晡㈸㈳㌹ㄳ捤〱攸改㔰㐸㉢㜲㔵㉥ㄲ摣㔰晥ㄴ㠹㔰㈴敡㘶搱㐷挴捡戶ㄵ㈴搰㤶㍢㉦摢捥㈱ㄱ戶㑤㜱㈳㘲㍥攱㤱昶ㄱ慦㍣搲㙢㤳昶摤慥㘹㕦㉢㘶慣挰摦扡㉣㘴〳㤶挴㙦㘲㕢㡡昴㜴㥢戱㝣攵愹㄰㌱晢昶㠵摦㐷愹㐱㜴〹㠴攱㕢愴㈴㈴㙥愴昲㡤戰昲换慦搶㥣愳㈸挰〳敡昱㉢㤳攰㘴攵㈷挳捡㕢昱敤㤵慣㤳攰㕤〱㍥敦㠶㤵㐹㤸戲昲ㄳ㘱攵昷户㙥愸㔶づ改搰敦㌹㐵㈲㠹戱㜵愵昵ㅦ昹づ㥢㠷敡㤴㐱晤搹㘵昸搹㤴㥣㌲㐸㕣㤲ㅡ戴ㅢ搷㍥ㅣ㝣〹㝤〰户㤸㜰搹〳㐲搶晦てㄱ昶攳㜶搳㤸敥改昸搰㜹づ㘱㘵㐷㤳㙦㙣㥣㌶づ㍢挸攸㌴昶扢㌸㔳ㄵ㤷ㄵ㠹挰ㅣ㐸晡晢扢㠸晢㍤挶㜴慣敤㐷ㄸづ㔳㜹㕢愴㍤攵㈱㐳㈸㐹攵昱㄰戳㠹㜳㌵㥡搱扥っ攴㐰㑣〲㌲愱㝤〵搰て戹慣㘱㐶ㅦ昹㕦㌲昷㌹㈴戴㐷〹ㅥ〳挸㉡㘴㜶搲㐱晡㙢〰扤攱㝦㐷㌱㌰㈷晤㈵慡㜲㌶ㅣ㉣㑡㐶摡搷搹攰〹㠰づ㌸㙡㤵㠰〸戳摡㤳挸㠹づ㑡挱㈱〷㝤㡡〵摦㈴昸ㄶ㐰㌶挵挹㉥㜹搷戸愶㌶㌵搷户搱㔴攱㔶㐸㌹昶㥤㈰挱㤷搴㌹㠰扢㕢摢捡㍣ち㠷㥦敦㈳愸㔹昷㥤晥㙥㝣㜷㍦捦㐵㜷攰扦ㅤ㐹㐹挳㍥愹㝥愶扤扥挸〴戴挹攵捦挱㘶㕦㐴㍦㕣㔷捤挶㘴㡦㥦挵㉦愳愶㤵㐷昱敦㌹晣㤴㔳ㄸ㠱愳㔰搳㘶攰㘶㈱つ挸㠲搹愰㠰㉡㑢㝢ㅡ㐰㈱㡥㠹㈷敤ㄹ扥ㄱ戵散㕦晢㕥㤰攰㡢㐲扣㥥㘳愲ㄴ㌴て〷㈴慥㘵挱挹㠶〱㠹㝦㔹㜰㈲㍡攰昷㤱慢㐸㘴㈱㔱慦㤵㠸戴㈴㜳㥦〵攸改攸攵摣愸攵搴㌳㑡攱攱攲挳て㝦搸㥢ㅣ搸㤸晣晣㍤摤捦扥晢㠷昷㥥㜹攷ぢ㍢晦昹搱昳捦扦昳昷㘷摥晣攸㡤愹㥤扦㝢昱挵摦摥晢㤳㌷摦㕢㙤扣愰扥晡攱㠱ㄷ捥づ㥤㍣㝢捡㌸㜶敢摥戳て㥣㌸㌲㌴㝥搹㘰㐷㐷㘷攷捤晤扦扦㝣㔳摦戹㔳慦㈹扦昹昳㝡㕢㤱换攵㠰㐷〱挲愷㡦换㤶搳昸㈱ㄲ㤸〶㘷晣愹㑥㠳换㍤㠷㥦㔲っ㌶㙡〴㉦ㄹ昸㌴㌸〱㔹㔰愸㉦攸晡て㙢㌶戲㘸 | B27: 㜸〱敤㝤㜷㥣ㅢ搵戵扦敥㝡㜷扣㈳㤷㤵㌱扤㤸〵っ搸戸㐹㉢㘹㔷ぢㄸ昷㠶㉢㉥㜴㔸㔴㐶昶攲㉤㘶愵㌵㌶捤㌴㔳㐲敦ㅤ㌷㌰扤㠴ㄶ㈰㌴㠷㈴昰〸㈴〱〲挴㈱戴〰愱㈴づ昰㜸㄰㐲昳敦晢㍤㌳㔷ㅡ㐹愳㕤㥢㠷㍦㍦晥㜸戳搲搹戹愷摤㜳捦戹㙤收㕥捤昸㤴捦攷摢㠸㠳晦㜹㔴昲㘴攷㌹㑢㌳㔹慢㜵昸戸昶㤶ㄶ㉢㤹㙤㙥㙦换っㅦ搳搱ㄱ㕦㍡慤㌹㤳敤〱〶愳愹ㄹ昴㑣㔵㔳愶昹〴慢扡㘹戱搵㤱〱㔳㤵捦㔷㕤㙤㔶㠰扥戵昳つ攸㠴㐹㈹戳㤲〰㕣㍥搳㈰攸㐹㔰㑤㘰ㄲ昸〹㝡ㄱ昴㈶攸㐳搰㤷愰㠶㈰㐰搰㡦㘰㉢㠲晥〴捣挶摣㠶㘰㕢㠰摥摢〱捣ㅤ㌷㜶㘶攲㔸ㄸ㍤㈷摢摥㘱つ慤㍤搸㌶㙤㘴㈸㌴㍣㌴㍣ㅣ〹搷ててづ慤ㅤ搷搹㤲敤散戰㐶戶㔹㥤搹㡥㜸换搰摡㔹㥤㠹㤶收攴㔴㙢改摣昶㠵㔶摢㐸㉢ㄱっ㈷攲㤱㔸㈸ㄲ㡤愶ㅢㅢ㘳扤户㠷收ㄹ攳挶捥敡戰搲㤹ㅦ㑢攷づ搴㌹㜳摣搸攱㌳慣散㡦愵㜳㐷攸㠴捡昱敤慤昱收戶ㅦ㐹㘹ㄵ㐳ㄷㅥ㙦㈵㥢ㄹ㘳换敡㘸㙥㥢㍦ㅣ㘶ㄷ㌸ㅡ愹㠶攱ㄳ攱昱㘴㍣㤳ㅤ㘷戵戴捣戶搲っ㙦敦㔶晡捣敡戰摡㤲㔶愶㙦敢㠴㈵㐹慢挵㈱㘷慡㕢て㡥㜷捣㠸户㕡㤵㍣愹㘹戵攳㌶㈵㘵戵㘵㥢戳㑢晢戴捥换㔸戳攳㙤昳㉤戲㔴戵㑥敡㙣㑥㔵㔶慡捡㑡㕦㡦扤扤㡣㤱搸っ㥦搸㤱ㅣ户㈰摥㤱㤵ㄴ愳ㄶ昲攲㜵搵㄰㌱扣挰㉣搶愲摡㈲㈹㠶㘹㑥㜳敢㔴慢愳捤㙡㘱㈶っ摥㤰㈲㈶昱㠹敤晡㥣㜳㜴㘹ㄸㄸ搵换㘹㔶㉣ち㜳㌱㜷㈲搸ㄹ挰搸〵㘰愷㤱攳㘶捥ㄸ㌷㘶敥㠴ㄹ昸づㅡ㌸㌶㕡㍦㜴昷摡摤㠷㡥ㅦㄸつて㌶〷㤰㜵㔷〰㔵昹㌶㥡慢㕢ㄵ㥢㑣㐵㔳扣愲㈹㔱搱㤴慣㘸㑡㔵㌴㔹ㄵ㑤改㡡愶昹ㄵ㑤ぢ㉡㥡㥡㉢㥡㡥慤㘸㕡〸ㅥ㝤㔴昷散㔹攱ㅣ晢㡣摦㔸㝦晥戹慢挶慦㘹㝣慦昶搸挳㉢㙦愸㘲ぢ㡤㝡㤵慢搸㘵㘳㌲㤹捥搶㐵散ㅡ㥣㜰㑡㍢㙥ㅤ㥦挹捥㡡㜷戴㘶㝥摣戸㈳敡摤〵㝥㑣愶㜵换〷ㅥ㤹晣㈸㠱㌷㜶㠳㥢㙢㘷戴㜷戴愲昳㤹㙥挵摢㐶〶㠷〷敢挲昵㐳攷㘴㔳攳慤挵㑣㠵㠲ㄱ㜳㜷㜰㤹㝢〰ㄸ〳〱戶㥡搲㤶㙥㠹搳攳戵戳攳㔹慢㜶搰㥥㠳捤㍤挹戱ㄷ㠰㔲敢㔱㉢㔸㌳敥㝡㝣挷㔷㙡敥㌹㘷挲戹㝦㙤ㅢ㌶收㥢ㅤ㥡ㄵ晢㕢㠶搵ㄸ〴戰捤扣戶收㌴昲ㅤ㍡扤戹㙤㘴㜸㜸㜴攸昴昸㤲㤱昵收㘰㤰捣㝤挸㌴〴㘰昴㠴㌶慢㘳晥搲摡㈹㙤挹㘶戶挶摡㔹㔶㐷敤㈱昱㙣ㄶ㤸㑣㌶㡥㌱㈱㔵㝢㐴㑢㝢搲㌶㈶㘵㉤戲摡㔲昱戶散㔱戵㠳ㄶㅥ戲㘰挴搲㡥挱收㔰敡ㅢ〶愰搴㑢㡥㕤ㅢ㕥摢晦㤸㕢㍦搸㙢晡㜹㠷㝥㌸戵搷扢㙦挶ㄴ㠷〰戱㙢〴㑥㜶㜰摢㠵攲㐷挴㌰㥣挴捣㈰㜵㠵〰㡣㍡㠰㝥攳㥢㌳挹昶㑥ㄸ㤵㜳㐲㤸っㄱ〰愵㝥攷㘴戶戶昳昳挷㈳㥤扤愷㥦㜹敢摢敢㡥㥤㝦昲㥢㡡㝤㤱㘴㔶㡦㤳ㄱ㐵㥥て搷㐷㕤㥥て㠶敢㈳㡤敥愳摥㙣㘰づ㌱〰愳ㄱ㘰攰㤸戶戶捥㜸㑢敤〴㡥㡤ㅤ捤㐹㜴㔶戵戳昰摦慡㥤㠴㕥ㄷ㜱ㄱㄷ散㑢㤹晤〰㤴晡戵㘳搵㠵㈳摦㕢晦收㐳㐷㡤扤㙦晥㥢㌵㔳扥㍢㙥㠸㘲㥢㤱㠱㜱㈴㤹て〰㌰㐶〱㤴㜴〴つ慥㡥㘰㌴㔹挷〰㈸昵㠴愳㜷㘱晤㑤㕦晦攵㥤慦て扣攳捡搶㤷搶ㅦ晢攷㙦ㄵ㠷㔳㈹敤㌸㥣散㔲㔸摡㤸扢㤶搵㐵捤昱搴㌷〱挰㤸〸㌰捣〹晤㠴㈵㡢摡㍢戲㠸㜳戶扤㜶㔲㐷㌳攲㥤戱戲㥤㡢㙡摤挱㐶晤㥢㐴攱挹〰㑡晤挲㌱收慣㡤㐷〷ㅥ㜸㘰挰㠴㕢慣搷摦搹㍢摤晡㠲攲戰㉥挶ㅣ㠸㤳㠲晡㔷ㄷ㤴㈸㠷㠳收㔴敡㤹〶㘰㑣〷愸㙥㘹㑥㕢搹收㔶换㥣㐱晣㑣〰愵敥㜵昴愷昶㍥攷捤扤昶㌹㘵散晤㍦敢晦攱㠹㌳㈷㕥愰搸晤㠹晥㠳㜰戲㕤㘱㍤ち㍢搵㈸㘲捥愶愶㌹〰挶㕣㠰摡〹改㌴㈷㌶㡢慤摡㜱敤ㅤ㈸㉡ㅢ搴摣昸㤲㝣愵㥡㐷晥㠳〱㤴扡捤挹昹搶て㔶㍣昱攰㡥ㅢ挶慤愸晣昵搰戳㡥ㄸ昱㠹攲㌴㐵㜲㍥ㄴ㈷〳ち摤ㅣっㄶ搴愹㤰㜹ㄸㄵㅥづ㘰ㅣ〱戰攷慣㌸㐶㤲摡㤹㥤搹㐵㥤㔹㡣㌶昳㍢慣㤴摤㥣搸搶づ戳攲ㅤ搲扥㡦愴搰㔱〰㑡慤㜶慣搸晥慤〹扢㝣㙣ㅥ㌸昵晡扦㍤ㄹ摦㍦戱㜶扣攲㍣㐹㉡㔱ㄳ㤹㡦〱㌰攲〰㘵㉡搱〴ㄹ㑤ㄲ㘴㑤〲㈸㜵扤愳㔷ㅤ晥㘰扦搸敥て捣昸㔹扦㌳昷改搳昳捤㈷ㄴ愷㕥愲搷㈲㜳ㅡ挰㤸て㔰愲㌷㉡㤵㜳㥣攸㕤㐰搶㘶〰愵慥㜴昴摥㝣挳摡㠱て晦攵搰㜱搷扤㜸摦搲㔵㔷晤搷挱㡡戳㌹搱换㌱挹㙣〱㌰㕡〱㑡昴摡愳㥦㙤㙦ㅢ㔹摢〱㤴扡搸搱晢散攵㜳㑦搸㝦摡㠲㐹㔷㌴て㑡㙥㕢㜱㜴愵攲〴㔱愲㜱ㅣ㑥㜶㉤慣〷挱挶㜰㝤㠳㔳ㄷ㐲戱㘸㈴㙣㜶㔰㘳〶挰挸〲っ㜴户攵㌹㤸扥㌸つ㝡搰㠴㌹戳〶搷づㅡ㌸〲ㅤ摢㘰戳㤳㌲㡢〱㤴㍡搷戱攲攰㤷㙦㝦㍥搰㥣ㅡ晢攴㡡㘳㉡敥㍣昹摣ㅢㄵ㘷愸㔲扡㈵㘴㕥ち㘰㥣〰㔰㔲㍡摢㙢昶搸㝥㈲㔹㑦〲㔰敡っ㐷敦摥捤㑦愵づ㥢晣攸捣㈷晦戸晣扥㕥て㙦晢㤰攲愴㔷昴㥥㐲收㘵〰挶愹〰㈵㝡㙤慦搹搱㌸㡤慣愷〳㈸㜵戲愳㌷搴晥昴つ㐶攴挵愹搷ㅥ昸搵昵㉢㥡㤲挳ㄴ攷搱愲昷㑣㌲㉦〷㌰捥〲㈸搱㙢㜷㐱戶摥戳挹㝡づ㠰㔲挷㍢㝡慦慡㥣㜰昶攱㌳㥡愷㕥㌰㘷晥㥤㉢㤶戵捤㔷㥣㥡㑢㌴㝥㠶㤳挲㔶愹扢昶㘰搴㍣㡦㥡捥〷㌰㉥〰ㄸ㌶ㅤ晤㘷搶㙡㡢㘳戲㠸㜶㤹戱〷ㅥ愷㌱搴戶愷昵昰㈳戴挱收㠵ㄴ扥〸㐰愹㐵㡥ㄹ㡦㉦晦㜰敤戴㌷摦ㅤ㝤挹㈷㥦㈵昷㘸换摣愸㜸㜱㈰挵扢㠴捣㤷〲ㄸ㤷〱㤴ㄴ捦づ㠷㕤搹㉥㈷敢ㄵ〰㑡ㅤ敢攸扤㘸搲㍢ㄵ户㕤ㄶㅥ㝦昳愱㉦搴慦㕢㜰晢挷㡡搷ㅢ㔲扣慢㜰㔲㔸扣攱扡搳㠹㥡㔷㔳搳㌵〰挶戵〰㈳挶㕢㡢㌰㐱㙥㡥㈷㕡慣摡戱昱㑣㜳〶㙤㥣挵㥡㤰挹づ搷㘵戳㍢〱ㄶ㝥戰㜹ㅤ挵慦〷㔰㉡改ㄸ㔲昵攸㕤摦ㅣ昸㝥㜶敡㕤ㅦ㕦㜶搱挹㈷㝤㜵㐸敦ㅢ㐱㍥挸㤹㔷㡥敦㠸ㅦ㡦挹㜹㝥摥㕦㌷ㅣ㈳攸愶㕣昰攰㝡㈷ㅤ㑤㌷愴㐳愱㔴㌴ㄸて挷慢㜶㠲摡㑤㥤㘶㌳搴扤搳㠷㌴户愵摡㡦㤷㜹㜷敦昴挴收㤶慣搵㈱㠹㥡㌴晥搹搷づ㤲敥㤳㥥戰〴ㄷ㕤㐹㝢㡡扥㜵㝡㥣搵㤱㘵搸㤷收愷㙦㍢挳㌹㔶㍥㌹挴搱㍤ㄶ挳㝥㉡戳㤳㌷㜱㑥ㄶ㕤昸㡥挵戴扣㤲ㄲ戱㌹戸㤰戱㌲㘲搲㠰㘲戱㠳攳㉤㥤搶㤸㈵捤㌶㜹㤷㈲㌲㉥㘹摡ㄳ攵愹ㄳ㍢慣攳㜲搴ㄲ㡢挶挸愸㐳㝡㐹㈹㙤㤲㙤㔷敤戸〵敤ㄹ慢㑤捣ㅢ搲㍡慢㌹戹搰敡㐰扦㠴㌱换㑡㐹㔱户㈱挹戹慥ㅡ㌲戳つ〵挵㤵㔲㙡㜷㌷㤶㡥挶捣捣㑡挱摥㐵昰昲搲戹慣㜹摢ㄶ戰搸㜹㠲戰㐳〱㝡㘲㝢戲㌳㌳慥扤㉤摢搱摥㔲㐸ㄹ㤳㕡捣收㤹㥡摥㥥戲㉡攵昰搹㔰昹㝡昴㔰捡㌷挸敢攲㠱扡㌳扣㙣㜲㔵㤲敤㔱㙢扡㘶㜶㔵㈲㌲㝢㕥㙥攵㌴攳挴㔵挹挸㍦戸㑢㑢摣㤵㤰摣挱㉥戹㍤㉡㈹㠵戶㉦㙣㜸挳㘷㈳㍥㠸㐳㡢挵㔶㔹㌱戰扣捡㝣扤散挶㔲㔷㔴㜸敦㠵摣㕤㌸㑤搴收敡摥㤶㘵慥愸攸敦㤴㝥挲㘲㕣㈳㑣㡥户愵㕡慣㡥㉥敦ㅣ㈹㕡㘴慥㈰㔸㐹戰㡡㘰㌵挱ㅡ㠰慡㈳搱挷㤵昵㈸㍢㕢戵㐴㉤慤㍡扥㌹㤵㕤㘰㉣戰㥡攷㉦攰挸㡤㍢㑥搵搵㜴昷づ捥昷搷ㄵ㍥摦扢ち〹昳㘶㠲戵〴户〰昸晤㍥攳㔶晣昷ㄹ㝥昳㌶晥扢ㅤ愰㐶摦戲愸戵㙢愶㕦㔵昱㜲㝣昳㙦ㅡ㈰㔳㥦㈹昷㈸㜰ㄳ㈹㔳搵ち扤㤹ㅥ㍤扣扣㌱㌹㥥㔹㤰㘵㐳散㤲㈸户〷敥愰搲㍢〱㝡摦〵㌰㘳戲搵㠲㘶晣㘳摤㝦慡ㅡ〰㥤摤摥攷攰戴㘳摢搶㌹㑢摢㤲ぢ㍡摡摢㜰戳㙦㝣㍣ㅢㅦ㤳挴捤㥣㡣㡡ㅢ慤搳摡挷㜵㘶㡤搶挹捤昸搷扢㜵㌶慥〴攳搹㜱扣㍡敢搳㍡つ㌷㠲愴ㅦ㥤㤲㕡㔲搵㙡摦挳ㄹ㙦㘵㤲㈶㙦昶㑣㐱户戴挴挰ㄹ晡搹摥慤散㘸慣㈵㔹慡敥搹㡡摢〷愸㑥㈶㤸㠶㠸㤴㝤㐶挹㍥㠲搳搲㝥㈷〵つ〱㌹㜵㘹改㈵〸㕢㤳っ搳ㄸ㐱㌱て愸㜴㘰㜱ぢ㥡㤷㙤㙥挹っ㜷摣㍢㝣㝣㍢㙥〶㕡㜲扢㤳㙥㌷っ㔴㌰愳换㘰ㄵ㌷㜴摥㉤㥡㤹㑣搸㙡㘱捡愴㡥昶捥㐵慣㥦㍦㤶ㅥ敡昲㤹㜷〳慣昸散昶晤昶扣攱㥥㡤捥晦㘵㘸㐲㜲㤸扣愱㘴戲扥㌳㠹㝦㜲㤸㍦挷㍦㝦㔷戴慡㕤挱攱搹搳㤶戹戱㔵〵晥摥慤㈸敤摣づ㑢敥搴㔵㑢㘲改㈲慢㑦敢㈱敤ㅤぢㄳ敤敤ぢㄹ晣扥㤲捡㉣戰慣㉣㙦㝦昵㜲敥昶昱㕣㈹搵愳㐷挱つ㉤搷㝤戲ㅤ愱摦㜸㄰愰捦ㄸ捣捡戵挶㡣昱㄰㔰㍤㌰愲ㄸ扦挰挹摥愱㘸敤㙣㉢㠳慢愶攴㠲摡㘱戵㜳摡㕢㜰晤㌴㉥摥㤲散挴つ㤳昶㡥摡挵愱晡攱㑢㕡㌲慤㙡㌲㥣挱㥢㈴扦㥣㍡攰扤㡤摦戵㑥扡㘳昸㜹愹㈳ㅥ扤㘴㤲㥡攴㄰㑡㙥㠸敤㑥昵攵㍢昲㠲摢㑥扣〲㈹㤸〸㤵っ昱㜶㉦昳㝦ㄳ㤹㥦摣㐴愶㜰ㄲ戳㑦昹㠰换㄰㕢㌴㡤㈹㍢㘸晤摦㌴挰㙢〱挹㥥〶㍣㡡挶愲㈶愰搹㜱搸挷㜹攱㘱㍥㠶戴昹㌸挱ㄳ〰ㄸ扣愵㌳挳搸晤㤴㥤㔴㝢攰㍦挷㙡㜳ㅤ挱慦〰慡昶〴攸㝡㐴㐳㜳攵敤㠷㑡摥愷敥搳㍡摥㑡挷戱ㄲ㈴愳㤰㡡晦晦ㅣ愴㉡戱敥收ㅡ愱扡㉥〴㙣攷〰㘰ㄴ㑦㜰ぢㄷ㈹戰㜴㤲㥡㘴戵捤㐵㑦㥣昹㌱挷㥥ㅦ㜳っ㌳㥦㐶㌹昴㔱戵㍦㉡挲愶㤷㠹㔳扣㥥㡢㌹㠱㘸㙡昲㔵戳㠴挴㤸〳〹㑡挶扤㘷㠰昵㜷㐵㔳㝢㠱㠳㘳㥦挹戱挶㜸ㅥ愰〷㉡㡢昱〲㑥㌶㜹㜴愹㜳〶㤱㤲搱㈵攴㄰㑡敥捤昳扥㍢㐷ㄸ昳㡦〰㙡〴搸扣㕢挳㑢攴㜹㤹攰㑦〰扡㌵㔴晡捤㔷敤愴摡〷晦愵㌵扣㐶愶㍦〳愸愱〰㙣ㄱ收㝡〰㝤愸扤㤰〷ㅤ㉤捥ㅡ〲戴㌸㡢戳㙢㝤㤸㙦攰捣㙦㜶㐱㔳挳挰㤱㜳㤶㐹㘷㤹㜴㤴摡搹㈹㘷㠹〳㜶㜲〸㈵㡢〰扣戹㉦づ昸㍢攵㜷〰㥢户〳㍥㘴ㅥㅦㄱ㝣っ攰㜲挰㍦敤愴ち攱扦㌸㘰〳㤹晥〵愰挲〰攲㠰㑦㜰愲てㄵ㐰ㅥ㌹〷搴〱㉤づ愰㍢昴㘱㝥㡥㌳扦搹〵㑤㐵挰攱攵〰愳㥣〳慡ㅣ㐲挹挲㐴〳㌴㠹〳扥挵㠹敡㔱搶〱摦㠳㙣戲㥦㌴㔹捦戵〳搰ㅦ㔶搸㐹ㄵ〳㑤ㅣ搰〳〸㤳换昸㙡㕦愰挴〱㔵㐸改㐳㝤晤扤换〱㡤㐰㤷㌶ㄷ㤳㍡捤㉥㘸㙡㍦挸㜹㌹攰㔳㈸昷㥣㘰㝤攲㄰㑡搶㐰㐶㐲ㄳ敦㌶㤹㕢搱敥晥〴㕢ㄳ㙣㐳戰㉤㠰晡〸愲慣ㄵっ〸扦昹㉢扣敤挹戳〳挱㡥〰㉥愷散㑣ㅣ㉦昰晣㑡ㅤ㠰㝦攲㤸〱㐴敥ち愰㐶〳㌵〰㕦㥦㔹㡢㘴搹㌹昴㈸㜲㤴昴㈵㝢㐰挴㙦㜶㐱㔳㘳㈰㤷㜷づ㘷慡㈶㘷愹敡搵㜲捥㜹挵㈱㤴㉣攴㡣㠷㤸搴㡥愱㌴晢㘵挷ㄱ㐰ㄶㅥ收㜰㤰捤ㄱ〴㐱〰敤〸昴て㜵㜶㔲㑤㠰㠰㌸㈱㑣愶〸㠰㥡〴㤴搴㡥㈸㔲晡㔰捦㈱㡦㕣昳㤸〸戴㌸愰㐲搳㠹㘸愴㑥戳ぢ㥡㥡っ戶扣〳昲晤挳㔳攵ㅣ昰愴㐳㈸㔹㍣㥡ち㑤攲㠰戱㌴昹昱戲づㄸて戲㌹㠱㘰㈲慤㜳愶ぢ㜰挰㘴㈴㡤㈹〴捥ㄵ扥㑦㑤㠳㑥昱挵㠱攴㥦ち愰㘶〰㈵扥㤸㠶㤴㍥搴晤㙥㕦㑣〷㕡㝣愱挹晣㙦捥〲扦摦散㠲愶㘶㠲捤换ㄷ户㤵昳挵慤づ愱㘴愱㙢㌶㌴㠹㉦づ愳挹㙢换晡攲〸㤰捤㈳〹㡥愲㜵昹愹㔳㤳㥤㔴㜳愰㐸ㅣ㜰っ㤹攲〰㙡ㅥ㔰攲㠰〴㔲晡㔰㌷戸ㅤ㌰ㄷ攸搲搶㤰愶㑥戳ぢ㥡㍡ㄸ㜲㕥づ戸慣㥣〳㉥㜵〸㈵敢㙤㠷㐱㤳㌸愰㥤㈶㕦㕣搶〱挷㠱㙣㜶㄰㘴㘸㕤扥㌲㜴摡㐹㜵㌸ㄴ㠹〳ㄶ㤳改㜸〰㜵㈴㔰攲㠰㈵㐸改㐳㥤敤㜶挰ㄱ㐰㡢〳慡㌴㥤㠸㤳愸搳散㠲愶㡥〲㥢㤷〳㑥㉥攷㠰㤳ㅣ㐲挹㔲㕦ㄳ㌴㐹㕦戹㥣㜶㥦㐵㜰㌶挱㌹〴攷〲愸挵㡥㔳㑥〶㈷扦昹扥昲㍣昲㥣㑦㜰〱㠰㜶ち〶㤰㡢㠸㜳晡捡㘳㈰㈲㡥戹㠴挸㑢〱㔴〲㈸扢慦扣っ挹戲㝤㘵ㅣ㙣愵戵攳㑡㠸昸捤㉥㘸㉡〹戹扣㜳昲㝤㘵戲㥣㜳ㄲづ愱㘴扤搲㠲㈶㜱捥ち㘴㙡慥㈴㔸㐵戰㥡㘰つ㠰㍡搲㜱捥㤵攰攴㌷敦㥣㥢挹戳㤶攰ㄶ〰㤷㜳㙥㈳捥㜱㑥ㅡ㈲攲㥣㍢㠸扣ㄳ㐰㉤〰捡㜶捥㕤㐸㤶㜵捥㝣戰㤵㍡攷㕥㠸昸捤㉥㘸㡡㉢愹㕥捥㤹㔲捥㌹㤳ㅤ㐲挹愲敢㐲㘸ㄲ攷㍣㐲摢ㅦ㈵昸㈵挱㘳〴㡦〳愸戱㡥㜳㔲攰攴㌷敦㥣㈷挹昳ㄴ挱㍡〰㤷㜳㥥㈶捥㜱㑥ぢ㐴挴㌹扦㈱昲户〰慡つ㈸摢㌹捦㈰㔹搶㌹慤㘰㉢㜵捥㜳㄰昱㥢㕤搰㔴㍢攴扣㥣㌳愲㥣㜳㠶㍢㠴㤲㤵攳づ㘸㤲㝥攵㘵㥡㍤搴㜱〴㤰㠵㠷昹ち挸收慢〴慦搱扡㝣挷扡摥㑥慡っ〴挴〹㝦㈱搳敢〰慡ㄳ㈸改㔷晥㡡㤴㍥搴ㅥ挸㈳㌷捡㘶㠱ㄶ〷昴搰㜴㈲摥愶㑥戳ぢ㥡㕡っ戶扣〳昲愳散づ攵ㅣ戰扤㐳㈸㔹戴㕥〲㑤㔲㍢㍥愲摤ㅦㄳ晣㠳攰㥦〴ㅢ〰搴㔶㡥㔳摥〱㈷扦昹摡昱〹㜹㍥㈵昸っ挰攵㤴捦㠹㜳㙡挷㔲㠸㠸㘳扥㈰昲㑢〰㜵㈲㔰㜶敤昸㌷㤲㘵㙢挷〹㘰㉢慤ㅤ㕦㐳挴㙦㜶㐱㔳㈷㐱㉥敦㥣㝣扦戲昱扢㌲ㄳ搴敦ㅤ㐲挹捡晢㈹搰㈴捥改㔱〱㔳㉡〹慡〸っ㠲㥥〰敡㉢㠸㜲㠲㝡て㌸昹捤㍢㠷㥢㘱㑤㍦㐱㉦〰㤷㜳晡㄰攷㌸㘷ㄹ㐴挴㌹㌵㐴㜲换慣㍡つ㈸摢㌹晤㤰㉣敢㥣㔳挱㔶敡㥣慤㈱攲㌷扢愰愹搳㈱攷攵㥣昷换㌹攷㍤㠷㔰戲㝤攰㑣㘸ㄲ攷散㠲㑣捤〱〴扢ㄲ搴ㄲ散〶愰摥㜴㥣昳㉣㌸昹捤㍢㘷て昲っ㈴搸ㄳ挰攵㥣扤㠹㜳㥣戳ㅣ㈲攲㥣挱㐴敥〳愰捥〶捡㜶捥㄰㈴换㍡攷㉣戰㤵㍡㘷㌸㐴晣㘶ㄷ㌴㜵づ攴扣㥣昳扢㜲捥㜹捥㈱㤴散㠱㌸て㥡㜶愷ㄵつ㌴晢㔹挷ㄱ㐰ㄴㅥ㘶㈳挸收扥〴晢〱㘸㐷㘰昲㍡搲㑥慡昳㈱㈰㑥㌸㠰㑣愳〰搴㠵㐰㐹扦㌲ㅡ㈹㝤愸㈷㤱㐷慥㕦戹〰㘸㜱㠰愱改㐴㡣愷㑥戳ぢ㥡扡〸㙣㜹〷攴晢㤵〷换㌹攰〱㠷㔰戲晢㠲㥢㉥愴㜶㑣愷摤㌳〸㘶ㄲ捣㈲㌸〸㐰摤敤㌸㠵昳㝣㝥昳戵㘳づ㜹收ㄲ捣〳搰㑥挱㝣攵㄰攲㥣摡㜱㈹㐴挴㌱㠷ㄱ㜹㌸㠰扡ㅣ㈸扢㜶ㅣ㠱㘴搹摡㜱ㄹ搸㑡㙢挷搱㄰昱㥢㕤搰搴ㄵ㤰换㍢㈷摦慦㕣㔷捥㌹搷㍡㠴㤲㉤㈴㔷㐳搳敥戴㘲㍥捤扥摡㜱〴㄰㠵㠷搹っ戲㜹㉣挱㐲〰㤷㈳㕡敤愴扡〶〲攲㠴㌶㌲戵〳愸敢㠰㤲摡戱〸㈹㝤愸㡢㤰㐷慥㜶㕣ぢ㜴愹〳戲搴㘹㜶㐱㔳搷㐳㉥敦㠰㝣敤㔸㕥捥〱㘷㍡㠴攲慤㉢㔵㉢愰愹㜸㈹㑥昶㔰攷ㄶ昵㕤昷搹晢㠲搹㐸㘳㔷㔷㌶搳㉢㍤愶㌳摢㍥戱㌹㡢ㅢ愱扤搳〰㌸ㄵ㤱ㅤ㡢㙦捥て㐹ㅦ摣㙣ㅤ捦㕢愰扢㤶㤲戰扤㝣㕣㘷㈶摢㉥慢㡣〳㑡改攳摢㘷戴㘷戱摢㜴㔱㑢㝣改㐰て戲㑤㌹㘴㠱搵㠶つㄹ摣㉢搹ㅤ㔳晢愲㐵㔶捡挳挶㌹敤㥤ㅤ㐹㙢捡昸㥦挲㤶づ㘵㉦㤷攲㑥ㄴ㌷㜳愸㍤换㉦㠴戸晣扥㍤㘲㔳㠱㔵㍣昵挳㜶〴ㄸ㈷戳捡づ昴㤹愷戰戲㈲㔷㔴㜲㜳ㄹ㉢愲摦㔷戵ㄲ愸慥㉢㠹㙢㥢㐸㉦㌰晢搳〸慣㡤敢攳散㐳挲慥攵收㤴攵㜷㔲搸昹摣搷㌹挵昶换〲㑡㝣㐹㝦㠷㠲挵挶㤹㙤摣㙡ㅣ敦㐸晤ㄴ攲㠲㠲攱戰㠳愲っ晣晤㌰㔷摢㙡㝣扥㑦㌷㘲〲挵攳搳㘵㘸敥愷㍡扥㕥〵㠴攷摡㙦慥㐱攲挴戵换愶〶晣㝤攸敥ㅣ扡㥡㈹㙥㘸㤷㈸搸扢搹晢ち㠷㠵㉡㡥摦㜵戴㔸晤ぢ㤳戲昸㘲愶挷㈴㌲敤㉤㥤㔹慢㙦敥㑣㥡扡㤹㥥㙤㜱捦晢㘲慢㜷敥㙣㔶㌲㡢㍤㘵㌹㝤摣つ昵搳㠹㄰㍣㔲改㐴㐹㐹㥣㡣㉥㉡㙦㘱㈱搸㡡㝥㘰㔴ㄱ捣戴ㅣ晦ㅡ愵慥扤㠶挷㙤愳㝣晡挴捦挳㔷戵ㅡ敡㡢㔷㔷ち㝢㕢昷㤶㈸戶愴晥㝡愷㥥摤挷㐹昷搵㕢攳戸ㅢ愹㑦㕡㝡㍥㙣㌹攴㙦㐰㙡搸㜴㕡昰㝢慢㙣㜳ㄲ扦ㄱ㔸摡㌷㡤摦て戴㜴愶慣㘹昱㠴搵愲㝢㙤晥收攱愷ㄱ㉦昹愵㥢ㅤ慢㉥晣攲㌸㘵ち㝥敥愶㌷㘰晤攰㡥捥㘷㥥㠶㤶㈶㠳㉥㜴昸捤㌳㥣㜶户〶捥摥散晤㘷㝥〸㙤㤵摦㍤㈹扦㤴㐲搷㔶㠲㘲㥦挶扤㌸戹㉤㙣搲攲㕣㙣搳摡愷戵㘳㝢㘱捡㠵㥡摣㙣愳㝥㌲敤㑡挲㘴ㄸ挶てㅤ㘲攰㉢ㅣ㥦㙥㜴晥㉦㜳晥㡦攲ㄸ挳挶㜱㌳㄰挵扢㜸㕣㡤㐳㐶㝦改〴戹挵愳㠶㍤㤸㍤㜵㤸摢㥣㙤戱㝡愵㠵㉥攷搵㙣ㄲ昴㘶捦昴摣〵搸ㄱ㌳扥㑦㥡㍦㥦㘸㘹㙥戳㌸つ挱㜶㔷晥㍡㙤㥡㌵ㅦㅢ㌳㘷戵㘷㥡昹㜳㥥㍥改戹ㅤ昱戶捣㈲㙥㝣㑡㉥摤慡㈰㈵挱慡㑡㡦㙤㙥㐳〳戲昳攴㜹㑤㝡捥㠲昶攳昱昳捣捥搶戶㐹昱㐵㤹㥦㐴愰㥣㈱〵ㅥ戲㕢㔵㠵慡愸㔰搵ㄵ搵㍦㜴慣㌲捥㐴晢搸㜷㙣㠷ㄵ㕦㘸㘱㡢㘱改づ改摡㈳昰㌳ㄵ搹ㄲ㝢ㄴ户晦㘰㡣挷〸㠳ㅦ收ㅣ㌲愲㜶慥㤵挴扤㌹㔸挴〵愳ち〲㈷搲㙢㜱搶㐵㜳㘷㤰㥤㕤戵㙣敥㉣㔲挱㑦搹㍣户昴攵㝥ㅡ换㉥摣㕣づ慢㝢㥦〵㜰攰愴㜹㔳昲㝢戱晦㔷㍦㐰慤扡〵㥡扢ㄸ㐹愴㔶攵㌶㝥㙥〳收扥㜶㑤㈳㡥ㄵ捦㤴ち挳㔴㜱敤昵愷㠵㠷ㄵㄹ㠳㉦搹㜹㍡ㄱ㕢昲㝡愳摦㐰捦㡤慤㡣攸戲晢摡〹捥〷昱愳戵㡣㐳ㅢ搷摥摡ㅡ㘷捤㘴慤㥥㠳㙥摦慡㤶挹㌹㍡㈲㌳つ㈰搵搷㐱挵㤷〰ㄵ㕦㈲㈸㡣收摣捣㉤攷搴搵㍥㍦摥搱㥣㕤搰摡㥣慣㘶㠲ㅢ慥㝦ㄲ㔵ㅡ㔵愸ㄲ捥搴㠷搴㙢捣㜴㡢昷㘷搸㍢晤㄰敥攱戸㘲愱敢ㄸ㝥㔴晣ち㤹〲愸ㅦ戸㔳ㄶ搵搷攴搴搸㍣〷㠰户㥣戰㡢搱㘹㘳慥昹ㅢ㌰搲㠷㈹㙥㙡㈵搹㍣ㄷ慣㍣攱户昲づ㠰㉥㌷㉦昶〴㠳㝦㕡㝢㍣㌵ㄱ㝢昲摢㍢㝡㍡㍦㤸慥㐶㘸搹㈳㜵〴戸㘱㜵ㅣ㜶㝢㘳ㄷ昹㘲㌴戱㡥㙡㈲收㘰㉢㘸㈵户扡ㅡ㜶っ搹收㝤㔵㔵扤慡扤昲㥡愲㜵つ㜴㌶昶戹㝦㔷㍥愵㐴晦㍦て㡡㡤愲敤㝥㍦㙦㠸㥡㍦愳ぢ捥㘳㤹敥㐴㤲攵㈹㘲㌸㥦っㄷ〰㔴摤つ㘲㜱㉢㈹扢戹㤳捡慢㕡戹改戴扡㤵挵挱㙣挵挰㔶㔴㙣㕥㠵㑢㡣㕥搵㜷㠱㙥㕥〸戵㉦㍣晦㍣ㄷ愹㝤㡡扢㈷㜵晥㔵㌸昷晢改㍣昳㈲收㝦㌱昳㝦ㄴ挹捤搸㍢挶㐹㤶㤹扢㐴㤵㜹㜲晥㡡戴㑦摡㝤〱摡㍦敤㕣㠹扡慥㌷㡢㜰㌲㍦㐳㍢晦〹㕤㑤愲㝣㜰㥢㙥㌵㍦㜸昰㘶戵㘷ㅤ昷晢搴㘳㔰挸挱摡㘷㕣〲㠷昷户㝦㜳㔷ぢ摦攰㠷㤸㠹㑥㡥愶㈴㑡慦㕦㤹敦昵搵攳挰戱攷㌷㉦㠵㤴㝡〲㘷散㔰搱㥥㘴㌲㘶㕥捥攰攱摢㜵〳㝢㡡っ昸㥡㔷㔰㠹㤳㔰敢㜰愲㉢〵㔵㌸戵昶㑡㥣㥢㔷㤱昱㔷摥っ㔷㤳攱ㅡ㠰慡愷挱㔰摣愳ㄴ敥攵挲戵戶〹愶㑡㙥愴慤攴㔶攸㙡散㉡㤶㍤搴㔵搲晣㝡戹昶㍥ㅢ昶戶攷㙡挸攰慣㌵㘳捣㐱摦㙣愵晣㜶捤㘲㜵㘷㈷㔲㔱㔱㠹づ捡㈸摥搹㕡㤲㉤㔵捣戱㘴扦㤹摡〱㈶ㄸ搷挲攲ㅤ㜹晦〵晡㥢㍣㝥㤱㝣㉢㤸㜰㉢摣㤹㘹搱ㅤ收昵㄰挱㐶㡣㘷〰戵愳㜸㐷搲㘹㍤㌷搰て㌷〲㈸敥㠱㘲ぢ㤲㈸㌸昱㝥〹㐹㍢摥㉢挰戲戵昳慢扥敥〳晥㌲攴㈴攰㉢愹昹㑦㐸ㄵ〴㝣㌵戰摤〷晣㔵摡㠲慦戹㠶㑡㥣㠴攲づ㉢㕤づ攰㜵挰㙦挲戹㜹㌳ㄹ晦散捤戰㤶っ户㤰㘱㍤ㄸㄸ㜴攳㔶愴㈶㙢㘷晥慦㝦㜴敤攱晡摢㤱〱㕣晦㠶换㈲摥㈹㜴㕣㝦〷㉤扡㤳ㄶ晤ㅤ挸㘲搷㝦〸㥣敤晡扢挰戲改慥攷㉥㉤㜱晤摤搴晣㌱㔲〵慥扦ㄷ搸敥㕤晦㑦㠸㠹敢㝦㑥㈵㑥㐲㙤挰㠹㠷敢敦〳㡦㜹㍦ㄹ晦攵捤昰〰ㄹㅥ㈴挳㈷㘰㄰搷㍦㠴搴づ摡昵扣搱挳㡥㍦晦昳㕦て㕦㍥っ〹昸昲㜳㔷ㄶ扣户敤昸昲ㄱ㘶昱㈸戳昸ㄶ挸㘲㕦㝥て㥣敤换㕦㠲㘵㤳扢㉤戶㈲㜱攵㘳㔴㑣㍦ㄴ戸昲〹㘰扢㜷㈵㌷㠸㠹㉢㥦ㄴ㈵㜶㐲昵〰㑡扢ㄲ戹攸㕡晣ㄴ㜸捣㜵㘴攴攵戱〷挳慦挸昰㌴ㄹ慡挰㈰慥攴㍤晢愱摡㤵㥢昴摢㜸て敦晥ㄶ㑡攰㕤搳㤵慢㈱㘶昵〴㌴㥦㘱慥捦㌲㔷敥ㄲ㕢㐱ㄴ㘷㐶㍥昳㌹㐲攷㤶攱敦㜰捥㌱愲㍦㔸㔶〲慤て搷㘴〹㌷扢㥥㜷戸戸挹㙣ㄵ㔹昰扦扢㥢㈷㙡ㅢ㌰慤㈶戳昹〲挴昳㔷昰㝦㜰㤴㙤ぢ晡ㅡ搲攵㈸㝢㥤愹戸㘱捤慥〷㝦㠴攴㝥㕤㕥摢㡣戵㌲搹㘱㜸㥣㡡戵挹ㄷ㌷㙡〷愸㤷晡昲㈲戴㉢敥㠹戳敢㡢㌳㡦㝣ㄹ搸敥敢换捥㄰挳〷㕢㑤愹〴㈷昲攵收㌹㕤ㅤ㠸㜰㠶戹㔷挰㘳扥㑡挶㕤扤ㄹ㕥㈳挳㥦挹㔰ぢ〶㑥搰捣昵㐸攵收㔴㝢戸挴慡㐴慦〴晣㉦ㄴ㝢㥤㘲㐳挱㔰摣㥣戸摤捤㜶攳㕦挱戲挹捤㠹ㅢ攴挴㍤㙦㔰㌱㜷捡ㄵ㌴愷户㠰敤摥㍤摣㔱㠷てㄶ攸愹〴㈷昲つ〳㙡昷〰慦摤昳づ捥捤扦㤱㤱㕢敥㍣ㄸ摥㈵挳㝢㘴㠸㠲㐱㥡搳晢㐸㐵㜵㜳摡扣挷㌱㜸戴慢て愰つ敤慡搱㤵扤㙢〴昸㤰搹㝦挴散戹扦慥搸捤摣㔴㘷扢昹㘳戰㙣晡〸㌰〱㜲攲攷㝦㔰昳㐴愴ち晣扣〱搸敥晤捣㡤㝢昸㘰㉦㉦㤵㘸㍦㜳换㥥㜶愳摤㍦昴㈰捦㈷攰㌱㍦㈵㈳户昳㜹㌰㝣㐶㠶晦㈶挳㌴㌰㠸㥦㍦㐷㉡愰晤㥣㝢攲㠴㠷ぢ扦〰㈳㕣挸慤㝥㕡戳换㠵㕦㔲昳扦愹昹㌰㌰ㄴ扢㤰㝢昱㙣ㄷ㝥〵㤶㑤㜷攱㤱㤰ㄳㄷ晥㠷㥡戹㡦慦挰㠵摦〰摢扤ぢ㥢㈰㠶㡦捦晣㤶㑡戴ぢ㡦挱㤹㉥㠷换㠵摦㠱挷晣㥥㡣㜱㙦㠶㡤㘴攰㡦改ㄵ昷〸㡡ぢㄵ㔲㠳戴ぢ扢㝤愴㠶㠷㙢㜱搱㐸搷愶㑢㜲㤴㑥愰ㄲ㔴㤳㡦㥦㔲摣昰㔷散㕡敥昲戳㕤㙢㠰㘵㤳㍢〱敥ぢㄴ捦昶愴攲っ㔲〵㥥攵㠳捡扡昷㙣㈷挴昰挱摥づ㉡搱㥥㕤㡣㌳敤㔹㌸㑢㜷〲扤挰㘳昶㈶㈳㜷ㅡ㝡㌰昴㈱㐳㕦㌲㜰昳攱搳㤰㌴㙡㤰ㅡ愶㍤扢㘹捦ち昱㜰㙦㍦㘸㠱㝢㑦㜲㘵敢㥡戲㙣〵慡搹ㅦ㐰㉤〷㠳㙢㔰摤㠶㘲捥愰扡㉤捥㌹愸㥥〵㤶㤵㐰敢愳㜰㔰摤捥攱㍡ㅢ㕣慢挸㠲晦摤づ慡摣戵戸㥡捣收昶㄰捦て慡㍢㍡捡戸愱㜱つ改㜲㤴ㅦ㔴戹戳搱慥〸㍢㐱昲㠰ㅦ㌲愸㡥㙦挶昳㘰攴㈱㘵㘲㝡搱㑤㐳㜵㍥㜲㤰㍡戳㌳㌲㔰摣㍦㘹搷ㄹ㘷㕣ㅤ〰㙣昷㜵㠶晢㉣昱挱〶ㄹ㉡挱㠹㝣戹搱㔲㔷〹㈲㥣㜱戵ㄶ㍣收㙥㘴攴㈶㑣て㠶摤挹戰〷ㄹ㉥〳㠳㡣慢〳㤱捡㡤慢㔷扡挴慡㐴慦㌴愹㍤㈹戶ㄷ挵㔶㠰挱ㄵ昳㐱挰挱㈲㔹㝢ㅤ㡣㜳挶㝣㈵㔸㔶〲慤㡦挲㤸敦攳㜰慤〲搷㉡戲攰㝦户㌱攷㘶㑣㍢收㐳㈰㥥㡦昹㌰㐷ㄹ昷㘹慥搱昹㤵扦㘱慦㙥〶㥦ㅤ昳攱㤰散晡㈶㌱㝥㌴敡㌹㤳㥡搲㠶㘷敦㠸搹挵昱㕥ぢ敤ㄲ敦ㄱ㔰慥㙥㐱慡㈰摥㈱㘰扢㡦㌷户㡥攲攳㌳敢愸挴昶㡦㑦㜱敦愸㐷㌸挳攰㌱㈳㘴扣搳㥢㈱㑡㠶㝡㌲㜰愷愹挴扢〱愹㕣扣戹㤹㔴敢敤㡢捣晣晥㝥捣㍢㐶戱㐶㡡㍤〲〶挶摢搸㤷㈹慣戶敦㠷晦戰㑢㈲扥㍦捥ㄹ㜱㙥っ㕤〹戴㍥ち㈳㍥搲攱攲捥搱㔵㘴挱晦㙥㈳晥ㄸ㤸散㠸ㅦ〰昱㝣挴㐷㍢捡戸昹㜴㡤捥慦㡢㠸㍦〹㍥㍢攲㘳㈰㌹戲换㔶敥扤㉣搰㑤㈳㝦ちㄹ㐸搰挷㐲扦㕡㠷㤴づ㍡㍤㘶㡥〷攸㍥攸摣ㄲ㡢て㝥㡢㐰㈵戶㡢㝣敡㌷㌸搳挱㈱搲㘹攴ㄳ愹㜷ㄲㄹ㝦敢捤㌰㤹っ㔳挸昰っㄸ㈴攸〷㈲㤵ぢ㍡㌷挹㙡扤㔵愲㔷ㅡ昹㔴㡡㑤愳搸换㘰㈸ㅥ㌷㕦〱捥㜶攴㜴戰㙣晡㤴攴㔵挸㠹㝦㘶㔰㌳㜷挰摡晥㜱敥愱捤〲戶㝢晦慣㠷ㄸ㍥搸晤㐵㈵摡㍦摣㉥慢换攱ㅡ㌸㘷㠳挷㥣㐳㐶㙥愵昵㘰㤸㑢㠶㜹㘴昸㉢ㄸ㥥㠶㍡攳㘰愴㜲ㄷ愳㥢昴㔴㈷㡦㜱昳㔰㈸挱戸昹戶㉢㔷搷戸㜹ㄸ愸收攱〰㡡摢㘵㕤㝤攸㤱ㄴ㜳㕡搴㔱㌸㘷㡢攲㘶摡㤵㐰敢愳戰㐵ㅤ敤㜰㜱户敤㉡戲攰㝦户㉤敡㥦㘰戲㕢㔴ㄳ挴昳㉤㉡敥㈸攳㠶摤㌵㍡扦㉥㕡ㄴ㜷敥摡ㄵ㈱〱挹晤扢㙣㔱攵晡搰㉥㤶摡ㄴ㌷〵㑢㠵㐹㐲扤攲敥㘰摤愰㜸敤㙥㕡挰㜶㕦㘱㍥㠷ㄸ㍥戸㑦㑥㈵戶㠷㝣敡ぢ㥣改晡㐰愴搳愰收㠳挷㕣㐰挶㉦扤ㄹ㥡挹㜰㉣ㄹ戸改㔸ㅡ搴㐲愴㜲つ㡡晢㡡戵㕥㙥㈲㜴㝡搱ㄶ㡡戵㔲慣〷㉣㤷㕥戴㡤㈹昴愲敤昸慦㘳扥〸攷㡣㜹㈵㤸㔶〲慤㡦挲㤸ㅦ攷㜰戱散慢挸㠲㍣扢㡤戹〱收搵㘴㌶㍢㈰㥥㡦㌹㥦挶换㉣㝢㠲扥㠶㜴㌹捡捦㤵㑣昰搹㌱敦㠴㘴慣换㤸㝢昷愲攵㐷㑤㍦㜴㑢扣ㄷ㐳戵敡㠵㤴㡥㌷㥤㘵㉥〱攸㍥摥㝤㈰〶㠷攰搱㘹㔴㠲ㄳ昹搶〰慢攳㐲㠴ㄳ敦ㄳ愸昷㐴㌲〶扣ㄹ㑥㈲挳挹㘴攸〷〶㠹昷㈹㐸攵攲扤戵㑢慣㑡昴㑡〷扡㡣㘲愷㔲㙣ㄷ㌰戸㕡昸改挰挱㈲ㄹ㌳捦挰㌹㕤㍦〰㉣㉢㠱搶㐷㘱戴捦㜴戸㜶〵搷㉡戲挰晣㙥愳㕤ぢ收搵㘴㌶㤷㐳㍣ㅦ敤戳ㅤ㘵扢㠱扥㠶㜴㌹捡㐷㝢て昰搹搱㍥〷㤲㡤㕤㐶扢捣敤愶昲攱ㅥ〸攵ㄲ敥㜳愱㕢敤㠹㤴づ户㌴敦昳㠰敤㍥摣㝢㐳㡣〱㌵捦愷ㄲ㥣挸㜷㌰戰ㅥ攱扥〰㍣收㠵㘴摣挷㥢攱㈲㌲㕣㑣㠶㈱㘰㤰㜰㕦㠲㔴㉥摣挳㕤㘲慥㜰㕦㑡戱换㈸搶〰㠶攲昱戲ㄱ㌸摢㠹㤷㠳㘵搳挷换㝤㈱㈷晥戹㠲㥡昷㐳捡昶㡦㌳㕥㕥〵㙣昷晥ㄹ〹㌱昱捦搵㔴愲晤㜳〰戰摡㍦〶㤰㑥㜳戸〶㍣收戵㘴ㅣ攵捤㜰ㅤㄹ慥㈷挳㘸㌰㍣つ㐹攳〶愴㜲㜷㥢㌶敦昹㝢ㅥ〳攷ち㘸挳挰㌹摥㤵扤敢㔶挹㑡㔰捤㔵〰㙡㍡ㄸ㕣捤㙡つ挵㥣㘶㜵ㄳ捥搹慣㘶㠰㘵㈵搰晡㈸㙣㔶㌷㍢㕣㌳挱戵㡡㉣昰㑤户捤㙡ㄶ㤸㔷㤳搹㕣ぢ昱㝣戳扡搵㔱㜶㄰攸㙢㐸㤷愳㝣戳攲搶㜴扢㐶摣〶挹㔱㕤㌶慢㜲〳㘷㌷㤳搱戹挸㐲㉡捦敤挸㐱捤㐳慡愰㜱摤〹㙣昷㤵攷㄰㠸㐹攵戹㡢㑡㔰㈸昹ㅥ〶慣慥㍣㐴㌸㤵攷㙥昰㤸昷㤰昱㜰㙦㠶㝢挹昰㜳㌲ㅣ〱〶㘹㕣昷㈱㤵㙢㕣㐷扢挴㕣㡤敢㝥㡡㍤㐰戱昹㘰㈸㙥㕣捤挰搹慥㝣㄰㉣㥢摥戸㡥㠵㥣昸攷㈱㙡㕥㠸㔴㐱攳㝡ㄸ搸敥晤搳ち㌱昱捦㈳㔴愲晤搳〶慣昶て㑥戵㝦ㅥ〵㡦昹㑢㌲戶㝢㌳㍣㐶㠶挷挹戰〸っ㑦㐳搲㜸〲愹〶㝤ㄷ㘷㜳㥦晥攸搱扣㥥㠲㍥㌴慦慣换〰扢昹昷〴摥㕣〷慡昹㉢㠰慡㔳挰戰㘹㕢户㈹ㄸ㜰敤愷㤷挷㠵昴㑢ㅦ㠴攷ㅢ攳戱挶㌳戱愵㌳㑢搴㑦㘱㌳㑥愵扤戱戶摢㈵㙢㈹挲ㄱ㐷㜱戵扡搸〷㠵换摢㑥搹攴改㈸㍦㙣攳慤扦㙡攴户ㅢ㌷㙥㕡㉥慣㕦㠵捦㉢㤱㘰㥡扦挶㍦昶㜷换㄰㌳愹㡣扦㈱摥㌹搴愹㕥搸㉡㙥㈳敤㘲ㄳ㕢搱㥥㔵㙡敤㥦摦㜲挳捤㔵㐳㕡戰㘳㘲ㄳ昶戲晤ㄶ戶愸㌳扣㙣㔰换㌵昶㔹昲㈰ぢ㝥慢戸㔵愹㜸㉦㐳挹敥㈸㙥愹挲㙥㝣散㤳㥡㤳㕤摡㠲扤㘹㍣攵摥〶晢㡣㥢㜱㙣㌲㡣㙥敦挰㐲㘴㘵昱ㄳ㤶㜲戲㌷㐲㔵慦慤㡢ㅥ挳㈸㘲愴㜰ㅢ㔶㔵〳㐲㔴㔶㥥㐶攷愳㐲ㄹㅥ挶㜳㈸搳搶搳㥢㤳ㅤ敤㤹昶㜴戶㜶づ戶㘷搶昲挱㥣㘹㙣搴ㅤ㔳ㄵ㠵㐶捦㍣㔹戰捡㌶扥慥㘰㌱ㅦ㑣攳㕦搸搶㝥㝣㥢㔸㔳㤵攱昳㐹㤹㥢搹戳㈷戳攱昶㕤㌹昶㠰攳〲攷挲㔰ち㥢捦㈳攳㍥㍤〲㍦㜳㥣㙢扣㠰昴㥥攳挶㡥㥢摤㔴㕦ㄷ㡡㌴㐴㈲搱㘴㈲㤲㡡愴㐳昵戱㘴㍣ㅡ㑦㌷㠴攲愱㤸ㄵ㑥㌶〴〳攷㌹㌲收敦㈱ㄳ攰愶㈸挹敥て㑣㕤愰㔳愴搵㕣㠸ㄴ昳㘷摦昱愳ㅥ㠱㡢愰ㄹ㌹昸㡣ㄷ〱晢㡥ㅢ摢攴摡㑦㘹扣〴㕣㙦攰㘴换捡㙣㍣ㄱ搴㜸ㄹ㤸㝥挰ㄴ扥昹㈱㜰戱愳㈵晦㝥〴昳㔵㜰㉡搹扣〳敤收㙢㑣攱〴晦昰㠳㉦㜰戳摡愹㐱〸ぢ㠳つ愴捦㔸て㕡搹〸慡扤挰挶㈸ㄶ㐶攱ち㘸㤱㈸扣づ㘱㐴㠱㝢㜸昰昱ㄹ㝦㐵摡㡥㐲㌴㤲㠸挷ㅡㅢ㘲挱㤴㠵昷㠳㔸㔶㘳慡㉥ㅥ慤㙢㠸愷挲改㐸㈸㕡ㅦ㌱摥挸戱挶慤㜰扡㈱ㅣ慥㙦㡣㠴敡㈲㡤昵挹㔸㍣ㄱ㡤挴慤㔴㐳㈲㥣㡥搷㈵搲㠱慢ㅣ昵收㥢㤰㌱摦〲〸㜰㔳㄰㜳㌴摦㈶敡ㅤ愲慥搱㈸㌲〸㙢ㄵ㌷搴㜴摢つ㍡㍢㜷㔸ㅥ㉣搸㈴㔵㑡㔹㤵㍤㝢㤶晣愲愷戰㑢挴愶ㅥ改㍥㘵慢㡦㐱㔸戵㌳摣搴㜵て愷㠵ち摢ㄲ㠵㘱戱捦㝣㥦㜶晦ㅤ挰ㅦ戸〱㠶㡢㠳㔹㍤㑣搶〷㤳㔵挰昸ㄸ㘰㉢搴〳㍣㜱㐹㍦攱㡦摤㐱攰㐶捤扦㍢ㄵ敤㐱戰㠱㐲㉦攰㑣慤〴㔱㙡昸㈷㐰攵㙡〳㜷昶㐸㙤〸挰敥㕣㙤昸っ㉣攵㙢㐳㕦捦摡戰㐶㘷晥㌹㠴㔱ㅢ㙥㐲ㅡㅦ㥦昱㍦㐸摢戵㈱㥥慣㡦挵搳㜱㉢㤱㑥搵㈱晣攱㜸㈸ㅤて㐷搲㤱㘰㝤㌸ㅡ㑦愵敢㡣㉦㜲慣㜵挹㜴㌰㤴ち搶挷ㅢ㔳㘹戴攲㠶挶㔸㍣㤹㐴㌵㐰愵㠱㔰愸㌱㜰戳愳摥晣ㄲ㌲收扦〱〲摣㌱挴ㅣ捤慦㠸晡て㔱户㘸㔴㡥㑢摤づㄴ㙢㠴慡㐴㌱ㄸ㉤㜱捡㜷ㄴ昹ㅥ挰ㅦ戸〳㐴㝡摤搸㠸㘴㜱愳㈴愵戰㔱㜲挷㙢㘹愳㌴戰㘱捣㌳㐶摣㍦㐴敤昹㜷㐸㤸㝣㡢㠸ㅤ愳扢㘹ㄷ㠹㍤㠱捡挵攸㕥㘰㈵㐶㕦㝤㤳㡦㤱挹ㄸ戱㝢㔵㕦〲㕢摡㌸㝦慥昳改〵㔵〸〷㌷晤攰攳㌳㝡㈳㙤㠷愳愱㈱㔹㤷㡡㠶搳挱㠶㔸㌲ㄲ㠵㔳㤳㜵戱挶㍡ぢ慥㑥挷搳㡤㔶㥤搱㈷挷ㅡぢ㔹㔶㌴摣㔸ㅦぢ搶㈷㈳戱㔸㘳㘳㈸㥥〸〶敢㐳戱㜴㕤愸㌱㔵ㅦぢ㜰㍢ㄱ搵㥢㝤㈱㘳搶〰〴ㅥ搰愸〰㔱晤㠸㝡㔰愳㜲㕣㡡摢㠴㈴ㅣ晦㐴㌱㜲攱搸㠶㈲摢〲昸〳㡦㠰〱㈷㜸㥡ㄳ㐳挴㔳㤳㉥㌷改攰〰㜷㄰〹㤱て挶㤲户㕥㤸扢㤰㈸㌵晥㌱㄰挵㥢扢〲㤵昳收ㄳ挰㡡㌷摦㜶㝢㤳晤㥦㜸昳㑤㑦㙦㍥愹昳搹〳慡攰捤愷㤰收ㄱ攰摥ㅦ㌹攱㐶ㅦ㌹㜹摡㌹㔱摣愲㈳㈵晢慢㔳㌲㘶㘱敥㐹昳昶〲昰〷㥥〱〳㑥㝣㘶㘱昳㌶搹扣〳捦㙡㈲㥦㜸㈵㉦搳㌰㠷㔱㔴㑡昶ㅣ㠸㥣戴晡搵㡢搰捤㐹ㄵ㜵晢捤㈰昵㘲㜲昴㍢搰愴攴〵㤳㈳㙥攵㈹挵扥〰㉣㈷㐸㘶ㅤ㠴搵ㅦ㍣㜹㕥搴搸〸㜹㤰㤵㝣戹㍦㐶㍣昹㍢户㈷㌹ㄷ㄰㑦晥㤷愷㈷晦〴㈱㈸㐱㤱〰攱挹㔷ㅣ搵㐶㈳搲㑥㌷ㄱ㡣搶搷㐵ㅢ敡㈳昵昱㔸㈴㘱㠵㘳改㔸㌴㤶ち㈵㐲㜵昵つ㠹㐴㌴ㄶ㤰つ㌴搴戱㉦㘴〲慦㘹攳㘴攸㤶扤㌳㥡㔶戳ㅥ戴㉤㌳㜴㜳挷㡤〴戴㌰㜸〱㙥挲ㄱ㍣昷㐰换㍢㑡捣戱戰㔲扤愱慤ㅣ挷ㄴ㘸㘴㔲㙦〱㉢㉥㝣捣敤挲㕣搳㝥搴搳㠵㙦㐳〸㑡戰ㄶ〲〸ㄷ扥㠳㌴㍥㍥㘳㌲搲戶ぢ㈳つ戱㘸㍣ㅡ戶敡ㄲつ愱㐸㈲ㄸ㐹㌴㌶〴㈳㜴㘴愸㈱㡥搷户㠴㡣㈹㌹搶㠶㔴㌲摡㘸攱戵㕤㠹㜴㌸ㄲて㕢㠹㘴愲㤱扤㜳㕤㕤〲〲つ戱〰昷攳㔰扤㜹㈰㘴捣愹〰㠱㜷㌵㙡ㅡ㔱搳㠹㝡㑦愳㜲㕣敡〳愰愴〱摣㡢㘲戰㘹㡢㕦づ愲挸㙣〰㝦攰㐳㌰攰挴扢㘹㝦愴㠹攳挹㌱㠱攰㌰㡡㑡〳昸〷㠸㔲㤵㡦〰㉡攷捤つ挰㡡㌷㙦昲昴收㙡㑦㙦晥㑢攷搳〴㔵昰收㈷㐸攳攳㌳㡥㐱摡改㈸愳昵つ㤶㔵㘷挵㔲搱㐴愴愱㉥㤴〸㘳ㅣ戳挲㤱扡㐴㉡㤱㙥愸㑢ㅢ昱ㅣ㙢㉡ㄵ㡢㌷㠴搳㜵㐹㉢㔴ㅦ〹㈷㠲㠹㔸㌰㔹ㄷ挱㠸㘵〵慤挶㘴㈴ㄴ昸搴㔱㙦㈶㈰㘳㈶〱〲㥦㘹㔴㡡㈸㡢㈸㙥扤愱ㄱ㜹㉥昵〵搲攲捤慢ㅤ㙦㑡昹㥢㈹㜲㉣㠰㍦挰㥤㌵㌸昱昶收扦㌵㜱㉡㌹愶ㄱㅣ㐷㔱昱收㝦㐰ㄴ㙤ㄹ愰㜲摥攴愶ㄹ昱收昹㙥㙦收㍡捡㥦㜹㝡昳㕢㥤捦昱㔰〵㙦㝥㠷㌴㍥㍥㘳〹搲戶㌷ㄳ挱㜸㕤㉡ㅣ㑤㘰搸〸㐵㠲攱扡〴㕥愱㘰㐵㤳挱㐸㝤㉡㡡㕡㥢㌶㤶收㔸㠳㤱㘸挸㡡㔹愱挶ㄸ㈶昱㤸〳挴㤲㔶扣㉥ㄹ慣㑢挷ㅡ㘳愱戰搵ㄸ昸摥㔱㙦㥥〰ㄹ昳㐴㠰挰㐶㡤㍡㠹愸㤳㠹㘲㕢愳ㄱ㜹㉥㙣戲㜷扣㜹慡摢㥢愷㔱攴㜴〰㝦愰ㄲっ㌸昱敥㥣慢㌴㜱㌶㌹收㄰㥣㑢㔱昱愶㙣㤴㈱敡㍣愰㜲摥㌴㈱㈲摥捣扡扤㤹㙢改ㅤ㥥摥昴敢㝣㉥㠲㉡㜸戳ㄷ搲攲捤㡢㤱戶扤ㄹづ㌶挶敡㈳改扡㘰㠳ㄵ㡣愴㠳㜵昱㔴㍣㕥ㄷつ愵ㄲ昱㘴㉡ㄲ㑣搷ㅢ㤷攴㔸㠳挱㜸戴㍥ㄵ戱㐲㘰㡦㠰愷㌱㤵㘸㐸㘲晡搵〰㐶换ち搶〷㝡㍢敡捤㑢㈱㘳㕥〶㄰攸愳㔱㤷ㄳ㜵〵㔱㝤㌵㉡挷愵晡〱㈵㜵㜳㠱攳㑤愴戱㕢㥦㈲搷〲昸〳㕢〱㠱ㄳ敦扡搹㕦ㄳて㈳挷攱〴慢㈸㉡摥摣〶㐴㝢愸㍢ち扡昳㐳摤㑤搴㡢愱㙥㕢搰愵敥ㄶっ㜵摢㜹㘲户〷㔶㠶扡戵㄰㔶㍢㝡昲散慣戱户㤲〷戶挸㜷〰戰ㄲ扤㐳摣搱换つ㜵昳㍣愳户㉢㠴愰挴㘷摥〹㠸攸搵㍡慡㡤扢㤰戶愳ㄷ㑦㐵㌱摦㑡㐶㉣㑣愵㈲攸㘴ㅡ敢ㄱ㥡㜰㍣㠱㕡ㅥ㑥㠵ㅢ㤳㠱摤戴㌹㜷㐳㈶戰扢㑥挹㔰户㠷㑥㤱㔶㌳㄰愹㉤㌳搴敤〹捤昸ㄴ㌷㠵挰㕥ㅡ摦㐴攲㌱〴て挱ㄲ㌵〸㜸㍢㘴㔳ち㐲昶㌰㠸っ搹㘰搰㑢㐳戶㡦㈷㜶〸戰ㄲ戲㐷愹㜹㤸㈷捦〸㡤㝤㡣㍣㌰〳㘹㥦ち〱㑡挸挶㜹㠶㙣㡣㘷挸敡㈰〴㈵㜸㝥ㄷ㈰㐲ㄶ㜶㔴ㅢ敢㤰戶㐳㤶㑣搴㈵攲昵攱㐸㐳㄰㠳㐱㈸㔲ㄷぢ〵慤㈴敥㈹愴搳戱晡晡晡㜴㈴㄰㜱㘴捣㕦㐱㈶㄰搵㈹〹㔹扤㑥㤱㔶搳㠰搴㤶〹㔹っ㥡昱㜱㉥ㅡ㕦挴愹㕣㌹〶ㅡ㌵ㅥ㜷㘶㌰搴㄰㍣〷㑢搴㝥挰摢㈱㡢ㄶ㠴散㜹㄰ㄹ戲晤㐱㉦つ搹㐸㑦散〱挰㑡挸㝥㑦捤愳㍤㜹挶㙡散ㅦ挹〳㌳攴㍢ㅥ㔸〹搹〸捦㤰つ昳っ搹〴〸㐱〹昶㕦〳㈲㘴ㄳㅤ搵挶㉢㐸摢㈱ぢ㈶㌰㝡㈷挳昵昵㡤つ昱㐸搸戲㘲㡤挹㔰㈸㠱ぢ㥥扡㔸㉡㡥㜷㤶〶㘴㔳〹㜵扣ち㤹挰㘴㙤㥣㠴㙣㡡㑥㤱㔶㜳㈰㔲㕢㈶㘴㔳愱ㄹ㥦㤲㔶㌶㑤攳ㄷ㤲搸㐲昰㈶㉣㔱㌳㠰㤷㤰扣挵ㄴ搰ㄴ㔶摣㔶㈲㉥慣㜵扢㌰㌷捣っ昰㜴攱㐱㄰㠲ㄲ㥦昹㉥㈰㕣㌸ㅢ㘹ㄹ㘶摥㐳摡㜶㘱ち㤳挶㔴ㅡ搳挴〴慡㝥㌴㘹㈵敡ㄳ昵昵戱㔸㉡㤱〸㈷ㅡ攳愹㤴昱㝥㡥ㄵ㈳㜹㍡㕡ㄷぢ㐶ㅡ㌰昷㙣㙣㑣愲㝦㡢㐵㌰㡦挷摤㥣〸敥捡㔹㠱㌹㡥㝡昳敦㤰㌱㍦〰〸捣搵愸て㠹晡㠸愸㜹ㅡ㤵攳㔲㠷〲㈵挳捣搶㈸㐶敥㕡㜱〳㐵晥〵攰てㅣ〶〶㥣㜸て㌳㠷㙢㘲〷㌹㌲〴㕦㔰㔴㠶㤹㈳㐱戴ㅢ㠰〹摤昹㘱收㉢敡㐵〳㌸ち㜴昱㜶挱㌰㜳戴㈷戶〹㔸㘹〰㕦㐳㔸挵㍤㜹㤲ㅡ晢㉤㜹㘰㡢㝣㉤㘰㈵㝡㍤摣搱换つ㌳捡㌳㝡㘹〸㐱〹慥㡤戱㡣㠴攸㜱㔷〷戵ㄹち㘹㍢㝡㈱㉢ㅤ㡤攰慥㕡扣扥㉥ㄱ㠹攰昲㍥㤹㡡㘱㘶ㅡ㡤攲㙡㍥㔱ㄷ㙡〸㉣搰收㔴㐰㈶搰慣㔳搲〰㡥搵㈹搲㙡ㄶ㈲戵㘵ㅡ㐰ぢ㌴攳㔳搲㘷戵㙡晣㔲ㄲ㤷㄰昸㘱㠹㙡〷摥づ搹ㄷ㕦扢㐳搶ㅢ㐴㠶㡣摢㑢㑡㐳㜶㥣㈷戶〳㔸〹㔹㕦㙡捥㝡昲㉣搶搸〰㜹㘰㠶㝣㤷〰㉢㈱晢〴㐶攸ㅢ㘸㘶㉥㘴ㅢ㠰㉤扤㌹戳ㄴ㐲ㄲ戲慤愱ち㈱㍢挱㔱㙤㙣㠳戴ㅤ戲㐴愴捥ち㌵搴㈷㈲ㄶ㙥㠳〶愳㘹㕣挱㠵㌰㐱㐸㠴ㄲ㔱㌴愸㔰㝤攰㐴㙤捥戶㤰〹㥣愴㔳ㄲ戲㤳㜵㡡戴㥡㔳㤰摡㌲㈱㕢〶捤昸㤴昴㔹愷㙡晣㈹㈴㉥㈳ㄸ〰㑢ㄴ昷㠳搸㈱㝢愷㈰㘴戵㈰㌲㘴㘷㠰㕥ㅡ戲㌳㍤戱换㠱㤵㤰敤㑥捤摣敡㔱㉡㜹慥挶づ㈴㡦づ搹㜹挰㑡挸㕥昷っ搹㝡捦㤰㥤て㈱〹搹㈰愸㐲挸㉥㜰㔴ㅢ㠳㤱㜶㐲ㄶづ挵ㅢ㈳挹挶〶㕣搰㐴挲挱㜰㘳㌸摤ㄸ㡤㌴攲摥戵搵㄰㑦挶ㅢ〳ㄷ㙡㜳昶㠱㑣攰㈲㥤㤲㤰挹㌶っ㍡㡡戴㥡㑢㐰摢㌲㈱扢ㄴ㥡昱㈹〹搹㘵ㅡ㝦㈶㠹换〹敡㘰㠹扡〲㜸㜱㙣㤸㈹愰㈹慣慥〲ㄴㄷ㍥敦㜶㘱㙥㤸㜹捥搳㠵㔷㐳㐸㕣搸〰㔵㜰攱㌵㐸换㌰ㄳ㐳摡㜶㘱戰㉥ㄹ㡡搵㕢㡤〹㔴昹㐸ち㡢㌷攱㠶㐴㘳㌸㤹㡥挴㈲挱㜸㘳㌴㘶㌴收㔸㐳㡤㔶㈴㠶㐱ㅣ慦㥦つ㐵㉣摣摡㘸戰㜰戵㤸㑥㠶㜹挱摤㤸㡡〴慥㜵搴㥢晢㐲挶摣て㈰㜰㥤㐶敤㑦搴㐸愲慥搷愸ㅣ㤷㕡〱㤴っ㌳㑦愱ㄸ戹㘱㘶っ㐵挶〲昸〳㉢挱㈰〵搹㠸㤳攲㕢㤲慢㌴昱㍣晡昰㝣㠲㈹ㄴ㤵㘱㘶つ㠸㜶〳㜸㄰扡昳挳捣㌴敡㐵〳戸〹昴搲㙡㝣戳㈷㜶㉤戰搲〰㘶㐰㔸摤敡挹㜳扢挶捥㈲て㈳挷敦㥤挰㑡昴敥㜱㐷㉦搷㘷摤攵ㄹ扤扢㈰㈴㠵㥥ぢ㔵㠸摥摤㡥㙡㘳ㅥ搲㜶昴愲愹㐴㌴㔴搷㄰〹㈷ㄳ改㐸愲挱㡡㠵ㅢ㜱摦㈹ㅥ㑡愶㜰敢㈳㥤㡡〵敥搱收ㅣっ㤹〰㜷㐸㐸㘱愵〱晣㕣愷㐸慢戹て愹㉤搳〰敥㠷㘶㝣㑡ㅡ挰〳ㅡ捦愷㌰捡慢㉦捤愳㘱㠹㝡〸㜸戱戲㠹㈹搰㈸慣ㅥ〶ㄴㄷ慥㜴扢㜰㍤㘹扣㈷㝦愳愷ぢㅦ〱㔹㕣㤸㠴㉡戸昰㔱愴愵〱愴㤰㜶ㅡ㐰㈸ㅣ慣㑦挵愳搱㔰ㄸ㔷ㄷ㠹晡㔸㝤㍡ㄹ挴㥤㜹摣ㄸ〹〶搳㤱戸㘱攵㔸搳㔱ぢ捤㈴㔱ㅦ㡤愴改敤㐴っ换㥣つ挱㠶㜰㌰㤱慣ぢ㘳戵㌳昰㑢㐷扤㤹㠶㡣㌹ㅦ㈰昰㤸㐶㉤㈰慡㤹愸挷㌵㉡挷愵㥥〲㑡ㅡ挰攵㈸㐶慥〱戴㔲愴つ挰ㅦ㔸〷〶㈹挸㡢㌸挹㉦㑣搹㜷慥戹愵㐲㠸㔷挳ㄷ昲㍡㑦戳㤳愲搲〰㝥つ愲㜸昳㜸愰㜰㉥摦㠰㥥㔴愹摦㙡戲挶搰㥦㠱㘷戵挶愵㄰敡搳愳敡㜹愴昷㉢晦愸㍤搷㈲敡㄰慣敤ㄷ扣搳㜱〲摥搱戸㤴㍥敦㠱愷㜱搸㑦〳愸慣搸昷㠷改攲搲ㅦㅦ㘱挳㙦搵㔹㜰搵晦㐲て㝤㤲㕦㔸愷挶㕤昱㌵㑦㐴㠱慢㝥㡦攲㝡㍥敦慡昸㈵昳ㄳ㤶㈴慤ㄶ攷晤昲㕣慣摥愶㜵㑡〶ぢ挷㜸〹摥摣昶㌱昲挴㉢㉥ㄳ昶搳ぢ捡㐳昴ぢ昸昶捣㘳昴㠳攵戴搸捣㡥㥣ㅣ摥㈷㠷㐵㝡㄰㠶昰㜵㝤摢攴㔳慥愷㈹散㤴挷攲㈹㠲㜸戶㤹㤵搲ㅡ㌳㜸㑥㐱㘵㐵て攵昹挰て攷㙤㘹㜸㐱㤹㔶㌰愱慤戳㜵㐷㤴㘱㈷㡦㘷愰㡣㙤捥捡㌳㠴戶〳㕤㤹㉦挰㍤挶挹㜰搴㉥㈳挷捤㥣㌱㙥捣摣〹㌳昰ㅤ㌴㜰散挰愸晤㜶摦㠱昲摡攰慡搳ㄱ愱捤挸扣㌰㈲㌴㠵〷㥥戴㠸㥣ㄴ㝢㉣敡㈳㑡扤㡡㠴㐴敢㐱愴捣晣㌳㑥㑦〶㠳攷换㍤㑥㜲〸挵㙦㑦ぢ扣〶㑤搲㜴㤶㑢㐵㔷慦㈳捤捡慥㑥㠰〴㙢㤸㘴㜳㌶㉤㜸ㄳ㘸㔶っ㘵晥ㄵ搰㌸ㄷ㌸㘳攴挰㈹〳㐳㜵㔵㡢挱㔸晣㔸ㄷ㜹㍡㤷攳㘵㉥㜵㌳㘶㜸㔹改㤴㔴㘹㌱愱づ挵㍣㡦㤹扣㤵换攴つ㘶㜲㠱㥤挹㘴㘴愲㍡㤰〹㌳㘲㕢挲㐳昱挹晤㌶㜸㌴㑡扤攳㈴昰捦㔷昳㍥㈰㌸㡡㜷㔰㝣㍡ち㌸ㅥ愳〵晡慡㥤晦㠱搱㌵㝦搷ㄲ㐷愹摤㉥ㅤ㔳昵昶戲攲㈷搳㙥攸昳㐴昰㥡㝤慥ㅥ㜵昹㤷㐶搳搵搳㤶㡦㔲ㅢ㈰㤱㡦挲昳搰㘸昷㌸慤㌰搲㌳ち㉤づ愱昸㉤㐳㠱㑦愰㐹愲㜰〵㙣敥搳㐳㝤㡥戴㐴攱㔸㐸攴愲㜰ㄵ㡢晣㈵㐸㜶ㄴ晥〷㘷挶㌵挰㈱ち㜰㔰㔴愵挱慣扤攱㌷慦㈳昷扦㜳摣㕦㤰晢〶㥢ㅢ㌱㡢慡㠴挳捤㝣晤收ち㜲㝦〵ㅥ慤㐰晤挷㐹㤰㕥昳ㅤㄲ攰搸っ㜷㝥慦㈵捡戹ㄳ摡㜰昴ㅥ㉤晦㝣摢㡦㔶㕣㤴昶㜲攷㔱㡥搷㑡摥㔹㜴愴㐳㈸㝥㘷㔱㠰㙢搹㌴摢扣ㄹ㌶挳㥤㕣㤰ㄶ㜷ㅥづ㠹㥣㍢㙦㘱㤱晢㠲㘴扢㤳慢搴挶㙤挰搹敥っ愹㠳ㅤ〷搹昵敤づ㜲㜳㤵搹收敥㐳敥扢㙣㙥戸㌳愴㘶㍢摣挰挳㥤昷㤰㥢慢搰㌹㜷㜲㌵㥡〹搲㙢戸搸っ㡥捤㜰㈷㔷愶㐵愲㥣㍢㑦摣晡敥㐹敦㥣㜰搳㈸晢晦〳愳ㄴ㔷愵扤摣㌹ㅤ㐶㜸搶捥㘹づ愱昸つ㐸〱㉥㘶攳㠳〷㜴挰〲戸㤳㉢搲攲捥〳㈱㤱㜳攷㉦㐰慣攱㕡昳收ㄵ㡣ぢ搳㕤ㄶ散摤㥢慦晢㜵敤扤慢㐷摤戸晦搰㍦㕤晢昷搶㔱㙡ㄸ㈴扣ち㌶愱㕣挱挶㍢㠴㤲㌷ㅢ㜱昱㕡愶〶㡦挳〲搴㔷昹㉡㔹㤵㘶㜱ぢ㘶〴㕣㠷挶挷㘷㍥〹㕥㌸㠱㡢挹攲㠴搱㙥㈷慣〳㔱敤ぢ㤲㕤㑢戸挲㙣㍣つ㕣改㐰㘱扦慥摤ㅥ㈸搴晥搰愱㍢㜷扦昹ㅢ㉡ㄹぢ搱㝣㈹昳㕤㝣㐳戹㔲搶㍢㠴攲㔷ㄴ〵戸晣㡢㡦捦晣㥤㙤㌹搷㜰挵昲㠸摢昲ㄷ㤸㈹㔷㔲㙤换戹戰㙢晣〱㌸扢㌵搴慢㈰㤸㜵㘵昶㥢㉦㤲㥢ぢ戳㌶㌷搷㜶㡤㤷㙤㙥戴㠶㝡㌵搴攱愶㔳晤收㉢攴收挲慤㔶愰愶㍢〹搲㙢戸㍥ぢ㡥捤㘸つ㕣捣ㄵ㠹㜲慤㘱昹㍦づ㝡㜸挰昲㝦㡣戲ㅦ戱㝡捤㈸挵㠵摣扣㍢昳㝤昵摥㡥搷㑡㍡㤷扤ㅣ㐲昱ぢ㡦〲㕣晦挵〷て扦㠰〵愸〸㕣挴ㄵ㜷づ㠴㐴慥㌵扣挱㈲㈷㐰戲ㅤ㜴っ捥㡣户㠰戳摤ㄹ㔴戵㡥㠳散捥攵ㅤ㜲㜳㘵搶收收攲慥昱慥捤つ㜷〶搵捥づ㌷昰㜰攷晢攴收捡㙤捥㥤㕣挱㘵㠲昴ㅡ㉥搰㠲㘳㌳摣挹搵㕣㤱㈸攷㑥㘸挳ㄱㄹ㉤晦㝣〷㡣㔶㕣挹昵㜲攷㜶㌰挲戳㜳搹搶㈱ㄴ扦㌳㈹挰〵㘰㝣昰㍥ぢ㔸〰㜷㜲ㄵ㔷摣戹㌵㈴㜲敥摣挰㈲㥦〰㤲敤㈰㉥敤ㅡ㥦〰㈷敥慣㡢愸〰㤸戵㌷晣收㘷攴收搲慣捤捤搵㕤攳㜳㥢㝢捡㐰㜰昷㜶戸㠱㠷㍢扦㈰㌷㤷㙥戵〲挵㈵摣㥣㍢戹㐲ぢ㡥捤㜰攷改㕡愲㥣㍢挳㜲扣散搴捥昵愳ㄴ㤷㜲扤摣搹搳昱㕡㐹敤㌴ㅣ㐲昱ㅢ㤸〲㕣〱挶挷㘷㝥〳㥢攱㑥㉥攳㡡㍢㉢㈱㤱㜳攷㜷㉣㌲ㄷ㔳㙤〷㜱㙤搷搸〸㥣㕤㍢㘳捡攷㌸挸慥㥤ち㌳㝢挵戵㔹㥢㥢换扢㐶て攰挰㡤摡ㄹ㔳摦晥挷㜶扥摤搸慢挸捤戵摢㥣㍢戹㠶换㠴㌴㜶㉥搱㙥㥥㍢慦搵ㄲ攵摣㘹て㜹搹㔱摦摥昶搹㑢搳ㄳ戳㐶㈹慥攵㝡戹昳摦㌰搴戳㜶㝥改㄰㑡摥攷挴㌵㕦ㄹ㈱㝡愱㔴戴㥦㕦㈵㡢戹㜴㜲挱〸挱攵㕢㝣㝣㘶ㅦ昰挲昵㕣㠳ㄵ搷晦㌷戴攷㕣㕦㐳昷㜰昹搴㜶收㕤㌸㌳晡〱㔷㜶㠴㤸㌰㌰ㅡㅥ慣晥〵ㅤ昹ㄱ愲㍦㤵㜰攵㌳㕦捡晣〸昱㔱戹㔲㝥攸㄰㑡㕥捣挴㘵㔲㈹攵づ搰㥢㉢攵愳ㅡ慢㑢㐹㤶〰㔷㍣昱昱㤹㍢㠱ㄷ愵㝣ち〹㈹攵㝢敥㔲敥㐲〳戹攲㘸㤷㤲㙢㤹挶慥挰㤵㤶㌲㍡㜴昷摡摤㠷づㅣ㈷愵㝣扢愰㤴扢㔱〹ㄷぢ扤㑡昹㝡戹㔲晥挵㈱㤴扣㘱㠹㉢㡢㔲捡扤愱㌷㔷㑡㔹㌲㜴挷㔲㑡挹㐵㐲㝣戰㘷ㄲ扣㈸㈵㔷晡愴㤴慦扡㑢㌹㠴〶㜲㤱捥㉥㈵㤷晦㡣㘱挰㤵㤶搲戹㉣戴㘳昹㔲㐱㈹㐷㔰〹搷搷扣㑡昹㐲戹㔲㍥敦㄰㡡㕦㤵ㄴ㜸ぢ㥡昰昱㤹㔱摢㜲㉥戰㠹攵捦戹㉤㙦㘰愶㕣收戲㉤攷慡㥢搱〸㥣摤〱㌴慡摦㠲㔹户㕦扦戹ㅦ戹戹㙡㘶㜳㜳攱捤ㄸ㘹㜳愳〳㘸㔴扦㜲戸㠱㐷㝦㍡㡡摣㕣㔵搳ちㄴ㔷搷㤸㈰扤㘶〳攰收㜵〰㕣㘹ㄳ㠹㜲ㅤ挰㕥捦摣昰搲扡慦㝦㌱㙡改攸昵㤷て㜹散㤹㔱㡡慢㙣㜹㜷收㐷晢挷ㅤ慦㤵昴愷㡦㌹㠴㤲ㄷ㉦㜱㌵㑥㉡捤〴㤴㉡㔷㘹扥搶㔸摤㌴㔰㌰㕦㠰ぢ㙢昸㘰㤷ㅣ㜸㔱㘹㘸戴戸晥㘱㘸捦㜵〰㔳攸ㅥ㉥㙣搹捥攴㤲㤹㌱ㄵ戸搲㑡攳㌴つ戹㤷愰ㅥ㠰㡥㝣〷㌰㥤㑡戸㈶㤵㉦㘵扥〳戸愷㕣㈹敦㜶〸㈵㙦㔰攲〲㤶㤴㜲づ昴收㑡㈹㉢㔳㉣㡦㉥愵㌴つ慥㐵㐹㈹攷㠱ㄷ愵攴㠲㤲㤴昲㜶㜷㈹て愱㠱㕣ぢ戲㑢戹つ捥㡣挳㠰㉢㉤愵搳㌴散づ㘰㙤㐱㈹㡦愰ㄲ㉥攳㜸㤵㜲㔵戹㔲慥㜴〸㈵慦㐲慡㠵㈶㈹㘵ㅣ㝡㜳愵㤴挵ㅣ㜷㈹㜱敥ぢ㜰昹㐶㑡㤹〴㉦㑡挹㌵ㄸ㈹攵昵敥㔲㕡㌴㤰换㈷㜶㈹〷攳捣㤸て㕣㘹㈹㥤改扥㕤捡慢ぢ㑡搹㑣㈵㕣昹昰㉡攵㘵攵㑡㜹愹㐳㈸㝥愷㔱㠰慢㈶㘲㜹扢㙤㌹㤷㍥挴昲㡢摤㤶ㅦ挷㑣戹〰㘱㕢捥昵㄰㈳〳㥣摤〱㐴搴昹㘰搶敤搷㙦㜶㤲㝢扦ㅣ㌷㤷㐴㡣攳㙤㙥㜴〰ㄱ㜵㡥挳捤㝣晤收㔲㜲㜳扤㐳㉢㔰㈳㥤〴改㌵㕣搶挰㘷㌳㈶㔴㕣〳ㄱ㠹㜲ㅤ〰戴挹愱㘷〲㙡ち搸昳敥捣㜷〰㘷㌸㕥㉢改〰㑥㜷〸㈵㙦㐸攲㍡㠹㔴㥡㘵㈸㔵慥搲挸〲〸戲捣㌵つ㘶ㅦ攰㤲㠷戸晥㌴昰愲搲㜰摤㐲㕣㝦ち戴攷㍡㠰㌳攸ㅥ㉥㌹搸慥㥦㠷㌳㘳㌹㜰愵㤵挶改〰散㔱攳〴攸挸㜷〰㘷㔳〹㔷ぢ昲愵捣㜷〰㥤攵㑡㤹㜵〸挵慦㍡ち㌴㐱㤳㔸㝥㠱㙤㌹㤷ぢ挴昲づ户攵ㄷ㌱㔳摥戴户㉤攷ㅡ㠲㜱〹㜰㔲㘹敡挲慡つ捣㍡收㝥昳㌲㜲㜳つ挰收戶挸㝤㠵捤㡤㔹㜸㔸ㅤ敢㜰摢㤵收㉡㜲㜳㡤㐰㉢㔰捤㑥㐲㉡㑤㉢ㄲ昸㙣㐶愵攱扡㠱㐸㤴慢㌴㝡ㄶ捥搰昹㝣㙦㡦㔲㥤㘰捦扢㌳㕦㘹㉣挷㙢㈵㤵㈶攵㄰㡡㕦㥣ㄴ攰㔲㠳戸昳〶㤴捡扣㤱㘰〵㠰扦㡡换〹㥥㜷㠴攵摤〵挳敤愷戴攳㘷㙣㔶㐶㄰㝣㝦㑢㔵㥡户搰㝢愵昹敢㌶㑢ㅥㄵ㉦敦挹㘹㤱㕦慤昵挶〳摢㍢ㄶ㕡ㅤ搳昰晡〲㍣愶㝤㑥㜳慢昳㑢㉤扣搶㠰㑦ㄲ搶㡦〴㌷㈵挵攵〳㈳㍤戳〳捦〸敦㤹㥥㤲挱㑢ㄲ㔲搵慤戳攲搹慣搵搱昶㔳昸〱㈹㝥㐷㔸挹㑢づ㌴㌴扥摣愸挲昳㈷㝣晣㙤㥥攷扤㘶摢㠵㜹㝦攸户㠱㔴昰㌹敦㍦散攷愳挶㑡㐴慤〶㙢てㄶㅥ昳㤹慤㕤捣攵㠸㑣㠵㙡㐲摣㘵㡢挵㍦敡㜶搸㈸昶㘲㔱捤㕣捤㌰戳ㄱ㉡㈹〳ㅥ㐱㘱摥㐴ㄴ㝦㈶㉣挰㔷㜵㈲挲㕦㕣㈸晥㤸㜲㈲㈵慡㡥㙦㑥㘵ㄷㄸぢ慣收昹ぢ昰搴慢㕥扤㔸搲戹搷㍣㍡晡扢昰㔱㘳㉡㤷㐱戴慢㤵〹㜶㑤㍤㕢㥢攲ㅤㅤ昱愵搵慤㑤㉤㔶摢晣散㠲敡愶挵㔸㡡挱㌳户昱㉢攲敡敡㙡㜳㉤散㘱扤㘴㜶㙡㌹㌴戲㍥ㅡ户〰慢㥦捥㤷㜲㍤愸扢㔲ㅤ慡ぢ敡㍢搵㤷㉦攸㙤㉣ㄵ㥢㠷㜴㡣〰㝥昳㡥挲㠲㉡㉥ㄸ戰戰晡㔰扣戹捦㈲㤸㜷㠱㤳搹㡢〹扣㠹㉦搸扢摤搸㉢㠰ㄵ挳敥〱㌶昷㡢昳㐲换㘶㜹㕡昶㜳㥡㔱㘸搹晤㐴攵㐳愰㜸ㄳ扤挰戲敢戴つて扡㙤㔸愱戱て戹戱㌷㙢换㝥〱㙣ㄹ换㈶㝢㕡昶〸捤㈸戴散㤷㐴戹㉣攳晤攸〲换㜸换㔹扣昳戸摢〶摥㕡ㄶ散ㄳ㙥散㠳摡戲㈷㠱昵づ收㘸㑦挳搶搱㡡㐲挳㥥㈶捡㘵ㄸ敦散扡つぢ昰㜶愹㜴㙦扦㈱攷㙦〹㥥〱昰慢㈷ㅤ㉢㑣戶㥢ち搵愰㜳㉣㘸㈷捦㤱扦戰㥤㍣㑦㤴㉢㐷摥㐶㘵㡥扡昶慢摦㈰㈱㠵晥㍤㌸㜳㌵㤸㌷㌴愵愲晣〱㔸敦㐲〷戵〹〵㌵昸㐵收㔷㔸攸㤷㡢㑣攰晤㔰㜷愱ㄵ㙦㜹㡡〹慦㠰㌳㔷㠳㕦搱搸㔷摤搸搷戵㘱慦〱㕢愶㥥っ昲戴㙣㍤捤㈸戴散㜵愲㕣捥攱慤挵〲换㜸昷㔰㉣㝢挳㙤挳晢ㅡ晢愶ㅢ换扢㙣攲戲户㠰㉤㘳㔹慤愷㘵敦搰㡣㐲换摥㈵捡㘵ㄹ敦搲ㄵ㔸挶ㅢ㜱㘲搹晢㙥ㅢ扥搰搸扦扢戱摦㘸换㍥〰搶㍢㤸摢㝢ㅡ昶ㄱ慤㈸㌴散ㅦ㐴戹っ攳晤慥〲挳ㄴㄸ挴戰つ㌸挹〵戳㑡㘳晦攵挲〶㝡㈱㈱戵晤ㄳ㥣㤸㥦ㄲ㝣〶攰㔷㝤〰改㑢愷戶昷搱搶ㄵ搴昶晦㈱㝦㘱㙤晦㤲㈸㤷㜵㌵㐸搳扡㕣㙤敦て㠴㔸昷ㄵ㑥㜴㙤て散攰㈴捣晦攰挴晣㥡攰ㅢ〰扦摡〹搰㘵㐷て㑦㍢扥㈷㝦愱ㅤ㍥㡣ち㙥㍢㜶〱㑢㠱ㅤ扢〱㈱㜶㔴㠰㌳㘷挷摥挰㡡㍦㝡㔰扥㤲愰ち挰慦〶㠳攰戲攳㍦㕦㜹㡤㤲搵攴㉦戴㠳㉦改㜰摢㌱愴搸㡥ㄱ摡㡥摥攰搴㜶愸愸㤳㥤搱〷搸㌲㔵昹扦戵つ㍥昷〰㔶挳っぢ㙢㑣扦㈲ㅢㅡㅣㅢ㜲〳搸㝥摡㠶晥攰捣搵㤸㔱ㅡ扢戵ぢㅢ㤸〰慣㜸㘸ㅢ㙡摤㤶㘰㍢〰扦㥡〴㠲换㐳ㅦ㘸敢ち㙡捣㡥攴㉦昴搰捥㐴戹㙡捣ㄴ攸㈹㠸搴㜴㙤挷〰㜰㙡て〵收㘸㍢㜶愵㝣㉤挱㙥〰㝥㌵慦搰㡥㌷㍣敤ㄸ㐸晥㐲㍢昶㈲捡㘵挷㈱挵㜶ㅣ愱敤ㄸ〴捥㥣ㅤ㜱㙤挷㘰捡敦㐳㌰〴挰慦㜸㜱敤昲挷换㥥㜶っ㈷㝦愱ㅤ㐱愲㕣㜶㔸挵㜶㌴㙢㍢敡挰愹敤㔰敤㑥㜶㐶ㄸ搸㌲㌵收㜹㙤㠳捦㕤㘳愲捣戰戰挶㌴ㄴ搹㜰㥣㘳㐳慥挶㜴㙡ㅢㅡ挱㤹慢㌱㑢㌵㜶㕦ㄷ㌶戰っ㔸㥡㘹敥㐷慤晢ㄳ㡣〴昰慢搳㐰㜰㜹㘸㥤戶慥愰挶㡣㈶㝦愱㠷挶ㄲ攵昲㄰㉦㍡ぢ㙡捣搹摡㡥昱攰捣㜹攸〲㈷㍢㘳〲戰㘵㍣昴愸戶愱挰㐳㤳㤸㘱愱㠷愶ㄴ搹㜰㤱㘳㐳捥㐳㤷㘹ㅢ愶㠲㌳攷愱慢㌴㜶㥡ㅢ换㉢㈹戹㈲扤ㅦ搹昳㕡㝡㝦愸愹慥㌰ㄴ慦慥㠴㜰㥦㐳攰捦㘰慢昱づ愸ㄵ㥡昰㜳㠷㌰㡡づ㥥〵愵㔵㥣慡㙦昲㌵〴慦晥㝦攰搳㔹づ㐲㘶㡡ㄷ〱㜲〷㘱㌶㔳㔰挶㙦つ愷攲㍣愹挶㝦㥦扡つ㔰慥ㅦ收㤰㠷戳㘹㤱㤸敢㤶戸㑢㑢㜰慡㕦挳ㄹ戳挸㌳愵㌸昱ㄵ昹㜹㤴戸㕦换ㅦ散㤶㝦搰㉤㔱挳㜹㙤㕥晥ㄱ㉤㝦〸㈵㝥愹攵て㜵换㜳ㄶ㥡㤳愸攱散㌳㤷㔲敢戴晣㘱㤴攰〴㤲㌴昳㜰㤷扣晡つ戰ㄲ愸㥢㡢㈲挸〹愴㄰㙥㉡㡡攰㌳㥡戰挶ㅤ挱愳愹㤴㤳㐸㈹㜰ㄳ㔳㥣㍦㑡㠶挷戸㌲慣攱㕣㔱㑣挴㝦㥦攲㥣㑦㈴攲攴㜹㔹㑢㈴摣ㄲ慦㘸〹㜱㌱愷㜴昹㈲慥搷昲㐹㑡扣慥攵㔳㙥㜹㑥挰㜲ㄲ㌵㥣㜸攵㔲敡ㅤ㉤㙦㔱㠲㔳㈷搲捣戴㕢晥㝤户㐴つ愷㐷㜹昹㡦戴晣㝣㑡㜰㠶㈳昲ぢ摣昲ㅢ摣ㄲ㌵㥣挵攴攵㍦㐱㑡扣㝣㔵㤱晢㌹愳ㄱ挲㤵㐵敥攷㉣㐷〸㔷戸摤摦挲っ㌹慢ㄱ㘷戶㌲挵〹㡤ㄸ挳敢㑣㥥昰㕢挳挹㡢㘴㡦晦㍥挵㐹㡢㈸扢愴㈸㝢㑥㘴㠴㜰㜱㔱昶摦㘸挲㐵敥散㍢㤸〵㈷㌳㤲㝤㐶㌲㜴㜲㌵昹㕥戰㕣昶㥣戳攴戳攷㕣㐵㜲㌹慦㈸㝢捥㕦㠴昰戳愲散㌹愷ㄱ挲戹敥散㤷㔰㉢攷㌰㤲晤㔲愶㌸㝤㘱㐶收〹捥〹ㄳ㌵㥣慡攴戳攷㡣㐳㈴㑥㈴㥡㤳つ㤱㌸挹㌹ㄱ〹㑥㉣㐴㐲㉡ㅦ㈷ㄴ戹㤴攲㐴㐲㡣㌹愳挸㝣㑥㉥㠴㜰㝡㤱昹㥣㜰〸攱㌴户昹愷㔲㉢㈷ㄸ㘲捣㘹㑣㜱㙥㈱挶㥣敥㥣㠸㌱㥣㐷㐸昶昰㌴㕥ㅤ㠲㤴㈸㍢戹㈸㝢捥㈹㠴㜰㔲㔱昶㥣㘷〸攱㐴㜷昶㘷㔱㉢攷ㄵ㤲晤搹㑣㜱㑡㈱搹㥦攳㥣㐸昶㥣㍥攴戳攷戴㐱㤴ㅤ㕦㤴㍤愷ㄲ㐲㔸㕣㤴㍤愷ㄷ㐲攸㜴㘷㝦㍥戵㜲㍡㈱搹㕦挰ㄴ㘷ㄲ㤲晤㠵捥㠹㘴捦㔹㐳㍥㝢づ晥㈲㜱ㄱ搱ㅣ昷㐵攲㘲攷㐴㈴㌸挶㡢㠴〴㡦㘳㝢㉥愵㌸愶㡢㌱敤㐵收㜳㥣ㄷ㐲㕢㤱昹ㅣ晢㠵搰敡㌶晦㜲㙡攵㔸㉦挶㕣挱ㄴ㠷㜹㌱收㑡攷㐴㡣攱㤰㉥搹㑢昰㌸㌲㡢挴㔵㐴㜳㔰ㄶ㠹慢㥤ㄳ㤱攰〰㉣ㄲ㘲㍥〷摥㝣㡡㈳收㈱愸〵ㄵ㑢㔴昲㤸搴㌱挷㝣㔵㔳㔹扢㘳攵愱愳㝢㕦昳昶㜳㝦扢昴㑦㐷㡥晣攰摢敢慦晦搳㝢㤷㍥晦敤㘳㠹㤱捦慣㕥晤敢〳㔷㍣晦户慤搲㉢㉢ㅥ晡㙡摡捡㤳㐲ぢ㑦㍡㉥㍤㙦㥦㐹㈷ㅤ㜶散㐱愱㔹晤㠶昴攸搱戳攷摥晤㥦摤㝥㔰攰搴攳ㅥ㔶敢搶㙦搷愶㘴㤴㘴〳搲敢㑣㌸昷〵㌸㕡捡㤴攸㕡㥣攰㘶扡㡣㡣㈵㕣ㅣ㈱㠵敢㝡㥢㑢挶㍦㜲摤㠰戴㍥〲ㅣ〷㠵敢㐶㥢㑢㐶戹ㄲ㉥㡥㜶挲戵搲收㤲戱㡣㕣〵㜶ㅤ慥戹㔶ぢ㔷つ㠷愳㉤敡ㅥㄹ攱㑡捣㌸㐶㥢㜱㤳㤸愱㘴㔴㉢㈹㔲㐲㜳慤戵戹㘴散㉡攱㑡㘹慥㕢㙤㉥ㄹ愱㑡㜲攴㐸㈵敥戹摤收㤲㜱愸㐴搷〲捤㜵愷㜰搵戴攰摦ㄶ㜵㡦㡣㐰㈵挶㜲㈴ㄲ㘳敦戶捤攰戰戱㐵捤戰㐷愲攲捡挲ㄱ㐹捣戸搷㌶㠳挳挷ㄶ㌵㐳㐶愴ㄲ㙦㥣愰捤戸㑦捣㔰㌲ち㤵㠴㡥愳㤱ㄸ晢㠰㜰搵㥣㡡㝦㕢搴㔸ㄹ㝦㑡㡣攵㌸㈴㘶㍣㘴㥢挱㐱㘳㡢㥡㈱攳㔰㠹ㄹㅣ㡦挴㡣㠷㙤㌳㌸㜸㙣㔱㌳㘴㍣㉡㌱㠳攳㤲㤸昱愸㤸愱㘴っ㉡〹ㅤ挷㈲攱㝡㑣戸㙡㌸㔴㙣㔱㘳㘵昴㈹㌱㤶愳㤰㤸昱㠴㤸愱㘴挴㈹攱攲挸㈳㕣㑦搹㕣散攰㘵戴ㅢ攵㡣㜶㘳㈱㔲㡤愷つ戳㑦ㄷ挲〱㠵㠴㠰敥摣ㄵ晢㜳攱ㄸ㔹挸愱搸㠵ぢ㘱晦㈲〲㝢㙤㈱散㔷㐴㘰㍦㉡㠴㝤㡢〸散㍡㠵搰㔸㐴㘰㙦㈹㠴㔸ㄱ㠱ㅤ愴㄰ㅡ㡡〸散ㄳ㠵㔰㕦㐴㘰㉦㈵㠴㘸ㄱ㠱晤㠶㄰㈲㐵〴戶㘴㈱㠴㡢〸㙣扣㐲愸㉢㈲戰㌹〹㈱㔴㐴㘰〵ㄷ㐲戰㠸挰㉡㈷㠴ㄱ㐵〴搶㌲㈱っ㉦㈲㌰敥㐲ㄸ㔶㐴㘰愸㠵㌰戴㤰搰敢晦〱㥢㠳㌴㍦
A28: Decisioneering:7.0.0.0 | B28: Decisioneering:7.0.0.0
A29: CB_Block_7.0.0.0:1 | B29: CB_Block_0
A30: 㜸〱捤㔸㑤㙣ㅢ挷ㄵ收㉥戹换㕤晥搸㡡㉤㍢晥㡢挳㈶㑥㙣㠷捥㐶戴㉣摢㐹攱挶㈲㘹搱㐲㙣㐹㌱㘹㍢㐰㔰㉣㠶摣㔹㜱慤摤ㅤ㘶㘶㈹㠹改戱㍤㌵愷ㅥ㕡愰㤷愲攷ㄶ㈸搰愲愷ㄴ㘸搱㔳㜳挸て㜲ぢ㠲攴攰㈰㠷〴挸㌹愷〴挹㝢戳愴㑣㔲㜴㘲慢ち攰㤱㌸㥣㤹㌷敦捤捣㥢昷扥昷㠶〹㈵㤱㐸㝣〷〵扦戱愴戰㜱慣摥ㄳㄱつ慣ち昳㝤摡㡡㍣ㄶち㙢㥥㜳搲扢收㠹㈸〹ㄳ㜴摢〳扡搰㙣攱扤㐹つ㝢㥤㜲〱㤳戴㐴挲㌰㑣ㄵ攸㈸〴㍦㔳㠳㡥㠹㕣戹ㄴ㔴㡤㑡㜹戹㜹〷愴搶㈳挶改㤹挲慤㤸昷㔲愹㘴㤵慣搹㜳戳攷慤㤹㌳㠵㑡搷㡦扡㥣㕥ち㘹㌷攲挴㍦㔳㔸改㌶㝤慦昵ち敤㌵搸ㅡつ㉦搱收捣㙣㤳㥣扢㔸㍡㌷㌷攷扥昸攲挵ㅣ㉣㥤㔸愹㤴慦㔲扦〳昲㜶㑢慡づ㔲㤷㉡攵ㄵ㑥摤摤㤲愹愱㈲㑡㔵摡昲㔰㘳㤴㜲㉦㕣戵㉡㘵昸ㅦ搲ち昴㉥㔸换昵㍡つ㠵ㄷ㜹敢㕥搴挳昳㤹挱㜲慢㜹㡢昸㕤慡〷㜲㑢㐶㜰㡢昰㈵ㄲ搰㝣㜰㔳搰ㅢ㈴㕣愵搸搳㠲㕡搷㜳㔲㜰㤳挹搳㤳ㄶ敡㉢挹㕡慥㤴㉢㙤挲㈳㈹ㄲㄷ㜸㘱搲㙣戹㤲㌵戴ㄵ挹㈳㐷㔱㍤㑡戶㙦㉢㜲㑤摣㘵ㅡ㉢〳㉡摤㠴㙡晦㄰㘷㐱戲ㄶ㑡㑡敡㙢戰戸㘱挶㉣捣㔴㙤愲摡㑤搵㙥愹戶愳摡㔴戵㕤搵㕥㔵敤戶㙡㝢慡㝤㐷戵搷㘰捥愰ㄸ改戴摡㉦㌷㥥㝥敥戵㝦扦㝢戲昶摢扤㤷扢㕦㝣摣晡㈶㠷戲㤶攰㙣搶ㄲ㡤㜶挹㄰㌴㍣搳㠳敢㌲〷戳戵㈰扥㡡㉡ㄵ㉤ㄳ敦㘹㌱㜴攸愶づ㉤戸扦㕣㔰㘱㘱㐴㌷愳㉡㠹㐸㍡㔸㈱㥣㠶㤱〹㤳㡡㤲㉢㙥㈱㘷㕥㡥つ戸㌳晤ㅥ㐸㤸㤲捤㈱㈹㔹㌹㄰㑢㔲挰昵㤲愹戸㌶昴㐹捥㝣㤵㠸㜶㐴㥡㍥㍤㌱㜶攵愸㌷戰戲㥢㤱攷ぢぢ㐴搶㌸敢㜶㔰愳扢㈵㐷ㅡ㌲ㅡ㠶㥥㠷㑡㐲て㝥挳〲㤷捤㍤昰㤵㌱㤱㘸㈲ㄱ㘱〹扥愰っ㘸戹㝤搰㠱㉤㔶㔹㐰扣㜰㤷㉥㌷户ㅦ㠴扥摡户攲㉡㈷ㅢ攰㤱昷㐴㥦戵㘶昰敦挷㈱〹㄰挹㥤㜳㉦戸愵㤲㌳㌷㐳㘶㠹㠶㉥昰戰ㅥ㌵つ㍣戹攰戶ㄷ㍡㙣㐳扡搸扥〰晣㐷扡㑤愳搷愱㜲㈸攷㌶〸㕦愵攰戶㝣戱㍡敤㔶ㄸ攷搴㈷ㄱ㜵攴〰㈲昴攳愳㠳㘲㠱戳〰挷㡦㤵㠹愰昷摣户攸挶ぢ㤵㔹㌷㜴挴搱挹挴㝡〴愲㡦㡣搳敥〹搹挶㔶〷㐸愳㐲敥昴昸㌸㥢㌴晥昹㑤㉦㈶㍦㌱㐶〶㔰㘳捤晢㔳ㄷ㌸㝤㘳㡢扡㙤㐷昳㄰愶搶㈹搲户㥤㌲㈶挵晢〲〸㘲㠲㠶㜲㝢挵㘰挵㙢慤㔱㕥愷ㄸ攴愸㈳㡦㝡〰㐹ㄴ晣戱㐵㐵㜱ㄹ㔵て愸敡㍣㌵㍣敡㕥搹㡣㈸㜸戳〳晢㠵㘸ㄳ昵ㅡ攸㐹〷㐷愶挴㙢〲攱昰挸昰〲㙢㜵〵㝡㉤㘷晥㈸㘵摥㔹㈷戰愶㜳㥤㌹㌴㤵㔲㤳㠹㔴㈲㠵〵挲㘸㌲〹慥㍣㌳收愸㌲㘴愰㙣㌱㡣捤㐳㤶㠳攰㍣晢㐰㑣愳收㠵㝣㤳㈰㘳㉢晥㉢㠷㐶㝤挵扡〱摡〳㉤昹ㄴㅤ㐹ㅤ㐷㤴愱㡤摥戳ㅡ㕣㘴㈲㥥挶㈷ㅡ搲ㄹ摡㉤捥㍥㜵晦愳㐸戱㕢㤶昱搳㑥㔶搵晤晤搳㕦㔹〷捣扥㑡㐲挷愷晣㠷昵㠵㍢㌲搱戳捤〳㔸ㅤ㠴㉡㤳搰扥〴㜴扢慦㈶㌱㔱㔲㌶㤵㥥戶攱㌹㔱㕢㙦㔳㙦戵ㅤ挱ㄸ攴㔷㠶㠱㙡㐶ㄸ晤〵㝣晥っ㌳㝦㡦㈹㠵㜹〸慢挳㔰㘵㌲㤹ㄸ㍦昵㡣㜹㔴昶ㄳ㈹㐴搶㐹㥢摣㡡〳ㄸ攰㌲搷ㄸ㜱ㄶ㐸ぢ昲戲㜴㍦㉢㌳㉡㉣攸㐰㜴攲㔳㌸戳〲戶〹㌶扦敥㌹㤴ㅢ㌸㔰㠷散㉦〵㐹㤹搰愵㘷ぢ〸㍢挹㠴愶㘵㡤㐹㙢㉤づ㘴㥤攸㙢㜰㌸扢㕣摣㈶晦慢㔷㉦扥㡣搹㘳㈶㈳㡦㜷っ㥡收ㄳ㔰㘹愸挹㠷昶㠶扤挰㜴㌰愸户搹挶㔵㔰㈵ㄵ㜱搲㈳㉡摣㡢ㅥ摦㍥っ㘱㤴〴㠷攵㜸㡤㔳〰㐰摥〰ㅣ㤰㘷㐴㡥㈳ㄳ㈹㤲改㠸㌴挶㈱㌷㉣扡户㍣扡㠱攰晤攴㜶ㄲ㘴㙤㤵慥㠸㤸㡣晡挷户搳慢㙣㠹㐵㔵㑦㜴㝣搲㍢㌱㠱ㅣ㔳㙥户㘹〸搸挵〱挲㝥㙣ㄲ敢㜴愸㌳㘱㡦㜵搶攵㉤扡㔸㝤ㄴ搰て㙥㉡㉥㡡〴㍥挵㔰㜴㔵㠱戲㌳挷㔳搰㈵ㄲ扦㥡晥㕢敤敥㥢扦㜹ㄹ㕤㔱〱〷〱ㄷ搱搰ㄹ㜷〲㤰㤸㥦攴㐷挲昲〱㑣扦慦挳㤳挵敢昸戴㑣㌸ㄸ㌶攳挲っ〶捤搸昰㠶ㄲ攱搸㕢ㅥ〵㘵㐳㤴㠹攳㡢㜵㝦㝣ㅤ摡戸戴㐱㌴㘶愹挸改戱㐰㈰捦㡤攸戴挳扢搲㍥〳㑣㝣挸㡤攰㉢㌳扤㡥㐹戵㙤㐳㤲ち㍤㉣㡡㜶ㄷ㐴㑤摣ㅦ㐲㙢㉡挴㘷㤲攴捡慣㠵㙣㈳㤴㍢搷〴收㍡㈸搰㑣愷昱ㄸㄹ昸挸㌲〷㔱㔸㥡㑤㐲㐳昴㉥㑥搲㔵㥣㤳㙥扤攳ㄶㅤ〸て晤㠷㕢づㅦ㙥つ㑥攵敢捣㤰ㅤ㔰㘱㍥戸捤昸㕡㤳戱㌵㝣㈹散㤱㍤搱愶㌴挲㤷㔴㌶㠸㥦㠳搸〶摢㑦㈶㐷㕥㑢㝤扤㈳ㄱ㌳㘲㤹㉤敢㍦㠳㔶㜲㠱户㘴㑦昹ㄴ捥㡦慦慣㝦扤㜲晣昳敦扥つ㙡㝦戵摥㜲㕥㝦晢㜷㌵攵㤳㍥攱挳改搵㕦晦昳㑦㙦捤晦攵㥢㐳㑣昹㡦㔶搲㌰㠰㍣㔰昰㥥㠲㠹㝢摤㉤散㙡㜸㤱㑦戳㙥㙣ㅡ搸㌶㕣㐰㈳㐸慣㥣戴摢㘸挳愹慢㜹户挶㍤挷昷㐲㡡愶〳㈹㉢扥㍡慦搱㔵㐸愲㔶ㄸ扥㜰㔹㤸㜷ㅢ㥣㠴〲㘳㑤搸敡敤ㅢ改㐹㙦搱摣戲ㄷち㔸㐶攲㈵戶昷扡〸攷㜰㜳摤㈰慣㤱㡥㜸ㄴ摣㐹晥攸〱敡㠱ㄲ㠳㤷慡愸慡㘲愸挶づ㍤㈲愱㍦〳愲昲㐳ㅥ昸㔲〱㜲㉣㔵愲㥡㝡ㄶ搷㠹挱っ㔱敥挱ㄳ㉡戴昱㥣晣つ愱㥦改㈶㈷〵散慤㡣㑦㈶㌰捦〲㡦㠲昹㠴㜴㤰㤳晤〶㜶愶㌰㌶㘳愸搶㑦㐱戵愷㔲戶㠷昲㌷晤㌴㡣㍤〶㘳戱㍤て摣㘲ち㐳㌹昲挸㕦ち捣㈲戴ㄴ戹〲づ㥤㠱㙡㔰愶㜰㈵昴㔹昳㜹愸昲㐹〵愷愲ㄳ敡ㄶ昶攷㝤扦㌰㜰㈳愱扦㠰㐳㈳㍦㙢攸㌳㌰㜴戲㌴㔷戸㐱〵㈵扣搵㉥㍣㕦愸㌳㥦昰㐲㠵昸慤㉥扣㥢ㄸ㉦慣㤷捥㕢㥢扥〸㤴て晡扥昱㠷㝦㥣㕡晢慦㝥愷昶昷攵搴晦㑥ㄵ㍦㝡㐷㜹扦㑦ㄸ晦戱㘱㙡戰㔵つ㜷昷昳㐹戸戰㉤愳㉤㡥㍦ㅦ慥挰㜳愰㠷扡㐸㐲㉡愵㐹㙢㑦愹㉦敤㑣搶〰㥢昱捡戴昷㘰搷晦㠷ㅣ扣摢㔱㘸㝤ㄲ㐶捣㜳㈸ㅡ慢㜱㜸挵㙣㜰〱捦㌱㤶戵㘶戳〸愶㡤㍦扥㝤昹摢搹㕦捥㘷扦〷愱ㅢ㜸㑢 | B30: 㜸〱敤㕣㕢㙣ㅣ㔷ㄹ摥ㄹ敦慥㜷搶㜶散挶戹㌴改捤扤㕦ㅣ㙤攳㕣㝡㈱㠴搴㤷摣摡㕣㥣搸㐹愹㑡搹㡥㜷捦搸㤳散捣㍡㌳戳㑥㕣〲愴㔰㕡ち㔴愸攵〱㕡ち㔴ㄵ慡攰〵愹㈰㔵㉤㤴〷㈴㈴㄰㙡ㄱてㄵ㔲㈵㤰㑡㠵〰〹㠴㈲昱搲㠷㡡昲㝤㘷㘶㜶㘷㜷扤㘳㘷搳㠲㠳㍣挹晥㌹㜳敥攷晣搷昳晦㘷㤲㔰ㄲ㠹挴〷㜸昸㉦㥦㈴ㄳ㔷㑥捣扢㥥戰㜲愳攵㔲㐹ㄴ㍣戳㙣扢戹㘱挷搱攷て㤸慥搷㠱ち改扣㠹㜲㌷㤵㜷捤㐷㐴㈶㍦㈷ㅣㄷ㤵㔲㠹㐴㈶愳愹㈸㘷㈷晣昵㠵㉦ㅡ㕢㜵㈷〱㈶㐷㐷づ㑦㥤㐰慦ㄳ㕥搹ㄱ㥢〶㡥晢㙤㜷づつ攵㠶㜲㕢户㙤扤㈳户㜹搳挰㘸愵攴㔵ㅣ戱搳ㄶㄵ捦搱㑢㥢〶挶㉢㔳㈵戳㜰㥦㤸㥦㉣㥦ㄴ昶㑥㌱戵㜹敢㤴扥敤慥愱㙤摢户ㅢ㜷摦㝤㔷㌷㠶㑥ㅣㅡㅤㄹ㜷㠴攱㝥㐸㝤愶㌸攵㙤㘳愲㘰㜲㙤㐲㌸愶㍤㥤ㅢㅤ挱摦挸晣昱㜶㘷㙥㘲㐶〸㡦㐳ぢ㐷搸〵攱㙡㘸搸㘵つ扢㙥挵㥡攵收㘹搶ㅥ㉣戵愰扢㕥捡ㅡㄵ愵㤲㘶㠵扤㘶慣挳搸扢㤲㍥摦㙤㑤〸摢㌵㍤㜳捥昴收搳搶㈴㍡㉡昶㔸挷㕣㜱㔴户愷挵㈱摤ㄲ㈹㙢㙦挵㉣㈶晤㈷搱㜱㜳搸㐵㜴㘲㜲昹戹㘱搷ㅡ㥤搱ㅤ㌹㈳㤷ㅢㄳ㔳㜷㡦㔳愸慦㝢㝤敢㝥㌹㜵㌹〲晢扣戱㜵㍤㤴ㅣ搷㥤㙡捤挱搶㌵㠳挵搷捦攰昶搶昵㈳㝢㔴摦收搶搶㙤攴㔶搶搷㔶扡〲晡㤶㍢㡡挵㘸㘹㠲㑥㠲っ〱ㄱ愸㘵〹扡〸扡〱㤴攴扦挰㈵搱㠶㉣㔲昳扡㥡㥦㔲昳〵㌵㕦㔴昳㐲捤ㅢ㙡㝥㕡捤捦愸㜹㔳捤㥦㔰昳㈷㔱㈷㝣㌲㥤㥤㙡昰晣攴搶挷摥摥搱晦㠷攱攷晦戶昳㠴昶敦愷昶㜵慦㐲愵㈳挱愴挶ㅣ晤㌴㐸慤㐶挵㕢㜲㥢昹㘷㜱慥〰㔳ㄸ摢㡤㍢㡤愱愱攲昶捤晡㔶㍤挵㘵挵㈰扦㡥㔰晡㔰户摢戸摦戴㡢攵搳ㄲ㜷㔷㡥攸慥愸㙤摣㘰㔰㌶㔲慥搸㐵昷㡡㠵ぢ㈷㍣摤ㄳㅢㅢ换㙡㥤㌴㌵㥢〰㕢〹㔷㡥㜷㜵㘳戳攳㝡愹㈲㠶捦㤸㝥昱㔵つ挵搶戸㔳㥥㙡㕤扡挷ㄱ愷慡愵㑤㌳ㅡ㠶㔰㥢㤳㝤㌷慤搲㉦昲攷㌵㌰㍡㔳㜶㠵㉤愷㌷㘸㡤㥢㠵㤳挲㤹㄰ㄴ㠹愲㈸㤷扡㤶㐵〱搷てㅥ戶戱㔰㜰㙢昱扡㘸慥戱晢㡣〷㘶ㄶ㐵捣㜷㔶㌸摥晣愴㍥㔵ㄲ敢敡慡昸㘳愲㘰㐳㕤昶㥥㜲愱攲㡥㤶㙤捦㈹㤷敡㑢㠶㡢㜳㍡㈴㑤昱㘰戹㈸㤲挹㠴ㄴち㄰戸ㅤㅤ㡡㤲戸慤㌵㉦㐸㐴㐴㔰㑣㐶扥扣㥥散㜲㐷戱㍡慣愲㈴㐸㤳敡つ㡢㜴挶昹㑡ㄹㄳ挳㠱㤱㌵㔱㝦㜰搰㕢ㄶ改戶㡡戹㡦戶戲慡昶〷慢摦㍤㈷㙣㙦㥦㙥ㄷ㑢挲㠹搵㝥ち㘷愴昵〲愴捥㐳㈰戴摣㍤慡㍡攵㡣㌲㥦㍡㙤ㄶ扤㤹昴㡣㌰愷㘷㍣攴㐱㐳㘶㌲摣摡愶㐷扢っ㔹摡㙡㠲㝥㠰㙣㌶㤱㕥挳㑡改㉣㥥㐴㡡搲㈹㠶㤷敢〴㌹摢搵昱㜲户戱挷㉣㜹挲ㄷ捡扤〶㌰攲㙢㌵㠹扥ㅥ㤲愸愳ㄷ㝣㠵戱挶ㄸ〵㤵敡愶敤捤搷昸戶㠹㑢㝣㈲㕡㤱〵换㑥ㄶ㔰ㄴ搴换㠳ㄸ㕥〳搱㌴㐸㠳昸捡ㄱ㈲㈲ㅢ挴㘸㜶昴㕣㑦㘴慣ㅦ㈳㈳㔰㍦㑡㠴慣扤戹戵㡣㈰戱㌷ㄳ㈹ㅢ戵攴挷ㄵ㘹戶㤰㉤敦㑢戳戵搸㌸㙤ㅤ挱㝡㠲换〹㌶〰㈸㝦㠱㠴愳㤴㐳扡晥搱慥挰扢㜶㈵挱㔵〰㤰㑦ㅡ㘵㑥㈰慡㘸㐳㉤挵㡥㘴扤ㅥ搸挹搲㈸昶㐵ㄱ㉤攳慡㥤搹㘳㐹㐴〷㔶攷昲搰戵㐹愹㘳㙦㙡㑤㥢搱攵㤰㈲㘳慡㐶搷扡㐸搵攸㐶戰㙡㥢㝡敢ㅡ㌴搵〶〸慥〵昰ㄵぢ㡤摤愵㔹昳㌴㈷㉦〹㤳挸㌷㠴摡㔴敥〱ㄱ搳晣㡦ㄱ㜰㑤㐷㤷ㄵ晢㤹愶攰愰㜱挹摢捦㥢㕡昳㜶㠰昴〶㥤戹愲㜳攸㉢扡㐰ぢ晡㍡戰㤷昲挷㤶晡攵〶ㄴ㙢㌷ㄲ摣〴搰愰㕦㜸昲扥㔰㉦㠱㌴㠹慤〸收㔶搳攳㈲㉤摣挹昹㔹㈱戵㑦户㌱愹㍢搳挲㠳昷㘲晦ㄸ散攰戲攳㠸ㄲづ戴㐵㤹挱戳换晡晡㑣㜷㡦㔳戶㤸扦㘲ㅦ扢㤷㠴㘲㐸㈶搵㡥㐴㠳㝤ㅣ㘳㘷㐶晣㑤ㄱ捡愱晥摤摡㕡㐸㐴ㅡ搵㤳ㄷ摢挵㥦㉤㔷㈴㐹ㅢ㤲攴ㄶ㙣慢㜶㉢〰愴㠴昲晢㤶ㄲ㘵㤰搵㌶挹㙡昵搶㉡扤㝢㌱㈷㤳〶晦㘱㤳ㅣ改昲㥤戵㈳昰ㅤ戸㍤搶㠴㘹㔵㠵㐵㤷㌵㉥㥣〲晣ち㘶㐹㘴㝤㤷㉣㐵捤㡡慣戸㐴㘴㐵㐷㐷搳㔹㍡挶户㈶改愴㐱㑡挴㜲㝢㙣㘱捣㌹扣㐶㔴㜴㐱㔲愸挴戸㠵慡ㄲ㠸㤴挷扡㉢㈲愶つㄱ㤳挳挶㘹户ㄳ㙣㈶ㄸ〲㐸晤ㄶ㤲㘶愹ㅢ捦㔰㔸攷ㅣ摤搹昹㝣㈲㐳㌴㐸昷攰㥢㉤㠵搵㌶づ戳㥤攰づ㠰〶昳㠷捥挷ㄸ㐲㤴㈸㡦㄰㈲慤㈵捤㌸㙥㡡搳愴㠱㔵〶㠲㑡愳ㄵ搷㉢㕢㡣㉡昵ㄸ㘳攵㐳㘵㙦捣㜴㘷ㄱ㠵敡㌷㠲挴晤㌳挲〶㜵㌹戰㝤ㅡ昲捡戳戳愲愸ㄹㄳ攵ち㐴摢晥戱攵㜰㈸挷晡㘰㑢捡㜳戹慡攰㘹敦㙣㡣㉥ㄴ㜹㈲㠶慦㤵㥥搸㈵㜹扥㜹攸敢慤敤攸愴改㤵㐴㤷攱㌳ㅤ搳ㄹ〳扢㠸愸㐱戱搳㤸㥣㜱㠴ㄸ敢㌱昶㍡㘶戱㘴摡㠲挸㠰㡤挹㐰摤〱㌱㡤〸挱㜸㤹昱扦戲摤㘳㑣㍡扡敤捥敡っ㈶捥慦慥㝢㤳㈱㤱㤴㌱㘲摡㉥㠶㤱㔸㘴扡搷㤸㤸㈹㥦㐶戴戶㘲搹㝢昵㔹㜷㔹㘰㠵㐴敦㍦ㄲ㌵㡡慡愸慡㤲㔱㌳敤攲㠷〷昲㐴㘲ぢ㝥㐹〲㠹慢㐴㡡晥昲ㄸ敤㑤扢㍥㠸捦搰㑥攷㥣扡ㄱ㌹慡㘶㜶挴㑡㘱㜲慡㜶ㄷ摢摣つ㜰敦摥㘳晢㙢㔱戹㡢㡡㔷愷攸攱㡦㤱昱㤲㉣慡㐱㄰晡攷㔶昹愴挲㍣㔲づ㌸㄰ㄸ攷㕢㈳昹㘵つ㔹㠷搴户慡㤶摣㠳㈸㔲户㜱㐰㥦ㄲ㈵挴愲㉤摤㕢攵扦搰㡣戵昴㤲ㅢ㤴㡤㤶㉤㑢㈷㘹㤱㉣㈷ち㍡㈹㜸戸攲㤵て㥡戶㘶〰㐸晡ぢ戲昴㌳挸搲捦挸慣㙥攳㈸挳㠲㌲捤扥捡搳扡㘳㝡㌳㤶㔹挸昰㠵愱扢㘵㐱㤳㘰㜲㑡摥昰〹㘵挶㐰㠳㌵㝦っ㈶㥢㥢〳扡㜳㤰愳摣㍡愲ㅦ㤴慢㉡㘹晣㔱摡㜴㉣㐱挰㐸㉦愹戶〳扤愵攴捤〸㠸ㅣ昹㥣て敦㕦㥣晦㍣㜲㝣扦ㅣ戱ㅥ㐳㈲昰〸㐶㠴㍣摤摢㘹攳㤸㙤㝡挰ㅥ㌱戶挷昴挶㕣愰ㅣ〰㐹㜹扣摤㈸戱ㅡ㘹㌴㔸搵ち搷㌴ㄷ搵愹㠹慢㥢换愳㝡攳㠶〵㡡㝤㡤ㄲ㔱㈴㡢㔵㤲㥡㘵㠱㌹㉥㈷㔵愳㐸挵ㅤ㙡ㅢ㈵捥㙤㕡摢㜷㑡㤱㡢㔰㑣㤲㘶ㄲ摡㑥㐹㈸〸昲㤲㍡愰愳攸慦㡦㈷㡦㐸戴㠶㌶㐰㤶㝡捡捦敢〹挲㠱晢㜱攵愴㈸戲挱ㅢ昸㝢㔵㤰㍣㕣昱敡㑡昴㌳晤㐱挹㜰愹㜴搸㠶㤵㔰搰㥤攲㌲㘱㘹慣捤搷㌰㤲㍢摢搵晥晥昶㐶ㄸ㌱㘰㐳㠶㐴㘲晣挰㘰㐳㌰㔷㈴㥡㑡敢慣㠷㕢㕤捤捥昰敤愰搰㙤㠹㠱〹慦㌸㈶收愴ㄹ㔶戳攴晢㘵㠳敡㘹㔱捡㔱捤ㄸ㥥㜲愱搲㍤捡昱㈰㈵ㄹ㕣㌳㡥搲㉤㠵ぢっ㄰扢㐱㙡扣攰㈱慣㕢敤㠰㈷㠳攵㠳ㅤ散㠸ㅦ㌶愱㜵㐶〹㥡㡥㈱摣晡㐵㤰㜷摡挴㈸〴愹㈱㥦㝦敥㔲㥥㝢㤶捦て㜷㈵挲㐴挰㐴っ㜵挵㔸て㐰㙥㌴㉡㐹㉥敡て㠳攵扥㘴㤳㐲慢㍢捣愳㠹搱㐳㤳捦昱㜰㠳㠷㜱慣㕥戲㑤〹㜷摣㍣ㄳ摡戴㌴扦捡搸㙦ㄷ㑡㤵愲㤰慡㌸㤴搵㔲㈳㉦ぢ㝣挹敢㝦㍥㌷挵散㑢戰㈹晢㜱㤴攲㤲㠹愴昶敤㙥敤ㄳ㘸㉥㠵ㅣ晡昰㘵ㅢ㠳㡦㌱㙥㌹ㄹっ㙢扡愳㐰晢㜰㜵敤昲㠲扣㌸〷㤱搶㤴㐵㔹㜶〰㜷昱慡ㄱ㘴挹㙤㤱㙡〷捡〷捡戴搹㈳㔹晢㑣㍦㙢㔹攰〸敢昴〵㕥㍡つ㘳愴㑤敥㘰㈷㠹昳㐱㘴昷晣攷攵㙢攲晣慥挰昸㔰ㄸ摦攵㈹㈸㠱㕤〵㈳搱攰㔶㙢㔶户挲挸㉦㉤㙦敤ㅥ〰㠵㈱㘰ㅡ戴愸改ㅢ㌸㈳㐸㉦㙥攰㌰ㄸㄹㄳㅤ㡤〶㔲ㄹ愳散㠷挳ㅥ㐸〳㌷昱㈰㍤㔹㠶ㄲ昲搶挸㑢㘱攱扤挴㐱ぢ㐷愰戲戳慥㈱㜳㕣昷㜰昵挵摥搰㤰㍤㕣㉣搲摣㠵㝦㙥㔹㘰ㄵ搷㌶㝣㜳㜴㑤挳㠵㉣戹㈶摡㜷搷㌷ㄴ〴ㄷ〵户㡣攵昶改㕥㘱㘶挲㥢昷㉦㙤戵㑢ㄲ愹㥦挳ㅦ戱攰攸戴㤹㤳㌶㉦愱捥㜱敦戳㈷敤昲㘹㕢捥㉢攵昲挶ㅦ慤㔸慤戳㤳㤳捣㈶㍥挰ㅦ昹愸㠹搴敢攸㜱㈹搳㘶〷㌵〷〹晢㤱㡦㉦つ〶㤰㡥愱ㄳ搸敥搵ㅢ〳愴㤳㌵つ㜴㈲〵挱ち愱搸搳ㅦㅡ愱㈸㍦〳㕡㐹㉣晥㤱ㅣ㝢晥ㄲ㔸㕦昹㈹㜲㠸㜰扣〷㘲㈴㜵㉤㔲㌱愸㤳㠲㍣戸摥挱换㈰晦㍦㔸ち戹㜹㐱㜶晡㉦㌰戳昲㕡㈳㡡慥㈶㡡㕥㙤㐶ㄱ〳戱ㄷㄴ昲收散㔷㡥㥡ㅦ昹戵摥晦攱㔱昳㕥㘰㤸㡦戴挶㄰㔴㘳㌰扥㙡っ㜴㌴ㄹ〳㌷愲㔸ㅡ〳昷戱つ攳昵扥㌱㄰㜸㍢づ㈲㘳㜱㘳㠰㔱扣ㄸ㤳㉦ㄲ㔴㡤㌸㌰㜸搶㕡㘷搱ㄳ戶て搷㙢㠵㡢挸㍤搴㤳㍢ち摦搳晡收散㜱摤搱慤つ㌲㝦慦㈳愰戶㥣㐹摣搷㤶㑤搸㘲攳㠲㈵戲搱〲㕥㠹搰㥦扥攲㌹㔹摡㉤㜵㘰捡㝦㝣㐷扤㤲㔱搲ㄷ攱ㄳ㔱㜸㐲㐸㝣㘶捤㡦昶晥改㤱挷㜶昱㕥㕡㐰慢㈹〶㠲摢〹捥搳㜲㐰昸㌶㜲㈵㘴㉤㍦扦㌹㠸て㤱捣搹㤲ㄸ搱ㅤ㘹敦戸㥡ㄵ㈶㝤挲㡢㄰愶㑦㝣换挱㤸挴つ〷摦㤸捣㌵㌸㌶攵攷㑢搲ㄹ㤸㡢㑣㕣㝡敦挲〰愱搲㔲㘵戵㘹㔷愶㝥っ愵㜳㠱ㄳ愹户〷㜹扥攴愳㈸㉦㌷㙡戵敤搴㙡搲㑣㔴〶㔱㈳㤴㔲㠸㌴㤰㐲愲㐷ㄶ㠶晥愵㤴ㅡ㐷㈲㤵〳㠸㠹愱㌵〶㜳㜹昲㕦ㄱ〲愲㝡扤慦捤㑦㔵戰㡢挰㘲攸㜵㙦昷散㑡慢㌳㔴㑤っ捡捡搳挷ㄱ㈴攴㌱㠵ㄹ㡣搲捡摣愳㐸㠴㑦㙡〸愹㈵㍢㥥㌸㐸㡦攵㠷搸㝣挶㑥㔹昴慡㘵慤摤㜶〵㜷㍣愰㘷搲㔲㘱搸慢㤹㡤愳愷㡣挶昹㔵戳㝥ㄶ㘱慦㥦慣㌶敡ち㡡愰戳散つ㌸㝦㈲捣挷敦㠱㔸㍥㔸敢㝡㙤㘳〹㜵㥣摤㠹〵昲〷晢敢敡ㄸ挶挶愸攴ㄸ㐸搸㈵搵捡昸㤷挰㈷搰㐴摡昳㡡㔶㑢㜲㉣㐵㘱㌴㍡攴慣づ戵㐹晦㌳㑥㉤㌹㙢㤲戵ㄹ戰慥搳晦挷㤱戱愸晥㔷ㄸ㘵㤳㈸扢㍦㐸昰㈵挵㐸挹愲挱ㄹ敥〸㝣搸〸搳挸㈳戰㈶㤳っ㙥晢愹〹㝣愲敡ㄷ㑢〹づて㔷戲昱ㄲ㐴戵㉤㙤摢慥㤶〲㤰㔱愰搴て㈰㠲㕡戶攷愴㥢捦戱改〷㤰扤收愰㔹㜰捡㙥搹昰〶㈶㄰摥ㅤ攰ㄷ㘶〶㙣㥥㘱攵愵㐶愱㜶㍤㜶愲晢㐱戴㌹㜴ㄸ〲晢㤰昰㍥慣愸㈳㘳〸㑢㡢㔹昰㙢愳扥㐸㈰㠹摡挱扤捣㌸㔲搱㑢昸㐰昵㌰扣㥡ㅥ戳㤶㠵戲昳㝤换㡤㜷㌱戸㜵戸㡤㜵ㅦ㍣㍦愲㤴㐳ㄸ㑣㉥攱挱㠷戸慦㡤㝢㔰㕦㌷㔸㥢换㥡敤㜹搷戲愹敦〳愷㑢ㅢ愵㥥㘴㌸㈶扦㍢捥㙡てㄱ㈲捥㐳敦攸搲㕤戱散慤ㅦ㜴ㅥ㝣戶㑤㤷搷㘰〹㡥戲㈵挴戹㍦㡤愶捡㍤〴昸㘹昹㈰挱ㄷ㠵晥扣ㅤ㑣扣㠰㘵㤱〱㤰㑥愴㜵㠰搶㔴晤摤㠵愸㕡攱搱㠲㔴㤸㔵扥㠳㜲敥㤲扦摡㈲昳㜰搴㤰㐷〸愴戵愸攴㔶㜸㠴㤰攳㍦㠷〶搵昱愷㤱摢㝡晣㙦㉤㌸㍥㤵扦㕣㕦戴晦扥㔰㜹㘸㈷㌸昴㐹㠲ㄲ㠱〵搰ㄷ搶散愵㔸愴慣㐹晢㐱㠴搷㜶㈱㡤攷㜷挱扦敦散㝡昳つ㍥晦搸愵㐸㐱㠸愲晡㔵㔰㄰捡㔵㍣ㅤ㕤挵㉣㜲㕢慦攲敢ぢ慤愲㡦㌲㤲㌳搱ㅣ㠰㥥づ㠵戴㈲㔷攵㈲挱つ攵㑦㤱〸㐵愲㙥ㄶ㝤㐴慣㙣㕢㐱〲㙤戹昳戲敤ㅣㄲ㘱摢ㄴ㌷㈲收ㄳㅥ㘹ㅦ昱捡㈳扤㌶㘹摦敤㥡昶戵㘲挶ち晣慤换㐲㌶㘰㐹晣㈶戶愵㐸㑦户ㄹ换㔷㥥っㄱ戳㙦㕦昸㝤㤴ㅡ㐴㤷㐰ㄸ扥㐵㑡㐲攲㐶㉡㕦づ㉢扦晣㑡捤㌹㡡〲㍣愰ㅥ扦㌲〹㑥㔶㝥㈲慣扣〵摦㕥挹㍡〹摥ㄵ攰昳㑥㔸㤹㠴㈹㉢㍦ㅥ㔶晥晢㤶つ搵捡㈱ㅤ晡㍤愷㐸㈴㌱戶慥戴晥㈳摦㘱昳㔰㥤㌲愸㍦扢っ㍦㥢㤲㔳〶㠹㑢㔲㠳㜶攳摡㠷㠳㉦愱て攰ㄶㄳ㉥㝢㐰挸晡晦㈱挲㝥摣㙥ㅡ搳㍤ㅤㅦ㍡捦㈱慣散㘸昲㡤㡤搳挶㘱〷ㄹ㥤挶㝥ㄷ㘷慡攲戲㈲ㄱ㤸〳㐹㝦㝦ㄷ㜱扦挷㤸㡥戵晤〸挳㘱㉡㙦㡢戴愷㍣㘴〸㈵愹㍣ㄶ㘲㌶㜱慥㐶㌳摡㘷㠱ㅣ㠸㐹㐰㈶戴捦〱晡㈱㤷㌵捣攸㈳晦㑢收㍥㠷㠴昶㈸挱ㄷ〰戲ち㤹㥤㜴㤰晥㈲㐰㙦昸摦㔱っ捣㐹㝦㠹慡㥣つ〷㡢㤲㤱昶㈵㌶㜸ㅣ愰〳㡥㕡㈵㈰挲慣昶〴㜲愲㠳㔲㜰挸㐱㥦㘴挱㔷〸扥ち㤰㑤㜱戲㑢摥㌵慥愹㑤捤昵㌵㌴㔵戸ㄵ㔲㡥㍤ㄵ㈴昸㤲㍡〷戰愳戵慤捣愳㜰昸昹㍥㠲㥡㜵摦改敦挶㜷昷昳㕣㜴〷晥摢㤱㤴㌴散㤳敡挷摡敢㡢㑣㐰㥢㕣晥ㅣ㙣昶㐵昴挳㜵搵㙣㑣昶昸㜱晣㌲㙡㕡㜹ㄴ晦㥥挳㑦㌹㠵ㄱ㌸ち㌵㙤〶㙥ㄶ搲㠰㉣㤸つち愸戲戴愷〱ㄴ攲㤸㜸搲㥥攱ㅢ㔱换晥戵㙦〴〹扥㈸挴敢㌹㈶㑡㐱昳㜰㐰攲㕡ㄶ㥣㙣ㄸ㤰昸㤷〵㈷愲〳㝥ㄳ戹㡡㐴ㄶㄲ昵㕡㠹㐸㑢㌲昷㔹㠰㥥㡥㕥捥㡤㕡㑥㍤愳ㄴㅥ㉥㍥晣昰㝢扤挹㠱㡤挹㑦摥搳晤散㍢扦㜹昷㤹户㍥戵昳慦敦㍦晦晣㕢㝦㝥收㡤昷㕦㥦摡昹慢ㄷ㕦晣攵扤摦㝢攳摤搵挶ぢ敡㉢敦ㅤ㜸攱散搰挹戳愷㡣㘳户敤㍤晢挰㠹㈳㐳攳㤷つ㜶㜴㜴㜶摥摣晦敢换㙦改㍢㜷敡㔵攵ㄷ㙦慦户ㄵ戹㕣づ㜸ㄴ㈰㝣晡戸㙣㌹㡤㙦㈳㠱㘹㜰挶ㅦ改㌴戸摣㜳昸㈹挵㘰愳㐶昰㤲㠱㑦㠳ㄳ㤰〵㠵晡㠲慥晦〰㌱㙦戱晥
A31: Decisioneering:7.0.0.0 | B31: Decisioneering:7.0.0.0
C40: 1.887597407
C41: 1.887597407
C42: 1.887597407

Sheet Solar Calculator
B2: Solar Panel Technology Calculator
B3: Created by Mark Hagge at the University of Illinois Urbana-Champaign
B4: 2015-08-26 | I4: Research supported by Advanced Research Projects-Energy (ARPA-E), U.S. Department of Energy, under Award Number DE-AR0000217
G6: Sensitivity Analysis
H7: Residential
A8: A) | B8: Model Parameters | C8: User Input | D8: Default | E8: Change due to added tech (%) | F8: User Input Including Tech | G8: Distribution | H8: Mean/Min | I8: Std. Dev/Max | K8: Description
B9: Scenario (1=Worst-case, 2=Expected, 3=Best-case) | C9: 2 | D9: 2 | E9: n/a | F9: =IF(ISNUMBER(E9),C9*(1+E9),C9) -> 2 | K9: Input of "1", "2", or "3" indicates the set of deviations (inflation, derating, price gain) used in calculating section c output. Does not effect breakeven calculations in section D since each case is always calculated..
B10: System Lifetime (yr) | C10: 25 | D10: 25 | E10: 0 | F10: =IF(ISNUMBER(E10),C10*(1+E10),C10) -> 25 | G10: Uniform | H10: 20 | I10: 30 | K10: Time until major system repair and related costs are imposed upon system owner. Model stops calculating value after this many years. | S10: Installed Capacity (MW) | T10: Lifetime ROI (Worst-case) | U10: Lifetime ROI (Expected) | V10: Lifetime ROI (Best-case)
B11: Discount Rate (%) | C11: 0.06 | D11: 0.06 | E11: 0 | F11: =IF(ISNUMBER(E11),C11*(1+E11),C11) -> 0.06 | G11: Uniform | H11: 0.04 | I11: 0.08 | K11: The amount by which a dollar is worth less to you in one year. $1 in one year is worth $0.94 now implies discount rate of 6%. | S11: 0.01 | T11: -0.1238239613 | U11: -0.007333523315 | V11: 0.1211137196
B12: Inflation Rate (%) | C12: 0.0236 | D12: 0.0236 | E12: n/a | F12: =IF(ISNUMBER(E12),C12*(1+E12),C12) -> 0.0236 | G12: Normal | H12: 0.0236 | I12: 0.0104 | K12: Rate at which maintenance costs increase each year. | S12: 1 | T12: 0.08157443385 | U12: 0.2253732527 | V12: 0.3839318618
B13: _Inflation Rate Deviation (±%) | C13: 0.01 | D13: 0.01 | E13: n/a | F13: 0.01 | K13: In best-case (worst-case) scenario, Inflation Rateis increased (decreased) by this amount. | S13: 100 | T13: 0.4127626525 | U13: 0.6005940161 | V13: 0.8077047559
B14: Annual O&M Cost (% of Install Cost) | C14: 0.0075 | D14: 0.0075 | E14: -0.25 | F14: 0.005625 | G14: Uniform | H14: 0 | I14: 0.005 | K14: Cash value of maintenance spent annually as function of original install cost. | S14: 0.1211137196 | T14: 0.3839318618 | U14: 0.8077047559
B15: Avg. Daily Peak-Sun Hours [location dependent] (hr/day) | C15: 3.5 | D15: 3.5 | E15: 0 | F15: 3.5 | G15: Uniform | H15: 3.5 | I15: 6 | K15: Amount of energy available from the sun for conversion by a 1 watt solar panel per year. This value varies based on the location of the solar installation.
B16: DC to AC Derating [setup dependent] (%) | C16: 0.86 | D16: 0.86 | E16: 0.05 | F16: 0.903 | G16: Normal | H16: 0.86 | I16: 0.025 | K16: Proportion of energy which PV system is able to convert to usable energy and/or export to the grid.
B17: _DC to AC Derating Deviation (±%) | C17: 0.05 | D17: 0.05 | E17: n/a | F17: 0.05 | K17: In best-case (worst-case) scenario, Energy Exported to Grid is increased (decreased) by this amount. Provides an envelope which actual system production will lie within.
B18: Panel Degradation Per Year (%) | C18: 0.005 | D18: 0.005 | E18: 0 | F18: 0.005 | G18: Normal | H18: 0.005 | I18: 0.001 | K18: Amount by which panel output reduces from rated capacity each year.
B19: Avg. Electricity Price [To change, see Electricity Price sheet] ($/kWh) | C19: ='Electricity Price'!F34 -> 0.1728622698 | D19: 0.11 | E19: n/a | F19: =IF(ISNUMBER(E19),C19*(1+E19),C19) -> 0.1728622698 | G19: Uniform | H19: 0.09367 | I19: 0.18543 | BG19: =0.1*NPV(C11,(BG31:BG54)) -> 30142955.87
B20: Annual Electricity Price Gain (%/yr) | C20: 0.0365 | D20: 0.0365 | E20: n/a | F20: =IF(ISNUMBER(E20),C20*(1+E20),C20) -> 0.0365 | G20: Normal | H20: 0.0365 | I20: 0.0038 | K20: Average price at which electricity can be bought (representing savings) or sold (representing income from sales of electricity) during first year.
B21: _Annual Electricity Price Gain Deviation (±%/yr) | C21: 0.0055 | D21: 0.0055 | E21: n/a | F21: =IF(ISNUMBER(E21),C21*(1+E21),C21) -> 0.0055 | K21: Rate at which Electricity Price is modeled to increase each year forming a price trend for electricity. | S21: Chart Titles
B22: Depreciation (1=True, 0=False) | C22: 0 | D22: 1 | E22: no | F22: =IF(E22="yes",IF(C22=0,1,0),C22) -> 0 | G22: Set to 0 (no depreciation) | K22: In best-case (worst-case) scenario, Annual Electricity Price Gain is increased (decreased) by this amount. Provides an envelope for future electricty prices. | S22: =CONCATENATE("Panel Output & Electricity Sell Price Per Year (",O32, ")") -> Panel Output & Electricity Sell Price Per Year ()
B23: Depreciable Basis (% of Est. Installation Cost) | C23: 0.4 | D23: 0.4 | E23: 0 | F23: =IF(ISNUMBER(E23),C23*(1+E23),C23) -> 0.4 | G23: Uniform | H23: 0.3 | I23: 0.5 | K23: Toggle whether to consider depreciation. Businesses can benefit from tax advantages of depreciating their solar installation while homeowners cannot. | S23: Installation Cost Per Watt & Lifetime ROI Per Installed Capacity
B24: Effective Corporate Tax Rate (%) | C24: 0.3 | D24: 0.3 | E24: 0 | F24: =IF(ISNUMBER(E24),C24*(1+E24),C24) -> 0.3 | G24: Uniform | H24: 0.3 | I24: 0.4 | K24: The proportion of the installation cost which is spent on fixed goods expected (by the government) to deteriorate with time and which can thus be depreciated over time.
K25: The average tax rate payed by the entity being modeled.
A28: B) | B28: Display Assumptions | AK28: W/ Tech | AT28: W/ Tech | AY28: W/ Tech | BD28: W/ Tech | BI28: W/ Tech | BN28: W/ Tech | BT28: W/ Tech
B29: Solar Install Cost Average ($/W) (avg install size=0.034MW) | C29: 2.89 | D29: 2.89 | K29: Logrithmic relationship between Est. Installation Cost and Installed Capacity (section C table) is hinged around this average cost. See Est. Installation Cost plot in Section E. | V29: Depreciation | AB29: Electricity Price in Use | AC29: Electricity Price | AF29: Panel Output Per Year in Use | AG29: Panel Output Per Year (% Expectation) | AJ29: _ | AK29: Panel Output Per Year in Use | AL29: Panel Output Per Year (% Expectation) | AO29: _ | AP29: Installation Size (MW) | AU29: kWh Produced Per Year (kWh) | AZ29: Cumulative kWh Produced (kWh) | BE29: Value of Electricity Production Per Year ($) | BJ29: PV of Value of Electricity Production Per Year ($) | BP29: Cumulative PV of Value of Electricity Production Per Year ($)
B30: Solar Install Discount Per Order of Magnitude (%$/W Per OoM) | C30: 0.1 | D30: 0.1 | K30: Logrithmic slope is defined by this discount factor. Intuition: 10% discount means that price per watt of 100kW installation is 10% cheaper than 10kW installation. | V30: =C35 -> 0.01 | W30: =D35 -> 1 | X30: =E35 -> 100 | Y30: =F35 -> 0.25 | Z30: =G35 -> 0.25 | AA30: Year | AC30: Low EVC | AD30: Mid EVC | AE30: High EVC | AG30: Low Output | AH30: Mid Output | AI30: High Output | AJ30: Electricity Produced (kWh/W) | AL30: Low Output | AM30: Mid Output | AN30: High Output | AO30: Electricity Produced (kWh/W) | AP30: =C35 -> 0.01 | AQ30: =D35 -> 1 | AR30: =E35 -> 100 | AS30: =F35 -> 0.25 | AT30: =G35 -> 0.25 | AU30: =AP30 -> 0.01 | AV30: 1 | AW30: 100 | AX30: 0.25 | AY30: 0.25 | AZ30: 0.01 | BA30: =AV30 -> 1 | BB30: 100 | BC30: 0.25 | BD30: =AY30 -> 0.25 | BE30: =AU30 -> 0.01 | BF30: =AV30 -> 1 | BG30: =AW30 -> 100 | BH30: =AX30 -> 0.25 | BI30: =AY30 -> 0.25 | BJ30: =BE30 -> 0.01 | BK30: =BF30 -> 1 | BL30: =BG30 -> 100 | BM30: =BH30 -> 0.25 | BN30: =BI30 -> 0.25 | BO30: =AA30 -> Year | BP30: =BJ30 -> 0.01 | BQ30: 1 | BR30: 100 | BS30: 0.25 | BT30: 0.25
B31: Installation Capacity of Interest (MW) | C31: 0.25 | D31: 0.25 | K31: Set this to investigate the model output for a particular size installation on the right side of section C. | U31: Depreciable Basis | V31: =IF($C$22=1,C37*$C$23,0) -> 0 | W31: =IF($C$22=1,D37*$C$23,0) -> 0 | X31: =IF($C$22=1,E37*$C$23,0) -> 0 | Y31: =IF($C$22=1,F37*$C$23,0) -> 0 | Z31: =IF($F$22=1,G37*$F$23,0) -> 0 | AA31: 0 | AB31: =IF($C$9=1,AC31,IF($C$9=2,AD31,AE31)) -> 0.1728622698 | AC31: =$C$19 -> 0.1728622698 | AD31: =$C$19 -> 0.1728622698 | AE31: =$C$19 -> 0.1728622698 | AF31: =IF($C$9=1,AG31,IF($C$9=2,AH31,AI31)) -> 1 | AG31: =AH31*(1-$C$17) -> 0.95 | AH31: 1 | AI31: =AH31*(1+$C$17) -> 1.05 | AJ31: =AF31*($C$16)*($C$15*365)/1000 -> 1.09865 | AK31: =IF($C$9=1,AL31,IF($C$9=2,AM31,AN31)) -> 1 | AL31: =AM31*(1-$C$17) -> 0.95 | AM31: 1 | AN31: =AM31*(1+$C$17) -> 1.05 | AO31: =AK31*($F$16)*($F$15*365)/1000 -> 1.1535825 | AP31: =C$35*1000000 -> 10000 | AQ31: =D$35*1000000 -> 1000000 | AR31: =E$35*1000000 -> 100000000 | AS31: =F$35*1000000 -> 250000 | AT31: =G$35*1000000 -> 250000 | AU31: 0 | AV31: 0 | AW31: 0 | AX31: 0 | AY31: 0 | AZ31: =AU31 -> 0 | BA31: 0 | BB31: 0 | BC31: 0 | BD31: =AY31 -> 0 | BE31: =AU31*$AB31 -> 0 | BF31: =AV31*$AB31 -> 0 | BG31: =AW31*$AB31 -> 0 | BH31: =AX31*$AB31 -> 0 | BI31: =AY31*$AB31 -> 0 | BJ31: =BE31/(1+$C$11)^BO31 -> 0 | BK31: =BF31/(1+$C$11)^BO31 -> 0 | BL31: =BG31/(1+$C$11)^BO31 -> 0 | BM31: =BH31/(1+$C$11)^BO31 -> 0 | BN31: =BI31/(1+$F$11)^BO31 -> 0 | BO31: 0 | BP31: 0 | BQ31: 0 | BR31: 0 | BS31: 0 | BT31: 0
B32: Disable auto update? (0=False, 1=True) | C32: 0 | D32: 0 | K32: Toggles whether VBA script enabling solver to run in the middle of Crystal Ball iterations is enabled. Leave disabled unless performing monte carlo analysis using Crystal Ball. | U32: 5 Yr MACRS Depreciation Schedule | AA32: =AA31+1 -> 1 | AB32: =IF($C$9=1,AC32,IF($C$9=2,AD32,AE32)) -> 0.1791717427 | AC32: =AC31*(1+($C$20-$C$21)) -> 0.1782210002 | AD32: =AD31*(1+$C$20) -> 0.1791717427 | AE32: =AE31*(1+($C$20+$C$21)) -> 0.1801224852 | AF32: =IF($C$9=1,AG32,IF($C$9=2,AH32,AI32)) -> 0.995 | AG32: =AG31*(1-$C$18) -> 0.94525 | AH32: =AH31*(1-$C$18) -> 0.995 | AI32: =AI31*(1-$C$18) -> 1.04475 | AJ32: =AF32*$C$16*$C$15*365/1000 -> 1.09315675 | AK32: =IF($C$9=1,AL32,IF($C$9=2,AM32,AN32)) -> 0.995 | AL32: =AL31*(1-$F$18) -> 0.94525 | AM32: =AM31*(1-$F$18) -> 0.995 | AN32: =AN31*(1-$F$18) -> 1.04475 | AO32: =AK32*($F$16)*($F$15*365)/1000 -> 1.147814588 | AP32: =AP31 -> 10000 | AQ32: =AQ31 -> 1000000 | AR32: =AR31 -> 100000000 | AS32: =AS31 -> 250000 | AT32: =AT31 -> 250000 | AU32: =$AJ32*AP32 -> 10931.5675 | AV32: =$AJ32*AQ32 -> 1093156.75 | AW32: =$AJ32*AR32 -> 109315675 | AX32: =$AJ32*AS32 -> 273289.1875 | AY32: =$AO32*AT32 -> 286953.6469 | AZ32: =AZ31+AU32 -> 10931.5675 | BA32: =BA31+AV32 -> 1093156.75 | BB32: =BB31+AW32 -> 109315675 | BC32: =BC31+AX32 -> 273289.1875 | BD32: =BD31+AY32 -> 286953.6469 | BE32: 1958.627999 | BF32: 195862.7999 | BG32: 19586279.99 | BH32: 48965.69998 | BI32: 51413.98498 | BJ32: 1847.762263 | BK32: 184776.2263 | BL32: 18477622.63 | BM32: =BH32/(1+$C$11)^BO32 -> 46194.05658 | BN32: 48503.75941 | BO32: 1 | BP32: =BP31+BJ32 -> 1847.762263 | BQ32: =BQ31+BK32 -> 184776.2263 | BR32: =BR31+BL32 -> 18477622.63 | BS32: =BS31+BM32 -> 46194.05658 | BT32: =BT31+BN32 -> 48503.75941
U33: 0.2 | V33: =V$31*$U33*$C$24 -> 0 | W33: 0 | X33: 0 | Y33: 0 | Z33: =Z$31*$U33*$F$24 -> 0 | AA33: =AA32+1 -> 2 | AB33: 0.1857115113 | AC33: 0.1837458512 | AD33: 0.1857115113 | AE33: 0.1876876295 | AF33: 0.990025 | AG33: 0.94052375 | AH33: 0.990025 | AI33: 1.03952625 | AJ33: 1.087690966 | AK33: 0.990025 | AL33: 0.94052375 | AM33: 0.990025 | AN33: 1.03952625 | AO33: 1.142075515 | AP33: =AP32 -> 10000 | AQ33: =AQ32 -> 1000000 | AR33: =AR32 -> 100000000 | AS33: =AS32 -> 250000 | AT33: =AT32 -> 250000 | AU33: =$AJ33*AP33 -> 10876.90966 | AV33: 1087690.966 | AW33: 108769096.6 | AX33: 271922.7416 | AY33: =$AO33*AT33 -> 285518.8786 | AZ33: =AZ32+AU33 -> 21808.47716 | BA33: =BA32+AV33 -> 2180847.716 | BB33: =BB32+AW33 -> 218084771.6 | BC33: =BC32+AX33 -> 545211.9291 | BD33: =BD32+AY33 -> 572472.5255 | BE33: 2019.967331 | BF33: 201996.7331 | BG33: 20199673.31 | BH33: 50499.18329 | BI33: 53024.14245 | BJ33: 1797.763734 | BK33: 179776.3734 | BL33: 17977637.34 | BM33: 44944.09335 | BN33: 47191.29802 | BO33: 2 | BP33: =BP32+BJ33 -> 3645.525997 | BQ33: =BQ32+BK33 -> 364552.5997 | BR33: =BR32+BL33 -> 36455259.97 | BS33: =BS32+BM33 -> 91138.14993 | BT33: =BT32+BN33 -> 95695.05743
A34: C) | B34: =CONCATENATE("Table of ",IF(C9=1,"Worst-case",IF(C9=2,"Expected","Best-case"))," Outputs") -> Table of Expected Outputs | C34: Range of Installation Capacities Input | F34: Capacity of Interest User Input | G34: Capacity of Interest W/ Tech | H34: Capacity of Interest Difference | U34: 0.32 | V34: 0 | W34: 0 | X34: 0 | Y34: 0 | Z34: 0 | AA34: 3 | AB34: 0.1924899814 | AC34: 0.1894419726 | AD34: 0.1924899814 | AE34: 0.19557051 | AF34: 0.985074875 | AG34: 0.9358211312 | AH34: 0.985074875 | AI34: 1.034328619 | AJ34: 1.082252511 | AK34: 0.985074875 | AL34: 0.9358211312 | AM34: 0.985074875 | AN34: 1.034328619 | AO34: 1.136365137 | AP34: 10000 | AQ34: 1000000 | AR34: 100000000 | AS34: 250000 | AT34: 250000 | AU34: 10822.52511 | AV34: 1082252.511 | AW34: 108225251.1 | AX34: 270563.1279 | AY34: 284091.2842 | AZ34: 32631.00228 | BA34: 3263100.228 | BB34: 326310022.8 | BC34: 815775.0569 | BD34: 856563.8098 | BE34: 2083.227658 | BF34: 208322.7658 | BG34: 20832276.58 | BH34: 52080.69146 | BI34: 54684.72603 | BJ34: 1749.118113 | BK34: 174911.8113 | BL34: 17491181.13 | BM34: 43727.95282 | BN34: 45914.35046 | BO34: 3 | BP34: 5394.64411 | BQ34: 539464.411 | BR34: 53946441.1 | BS34: 134866.1028 | BT34: 141609.4079
B35: Installed Capacity (MW) | C35: 0.01 | D35: 1 | E35: 100 | F35: =C31 -> 0.25 | G35: =C31 -> 0.25 | H35: =C31 -> 0.25 | K35: Installed Capacities provide representation of various possible installation sizes. Capacities are used with display assumptions (section B) to estimate Installation Cost (section C). | U35: 0.192 | V35: 0 | W35: 0 | X35: 0 | Y35: 0 | Z35: 0 | AA35: 4 | AB35: 0.1995158658 | AC35: 0.1953146737 | AD35: 0.1995158658 | AE35: 0.2037844714 | AF35: 0.9801495006 | AG35: 0.9311420256 | AH35: 0.9801495006 | AI35: 1.029156976 | AJ35: 1.076841249 | AK35: 0.9801495006 | AL35: 0.9311420256 | AM35: 0.9801495006 | AN35: 1.029156976 | AO35: 1.130683311 | AP35: 10000 | AQ35: 1000000 | AR35: 100000000 | AS35: 250000 | AT35: 250000 | AU35: 10768.41249 | AV35: 1076841.249 | AW35: 107684124.9 | AX35: 269210.3122 | AY35: 282670.8278 | AZ35: 43399.41477 | BA35: 4339941.477 | BB35: 433994147.7 | BC35: 1084985.369 | BD35: 1139234.638 | BE35: 2148.469141 | BF35: 214846.9141 | BG35: 21484691.41 | BH35: 53711.72851 | BI35: 56397.31494 | BJ35: 1701.788792 | BK35: 170178.8792 | BL35: 17017887.92 | BM35: 42544.7198 | BN35: 44671.95579 | BO35: 4 | BP35: 7096.432902 | BQ35: 709643.2902 | BR35: 70964329.02 | BS35: 177410.8226 | BT35: 186281.3637
B36: Est. Installation Cost ($/W) | C36: =$C$60*LOG10(C35)+$C$61 -> 3.043597407 | D36: =$C$60*LOG10(D35)+$C$61 -> 2.465597407 | E36: =$C$60*LOG10(E35)+$C$61 -> 1.887597407 | F36: 2.639592745 | G36: 2.639592745 | H36: =Installation_Cost-F36 -> 0 | K36: Installed Costs are calculated via logrithmic function defined in section B. Range provided to give user perspective of various size installations. | U36: 0.1152 | V36: 0 | W36: 0 | X36: 0 | Y36: 0 | Z36: 0 | AA36: 5 | AB36: 0.2067981949 | AC36: 0.2013694286 | AD36: 0.2067981949 | AE36: 0.2123434192 | AF36: 0.9752487531 | AG36: 0.9264863155 | AH36: 0.9752487531 | AI36: 1.024011191 | AJ36: 1.071457043 | AK36: 0.9752487531 | AL36: 0.9264863155 | AM36: 0.9752487531 | AN36: 1.024011191 | AO36: 1.125029895 | AP36: 10000 | AQ36: 1000000 | AR36: 100000000 | AS36: 250000 | AT36: 250000 | AU36: 10714.57043 | AV36: 1071457.043 | AW36: 107145704.3 | AX36: 267864.2607 | AY36: 281257.4737 | AZ36: 54113.98519 | BA36: 5411398.519 | BB36: 541139851.9 | BC36: 1352849.63 | BD36: 1420492.111 | BE36: 2215.753823 | BF36: 221575.3823 | BG36: 22157538.23 | BH36: 55393.84557 | BI36: 58163.53785 | BJ36: 1655.740153 | BK36: 165574.0153 | BL36: 16557401.53 | BM36: 41393.50383 | BN36: 43463.17902 | BO36: 5 | BP36: 8752.173055 | BQ36: 875217.3055 | BR36: 87521730.55 | BS36: 218804.3264 | BT36: 229744.5427
B37: Installation Cost Total ($) | C37: =C35*1000000*C36 -> 30435.97407 | D37: =D35*1000000*D36 -> 2465597.407 | E37: =E35*1000000*E36 -> 188759740.7 | F37: =F35*1000000*F36 -> 659898.1861 | G37: =G35*1000000*G36 -> 659898.1861 | H37: =G37-F37 -> 0 | K37: Total installed cost for the given size and installation cost. | U37: 0.1152 | V37: 0 | W37: 0 | X37: 0 | Y37: 0 | Z37: 0 | AA37: 6 | AB37: 0.214346329 | AC37: 0.2076118809 | AD37: 0.214346329 | AE37: 0.2212618428 | AF37: 0.9703725094 | AG37: 0.9218538839 | AH37: 0.9703725094 | AI37: 1.018891135 | AJ37: 1.066099757 | AK37: 0.9703725094 | AL37: 0.9218538839 | AM37: 0.9703725094 | AN37: 1.018891135 | AO37: 1.119404745 | AP37: 10000 | AQ37: 1000000 | AR37: 100000000 | AS37: 250000 | AT37: 250000 | AU37: 10660.99757 | AV37: 1066099.757 | AW37: 106609975.7 | AX37: 266524.9394 | AY37: 279851.1863 | AZ37: 64774.98277 | BA37: 6477498.277 | BB37: 647749827.7 | BC37: 1619374.569 | BD37: 1700343.298 | BE37: 2285.145693 | BF37: 228514.5693 | BG37: 22851456.93 | BH37: 57128.64233 | BI37: 59985.07445 | BJ37: 1610.937543 | BK37: 161093.7543 | BL37: 16109375.43 | BM37: 40273.43857 | BN37: 42287.1105 | BO37: 6 | BP37: 10363.1106 | BQ37: 1036311.06 | BR37: 103631106 | BS37: 259077.765 | BT37: 272031.6532
B38: First Year O&M Cost ($) | C38: =$C$14*C37 -> 228.2698055 | D38: =$C$14*D37 -> 18491.98055 | E38: =$C$14*E37 -> 1415698.055 | F38: =$C$14*F37 -> 4949.236396 | G38: =($C$14*(1+E14))*G37 -> 3711.927297 | H38: =G38-F38 -> -1237.309099 | K38: Amount set aside each year for regular maintenance. | U38: 0.0576 | V38: 0 | W38: 0 | X38: 0 | Y38: 0 | Z38: 0 | AA38: 7 | AB38: 0.22216997 | AC38: 0.2140478492 | AD38: 0.22216997 | AE38: 0.2305548402 | AF38: 0.9655206468 | AG38: 0.9172446145 | AH38: 0.9655206468 | AI38: 1.013796679 | AJ38: 1.060769259 | AK38: 0.9655206468 | AL38: 0.9172446145 | AM38: 0.9655206468 | AN38: 1.013796679 | AO38: 1.113807722 | AP38: 10000 | AQ38: 1000000 | AR38: 100000000 | AS38: 250000 | AT38: 250000 | AU38: 10607.69259 | AV38: 1060769.259 | AW38: 106076925.9 | AX38: 265192.3147 | AY38: 278451.9304 | AZ38: 75382.67535 | BA38: 7538267.535 | BB38: 753826753.5 | BC38: 1884566.884 | BD38: 1978795.228 | BE38: 2356.710743 | BF38: 235671.0743 | BG38: 23567107.43 | BH38: 58917.76859 | BI38: 61863.65702 | BJ38: 1567.347245 | BK38: 156734.7245 | BL38: 15673472.45 | BM38: 39183.68112 | BN38: 41142.86517 | BO38: 7 | BP38: 11930.45784 | BQ38: 1193045.784 | BR38: 119304578.4 | BS38: 298261.4461 | BT38: 313174.5184
B39: Present Value of Lifetime O&M ($) | C39: =IF($C$9=1,PV($C$11-$C$12-$C$13,$C$10,-C38),IF($C$9=2,PV($C$11-$C$12,$C$10,-C38),PV($C$11+$C$13-$C$12,$C$10,-C38) )) -> 3705.707822 | D39: =IF($C$9=1,PV($C$11-$C$12-$C$13,$C$10,-D38),IF($C$9=2,PV($C$11-$C$12,$C$10,-D38),PV($C$11+$C$13-$C$12,$C$10,-D38) )) -> 300196.8518 | E39: =IF($C$9=1,PV($C$11-$C$12-$C$13,$C$10,-E38),IF($C$9=2,PV($C$11-$C$12,$C$10,-E38),PV($C$11+$C$13-$C$12,$C$10,-E38) )) -> 22982292.14 | F39: =IF($C$9=1,PV($C$11-$C$12-$C$13,$C$10,-F38),IF($C$9=2,PV($C$11-$C$12,$C$10,-F38),PV($C$11+$C$13-$C$12,$C$10,-F38) )) -> 80345.37893 | G39: =IF($F$9=1,PV($F$11-$F$12-$F$13,$F$10,-G38),IF($F$9=2,PV($F$11-$F$12,$F$10,-G38),PV($F$11+$F$13-$F$12,$F$10,-G38) )) -> 60259.0342 | H39: -20086.34473 | K39: Value of total maintenance costs if paid in lump sum today given the discount rate. | AA39: 8 | AB39: 0.2302791739 | AC39: 0.2206833325 | AD39: 0.2302791739 | AE39: 0.2402381435 | AF39: 0.9606930436 | AG39: 0.9126583914 | AH39: 0.9606930436 | AI39: 1.008727696 | AJ39: 1.055465412 | AK39: 0.9606930436 | AL39: 0.9126583914 | AM39: 0.9606930436 | AN39: 1.008727696 | AO39: 1.108238683 | AP39: 10000 | AQ39: 1000000 | AR39: 100000000 | AS39: 250000 | AT39: 250000 | AU39: 10554.65412 | AV39: 1055465.412 | AW39: 105546541.2 | AX39: 263866.3531 | AY39: 277059.6707 | AZ39: 85937.32947 | BA39: 8593732.947 | BB39: 859373294.7 | BC39: 2148433.237 | BD39: 2255854.899 | BE39: 2430.517032 | BF39: 243051.7032 | BG39: 24305170.32 | BH39: 60762.9258 | BI39: 63801.07209 | BJ39: 1524.936455 | BK39: 152493.6455 | BL39: 15249364.55 | BM39: 38123.41137 | BN39: 40029.58194 | BO39: 8 | BP39: 13455.3943 | BQ39: 1345539.43 | BR39: 134553943 | BS39: 336384.8574 | BT39: 353204.1003
B40: Lifetime Cost ($) | C40: =C37+C39 -> 34141.68189 | D40: =D37+D39 -> 2765794.259 | E40: =E37+E39 -> 211742032.8 | F40: =F37+F39 -> 740243.5651 | G40: =G37+G39 -> 720157.2203 | H40: -20086.34473 | K40: Value of installationand lifetime O&M costs if paid in lump sum today given the discount rate. | U40: Present Value | V40: =NPV($C$11,V33:V38) -> 0 | W40: =NPV($C$11,W33:W38) -> 0 | X40: =NPV($C$11,X33:X38) -> 0 | Y40: =NPV($C$11,Y33:Y38) -> 0 | Z40: =NPV($F$11,Z33:Z38) -> 0 | AA40: 9 | AB40: 0.2386843637 | AC40: 0.2275245158 | AD40: 0.2386843637 | AE40: 0.2503281455 | AF40: 0.9558895784 | AG40: 0.9080950994 | AH40: 0.9558895784 | AI40: 1.003684057 | AJ40: 1.050188085 | AK40: 0.9558895784 | AL40: 0.9080950994 | AM40: 0.9558895784 | AN40: 1.003684057 | AO40: 1.10269749 | AP40: 10000 | AQ40: 1000000 | AR40: 100000000 | AS40: 250000 | AT40: 250000 | AU40: 10501.88085 | AV40: 1050188.085 | AW40: 105018808.5 | AX40: 262547.0213 | AY40: 275674.3724 | AZ40: 96439.21033 | BA40: 9643921.033 | BB40: 964392103.3 | BC40: 2410980.258 | BD40: 2531529.271 | BE40: 2506.634749 | BF40: 250663.4749 | BG40: 25066347.49 | BH40: 62665.86873 | BI40: 65799.16217 | BJ40: 1483.673257 | BK40: 148367.3257 | BL40: 14836732.57 | BM40: 37091.83142 | BN40: 38946.42299 | BO40: 9 | BP40: 14939.06755 | BQ40: 1493906.755 | BR40: 149390675.5 | BS40: 373476.6889 | BT40: 392150.5233
B41: First Year Elec. Production (kWh) | C41: =C35*1000*$C$15*365*$C$16*$AK$32 -> 10931.5675 | D41: =D35*1000*$C$15*365*$C$16*$AK$32 -> 1093156.75 | E41: =E35*1000*$C$15*365*$C$16*$AK$32 -> 109315675 | F41: =F35*1000*$C$15*365*$C$16*$AK$32 -> 273289.1875 | G41: =G35*1000*$C$15*365*$C$16*$AK$32 -> 273289.1875 | H41: 0 | K41: Projected amount of usable energy extracted from system in first year. Production will drop slowly in subsequent years due to panel degredation per year. | AA41: 10 | AB41: 0.247396343 | AC41: 0.2345777758 | AD41: 0.247396343 | AE41: 0.2608419276 | AF41: 0.9511101305 | AG41: 0.9035546239 | AH41: 0.9511101305 | AI41: 0.998665637 | AJ41: 1.044937145 | AK41: 0.9511101305 | AL41: 0.9035546239 | AM41: 0.9511101305 | AN41: 0.998665637 | AO41: 1.097184002 | AP41: 10000 | AQ41: 1000000 | AR41: 100000000 | AS41: 250000 | AT41: 250000 | AU41: 10449.37145 | AV41: 1044937.145 | AW41: 104493714.5 | AX41: 261234.2862 | AY41: 274296.0005 | AZ41: 106888.5818 | BA41: 10688858.18 | BB41: 1068885818 | BC41: 2672214.544 | BD41: 2805825.272 | BE41: 2585.136283 | BF41: 258513.6283 | BG41: 25851362.83 | BH41: 64628.40708 | BI41: 67859.82743 | BJ41: 1443.526598 | BK41: 144352.6598 | BL41: 14435265.98 | BM41: 36088.16495 | BN41: 37892.5732 | BO41: 10 | BP41: 16382.59415 | BQ41: 1638259.415 | BR41: 163825941.5 | BS41: 409564.8538 | BT41: 430043.0965
B42: Lifetime Elec. Production (MWh) | C42: =AZ334/1000 -> 257.5034729 | D42: =BA334/1000 -> 25750.34729 | E42: =BB334/1000 -> 2575034.729 | F42: =BC334/1000 -> 6437.586822 | G42: =BD334/1000 -> 6759.466163 | H42: 321.8793411 | K42: Sum of electrical production over entire system lifetime. | AA42: =AA41+1 -> 11 | AB42: 0.2564263095 | AC42: 0.2418496869 | AD42: 0.2564263095 | AE42: 0.2717972886 | AF42: 0.9463545798 | AG42: 0.8990368508 | AH42: 0.9463545798 | AI42: 0.9936723088 | AJ42: 1.039712459 | AK42: 0.9463545798 | AL42: 0.8990368508 | AM42: 0.9463545798 | AN42: 0.9936723088 | AO42: 1.091698082 | AP42: =AP41 -> 10000 | AQ42: 1000000 | AR42: 100000000 | AS42: 250000 | AT42: 250000 | AU42: 10397.12459 | AV42: 1039712.459 | AW42: 103971245.9 | AX42: 259928.1148 | AY42: 272924.5205 | AZ42: =AZ41+AU42 -> 117285.7064 | BA42: 11728570.64 | BB42: 1172857064 | BC42: 2932142.659 | BD42: 3078749.792 | BE42: 2666.096289 | BF42: 266609.6289 | BG42: 26660962.89 | BH42: 66652.40722 | BI42: 69985.02758 | BJ42: 1404.466266 | BK42: 140446.6266 | BL42: 14044662.66 | BM42: 35111.65666 | BN42: 36867.23949 | BO42: 11 | BP42: =BP41+BJ42 -> 17787.06042 | BQ42: 1778706.042 | BR42: 177870604.2 | BS42: 444676.5105 | BT42: 466910.336
B43: Present Value of Lifetime Electricity Production ($) | C43: =BP334 -> 33891.30307 | D43: =BQ334 -> 3389130.307 | E43: =BR334 -> 338913030.7 | F43: =BS334 -> 847282.5768 | G43: =BT334 -> 889646.7056 | H43: 42364.12884 | K43: Value of savings and income from generated electricity over system lifetime if paid in lump sum today given the discount rate. | AA43: =AA42+1 -> 12 | AB43: 0.2657858698 | AC43: 0.2493470272 | AD43: 0.2657858698 | AE43: 0.2832127747 | AF43: 0.9416228069 | AG43: 0.8945416666 | AH43: 0.9416228069 | AI43: 0.9887039473 | AJ43: 1.034513897 | AK43: 0.9416228069 | AL43: 0.8945416666 | AM43: 0.9416228069 | AN43: 0.9887039473 | AO43: 1.086239592 | AP43: 10000 | AQ43: 1000000 | AR43: 100000000 | AS43: 250000 | AT43: 250000 | AU43: 10345.13897 | AV43: 1034513.897 | AW43: 103451389.7 | AX43: 258628.4742 | AY43: 271559.8979 | AZ43: 127630.8453 | BA43: 12763084.53 | BB43: 1276308453 | BC43: 3190771.133 | BD43: 3350309.69 | BE43: 2749.591759 | BF43: 274959.1759 | BG43: 27495917.59 | BH43: 68739.79398 | BI43: 72176.78368 | BJ43: 1366.462867 | BK43: 136646.2867 | BL43: 13664628.67 | BM43: 34161.57167 | BN43: 35869.65025 | BO43: 12 | BP43: 19153.52329 | BQ43: 1915352.329 | BR43: 191535232.9 | BS43: 478838.0821 | BT43: 502779.9862
B44: Present Value of Depreciation ($) | C44: =V40 -> 0 | D44: =W40 -> 0 | E44: =X40 -> 0 | F44: =Y40 -> 0 | G44: =Z40 -> 0 | H44: 0 | K44: Value of all tax benefits from depreciation if paid in lump sum today given the discount rate. | AA44: 13 | AB44: 0.2754870541 | AC44: 0.257076785 | AD44: 0.2754870541 | AE44: 0.2951077112 | AF44: 0.9369146929 | AG44: 0.8900689582 | AH44: 0.9369146929 | AI44: 0.9837604275 | AJ44: 1.029341327 | AK44: 0.9369146929 | AL44: 0.8900689582 | AM44: 0.9369146929 | AN44: 0.9837604275 | AO44: 1.080808394 | AP44: 10000 | AQ44: 1000000 | AR44: 100000000 | AS44: 250000 | AT44: 250000 | AU44: 10293.41327 | AV44: 1029341.327 | AW44: 102934132.7 | AX44: 257335.3318 | AY44: 270202.0984 | AZ44: 137924.2586 | BA44: 13792425.86 | BB44: 1379242586 | BC44: 3448106.465 | BD44: 3620511.788 | BE44: 2835.702099 | BF44: 283570.2099 | BG44: 28357020.99 | BH44: 70892.55248 | BI44: 74437.1801 | BJ44: 1329.487799 | BK44: 132948.7799 | BL44: 13294877.99 | BM44: 33237.19499 | BN44: 34899.05474 | BO44: 13 | BP44: =BP43+BJ44 -> 20483.01108 | BQ44: =BQ43+BK44 -> 2048301.108 | BR44: =BR43+BL44 -> 204830110.8 | BS44: =BS43+BM44 -> 512075.2771 | BT44: =BT43+BN44 -> 537679.041
B45: Present Value of Ancillary Services ($) | C45: 0 | D45: 0 | E45: 0 | F45: 0 | G45: 0 | H45: 0 | K45: [Not implemented] Value of all ancillary services if earnings paid in lump sum today given the discount rate | AA45: 14 | AB45: 0.2855423316 | AC45: 0.2650461654 | AD45: 0.2855423316 | AE45: 0.3075022351 | AF45: 0.9322301194 | AG45: 0.8856186134 | AH45: 0.9322301194 | AI45: 0.9788416254 | AJ45: 1.024194621 | AK45: 0.9322301194 | AL45: 0.8856186134 | AM45: 0.9322301194 | AN45: 0.9788416254 | AO45: 1.075404352 | AP45: 10000 | AQ45: 1000000 | AR45: 100000000 | AS45: 250000 | AT45: 250000 | AU45: 10241.94621 | AV45: 1024194.621 | AW45: 102419462.1 | AX45: 256048.6552 | AY45: 268851.0879 | AZ45: 148166.2048 | BA45: 14816620.48 | BB45: 1481662048 | BC45: 3704155.12 | BD45: 3889362.876 | BE45: 2924.5092 | BF45: 292450.92 | BG45: 29245092 | BH45: 73112.72999 | BI45: 76768.36649 | BJ45: 1293.513239 | BK45: 129351.3239 | BL45: 12935132.39 | BM45: 32337.83098 | BN45: 33954.72253 | BO45: 14 | BP45: 21776.52432 | BQ45: 2177652.432 | BR45: 217765243.2 | BS45: 544413.1081 | BT45: 571633.7635
B46: Present Value of System Cash Flows ($) | C46: =SUM(C43:C45) -> 33891.30307 | D46: =SUM(D43:D45) -> 3389130.307 | E46: =SUM(E43:E45) -> 338913030.7 | F46: =SUM(F43:F45) -> 847282.5768 | G46: =SUM(G43:G45) -> 889646.7056 | H46: 42364.12884 | K46: Value of all cash flows if paid in lump sum today given the discount rate. | AA46: =AA45+1 -> 15 | AB46: 0.2959646267 | AC46: 0.2732625965 | AD46: 0.2959646267 | AE46: 0.320417329 | AF46: 0.9275689688 | AG46: 0.8811905204 | AH46: 0.9275689688 | AI46: 0.9739474173 | AJ46: 1.019073648 | AK46: 0.9275689688 | AL46: 0.8811905204 | AM46: 0.9275689688 | AN46: 0.9739474173 | AO46: 1.07002733 | AP46: =AP45 -> 10000 | AQ46: =AQ45 -> 1000000 | AR46: =AR45 -> 100000000 | AS46: =AS45 -> 250000 | AT46: =AT45 -> 250000 | AU46: =$AJ46*AP46 -> 10190.73648 | AV46: 1019073.648 | AW46: 101907364.8 | AX46: 254768.4119 | AY46: =$AO46*AT46 -> 267506.8325 | AZ46: =AZ45+AU46 -> 158356.9413 | BA46: =BA45+AV46 -> 15835694.13 | BB46: =BB45+AW46 -> 1583569413 | BC46: =BC45+AX46 -> 3958923.532 | BD46: =BD45+AY46 -> 4156869.709 | BE46: =AU46*$AB46 -> 3016.097516 | BF46: 301609.7516 | BG46: 30160975.16 | BH46: 75402.43791 | BI46: 79172.55981 | BJ46: 1258.512113 | BK46: 125851.2113 | BL46: 12585121.13 | BM46: 31462.80283 | BN46: 33035.94298 | BO46: 15 | BP46: =BP45+BJ46 -> 23035.03644 | BQ46: =BQ45+BK46 -> 2303503.644 | BR46: =BR45+BL46 -> 230350364.4 | BS46: =BS45+BM46 -> 575875.9109 | BT46: =BT45+BN46 -> 604669.7065
B47: Lifetime Profit ($) | C47: =C46-C40 -> -250.3788202 | D47: =D46-D40 -> 623336.0484 | E47: =E46-E40 -> 127170997.9 | F47: =F46-F40 -> 107039.0117 | G47: =G46-G40 -> 169489.4853 | H47: 62450.47357 | K47: Lifetime Cost minus Lifetime Value of System Cash Flows. A number over $0 indicates a positive return on investment (Lifetime ROI). | AA47: 16 | AB47: 0.3067673355 | AC47: 0.281733737 | AD47: 0.3067673355 | AE47: 0.3338748568 | AF47: 0.922931124 | AG47: 0.8767845678 | AH47: 0.922931124 | AI47: 0.9690776802 | AJ47: 1.013978279 | AK47: 0.922931124 | AL47: 0.8767845678 | AM47: 0.922931124 | AN47: 0.9690776802 | AO47: 1.064677193 | AP47: 10000 | AQ47: 1000000 | AR47: 100000000 | AS47: 250000 | AT47: 250000 | AU47: 10139.78279 | AV47: 1013978.279 | AW47: 101397827.9 | AX47: 253494.5698 | AY47: =$AO47*AT47 -> 266169.2983 | AZ47: 168496.7241 | BA47: 16849672.41 | BB47: 1684967241 | BC47: 4212418.102 | BD47: 4423039.007 | BE47: 3110.55415 | BF47: 311055.415 | BG47: 31105541.5 | BH47: 77763.85376 | BI47: 81652.04645 | BJ47: 1224.458082 | BK47: 122445.8082 | BL47: 12244580.82 | BM47: 30611.45204 | BN47: 32142.02464 | BO47: 16 | BP47: 24259.49452 | BQ47: 2425949.452 | BR47: 242594945.2 | BS47: 606487.363 | BT47: 636811.7311
B48: Lifetime ROI (%) | C48: =C47/C40 -> -0.007333523315 | D48: =D47/D40 -> 0.2253732527 | E48: =E47/E40 -> 0.6005940161 | F48: =F47/F40 -> 0.1445997193 | G48: =G47/G40 -> 0.2353506714 | H48: 0.09075095207 | K48: Investor's return on money over lifetime of system. | AA48: 17 | AB48: 0.3179643433 | AC48: 0.2904674828 | AD48: 0.3179643433 | AE48: 0.3478976008 | AF48: 0.9183164684 | AG48: 0.8724006449 | AH48: 0.9183164684 | AI48: 0.9642322918 | AJ48: 1.008908388 | AK48: 0.9183164684 | AL48: 0.8724006449 | AM48: 0.9183164684 | AN48: 0.9642322918 | AO48: 1.059353807 | AP48: 10000 | AQ48: 1000000 | AR48: 100000000 | AS48: 250000 | AT48: 250000 | AU48: 10089.08388 | AV48: 1008908.388 | AW48: 100890838.8 | AX48: 252227.097 | AY48: =$AO48*AT48 -> 264838.4518 | AZ48: 178585.808 | BA48: 17858580.8 | BB48: 1785858080 | BC48: 4464645.199 | BD48: 4687877.459 | BE48: 3207.96893 | BF48: 320796.893 | BG48: 32079689.3 | BH48: 80199.22325 | BI48: 84209.18441 | BJ48: 1191.325517 | BK48: 119132.5517 | BL48: 11913255.17 | BM48: 29783.13791 | BN48: 31272.29481 | BO48: 17 | BP48: 25450.82004 | BQ48: 2545082.004 | BR48: 254508200.4 | BS48: 636270.5009 | BT48: 668084.0259
B49: Years to Recoup Lifetime Cost (yrs) | C49: =BP336 -> 26 | D49: =BQ336 -> 19 | E49: =BR336 -> 14 | F49: =BS336 -> 21 | G49: =BT336 -> 19 | H49: -2 | K49: Number of years system must remain operational before Installation Cost Total is repaid given the discount rate. | AA49: 18 | AB49: 0.3295700418 | AC49: 0.2994719748 | AD49: 0.3295700418 | AE49: 0.3625093 | AF49: 0.913724886 | AG49: 0.8680386417 | AH49: 0.913724886 | AI49: 0.9594111303 | AJ49: 1.003863846 | AK49: 0.913724886 | AL49: 0.8680386417 | AM49: 0.913724886 | AN49: 0.9594111303 | AO49: 1.054057038 | AP49: 10000 | AQ49: 1000000 | AR49: 100000000 | AS49: 250000 | AT49: 250000 | AU49: 10038.63846 | AV49: 1003863.846 | AW49: 100386384.6 | AX49: 250965.9615 | AY49: =$AO49*AT49 -> 263514.2596 | AZ49: 188624.4464 | BA49: 18862444.64 | BB49: 1886244464 | BC49: 4715611.161 | BD49: 4951391.719 | BE49: 3308.434497 | BF49: 330843.4497 | BG49: 33084344.97 | BH49: 82710.86242 | BI49: 86846.40554 | BJ49: 1159.089484 | BK49: 115908.9484 | BL49: 11590894.84 | BM49: 28977.23711 | BN49: 30426.09896 | BO49: 18 | BP49: 26609.90952 | BQ49: 2660990.952 | BR49: 266099095.2 | BS49: 665247.738 | BT49: 698510.1249
B50: Lifetime Avg. Price Per kWh ($/kWh) | C50: =C40/(C42*1000) -> 0.1325872677 | D50: =D40/(D42*1000) -> 0.1074080372 | E50: =E40/(E42*1000) -> 0.08222880666 | F50: =F40/(F42*1000) -> 0.1149877408 | G50: =G40/(G42*1000) -> 0.1065405467 | H50: -0.008447194144 | K50: Lifetime Cost divided by Lifetime Elec. Production to give overall price per kWh of system. | AA50: 19 | AB50: 0.3415993483 | AC50: 0.308755606 | AD50: 0.3415993483 | AE50: 0.3777346906 | AF50: 0.9091562616 | AG50: 0.8636984485 | AH50: 0.9091562616 | AI50: 0.9546140747 | AJ50: 0.9988445268 | AK50: 0.9091562616 | AL50: 0.8636984485 | AM50: 0.9091562616 | AN50: 0.9546140747 | AO50: 1.048786753 | AP50: 10000 | AQ50: 1000000 | AR50: 100000000 | AS50: 250000 | AT50: 250000 | AU50: 9988.445268 | AV50: 998844.5268 | AW50: 99884452.68 | AX50: 249711.1317 | AY50: =$AO50*AT50 -> 262196.6883 | AZ50: 198612.8917 | BA50: 19861289.17 | BB50: 1986128917 | BC50: 4965322.292 | BD50: 5213588.407 | BE50: 3412.046394 | BF50: 341204.6394 | BG50: 34120463.94 | BH50: 85301.15986 | BI50: 89566.21785 | BJ50: 1127.725726 | BK50: 112772.5726 | BL50: 11277257.26 | BM50: 28193.14314 | BN50: 29602.8003 | BO50: 19 | BP50: 27737.63525 | BQ50: 2773763.525 | BR50: 277376352.5 | BS50: 693440.8811 | BT50: 728112.9252
AA51: =AA50+1 -> 20 | AB51: 0.3540677245 | AC51: 0.3183270298 | AD51: 0.3540677245 | AE51: 0.3935995476 | AF51: 0.9046104803 | AG51: 0.8593799563 | AH51: 0.9046104803 | AI51: 0.9498410043 | AJ51: 0.9938503042 | AK51: 0.9046104803 | AL51: 0.8593799563 | AM51: 0.9046104803 | AN51: 0.9498410043 | AO51: 1.043542819 | AP51: =AP50 -> 10000 | AQ51: =AQ50 -> 1000000 | AR51: =AR50 -> 100000000 | AS51: =AS50 -> 250000 | AT51: =AT50 -> 250000 | AU51: 9938.503042 | AV51: 993850.3042 | AW51: 99385030.42 | AX51: =$AJ51*AS51 -> 248462.576 | AY51: 260885.7048 | AZ51: =AZ50+AU51 -> 208551.3947 | BA51: =BA50+AV51 -> 20855139.47 | BB51: =BB50+AW51 -> 2085513947 | BC51: =BC50+AX51 -> 5213784.868 | BD51: =BD50+AY51 -> 5474474.112 | BE51: 3518.903157 | BF51: 351890.3157 | BG51: 35189031.57 | BH51: 87972.57893 | BI51: 92371.20788 | BJ51: 1097.210638 | BK51: 109721.0638 | BL51: 10972106.38 | BM51: 27430.26595 | BN51: 28801.77924 | BO51: 20 | BP51: =BP50+BJ51 -> 28834.84588 | BQ51: =BQ50+BK51 -> 2883484.588 | BR51: =BR50+BL51 -> 288348458.8 | BS51: =BS50+BM51 -> 720871.1471 | BT51: =BT50+BN51 -> 756914.7044
AA52: 21 | AB52: 0.3669911965 | AC52: 0.3281951677 | AD52: 0.3669911965 | AE52: 0.4101307286 | AF52: 0.9000874279 | AG52: 0.8550830565 | AH52: 0.9000874279 | AI52: 0.9450917993 | AJ52: 0.9888810526 | AK52: 0.9000874279 | AL52: 0.8550830565 | AM52: 0.9000874279 | AN52: 0.9450917993 | AO52: 1.038325105 | AP52: 10000 | AQ52: 1000000 | AR52: 100000000 | AS52: 250000 | AT52: 250000 | AU52: 9888.810526 | AV52: 988881.0526 | AW52: 98888105.26 | AX52: 247220.2632 | AY52: 259581.2763 | AZ52: 218440.2053 | BA52: 21844020.53 | BB52: 2184402053 | BC52: 5461005.132 | BD52: 5734055.388 | BE52: =AU52*$AB52 -> 3629.106407 | BF52: 362910.6407 | BG52: 36291064.07 | BH52: 90727.66017 | BI52: 95264.04318 | BJ52: 1067.521257 | BK52: 106752.1257 | BL52: 10675212.57 | BM52: 26688.03142 | BN52: 28022.43299 | BO52: 21 | BP52: 29902.36714 | BQ52: 2990236.714 | BR52: 299023671.4 | BS52: 747559.1785 | BT52: 784937.1374
A53: D) | B53: Breakeven Prices (Independent of Capacity) for Worst-case, Expected, and Best-case Scenarios | F53: =C8 -> User Input | G53: =F8 -> User Input Including Tech | H53: Value due to Tech | AA53: =AA52+1 -> 22 | AB53: 0.3803863752 | AC53: 0.3383692179 | AD53: 0.3803863752 | AE53: 0.4273562192 | AF53: 0.8955869907 | AG53: =AG52*(1-$C$18) -> 0.8508076412 | AH53: =AH52*(1-$C$18) -> 0.8955869907 | AI53: =AI52*(1-$C$18) -> 0.9403663403 | AJ53: 0.9839366474 | AK53: 0.8955869907 | AL53: =AL52*(1-$F$18) -> 0.8508076412 | AM53: =AM52*(1-$F$18) -> 0.8955869907 | AN53: =AN52*(1-$F$18) -> 0.9403663403 | AO53: 1.03313348 | AP53: =AP52 -> 10000 | AQ53: =AQ52 -> 1000000 | AR53: =AR52 -> 100000000 | AS53: =AS52 -> 250000 | AT53: =AT52 -> 250000 | AU53: =$AJ53*AP53 -> 9839.366474 | AV53: 983936.6474 | AW53: 98393664.74 | AX53: 245984.1618 | AY53: =$AO53*AT53 -> 258283.3699 | AZ53: =AZ52+AU53 -> 228279.5717 | BA53: =BA52+AV53 -> 22827957.17 | BB53: =BB52+AW53 -> 2282795717 | BC53: =BC52+AX53 -> 5706989.293 | BD53: =BD52+AY53 -> 5992338.758 | BE53: 3742.760947 | BF53: =AV53*$AB53 -> 374276.0947 | BG53: 37427609.47 | BH53: 93569.02367 | BI53: 98247.47485 | BJ53: 1038.635239 | BK53: 103863.5239 | BL53: 10386352.39 | BM53: 25965.88098 | BN53: 27264.17503 | BO53: 22 | BP53: =BP52+BJ53 -> 30941.00238 | BQ53: =BQ52+BK53 -> 3094100.238 | BR53: =BR52+BL53 -> 309410023.8 | BS53: =BS52+BM53 -> 773525.0595 | BT53: =BT52+BN53 -> 812201.3125
F54: Per Watt ($/W) | G54: Per Watt ($/W) | H54: Change Per Watt ($/W) | AA54: 23 | AB54: 0.3942704779 | AC54: 0.3488586637 | AD54: 0.3942704779 | AE54: 0.4453051804 | AF54: 0.8911090558 | AG54: 0.846553603 | AH54: 0.8911090558 | AI54: 0.9356645086 | AJ54: 0.9790169641 | AK54: 0.8911090558 | AL54: 0.846553603 | AM54: 0.8911090558 | AN54: 0.9356645086 | AO54: 1.027967812 | AP54: 10000 | AQ54: 1000000 | AR54: 100000000 | AS54: 250000 | AT54: 250000 | AU54: 9790.169641 | AV54: 979016.9641 | AW54: 97901696.41 | AX54: 244754.241 | AY54: =$AO54*AT54 -> 256991.9531 | AZ54: 238069.7414 | BA54: 23806974.14 | BB54: 2380697414 | BC54: 5951743.534 | BD54: 6249330.711 | BE54: 3859.974863 | BF54: 385997.4863 | BG54: 38599748.63 | BH54: 96499.37157 | BI54: 101324.3401 | BJ54: 1010.530847 | BK54: 101053.0847 | BL54: 10105308.47 | BM54: 25263.27119 | BN54: 26526.43475 | BO54: 23 | BP54: 31951.53323 | BQ54: 3195153.323 | BR54: 319515332.3 | BS54: 798788.3307 | BT54: 838727.7472
C55: Breakeven Installation Cost [Worst-case] | F55: 2.666719606 | G55: 2.886441885 | H55: =G55-F55 -> 0.2197222797 | K55: Installation Cost (section C) at which project has zero return on investment during system lifetime in worst-case . If quoted price is lower, installation is good investment. | AA55: 24 | AB55: 0.4086613503 | AC55: 0.3596732822 | AD55: 0.4086613503 | AE55: 0.464007998 | AF55: 0.8866535105 | AG55: 0.842320835 | AH55: 0.8866535105 | AI55: 0.930986186 | AJ55: 0.9741218793 | AK55: 0.8866535105 | AL55: 0.842320835 | AM55: 0.8866535105 | AN55: 0.930986186 | AO55: 1.022827973 | AP55: 10000 | AQ55: 1000000 | AR55: 100000000 | AS55: 250000 | AT55: 250000 | AU55: 9741.218793 | AV55: 974121.8793 | AW55: 97412187.93 | AX55: 243530.4698 | AY55: =$AO55*AT55 -> 255706.9933 | AZ55: 247810.9602 | BA55: 24781096.02 | BB55: 2478109602 | BC55: 6195274.004 | BD55: 6505037.704 | BE55: 3980.859625 | BF55: 398085.9625 | BG55: 39808596.25 | BH55: 99521.49064 | BI55: 104497.5652 | BJ55: 983.1869314 | BK55: 98318.69314 | BL55: 9831869.314 | BM55: 24579.67329 | BN55: 25808.65695 | BO55: 24 | BP55: 32934.72016 | BQ55: 3293472.016 | BR55: 329347201.6 | BS55: 823368.004 | BT55: 864536.4042
C56: Breakeven Installation Cost [Expected] | F56: 3.021276818 | G56: 3.260822475 | H56: 0.2395456564 | K56: Installation Cost (section C) at which project has zero return on investment during system lifetime in expected-case . If quoted price is lower, installation is likely a good investment. | AA56: 25 | AB56: 0.4235774896 | AC56: 0.370823154 | AD56: 0.4235774896 | AE56: 0.4834963339 | AF56: 0.8822202429 | AG56: 0.8381092308 | AH56: 0.8822202429 | AI56: 0.9263312551 | AJ56: 0.9692512699 | AK56: 0.8822202429 | AL56: 0.8381092308 | AM56: 0.8822202429 | AN56: 0.9263312551 | AO56: 1.017713833 | AP56: 10000 | AQ56: 1000000 | AR56: 100000000 | AS56: 250000 | AT56: 250000 | AU56: 9692.512699 | AV56: 969251.2699 | AW56: 96925126.99 | AX56: 242312.8175 | AY56: =$AO56*AT56 -> 254428.4584 | AZ56: 257503.4729 | BA56: 25750347.29 | BB56: 2575034729 | BC56: 6437586.822 | BD56: 6759466.163 | BE56: 4105.530197 | BF56: 410553.0197 | BG56: 41055301.97 | BH56: 102638.2549 | BI56: 107770.1677 | BJ56: 956.5829134 | BK56: 95658.29134 | BL56: 9565829.134 | BM56: 23914.57283 | BN56: 25110.30148 | BO56: 25 | BP56: 33891.30307 | BQ56: 3389130.307 | BR56: 338913030.7 | BS56: 847282.5768 | BT56: 889646.7056
C57: Breakeven Installation Cost [Best-case] | F57: 3.412218617 | G57: 3.673562714 | H57: =G57-F57 -> 0.2613440971 | K57: Installation Cost (section C) at which project has zero return on investment during system lifetime in best-case . If quoted price is higher, installation is an unprofitable investment even in best-case. | AA57: 26 | AB57: 0.4390380679 | AC57: 0.3823186718 | AD57: 0.4390380679 | AE57: 0.50380318 | AF57: 0.8778091417 | AG57: 0.8339186846 | AH57: 0.8778091417 | AI57: 0.9216995988 | AJ57: 0.9644050136 | AK57: 0.8778091417 | AL57: 0.8339186846 | AM57: 0.8778091417 | AN57: 0.9216995988 | AO57: 1.012625264 | AP57: 10000 | AQ57: 1000000 | AR57: 100000000 | AS57: 250000 | AT57: 250000 | AU57: 9644.050136 | AV57: 964405.0136 | AW57: 96440501.36 | AX57: 241101.2534 | AY57: =$AO57*AT57 -> 253156.3161 | AZ57: 267147.523 | BA57: 26714752.3 | BB57: 2671475230 | BC57: 6678688.075 | BD57: 7012622.479 | BE57: 4234.105139 | BF57: 423410.5139 | BG57: 42341051.39 | BH57: 105852.6285 | BI57: 111145.2599 | BJ57: 930.6987724 | BK57: 93069.87724 | BL57: 9306987.724 | BM57: 23267.46931 | BN57: 24430.84278 | BO57: 26 | BP57: 34822.00184 | BQ57: 3482200.184 | BR57: 348220018.4 | BS57: 870550.0461 | BT57: 914077.5484
AA58: =AA57+1 -> 27 | AB58: 0.4550629574 | AC58: 0.3941705506 | AD58: 0.4550629574 | AE58: 0.5249629135 | AF58: 0.873420096 | AG58: =AG57*(1-$C$18) -> 0.8297490912 | AH58: =AH57*(1-$C$18) -> 0.873420096 | AI58: =AI57*(1-$C$18) -> 0.9170911008 | AJ58: 0.9595829885 | AK58: 0.873420096 | AL58: =AL57*(1-$F$18) -> 0.8297490912 | AM58: =AM57*(1-$F$18) -> 0.873420096 | AN58: =AN57*(1-$F$18) -> 0.9170911008 | AO58: 1.007562138 | AP58: =AP57 -> 10000 | AQ58: =AQ57 -> 1000000 | AR58: =AR57 -> 100000000 | AS58: =AS57 -> 250000 | AT58: =AT57 -> 250000 | AU58: 9595.829885 | AV58: 959582.9885 | AW58: 95958298.85 | AX58: 239895.7471 | AY58: 251890.5345 | AZ58: =AZ57+AU58 -> 276743.3529 | BA58: =BA57+AV58 -> 27674335.29 | BB58: =BB57+AW58 -> 2767433529 | BC58: =BC57+AX58 -> 6918583.822 | BD58: =BD57+AY58 -> 7264513.013 | BE58: =AU58*$AB58 -> 4366.706726 | BF58: =AV58*$AB58 -> 436670.6726 | BG58: =AW58*$AB58 -> 43667067.26 | BH58: 109167.6682 | BI58: 114626.0516 | BJ58: 905.5150294 | BK58: 90551.50294 | BL58: 9055150.294 | BM58: 22637.87574 | BN58: 23769.76952 | BO58: 27 | BP58: =BP57+BJ58 -> 35727.51687 | BQ58: =BQ57+BK58 -> 3572751.687 | BR58: =BR57+BL58 -> 357275168.7 | BS58: =BS57+BM58 -> 893187.9218 | BT58: =BT57+BN58 -> 937847.3179
A59: E) | B59: Plots | AA59: 28 | AB59: 0.4716727554 | AC59: 0.4063898377 | AD59: 0.4716727554 | AE59: 0.5470113559 | AF59: 0.8690529955 | AG59: 0.8256003458 | AH59: 0.8690529955 | AI59: 0.9125056453 | AJ59: 0.9547850736 | AK59: 0.8690529955 | AL59: 0.8256003458 | AM59: 0.8690529955 | AN59: 0.9125056453 | AO59: 1.002524327 | AP59: 10000 | AQ59: 1000000 | AR59: 100000000 | AS59: 250000 | AT59: 250000 | AU59: 9547.850736 | AV59: 954785.0736 | AW59: 95478507.36 | AX59: 238696.2684 | AY59: 250631.0818 | AZ59: 286291.2036 | BA59: 28629120.36 | BB59: 2862912036 | BC59: 7157280.091 | BD59: 7515144.095 | BE59: 4503.461064 | BF59: 450346.1064 | BG59: 45034610.64 | BH59: 112586.5266 | BI59: 118215.8529 | BJ59: 881.0127324 | BK59: 88101.27324 | BL59: 8810127.324 | BM59: 22025.31831 | BN59: 23126.58423 | BO59: 28 | BP59: 36608.52961 | BQ59: 3660852.961 | BR59: 366085296.1 | BS59: 915213.2402 | BT59: 960973.9022
B60: Installation Cost Curve Slope | C60: =(1-$C$30)*$C$29-$C$29 -> -0.289 | AA60: 29 | AB60: 0.4888888109 | AC60: 0.4189879226 | AD60: 0.4888888109 | AE60: 0.5699858328 | AF60: 0.8647077306 | AG60: 0.821472344 | AH60: 0.8647077306 | AI60: 0.9079431171 | AJ60: 0.9500111482 | AK60: 0.8647077306 | AL60: 0.821472344 | AM60: 0.8647077306 | AN60: 0.9079431171 | AO60: 0.9975117056 | AP60: 10000 | AQ60: 1000000 | AR60: 100000000 | AS60: 250000 | AT60: 250000 | AU60: 9500.111482 | AV60: 950011.1482 | AW60: 95001114.82 | AX60: 237502.787 | AY60: 249377.9264 | AZ60: 295791.3151 | BA60: 29579131.51 | BB60: 2957913151 | BC60: 7394782.878 | BD60: 7764522.022 | BE60: 4644.498206 | BF60: 464449.8206 | BG60: 46444982.06 | BH60: 116112.4552 | BI60: 121918.0779 | BJ60: 857.1734421 | BK60: 85717.34421 | BL60: 8571734.421 | BM60: 21429.33605 | BN60: 22500.80286 | BO60: 29 | BP60: 37465.70305 | BQ60: 3746570.305 | BR60: 374657030.5 | BS60: 936642.5762 | BT60: 983474.705
B61: Installation Cost Curve Intercept (Cost at installed capacity=0.034MW) | C61: =C29-LOG10(0.034)*C60 -> 2.465597407 | AA61: 30 | AB61: 0.5067332525 | AC61: 0.4319765482 | AD61: 0.5067332525 | AE61: 0.5939252378 | AF61: 0.8603841919 | AG61: 0.8173649823 | AH61: 0.8603841919 | AI61: 0.9034034015 | AJ61: 0.9452610924 | AK61: 0.8603841919 | AL61: 0.8173649823 | AM61: 0.8603841919 | AN61: 0.9034034015 | AO61: 0.9925241471 | AP61: 10000 | AQ61: 1000000 | AR61: 100000000 | AS61: 250000 | AT61: 250000 | AU61: 9452.610924 | AV61: 945261.0924 | AW61: 94526109.24 | AX61: 236315.2731 | AY61: 248131.0368 | AZ61: 305243.926 | BA61: 30524392.6 | BB61: 3052439260 | BC61: 7631098.151 | BD61: 8012653.058 | BE61: 4789.952279 | BF61: 478995.2279 | BG61: 47899522.79 | BH61: 119748.807 | BI61: 125736.2473 | BJ61: 833.9792183 | BK61: 83397.92183 | BL61: 8339792.183 | BM61: 20849.48046 | BN61: 21891.95448 | BO61: 30 | BP61: 38299.68227 | BQ61: 3829968.227 | BR61: 382996822.7 | BS61: 957492.0567 | BT61: 1005366.659
AA62: 31 | AB62: 0.5252290163 | AC62: 0.4453678212 | AD62: 0.5252290163 | AE62: 0.6188700978 | AF62: 0.856082271 | AG62: 0.8132781574 | AH62: 0.856082271 | AI62: 0.8988863845 | AJ62: 0.940534787 | AK62: 0.856082271 | AL62: 0.8132781574 | AM62: 0.856082271 | AN62: 0.8988863845 | AO62: 0.9875615263 | AP62: 10000 | AQ62: 1000000 | AR62: 100000000 | AS62: 250000 | AT62: 250000 | AU62: 9405.34787 | AV62: 940534.787 | AW62: 94053478.7 | AX62: 235133.6967 | AY62: 246890.3816 | AZ62: 314649.2739 | BA62: 31464927.39 | BB62: 3146492739 | BC62: 7866231.848 | BD62: 8259543.44 | BE62: 4939.961609 | BF62: 493996.1609 | BG62: 49399616.09 | BH62: 123499.0402 | BI62: 129673.9922 | BJ62: 811.4126061 | BK62: 81141.26061 | BL62: 8114126.061 | BM62: 20285.31515 | BN62: 21299.58091 | BO62: 31 | BP62: 39111.09487 | BQ62: 3911109.487 | BR62: 391110948.7 | BS62: 977777.3718 | BT62: 1026666.24
AA63: 32 | AB63: 0.5443998754 | AC63: 0.4591742237 | AD63: 0.5443998754 | AE63: 0.6448626419 | AF63: 0.8518018596 | AG63: 0.8092117666 | AH63: 0.8518018596 | AI63: 0.8943919526 | AJ63: 0.935832113 | AK63: 0.8518018596 | AL63: 0.8092117666 | AM63: 0.8518018596 | AN63: 0.8943919526 | AO63: 0.9826237187 | AP63: 10000 | AQ63: 1000000 | AR63: 100000000 | AS63: 250000 | AT63: 250000 | AU63: 9358.32113 | AV63: 935832.113 | AW63: 93583211.3 | AX63: 233958.0283 | AY63: 245655.9297 | AZ63: 324007.595 | BA63: 32400759.5 | BB63: 3240075950 | BC63: 8100189.876 | BD63: 8505199.37 | BE63: 5094.668857 | BF63: 509466.8857 | BG63: 50946688.57 | BH63: 127366.7214 | BI63: 133735.0575 | BJ63: 789.456623 | BK63: 78945.6623 | BL63: 7894566.23 | BM63: 19736.41558 | BN63: 20723.23635 | BO63: 32 | BP63: 39900.5515 | BQ63: 3990055.15 | BR63: 399005515 | BS63: 997513.7874 | BT63: 1047389.477
AA64: 33 | AB64: 0.5642704708 | AC64: 0.4734086246 | AD64: 0.5642704708 | AE64: 0.6719468729 | AF64: 0.8475428503 | AG64: 0.8051657078 | AH64: 0.8475428503 | AI64: 0.8899199928 | AJ64: 0.9311529525 | AK64: 0.8475428503 | AL64: 0.8051657078 | AM64: 0.8475428503 | AN64: 0.8899199928 | AO64: 0.9777106001 | AP64: 10000 | AQ64: 1000000 | AR64: 100000000 | AS64: 250000 | AT64: 250000 | AU64: 9311.529525 | AV64: 931152.9525 | AW64: 93115295.25 | AX64: 232788.2381 | AY64: 244427.65 | AZ64: 333319.1246 | BA64: 33331912.46 | BB64: 3333191246 | BC64: 8332978.114 | BD64: 8749627.02 | BE64: 5254.221149 | BF64: 525422.1149 | BG64: 52542211.49 | BH64: 131355.5287 | BI64: 137923.3052 | BJ64: 768.0947461 | BK64: 76809.47461 | BL64: 7680947.461 | BM64: 19202.36865 | BN64: 20162.48708 | BO64: 33 | BP64: 40668.64624 | BQ64: 4066864.624 | BR64: 406686462.4 | BS64: 1016716.156 | BT64: 1067551.964
AA65: 34 | AB65: 0.584866343 | AC65: 0.488084292 | AD65: 0.584866343 | AE65: 0.7001686415 | AF65: 0.8433051361 | AG65: 0.8011398792 | AH65: 0.8433051361 | AI65: 0.8854703929 | AJ65: 0.9264971877 | AK65: 0.8433051361 | AL65: 0.8011398792 | AM65: 0.8433051361 | AN65: 0.8854703929 | AO65: 0.9728220471 | AP65: 10000 | AQ65: 1000000 | AR65: 100000000 | AS65: 250000 | AT65: 250000 | AU65: 9264.971877 | AV65: 926497.1877 | AW65: 92649718.77 | AX65: 231624.2969 | AY65: 243205.5118 | AZ65: 342584.0964 | BA65: 34258409.64 | BB65: 3425840964 | BC65: 8564602.411 | BD65: 8992832.531 | BE65: 5418.77022 | BF65: 541877.022 | BG65: 54187702.2 | BH65: 135469.2555 | BI65: 142242.7183 | BJ65: 747.3108993 | BK65: 74731.08993 | BL65: 7473108.993 | BM65: 18682.77248 | BN65: 19616.91111 | BO65: 34 | BP65: 41415.95714 | BQ65: 4141595.714 | BR65: 414159571.4 | BS65: 1035398.929 | BT65: 1087168.875
AA66: 35 | AB66: 0.6062139645 | AC66: 0.503214905 | AD66: 0.6062139645 | AE66: 0.7295757245 | AF66: 0.8390886104 | AG66: 0.7971341799 | AH66: 0.8390886104 | AI66: 0.8810430409 | AJ66: 0.9218647018 | AK66: 0.8390886104 | AL66: 0.7971341799 | AM66: 0.8390886104 | AN66: 0.8810430409 | AO66: 0.9679579369 | AP66: 10000 | AQ66: 1000000 | AR66: 100000000 | AS66: 250000 | AT66: 250000 | AU66: 9218.647018 | AV66: 921864.7018 | AW66: 92186470.18 | AX66: 230466.1754 | AY66: 241989.4842 | AZ66: 351802.7435 | BA66: 35180274.35 | BB66: 3518027435 | BC66: 8795068.586 | BD66: 9234822.016 | BE66: 5588.472556 | BF66: 558847.2556 | BG66: 55884725.56 | BH66: 139711.8139 | BI66: 146697.4046 | BJ66: 727.0894419 | BK66: 72708.94419 | BL66: 7270894.419 | BM66: 18177.23605 | BN66: 19086.09785 | BO66: 35 | BP66: 42143.04658 | BQ66: 4214304.658 | BR66: 421430465.8 | BS66: 1053576.165 | BT66: 1106254.973
AA67: 36 | AB67: 0.6283407742 | AC67: 0.5188145671 | AD67: 0.6283407742 | AE67: 0.7602179049 | AF67: 0.8348931673 | AG67: 0.793148509 | AH67: 0.8348931673 | AI67: 0.8766378257 | AJ67: 0.9172553783 | AK67: 0.8348931673 | AL67: 0.793148509 | AM67: 0.8348931673 | AN67: 0.8766378257 | AO67: 0.9631181472 | AP67: 10000 | AQ67: 1000000 | AR67: 100000000 | AS67: 250000 | AT67: 250000 | AU67: 9172.553783 | AV67: 917255.3783 | AW67: 91725537.83 | AX67: 229313.8446 | AY67: 240779.5368 | AZ67: 360975.2972 | BA67: 36097529.72 | BB67: 3609752972 | BC67: 9024382.431 | BD67: 9475601.552 | BE67: 5763.489545 | BF67: 576348.9545 | BG67: 57634895.45 | BH67: 144087.2386 | BI67: 151291.6006 | BJ67: 707.4151561 | BK67: 70741.51561 | BL67: 7074151.561 | BM67: 17685.3789 | BN67: 18569.64785 | BO67: 36 | BP67: 42850.46174 | BQ67: 4285046.174 | BR67: 428504617.4 | BS67: 1071261.543 | BT67: 1124824.621
AA68: 37 | AB68: 0.6512752125 | AC68: 0.5348978187 | AD68: 0.6512752125 | AE68: 0.7921470569 | AF68: 0.8307187015 | AG68: 0.7891827664 | AH68: 0.8307187015 | AI68: 0.8722546366 | AJ68: 0.9126691014 | AK68: 0.8307187015 | AL68: 0.7891827664 | AM68: 0.8307187015 | AN68: 0.8722546366 | AO68: 0.9583025565 | AP68: 10000 | AQ68: 1000000 | AR68: 100000000 | AS68: 250000 | AT68: 250000 | AU68: 9126.691014 | AV68: 912669.1014 | AW68: 91266910.14 | AX68: 228167.2753 | AY68: 239575.6391 | AZ68: 370101.9882 | BA68: 37010198.82 | BB68: 3701019882 | BC68: 9252549.706 | BD68: 9715177.191 | BE68: 5943.987629 | BF68: 594398.7629 | BG68: 59439876.29 | BH68: 148599.6907 | BI68: 156029.6753 | BJ68: 688.2732361 | BK68: 68827.32361 | BL68: 6882732.361 | BM68: 17206.8309 | BN68: 18067.17245 | BO68: 37 | BP68: 43538.73498 | BQ68: 4353873.498 | BR68: 435387349.8 | BS68: 1088468.374 | BT68: 1142891.793
AA69: 38 | AB69: 0.6750467577 | AC69: 0.551479651 | AD69: 0.6750467577 | AE69: 0.8254172333 | AF69: 0.826565108 | AG69: 0.7852368526 | AH69: 0.826565108 | AI69: 0.8678933634 | AJ69: 0.9081057559 | AK69: 0.826565108 | AL69: 0.7852368526 | AM69: 0.826565108 | AN69: 0.8678933634 | AO69: 0.9535110437 | AP69: 10000 | AQ69: 1000000 | AR69: 100000000 | AS69: 250000 | AT69: 250000 | AU69: =$AJ69*AP69 -> 9081.057559 | AV69: 908105.7559 | AW69: 90810575.59 | AX69: 227026.439 | AY69: 238377.7609 | AZ69: 379183.0458 | BA69: 37918304.58 | BB69: 3791830458 | BC69: 9479576.145 | BD69: 9953554.952 | BE69: 6130.138462 | BF69: 613013.8462 | BG69: 61301384.62 | BH69: 153253.4615 | BI69: 160916.1346 | BJ69: 669.6492766 | BK69: 66964.92766 | BL69: 6696492.766 | BM69: 16741.23191 | BN69: 17578.29351 | BO69: 38 | BP69: 44208.38425 | BQ69: 4420838.425 | BR69: 442083842.5 | BS69: 1105209.606 | BT69: 1160470.087
AA70: 39 | AB70: 0.6996859644 | AC70: 0.5685755202 | AD70: 0.6996859644 | AE70: 0.8600847571 | AF70: 0.8224322824 | AG70: 0.7813106683 | AH70: 0.8224322824 | AI70: 0.8635538966 | AJ70: 0.9035652271 | AK70: 0.8224322824 | AL70: 0.7813106683 | AM70: 0.8224322824 | AN70: 0.8635538966 | AO70: 0.9487434885 | AP70: 10000 | AQ70: 1000000 | AR70: 100000000 | AS70: 250000 | AT70: 250000 | AU70: 9035.652271 | AV70: 903565.2271 | AW70: 90356522.71 | AX70: 225891.3068 | AY70: 237185.8721 | AZ70: 388218.6981 | BA70: 38821869.81 | BB70: 3882186981 | BC70: 9705467.452 | BD70: 10190740.82 | BE70: 6322.119073 | BF70: 632211.9073 | BG70: 63221190.73 | BH70: 158052.9768 | BI70: 165955.6257 | BJ70: 651.5292621 | BK70: 65152.92621 | BL70: 6515292.621 | BM70: 16288.23155 | BN70: 17102.64313 | BO70: 39 | BP70: 44859.91351 | BQ70: 4485991.351 | BR70: 448599135.1 | BS70: 1121497.838 | BT70: 1177572.73
AA71: 40 | AB71: 0.7252245021 | AC71: 0.5862013614 | AD71: 0.7252245021 | AE71: 0.8962083169 | AF71: 0.818320121 | AG71: 0.777404115 | AH71: 0.818320121 | AI71: 0.8592361271 | AJ71: 0.899047401 | AK71: 0.818320121 | AL71: 0.777404115 | AM71: 0.818320121 | AN71: 0.8592361271 | AO71: 0.943999771 | AP71: 10000 | AQ71: 1000000 | AR71: 100000000 | AS71: 250000 | AT71: 250000 | AU71: 8990.47401 | AV71: 899047.401 | AW71: 89904740.1 | AX71: 224761.8502 | AY71: 235999.9428 | AZ71: 397209.1721 | BA71: 39720917.21 | BB71: 3972091721 | BC71: 9930229.302 | BD71: 10426740.77 | BE71: 6520.112037 | BF71: 652011.2037 | BG71: 65201120.37 | BH71: 163002.8009 | BI71: 171152.941 | BJ71: 633.8995564 | BK71: 63389.95564 | BL71: 6338995.564 | BM71: 15847.48891 | BN71: 16639.86335 | BO71: 40 | BP71: 45493.81307 | BQ71: 4549381.307 | BR71: 454938130.7 | BS71: 1137345.327 | BT71: 1194212.593
AA72: 41 | AB72: 0.7516951964 | AC72: 0.6043736036 | AD72: 0.7516951964 | AE72: 0.9338490662 | AF72: 0.8142285204 | AG72: 0.7735170944 | AH72: 0.8142285204 | AI72: 0.8549399464 | AJ72: 0.894552164 | AK72: 0.8142285204 | AL72: 0.7735170944 | AM72: 0.8142285204 | AN72: 0.8549399464 | AO72: 0.9392797722 | AP72: 10000 | AQ72: 1000000 | AR72: 100000000 | AS72: 250000 | AT72: 250000 | AU72: 8945.52164 | AV72: 894552.164 | AW72: 89455216.4 | AX72: 223638.041 | AY72: 234819.943 | AZ72: 406154.6937 | BA72: 40615469.37 | BB72: 4061546937 | BC72: 10153867.34 | BD72: 10661560.71 | BE72: 6724.305646 | BF72: 672430.5646 | BG72: 67243056.46 | BH72: 168107.6411 | BI72: 176513.0232 | BJ72: 616.7468922 | BK72: 61674.68922 | BL72: 6167468.922 | BM72: 15418.6723 | BN72: 16189.60592 | BO72: 41 | BP72: 46110.55996 | BQ72: 4611055.996 | BR72: 461105599.6 | BS72: 1152763.999 | BT72: 1210402.199
AA73: 42 | AB73: 0.7791320711 | AC73: 0.6231091853 | AD73: 0.7791320711 | AE73: 0.973070727 | AF73: 0.8101573778 | AG73: 0.7696495089 | AH73: 0.8101573778 | AI73: 0.8506652467 | AJ73: 0.8900794031 | AK73: 0.8101573778 | AL73: 0.7696495089 | AM73: 0.8101573778 | AN73: 0.8506652467 | AO73: 0.9345833733 | AP73: 10000 | AQ73: 1000000 | AR73: 100000000 | AS73: 250000 | AT73: 250000 | AU73: 8900.794031 | AV73: 890079.4031 | AW73: 89007940.31 | AX73: 222519.8508 | AY73: 233645.8433 | AZ73: 415055.4878 | BA73: 41505548.78 | BB73: 4150554878 | BC73: 10376387.19 | BD73: 10895206.55 | BE73: 6934.894088 | BF73: 693489.4088 | BG73: 69348940.88 | BH73: 173372.3522 | BI73: 182040.9698 | BJ73: 600.0583613 | BK73: 60005.83613 | BL73: 6000583.613 | BM73: 15001.45903 | BN73: 15751.53198 | BO73: 42 | BP73: 46710.61832 | BQ73: 4671061.832 | BR73: 467106183.2 | BS73: 1167765.458 | BT73: 1226153.731
AA74: 43 | AB74: 0.8075703917 | AC74: 0.64242557 | AD74: 0.8075703917 | AE74: 1.013939698 | AF74: 0.8061065909 | AG74: 0.7658012614 | AH74: 0.8061065909 | AI74: 0.8464119205 | AJ74: 0.8856290061 | AK74: 0.8061065909 | AL74: 0.7658012614 | AM74: 0.8061065909 | AN74: 0.8464119205 | AO74: 0.9299104564 | AP74: 10000 | AQ74: 1000000 | AR74: 100000000 | AS74: 250000 | AT74: 250000 | AU74: 8856.290061 | AV74: 885629.0061 | AW74: 88562900.61 | AX74: 221407.2515 | AY74: 232477.6141 | AZ74: 423911.7778 | BA74: 42391177.78 | BB74: 4239117778 | BC74: 10597794.45 | BD74: 11127684.17 | BE74: 7152.077634 | BF74: 715207.7634 | BG74: 71520776.34 | BH74: 178801.9408 | BI74: 187742.0379 | BJ74: 583.8214047 | BK74: 58382.14047 | BL74: 5838214.047 | BM74: 14595.53512 | BN74: 15325.31187 | BO74: 43 | BP74: 47294.43973 | BQ74: 4729443.973 | BR74: 472944397.3 | BS74: 1182360.993 | BT74: 1241479.043
AA75: 44 | AB75: 0.837046711 | AC75: 0.6623407627 | AD75: 0.837046711 | AE75: 1.056525165 | AF75: 0.802076058 | AG75: 0.7619722551 | AH75: 0.802076058 | AI75: 0.8421798609 | AJ75: 0.8812008611 | AK75: 0.802076058 | AL75: 0.7619722551 | AM75: 0.802076058 | AN75: 0.8421798609 | AO75: 0.9252609041 | AP75: 10000 | AQ75: 1000000 | AR75: 100000000 | AS75: 250000 | AT75: 250000 | AU75: 8812.008611 | AV75: 881200.8611 | AW75: 88120086.11 | AX75: 220300.2153 | AY75: 231315.226 | AZ75: 432723.7864 | BA75: 43272378.64 | BB75: 4327237864 | BC75: 10818094.66 | BD75: 11358999.39 | BE75: 7376.062825 | BF75: 737606.2825 | BG75: 73760628.25 | BH75: 184401.5706 | BI75: 193621.6492 | BJ75: 568.0238034 | BK75: 56802.38034 | BL75: 5680238.034 | BM75: 14200.59508 | BN75: 14910.62484 | BO75: 44 | BP75: 47862.46353 | BQ75: 4786246.353 | BR75: 478624635.3 | BS75: 1196561.588 | BT75: 1256389.668
AA76: 45 | AB76: 0.8675989159 | AC76: 0.6828733263 | AD76: 0.8675989159 | AE76: 1.100899222 | AF76: 0.7980656777 | AG76: 0.7581623938 | AH76: 0.7980656777 | AI76: 0.8379689616 | AJ76: 0.8767948568 | AK76: 0.7980656777 | AL76: 0.7581623938 | AM76: 0.7980656777 | AN76: 0.8379689616 | AO76: 0.9206345996 | AP76: 10000 | AQ76: 1000000 | AR76: 100000000 | AS76: 250000 | AT76: 250000 | AU76: 8767.948568 | AV76: 876794.8568 | AW76: 87679485.68 | AX76: 219198.7142 | AY76: 230158.6499 | AZ76: 441491.735 | BA76: 44149173.5 | BB76: 4414917350 | BC76: 11037293.37 | BD76: 11589158.04 | BE76: 7607.062672 | BF76: 760706.2672 | BG76: 76070626.72 | BH76: 190176.5668 | BI76: 199685.3951 | BJ76: 552.6536687 | BK76: 55265.36687 | BL76: 5526536.687 | BM76: 13816.34172 | BN76: 14507.1588 | BO76: 45 | BP76: 48415.1172 | BQ76: 4841511.72 | BR76: 484151172 | BS76: 1210377.93 | BT76: 1270896.827
B77: Password to unlock: UIUC | AA77: 46 | AB77: 0.8992662764 | AC77: 0.7040423994 | AD77: 0.8992662764 | AE77: 1.147136989 | AF77: 0.7940753493 | AG77: 0.7543715818 | AH77: 0.7940753493 | AI77: 0.8337791168 | AJ77: 0.8724108825 | AK77: 0.7940753493 | AL77: 0.7543715818 | AM77: 0.7940753493 | AN77: 0.8337791168 | AO77: 0.9160314266 | AP77: 10000 | AQ77: 1000000 | AR77: 100000000 | AS77: 250000 | AT77: 250000 | AU77: 8724.108825 | AV77: 872410.8825 | AW77: 87241088.25 | AX77: 218102.7206 | AY77: 229007.8567 | AZ77: 450215.8438 | BA77: 45021584.38 | BB77: 4502158438 | BC77: 11255396.1 | BD77: 11818165.9 | BE77: 7845.296858 | BF77: 784529.6858 | BG77: 78452968.58 | BH77: 196132.4214 | BI77: 205939.0425 | BJ77: 537.699434 | BK77: 53769.9434 | BL77: 5376994.34 | BM77: 13442.48585 | BN77: 14114.61014 | BO77: 46 | BP77: 48952.81663 | BQ77: 4895281.663 | BR77: 489528166.3 | BS77: 1223820.416 | BT77: 1285011.437
AA78: 47 | AB78: 0.9320894954 | AC78: 0.7258677138 | AD78: 0.9320894954 | AE78: 1.195316743 | AF78: 0.7901049725 | AG78: 0.7505997239 | AH78: 0.7901049725 | AI78: 0.8296102212 | AJ78: 0.8680488281 | AK78: 0.7901049725 | AL78: 0.7505997239 | AM78: 0.7901049725 | AN78: 0.8296102212 | AO78: 0.9114512695 | AP78: 10000 | AQ78: 1000000 | AR78: 100000000 | AS78: 250000 | AT78: 250000 | AU78: 8680.488281 | AV78: 868048.8281 | AW78: 86804882.81 | AX78: 217012.207 | AY78: 227862.8174 | AZ78: 458896.3321 | BA78: 45889633.21 | BB78: 4588963321 | BC78: 11472408.3 | BD78: 12046028.72 | BE78: 8090.991942 | BF78: 809099.1942 | BG78: 80909919.42 | BH78: 202274.7985 | BI78: 212388.5385 | BJ78: 523.1498453 | BK78: 52314.98453 | BL78: 5231498.453 | BM78: 13078.74613 | BN78: 13732.68344 | BO78: 47 | BP78: 49475.96648 | BQ78: 4947596.648 | BR78: 494759664.8 | BS78: 1236899.162 | BT78: 1298744.12
AA79: 48 | AB79: 0.966110762 | AC79: 0.748369613 | AD79: 0.966110762 | AE79: 1.245520046 | AF79: 0.7861544477 | AG79: 0.7468467253 | AH79: 0.7861544477 | AI79: 0.8254621701 | AJ79: 0.8637085839 | AK79: 0.7861544477 | AL79: 0.7468467253 | AM79: 0.7861544477 | AN79: 0.8254621701 | AO79: 0.9068940131 | AP79: 10000 | AQ79: 1000000 | AR79: 100000000 | AS79: 250000 | AT79: 250000 | AU79: 8637.085839 | AV79: 863708.5839 | AW79: 86370858.39 | AX79: 215927.146 | AY79: 226723.5033 | AZ79: 467533.4179 | BA79: 46753341.79 | BB79: 4675334179 | BC79: 11688335.45 | BD79: 12272752.22 | BE79: 8344.381582 | BF79: 834438.1582 | BG79: 83443815.82 | BH79: 208609.5396 | BI79: 219040.0165 | BJ79: 508.9939533 | BK79: 50899.39533 | BL79: 5089939.533 | BM79: 12724.84883 | BN79: 13361.09128 | BO79: 48 | BP79: 49984.96043 | BQ79: 4998496.043 | BR79: 499849604.3 | BS79: 1249624.011 | BT79: 1312105.211
AA80: 49 | AB80: 1.001373805 | AC80: 0.771569071 | AD80: 1.001373805 | AE80: 1.297831888 | AF80: 0.7822236754 | AG80: 0.7431124917 | AH80: 0.7822236754 | AI80: 0.8213348592 | AJ80: 0.859390041 | AK80: 0.7822236754 | AL80: 0.7431124917 | AM80: 0.7822236754 | AN80: 0.8213348592 | AO80: 0.9023595431 | AP80: 10000 | AQ80: 1000000 | AR80: 100000000 | AS80: 250000 | AT80: 250000 | AU80: 8593.90041 | AV80: 859390.041 | AW80: 85939004.1 | AX80: 214847.5103 | AY80: 225589.8858 | AZ80: 476127.3184 | BA80: 47612731.84 | BB80: 4761273184 | BC80: 11903182.96 | BD80: 12498342.11 | BE80: 8605.706752 | BF80: 860570.6752 | BG80: 86057067.52 | BH80: 215142.6688 | BI80: 225899.8022 | BJ80: 495.2211052 | BK80: 49522.11052 | BL80: 4952211.052 | BM80: 12380.52763 | BN80: 12999.55401 | BO80: 49 | BP80: 50480.18154 | BQ80: 5048018.154 | BR80: 504801815.4 | BS80: 1262004.538 | BT80: 1325104.765
AA81: 50 | AB81: 1.037923949 | AC81: 0.7954877122 | AD81: 1.037923949 | AE81: 1.352340827 | AF81: 0.7783125571 | AG81: 0.7393969292 | AH81: 0.7783125571 | AI81: 0.8172281849 | AJ81: 0.8550930908 | AK81: 0.7783125571 | AL81: 0.7393969292 | AM81: 0.7783125571 | AN81: 0.8172281849 | AO81: 0.8978477454 | AP81: 10000 | AQ81: 1000000 | AR81: 100000000 | AS81: 250000 | AT81: 250000 | AU81: 8550.930908 | AV81: 855093.0908 | AW81: 85509309.08 | AX81: 213773.2727 | AY81: 224461.9363 | AZ81: 484678.2493 | BA81: 48467824.93 | BB81: 4846782493 | BC81: 12116956.23 | BD81: 12722804.04 | BE81: 8875.215973 | BF81: 887521.5973 | BG81: 88752159.73 | BH81: 221880.3993 | BI81: 232974.4193 | BJ81: 481.820936 | BK81: 48182.0936 | BL81: 4818209.36 | BM81: 12045.5234 | BN81: 12647.79957 | BO81: 50 | BP81: 50962.00247 | BQ81: 5096200.247 | BR81: 509620024.7 | BS81: 1274050.062 | BT81: 1337752.565
AA82: 51 | AB82: 1.075808173 | AC82: 0.8201478312 | AD82: 1.075808173 | AE82: 1.409139142 | AF82: 0.7744209943 | AG82: 0.7356999446 | AH82: 0.7744209943 | AI82: 0.813142044 | AJ82: 0.8508176254 | AK82: 0.7744209943 | AL82: 0.7356999446 | AM82: 0.7744209943 | AN82: 0.813142044 | AO82: 0.8933585066 | AP82: 10000 | AQ82: 1000000 | AR82: 100000000 | AS82: 250000 | AT82: 250000 | AU82: 8508.176254 | AV82: 850817.6254 | AW82: 85081762.54 | AX82: 212704.4063 | AY82: 223339.6267 | AZ82: 493186.4255 | BA82: 49318642.55 | BB82: 4931864255 | BC82: 12329660.64 | BD82: 12946143.67 | BE82: 9153.16555 | BF82: 915316.555 | BG82: 91531655.5 | BH82: 228829.1387 | BI82: 240270.5957 | BJ82: 468.7833614 | BK82: 46878.33614 | BL82: 4687833.614 | BM82: 11719.58404 | BN82: 12305.56324 | BO82: 51 | BP82: 51430.78584 | BQ82: 5143078.584 | BR82: 514307858.4 | BS82: 1285769.646 | BT82: 1350058.128
AA83: 52 | AB83: 1.115075171 | AC83: 0.845572414 | AD83: 1.115075171 | AE83: 1.468322986 | AF83: 0.7705488893 | AG83: 0.7320214448 | AH83: 0.7705488893 | AI83: 0.8090763338 | AJ83: 0.8465635372 | AK83: 0.7705488893 | AL83: 0.7320214448 | AM83: 0.7705488893 | AN83: 0.8090763338 | AO83: 0.8888917141 | AP83: 10000 | AQ83: 1000000 | AR83: 100000000 | AS83: 250000 | AT83: 250000 | AU83: 8465.635372 | AV83: 846563.5372 | AW83: 84656353.72 | AX83: 211640.8843 | AY83: 222222.9285 | AZ83: 501652.0609 | BA83: 50165206.09 | BB83: 5016520609 | BC83: 12541301.52 | BD83: 13168366.6 | BE83: 9439.819812 | BF83: 943981.9812 | BG83: 94398198.12 | BH83: 235995.4953 | BI83: 247795.2701 | BJ83: 456.0985702 | BK83: 45609.85702 | BL83: 4560985.702 | BM83: 11402.46425 | BN83: 11972.58747 | BO83: 52 | BP83: 51886.88441 | BQ83: 5188688.441 | BR83: 518868844.1 | BS83: 1297172.11 | BT83: 1362030.716
AA84: 53 | AB84: 1.155775415 | AC84: 0.8717851588 | AD84: 1.155775415 | AE84: 1.529992551 | AF84: 0.7666961449 | AG84: 0.7283613376 | AH84: 0.7666961449 | AI84: 0.8050309521 | AJ84: 0.8423307196 | AK84: 0.7666961449 | AL84: 0.7283613376 | AM84: 0.7666961449 | AN84: 0.8050309521 | AO84: 0.8844472555 | AP84: 10000 | AQ84: 1000000 | AR84: 100000000 | AS84: 250000 | AT84: 250000 | AU84: 8423.307196 | AV84: 842330.7196 | AW84: 84233071.96 | AX84: 210582.6799 | AY84: 221111.8139 | AZ84: 510075.3681 | BA84: 51007536.81 | BB84: 5100753681 | BC84: 12751884.2 | BD84: 13389478.41 | BE84: 9735.451369 | BF84: 973545.1369 | BG84: 97354513.69 | BH84: 243386.2842 | BI84: 255555.5984 | BJ84: 443.7570162 | BK84: 44375.70162 | BL84: 4437570.162 | BM84: 11093.9254 | BN84: 11648.62167 | BO84: 53 | BP84: 52330.64142 | BQ84: 5233064.142 | BR84: 523306414.2 | BS84: 1308266.036 | BT84: 1373679.337
AA85: 54 | AB85: 1.197961218 | AC85: 0.8988104988 | AD85: 1.197961218 | AE85: 1.594252238 | AF85: 0.7628626641 | AG85: 0.7247195309 | AH85: 0.7628626641 | AI85: 0.8010057973 | AJ85: 0.838119066 | AK85: 0.7628626641 | AL85: 0.7247195309 | AM85: 0.7628626641 | AN85: 0.8010057973 | AO85: 0.8800250193 | AP85: 10000 | AQ85: 1000000 | AR85: 100000000 | AS85: 250000 | AT85: 250000 | AU85: 8381.19066 | AV85: 838119.066 | AW85: 83811906.6 | AX85: 209529.7665 | AY85: 220006.2548 | AZ85: 518456.5587 | BA85: 51845655.87 | BB85: 5184565587 | BC85: 12961413.97 | BD85: 13609484.67 | BE85: 10040.34137 | BF85: 1004034.137 | BG85: 100403413.7 | BH85: 251008.5342 | BI85: 263558.9609 | BJ85: 431.7494118 | BK85: 43174.94118 | BL85: 4317494.118 | BM85: 10793.7353 | BN85: 11333.42206 | BO85: 54 | BP85: 52762.39083 | BQ85: 5276239.083 | BR85: 527623908.3 | BS85: 1319059.771 | BT85: 1385012.759
AA86: 55 | AB86: 1.241686802 | AC86: 0.9266736242 | AD86: 1.241686802 | AE86: 1.661210832 | AF86: 0.7590483508 | AG86: 0.7210959333 | AH86: 0.7590483508 | AI86: 0.7970007684 | AJ86: 0.8339284706 | AK86: 0.7590483508 | AL86: 0.7210959333 | AM86: 0.7590483508 | AN86: 0.7970007684 | AO86: 0.8756248942 | AP86: 10000 | AQ86: 1000000 | AR86: 100000000 | AS86: 250000 | AT86: 250000 | AU86: 8339.284706 | AV86: 833928.4706 | AW86: 83392847.06 | AX86: 208482.1177 | AY86: 218906.2235 | AZ86: 526795.8434 | BA86: 52679584.34 | BB86: 5267958434 | BC86: 13169896.09 | BD86: 13828390.89 | BE86: 10354.77976 | BF86: 1035477.976 | BG86: 103547797.6 | BH86: 258869.4939 | BI86: 271812.9686 | BJ86: 420.0667208 | BK86: 42006.67208 | BL86: 4200667.208 | BM86: 10501.66802 | BN86: 11026.75142 | BO86: 55 | BP86: 53182.45755 | BQ86: 5318245.755 | BR86: 531824575.5 | BS86: 1329561.439 | BT86: 1396039.511
AA87: 56 | AB87: 1.28700837 | AC87: 0.9554005066 | AD87: 1.28700837 | AE87: 1.730981687 | AF87: 0.7552531091 | AG87: 0.7174904536 | AH87: 0.7552531091 | AI87: 0.7930157645 | AJ87: 0.8297588283 | AK87: 0.7552531091 | AL87: 0.7174904536 | AM87: 0.7552531091 | AN87: 0.7930157645 | AO87: 0.8712467697 | AP87: 10000 | AQ87: 1000000 | AR87: 100000000 | AS87: 250000 | AT87: 250000 | AU87: 8297.588283 | AV87: 829758.8283 | AW87: 82975882.83 | AX87: 207439.7071 | AY87: 217811.6924 | AZ87: 535093.4317 | BA87: 53509343.17 | BB87: 5350934317 | BC87: 13377335.79 | BD87: 14046202.58 | BE87: 10679.06557 | BF87: 1067906.557 | BG87: 106790655.7 | BH87: 266976.6393 | BI87: 280325.4713 | BJ87: 408.7001512 | BK87: 40870.01512 | BL87: 4087001.512 | BM87: 10217.50378 | BN87: 10728.37897 | BO87: 56 | BP87: 53591.15771 | BQ87: 5359115.771 | BR87: 535911577.1 | BS87: 1339778.943 | BT87: 1406767.89
AA88: 57 | AB88: 1.333984176 | AC88: 0.9850179223 | AD88: 1.333984176 | AE88: 1.803682918 | AF88: 0.7514768435 | AG88: 0.7139030013 | AH88: 0.7514768435 | AI88: 0.7890506857 | AJ88: 0.8256100341 | AK88: 0.7514768435 | AL88: 0.7139030013 | AM88: 0.7514768435 | AN88: 0.7890506857 | AO88: 0.8668905358 | AP88: 10000 | AQ88: 1000000 | AR88: 100000000 | AS88: 250000 | AT88: 250000 | AU88: 8256.100341 | AV88: 825610.0341 | AW88: 82561003.41 | AX88: 206402.5085 | AY88: 216722.634 | AZ88: 543349.5321 | BA88: 54334953.21 | BB88: 5433495321 | BC88: 13583738.3 | BD88: 14262925.22 | BE88: 11013.50721 | BF88: 1101350.721 | BG88: 110135072.1 | BH88: 275337.6802 | BI88: 289104.5642 | BJ88: 397.6411492 | BK88: 39764.11492 | BL88: 3976411.492 | BM88: 9941.028731 | BN88: 10438.08017 | BO88: 57 | BP88: 53988.79885 | BQ88: 5398879.885 | BR88: 539887988.5 | BS88: 1349719.971 | BT88: 1417205.97
AA89: 58 | AB89: 1.382674598 | AC89: 1.015553478 | AD89: 1.382674598 | AE89: 1.879437601 | AF89: 0.7477194593 | AG89: 0.7103334863 | AH89: 0.7477194593 | AI89: 0.7851054323 | AJ89: 0.821481984 | AK89: 0.7477194593 | AL89: 0.7103334863 | AM89: 0.7477194593 | AN89: 0.7851054323 | AO89: 0.8625560832 | AP89: 10000 | AQ89: 1000000 | AR89: 100000000 | AS89: 250000 | AT89: 250000 | AU89: 8214.81984 | AV89: 821481.984 | AW89: 82148198.4 | AX89: 205370.496 | AY89: 215639.0208 | AZ89: 551564.3519 | BA89: 55156435.19 | BB89: 5515643519 | BC89: 13789108.8 | BD89: 14478564.24 | BE89: 11358.42272 | BF89: 1135842.272 | BG89: 113584227.2 | BH89: 283960.568 | BI89: 298158.5964 | BJ89: 386.8813924 | BK89: 38688.13924 | BL89: 3868813.924 | BM89: 9672.03481 | BN89: 10155.63655 | BO89: 58 | BP89: 54375.68025 | BQ89: 5437568.025 | BR89: 543756802.5 | BS89: 1359392.006 | BT89: 1427361.606
AA90: 59 | AB90: 1.433142221 | AC90: 1.047035636 | AD90: 1.433142221 | AE90: 1.95837398 | AF90: 0.743980862 | AG90: 0.7067818189 | AH90: 0.743980862 | AI90: 0.7811799051 | AJ90: 0.817374574 | AK90: 0.743980862 | AL90: 0.7067818189 | AM90: 0.743980862 | AN90: 0.7811799051 | AO90: 0.8582433027 | AP90: 10000 | AQ90: 1000000 | AR90: 100000000 | AS90: 250000 | AT90: 250000 | AU90: 8173.74574 | AV90: 817374.574 | AW90: 81737457.4 | AX90: 204343.6435 | AY90: 214560.8257 | AZ90: 559738.0977 | BA90: 55973809.77 | BB90: 5597380977 | BC90: 13993452.44 | BD90: 14693125.06 | BE90: 11714.14012 | BF90: 1171414.012 | BG90: 117141401.2 | BH90: 292853.5031 | BI90: 307496.1783 | BJ90: 376.4127834 | BK90: 37641.27834 | BL90: 3764127.834 | BM90: 9410.319585 | BN90: 9880.835564 | BO90: 59 | BP90: 54752.09303 | BQ90: 5475209.303 | BR90: 547520930.3 | BS90: 1368802.326 | BT90: 1437242.442
AA91: 60 | AB91: 1.485451912 | AC91: 1.07949374 | AD91: 1.485451912 | AE91: 2.040625687 | AF91: 0.7402609577 | AG91: 0.7032479098 | AH91: 0.7402609577 | AI91: 0.7772740056 | AJ91: 0.8132877012 | AK91: 0.7402609577 | AL91: 0.7032479098 | AM91: 0.7402609577 | AN91: 0.7772740056 | AO91: 0.8539520862 | AP91: 10000 | AQ91: 1000000 | AR91: 100000000 | AS91: 250000 | AT91: 250000 | AU91: 8132.877012 | AV91: 813287.7012 | AW91: 81328770.12 | AX91: 203321.9253 | AY91: 213488.0216 | AZ91: 567870.9747 | BA91: 56787097.47 | BB91: 5678709747 | BC91: 14196774.37 | BD91: 14906613.08 | BE91: 12080.99771 | BF91: 1208099.771 | BG91: 120809977.1 | BH91: 302024.9427 | BI91: 317126.1898 | BJ91: 366.2274441 | BK91: 36622.74441 | BL91: 3662274.441 | BM91: 9155.686102 | BN91: 9613.470408 | BO91: 60 | BP91: 55118.32047 | BQ91: 5511832.047 | BR91: 551183204.7 | BS91: 1377958.012 | BT91: 1446855.912
AA92: 61 | AB92: 1.539670907 | AC92: 1.112958046 | AD92: 1.539670907 | AE92: 2.126331966 | AF92: 0.7365596529 | AG92: 0.6997316703 | AH92: 0.7365596529 | AI92: 0.7733876356 | AJ92: 0.8092212627 | AK92: 0.7365596529 | AL92: 0.6997316703 | AM92: 0.7365596529 | AN92: 0.7733876356 | AO92: 0.8496823258 | AP92: 10000 | AQ92: 1000000 | AR92: 100000000 | AS92: 250000 | AT92: 250000 | AU92: 8092.212627 | AV92: 809221.2627 | AW92: 80922126.27 | AX92: 202305.3157 | AY92: 212420.5815 | AZ92: 575963.1873 | BA92: 57596318.73 | BB92: 5759631873 | BC92: 14399079.68 | BD92: 15119033.67 | BE92: 12459.34435 | BF92: 1245934.435 | BG92: 124593443.5 | BH92: 311483.6088 | BI92: 327057.7893 | BJ92: 356.3177095 | BK92: 35631.77095 | BL92: 3563177.095 | BM92: 8907.942738 | BN92: 9353.339875 | BO92: 61 | BP92: 55474.63818 | BQ92: 5547463.818 | BR92: 554746381.8 | BS92: 1386865.955 | BT92: 1456209.252
AA93: 62 | AB93: 1.595868895 | AC93: 1.147459746 | AD93: 1.595868895 | AE93: 2.215637908 | AF93: 0.7328768546 | AG93: 0.6962330119 | AH93: 0.7328768546 | AI93: 0.7695206974 | AJ93: 0.8051751564 | AK93: 0.7328768546 | AL93: 0.6962330119 | AM93: 0.7328768546 | AN93: 0.7695206974 | AO93: 0.8454339142 | AP93: 10000 | AQ93: 1000000 | AR93: 100000000 | AS93: 250000 | AT93: 250000 | AU93: 8051.751564 | AV93: 805175.1564 | AW93: 80517515.64 | AX93: 201293.7891 | AY93: 211358.4785 | AZ93: 584014.9389 | BA93: 58401493.89 | BB93: 5840149389 | BC93: 14600373.47 | BD93: 15330392.14 | BE93: 12849.53987 | BF93: 1284953.987 | BG93: 128495398.7 | BH93: 321238.4968 | BI93: 337300.4216 | BJ93: 346.6761221 | BK93: 34667.61221 | BL93: 3466761.221 | BM93: 8666.903051 | BN93: 9100.248204 | BO93: 62 | BP93: 55821.31431 | BQ93: 5582131.431 | BR93: 558213143.1 | BS93: 1395532.858 | BT93: 1465309.501
AA94: 63 | AB94: 1.65411811 | AC94: 1.183030998 | AD94: 1.65411811 | AE94: 2.3086947 | AF94: 0.7292124704 | AG94: 0.6927518469 | AH94: 0.7292124704 | AI94: 0.7656730939 | AJ94: 0.8011492806 | AK94: 0.7292124704 | AL94: 0.6927518469 | AM94: 0.7292124704 | AN94: 0.7656730939 | AO94: 0.8412067446 | AP94: 10000 | AQ94: 1000000 | AR94: 100000000 | AS94: 250000 | AT94: 250000 | AU94: 8011.492806 | AV94: 801149.2806 | AW94: 80114928.06 | AX94: 200287.3201 | AY94: 210301.6862 | AZ94: 592026.4317 | BA94: 59202643.17 | BB94: 5920264317 | BC94: 14800660.79 | BD94: 15540693.83 | BE94: 13251.95534 | BF94: 1325195.534 | BG94: 132519553.4 | BH94: 331298.8834 | BI94: 347863.8276 | BJ94: 337.2954259 | BK94: 33729.54259 | BL94: 3372954.259 | BM94: 8432.385649 | BN94: 8854.004931 | BO94: =AA94 -> 63 | BP94: 56158.60973 | BQ94: 5615860.973 | BR94: 561586097.3 | BS94: 1403965.243 | BT94: 1474163.505
AA95: 64 | AB95: 1.714493421 | AC95: 1.219704959 | AD95: 1.714493421 | AE95: 2.405659878 | AF95: 0.725566408 | AG95: 0.6892880876 | AH95: 0.725566408 | AI95: 0.7618447284 | AJ95: 0.7971435342 | AK95: 0.725566408 | AL95: 0.6892880876 | AM95: 0.725566408 | AN95: 0.7618447284 | AO95: 0.8370007109 | AP95: 10000 | AQ95: 1000000 | AR95: 100000000 | AS95: 250000 | AT95: 250000 | AU95: 7971.435342 | AV95: 797143.5342 | AW95: 79714353.42 | AX95: 199285.8835 | AY95: 209250.1777 | AZ95: 599997.867 | BA95: 59999786.7 | BB95: 5999978670 | BC95: 14999946.68 | BD95: 15749944.01 | BE95: 13666.97345 | BF95: 1366697.345 | BG95: 136669734.5 | BH95: =AX95*$AB95 -> 341674.3362 | BI95: =AY95*$AB95 -> 358758.053 | BJ95: =BE95/(1+$C$11)^BO95 -> 328.1685617 | BK95: =BF95/(1+$C$11)^BO95 -> 32816.85617 | BL95: =BG95/(1+$C$11)^BO95 -> 3281685.617 | BM95: 8204.214044 | BN95: =BI95/(1+$F$11)^BO95 -> 8614.424746 | BO95: 64 | BP95: 56486.77829 | BQ95: 5648677.829 | BR95: 564867782.9 | BS95: 1412169.457 | BT95: 1482777.93
AA96: 65 | AB96: =IF($C$9=1,AC96,IF($C$9=2,AD96,AE96)) -> 1.777072431 | AC96: =AC95*(1+($C$20-$C$21)) -> 1.257515813 | AD96: =AD95*(1+$C$20) -> 1.777072431 | AE96: =AE95*(1+($C$20+$C$21)) -> 2.506697593 | AF96: =IF($C$9=1,AG96,IF($C$9=2,AH96,AI96)) -> 0.721938576 | AG96: =AG95*(1-$C$18) -> 0.6858416472 | AH96: =AH95*(1-$C$18) -> 0.721938576 | AI96: =AI95*(1-$C$18) -> 0.7580355048 | AJ96: =AF96*$C$16*$C$15*365/1000 -> 0.7931578165 | AK96: =IF($C$9=1,AL96,IF($C$9=2,AM96,AN96)) -> 0.721938576 | AL96: =AL95*(1-$F$18) -> 0.6858416472 | AM96: =AM95*(1-$F$18) -> 0.721938576 | AN96: =AN95*(1-$F$18) -> 0.7580355048 | AO96: =AK96*($F$16)*($F$15*365)/1000 -> 0.8328157073 | AP96: 10000 | AQ96: 1000000 | AR96: 100000000 | AS96: 250000 | AT96: 250000 | AU96: 7931.578165 | AV96: =$AJ96*AQ96 -> 793157.8165 | AW96: =$AJ96*AR96 -> 79315781.65 | AX96: =$AJ96*AS96 -> 198289.4541 | AY96: 208203.9268 | AZ96: 607929.4452 | BA96: 60792944.52 | BB96: 6079294452 | BC96: 15198236.13 | BD96: 15958147.94 | BE96: 14094.98889 | BF96: 1409498.889 | BG96: 140949888.9 | BH96: 352374.7222 | BI96: 369993.4583 | BJ96: 319.288661 | BK96: 31928.8661 | BL96: 3192886.61 | BM96: =BH96/(1+$C$11)^BO96 -> 7982.216525 | BN96: 8381.327352 | BO96: 65 | BP96: 56806.06696 | BQ96: 5680606.696 | BR96: 568060669.6 | BS96: 1420151.674 | BT96: 1491159.258
AA97: =AA96+1 -> 66 | AB97: 1.841935574 | AC97: 1.296498803 | AD97: 1.841935574 | AE97: 2.611978892 | AF97: 0.7183288831 | AG97: 0.6824124389 | AH97: 0.7183288831 | AI97: 0.7542453273 | AJ97: 0.7891920274 | AK97: 0.7183288831 | AL97: 0.6824124389 | AM97: 0.7183288831 | AN97: 0.7542453273 | AO97: 0.8286516288 | AP97: =AP96 -> 10000 | AQ97: =AQ96 -> 1000000 | AR97: =AR96 -> 100000000 | AS97: =AS96 -> 250000 | AT97: =AT96 -> 250000 | AU97: 7891.920274 | AV97: 789192.0274 | AW97: 78919202.74 | AX97: 197298.0069 | AY97: =$AO97*AT97 -> 207162.9072 | AZ97: =AZ96+AU97 -> 615821.3654 | BA97: =BA96+AV97 -> 61582136.54 | BB97: =BB96+AW97 -> 6158213654 | BC97: =BC96+AX97 -> 15395534.14 | BD97: =BD96+AY97 -> 16165310.84 | BE97: 14536.4087 | BF97: 1453640.87 | BG97: 145364087 | BH97: 363410.2175 | BI97: 381580.7284 | BJ97: 310.6490412 | BK97: 31064.90412 | BL97: 3106490.412 | BM97: 7766.22603 | BN97: 8154.537331 | BO97: 66 | BP97: 57116.716 | BQ97: 5711671.6 | BR97: 571167160 | BS97: 1427917.9 | BT97: 1499313.795
AA98: 67 | AB98: 1.909166223 | AC98: 1.336690266 | AD98: 1.909166223 | AE98: 2.721682005 | AF98: 0.7147372387 | AG98: 0.6790003767 | AH98: 0.7147372387 | AI98: 0.7504741006 | AJ98: 0.7852460673 | AK98: 0.7147372387 | AL98: 0.6790003767 | AM98: 0.7147372387 | AN98: 0.7504741006 | AO98: 0.8245083706 | AP98: 10000 | AQ98: 1000000 | AR98: 100000000 | AS98: 250000 | AT98: 250000 | AU98: 7852.460673 | AV98: 785246.0673 | AW98: 78524606.73 | AX98: 196311.5168 | AY98: 206127.0927 | AZ98: 623673.8261 | BA98: 62367382.61 | BB98: 6236738261 | BC98: 15591845.65 | BD98: 16371437.94 | BE98: 14991.65268 | BF98: 1499165.268 | BG98: 149916526.8 | BH98: 374791.317 | BI98: 393530.8829 | BJ98: 302.2432005 | BK98: 30224.32005 | BL98: 3022432.005 | BM98: 7556.080013 | BN98: 7933.884013 | BO98: 67 | BP98: 57418.9592 | BQ98: 5741895.92 | BR98: 574189592 | BS98: 1435473.98 | BT98: 1507247.679
AA99: 68 | AB99: 1.97885079 | AC99: 1.378127664 | AD99: 1.97885079 | AE99: 2.835992649 | AF99: 0.7111635525 | AG99: 0.6756053749 | AH99: 0.7111635525 | AI99: 0.7467217301 | AJ99: 0.7813198369 | AK99: 0.7111635525 | AL99: 0.6756053749 | AM99: 0.7111635525 | AN99: 0.7467217301 | AO99: 0.8203858288 | AP99: 10000 | AQ99: 1000000 | AR99: 100000000 | AS99: 250000 | AT99: 250000 | AU99: 7813.198369 | AV99: 781319.8369 | AW99: 78131983.69 | AX99: 195329.9592 | AY99: 205096.4572 | AZ99: 631487.0245 | BA99: 63148702.45 | BB99: 6314870245 | BC99: 15787175.61 | BD99: 16576534.39 | BE99: 15461.15376 | BF99: 1546115.376 | BG99: 154611537.6 | BH99: 386528.8441 | BI99: 405855.2863 | BJ99: 294.0648131 | BK99: 29406.48131 | BL99: 2940648.131 | BM99: 7351.620329 | BN99: 7719.201345 | BO99: 68 | BP99: 57713.02401 | BQ99: 5771302.401 | BR99: 577130240.1 | BS99: 1442825.6 | BT99: 1514966.88
AA100: 69 | AB100: 2.051078844 | AC100: 1.420849621 | AD100: 2.051078844 | AE100: 2.955104341 | AF100: 0.7076077347 | AG100: 0.672227348 | AH100: 0.7076077347 | AI100: 0.7429881215 | AJ100: 0.7774132378 | AK100: 0.7076077347 | AL100: 0.672227348 | AM100: 0.7076077347 | AN100: 0.7429881215 | AO100: 0.8162838996 | AP100: 10000 | AQ100: 1000000 | AR100: 100000000 | AS100: 250000 | AT100: 250000 | AU100: 7774.132378 | AV100: 777413.2378 | AW100: 77741323.78 | AX100: 194353.3094 | AY100: 204070.9749 | AZ100: 639261.1569 | BA100: 63926115.69 | BB100: 6392611569 | BC100: 15981528.92 | BD100: 16780605.37 | BE100: 15945.35845 | BF100: 1594535.845 | BG100: 159453584.5 | BH100: 398633.9612 | BI100: 418565.6592 | BJ100: 286.1077245 | BK100: 28610.77245 | BL100: 2861077.245 | BM100: 7152.693112 | BN100: 7510.327767 | BO100: 69 | BP100: 57999.13173 | BQ100: 5799913.173 | BR100: 579991317.3 | BS100: 1449978.293 | BT100: 1522477.208
AA101: 70 | AB101: 2.125943221 | AC101: 1.46489596 | AD101: 2.125943221 | AE101: 3.079218723 | AF101: 0.7040696961 | AG101: 0.6688662113 | AH101: 0.7040696961 | AI101: 0.7392731809 | AJ101: 0.7735261716 | AK101: 0.7040696961 | AL101: 0.6688662113 | AM101: 0.7040696961 | AN101: 0.7392731809 | AO101: 0.8122024801 | AP101: 10000 | AQ101: 1000000 | AR101: 100000000 | AS101: 250000 | AT101: 250000 | AU101: 7735.261716 | AV101: 773526.1716 | AW101: 77352617.16 | AX101: 193381.5429 | AY101: 203050.62 | AZ101: 646996.4186 | BA101: 64699641.86 | BB101: 6469964186 | BC101: 16174910.46 | BD101: 16983655.99 | BE101: 16444.72721 | BF101: 1644472.721 | BG101: 164447272.1 | BH101: 411118.1803 | BI101: 431674.0893 | BJ101: 278.3659463 | BK101: 27836.59463 | BL101: 2783659.463 | BM101: 6959.148659 | BN101: 7307.106092 | BO101: 70 | BP101: 58277.49768 | BQ101: 5827749.768 | BR101: 582774976.8 | BS101: 1456937.442 | BT101: 1529784.314
AA102: 71 | AB102: 2.203540149 | AC102: 1.510307734 | AD102: 2.203540149 | AE102: 3.208545909 | AF102: 0.7005493476 | AG102: 0.6655218802 | AH102: 0.7005493476 | AI102: 0.735576815 | AJ102: 0.7696585407 | AK102: 0.7005493476 | AL102: 0.6655218802 | AM102: 0.7005493476 | AN102: 0.735576815 | AO102: 0.8081414677 | AP102: 10000 | AQ102: 1000000 | AR102: 100000000 | AS102: 250000 | AT102: 250000 | AU102: 7696.585407 | AV102: 769658.5407 | AW102: 76965854.07 | AX102: 192414.6352 | AY102: 202035.3669 | AZ102: 654693.004 | BA102: 65469300.4 | BB102: 6546930040 | BC102: 16367325.1 | BD102: 17185691.35 | BE102: 16959.73495 | BF102: 1695973.495 | BG102: 169597349.5 | BH102: 423993.3739 | BI102: 445193.0426 | BJ102: 270.8336527 | BK102: 27083.36527 | BL102: 2708336.527 | BM102: 6770.841318 | BN102: 7109.383384 | BO102: 71 | BP102: 58548.33133 | BQ102: 5854833.133 | BR102: 585483313.3 | BS102: 1463708.283 | BT102: 1536893.698
AA103: 72 | AB103: 2.283969364 | AC103: 1.557127274 | AD103: 2.283969364 | AE103: 3.343304837 | AF103: 0.6970466008 | AG103: 0.6621942708 | AH103: 0.6970466008 | AI103: 0.7318989309 | AJ103: 0.765810248 | AK103: 0.6970466008 | AL103: 0.6621942708 | AM103: 0.6970466008 | AN103: 0.7318989309 | AO103: 0.8041007604 | AP103: 10000 | AQ103: 1000000 | AR103: 100000000 | AS103: 250000 | AT103: 250000 | AU103: 7658.10248 | AV103: 765810.248 | AW103: 76581024.8 | AX103: 191452.562 | AY103: 201025.1901 | AZ103: 662351.1065 | BA103: 66235110.65 | BB103: 6623511065 | BC103: 16558777.66 | BD103: 17386716.54 | BE103: 17490.87145 | BF103: 1749087.145 | BG103: 174908714.5 | BH103: 437271.7864 | BI103: 459135.3757 | BJ103: 263.5051751 | BK103: 26350.51751 | BL103: 2635051.751 | BM103: 6587.629378 | BN103: 6917.010847 | BO103: 72 | BP103: 58811.83651 | BQ103: 5881183.651 | BR103: 588118365.1 | BS103: 1470295.913 | BT103: 1543810.708
AA104: 73 | AB104: 2.367334246 | AC104: 1.60539822 | AD104: 2.367334246 | AE104: 3.483723641 | AF104: 0.6935613678 | AG104: 0.6588832994 | AH104: 0.6935613678 | AI104: 0.7282394362 | AJ104: 0.7619811968 | AK104: 0.6935613678 | AL104: 0.6588832994 | AM104: 0.6935613678 | AN104: 0.7282394362 | AO104: 0.8000802566 | AP104: 10000 | AQ104: 1000000 | AR104: 100000000 | AS104: 250000 | AT104: 250000 | AU104: 7619.811968 | AV104: 761981.1968 | AW104: 76198119.68 | AX104: 190495.2992 | AY104: 200020.0642 | AZ104: 669970.9184 | BA104: 66997091.84 | BB104: 6699709184 | BC104: 16749272.96 | BD104: 17586736.61 | BE104: 18038.64182 | BF104: 1803864.182 | BG104: 180386418.2 | BH104: 450966.0455 | BI104: 473514.3478 | BJ104: 256.3749985 | BK104: 25637.49985 | BL104: 2563749.985 | BM104: 6409.374963 | BN104: 6729.843711 | BO104: 73 | BP104: 59068.21151 | BQ104: 5906821.151 | BR104: 590682115.1 | BS104: 1476705.288 | BT104: 1550540.552
AA105: 74 | AB105: 2.453741946 | AC105: 1.655165565 | AD105: 2.453741946 | AE105: 3.630040034 | AF105: 0.690093561 | AG105: 0.6555888829 | AH105: 0.690093561 | AI105: 0.724598239 | AJ105: 0.7581712908 | AK105: 0.690093561 | AL105: 0.6555888829 | AM105: 0.690093561 | AN105: 0.724598239 | AO105: 0.7960798553 | AP105: 10000 | AQ105: 1000000 | AR105: 100000000 | AS105: 250000 | AT105: 250000 | AU105: 7581.712908 | AV105: 758171.2908 | AW105: 75817129.08 | AX105: 189542.8227 | AY105: 199019.9638 | AZ105: 677552.6313 | BA105: 67755263.13 | BB105: 6775526313 | BC105: 16938815.78 | BD105: 17785756.57 | BE105: 18603.56699 | BF105: 1860356.699 | BG105: 186035669.9 | BH105: 465089.1747 | BI105: 488343.6334 | BJ105: 249.4377571 | BK105: 24943.77571 | BL105: 2494377.571 | BM105: 6235.943928 | BN105: 6547.741124 | BO105: 74 | BP105: 59317.64926 | BQ105: 5931764.926 | BR105: 593176492.6 | BS105: 1482941.232 | BT105: 1557088.293
AA106: 75 | AB106: 2.543303527 | AC106: 1.706475697 | AD106: 2.543303527 | AE106: 3.782501715 | AF106: 0.6866430932 | AG106: 0.6523109385 | AH106: 0.6866430932 | AI106: 0.7209752478 | AJ106: 0.7543804343 | AK106: 0.6866430932 | AL106: 0.6523109385 | AM106: 0.6866430932 | AN106: 0.7209752478 | AO106: 0.792099456 | AP106: 10000 | AQ106: 1000000 | AR106: 100000000 | AS106: 250000 | AT106: 250000 | AU106: 7543.804343 | AV106: 754380.4343 | AW106: 75438043.43 | AX106: 188595.1086 | AY106: 198024.864 | AZ106: 685096.4357 | BA106: 68509643.57 | BB106: 6850964357 | BC106: 17127410.89 | BD106: 17983781.44 | BE106: 19186.1842 | BF106: 1918618.42 | BG106: 191861842 | BH106: 479654.6049 | BI106: 503637.3351 | BJ106: 242.6882303 | BK106: 24268.82303 | BL106: 2426882.303 | BM106: 6067.205757 | BN106: 6370.566044 | BO106: 75 | BP106: 59560.33749 | BQ106: 5956033.749 | BR106: 595603374.9 | BS106: 1489008.437 | BT106: 1563458.859
AA107: 76 | AB107: 2.636134106 | AC107: 1.759376444 | AD107: 2.636134106 | AE107: 3.941366787 | AF107: 0.6832098777 | AG107: 0.6490493838 | AH107: 0.6832098777 | AI107: 0.7173703716 | AJ107: 0.7506085322 | AK107: 0.6832098777 | AL107: 0.6490493838 | AM107: 0.6832098777 | AN107: 0.7173703716 | AO107: 0.7881389588 | AP107: 10000 | AQ107: 1000000 | AR107: 100000000 | AS107: 250000 | AT107: 250000 | AU107: 7506.085322 | AV107: 750608.5322 | AW107: 75060853.22 | AX107: 187652.133 | AY107: 197034.7397 | AZ107: 692602.521 | BA107: 69260252.1 | BB107: 6926025210 | BC107: 17315063.03 | BD107: 18180816.18 | BE107: 19787.04752 | BF107: 1978704.752 | BG107: 197870475.2 | BH107: 494676.188 | BI107: 519409.9974 | BJ107: 236.1213386 | BK107: 23612.13386 | BL107: 2361213.386 | BM107: 5903.033465 | BN107: 6198.185138 | BO107: 76 | BP107: =BP106+BJ107 -> 59796.45883 | BQ107: =BQ106+BK107 -> 5979645.883 | BR107: =BR106+BL107 -> 597964588.3 | BS107: =BS106+BM107 -> 1494911.471 | BT107: =BT106+BN107 -> 1569657.044
AA108: 77 | AB108: 2.732353001 | AC108: 1.813917113 | AD108: 2.732353001 | AE108: 4.106904192 | AF108: 0.6797938283 | AG108: 0.6458041369 | AH108: 0.6797938283 | AI108: 0.7137835197 | AJ108: 0.7468554895 | AK108: 0.6797938283 | AL108: 0.6458041369 | AM108: 0.6797938283 | AN108: 0.7137835197 | AO108: 0.784198264 | AP108: 10000 | AQ108: 1000000 | AR108: 100000000 | AS108: 250000 | AT108: 250000 | AU108: 7468.554895 | AV108: 746855.4895 | AW108: 74685548.95 | AX108: 186713.8724 | AY108: 196049.566 | AZ108: 700071.0759 | BA108: 70007107.59 | BB108: 7000710759 | BC108: 17501776.9 | BD108: 18376865.74 | BE108: 20406.72838 | BF108: 2040672.838 | BG108: 204067283.8 | BH108: 510168.2095 | BI108: 535676.62 | BJ108: 229.7321402 | BK108: 22973.21402 | BL108: 2297321.402 | BM108: 5743.303505 | BN108: 6030.46868 | BO108: 77 | BP108: 60026.19097 | BQ108: 6002619.097 | BR108: 600261909.7 | BS108: 1500654.774 | BT108: 1575687.513
AA109: 78 | AB109: 2.832083885 | AC109: 1.870148544 | AD109: 2.832083885 | AE109: 4.279394168 | AF109: 0.6763948592 | AG109: 0.6425751162 | AH109: 0.6763948592 | AI109: 0.7102146022 | AJ109: 0.7431212121 | AK109: 0.6763948592 | AL109: 0.6425751162 | AM109: 0.6763948592 | AN109: 0.7102146022 | AO109: 0.7802772727 | AP109: 10000 | AQ109: 1000000 | AR109: 100000000 | AS109: 250000 | AT109: 250000 | AU109: 7431.212121 | AV109: 743121.2121 | AW109: 74312121.21 | AX109: 185780.303 | AY109: 195069.3182 | AZ109: 707502.288 | BA109: 70750228.8 | BB109: 7075022880 | BC109: 17687557.2 | BD109: 18571935.06 | BE109: 21045.8161 | BF109: 2104581.61 | BG109: 210458161 | BH109: 526145.4024 | BI109: 552452.6725 | BJ109: 223.5158269 | BK109: 22351.58269 | BL109: 2235158.269 | BM109: 5587.895672 | BN109: 5867.290456 | BO109: 78 | BP109: 60249.7068 | BQ109: 6024970.68 | BR109: 602497068 | BS109: 1506242.67 | BT109: 1581554.804
AA110: 79 | AB110: 2.935454947 | AC110: 1.928123149 | AD110: 2.935454947 | AE110: 4.459128723 | AF110: 0.6730128849 | AG110: 0.6393622407 | AH110: 0.6730128849 | AI110: 0.7066635291 | AJ110: 0.739405606 | AK110: 0.6730128849 | AL110: 0.6393622407 | AM110: 0.6730128849 | AN110: 0.7066635291 | AO110: 0.7763758863 | AP110: 10000 | AQ110: 1000000 | AR110: 100000000 | AS110: 250000 | AT110: 250000 | AU110: 7394.05606 | AV110: 739405.606 | AW110: 73940560.6 | AX110: 184851.4015 | AY110: 194093.9716 | AZ110: 714896.3441 | BA110: 71489634.41 | BB110: 7148963441 | BC110: 17872408.6 | BD110: 18766029.03 | BE110: 21704.91844 | BF110: 2170491.844 | BG110: 217049184.4 | BH110: 542622.961 | BI110: 569754.1091 | BJ110: 217.4677206 | BK110: 21746.77206 | BL110: 2174677.206 | BM110: 5436.693014 | BN110: 5708.527665 | BO110: 79 | BP110: 60467.17452 | BQ110: 6046717.452 | BR110: 604671745.2 | BS110: 1511679.363 | BT110: 1587263.331
AA111: 80 | AB111: 3.042599053 | AC111: 1.987894966 | AD111: 3.042599053 | AE111: 4.64641213 | AF111: 0.6696478205 | AG111: 0.6361654294 | AH111: 0.6696478205 | AI111: 0.7031302115 | AJ111: 0.735708578 | AK111: 0.6696478205 | AL111: 0.6361654294 | AM111: 0.6696478205 | AN111: 0.7031302115 | AO111: 0.7724940069 | AP111: 10000 | AQ111: 1000000 | AR111: 100000000 | AS111: 250000 | AT111: 250000 | AU111: 7357.08578 | AV111: 735708.578 | AW111: 73570857.8 | AX111: 183927.1445 | AY111: 193123.5017 | AZ111: 722253.4299 | BA111: 72225342.99 | BB111: 7222534299 | BC111: 18056335.75 | BD111: 18959152.53 | BE111: 22384.66222 | BF111: 2238466.222 | BG111: 223846622.2 | BH111: 559616.5556 | BI111: 587597.3834 | BJ111: 211.5832697 | BK111: 21158.32697 | BL111: 2115832.697 | BM111: 5289.581743 | BN111: 5554.06083 | BO111: 80 | BP111: 60678.75779 | BQ111: 6067875.779 | BR111: 606787577.9 | BS111: 1516968.945 | BT111: 1592817.392
AA112: 81 | AB112: 3.153653918 | AC112: 2.04951971 | AD112: 3.153653918 | AE112: 4.841561439 | AF112: 0.6662995814 | AG112: 0.6329846023 | AH112: 0.6662995814 | AI112: 0.6996145604 | AJ112: 0.7320300351 | AK112: 0.6662995814 | AL112: 0.6329846023 | AM112: 0.6662995814 | AN112: 0.6996145604 | AO112: 0.7686315368 | AP112: 10000 | AQ112: 1000000 | AR112: 100000000 | AS112: 250000 | AT112: 250000 | AU112: 7320.300351 | AV112: 732030.0351 | AW112: 73203003.51 | AX112: 183007.5088 | AY112: 192157.8842 | AZ112: 729573.7302 | BA112: 72957373.02 | BB112: 7295737302 | BC112: 18239343.26 | BD112: 19151310.42 | BE112: 23085.69388 | BF112: 2308569.388 | BG112: 230856938.8 | BH112: 577142.3471 | BI112: 605999.4644 | BJ112: 205.858046 | BK112: 20585.8046 | BL112: 2058580.46 | BM112: 5146.45115 | BN112: 5403.773708 | BO112: 81 | BP112: 60884.61584 | BQ112: 6088461.584 | BR112: 608846158.4 | BS112: 1522115.396 | BT112: 1598221.166
AA113: 82 | AB113: 3.268762286 | AC113: 2.113054821 | AD113: 3.268762286 | AE113: 5.044907019 | AF113: 0.6629680835 | AG113: 0.6298196793 | AH113: 0.6629680835 | AI113: 0.6961164876 | AJ113: 0.7283698849 | AK113: 0.6629680835 | AL113: 0.6298196793 | AM113: 0.6629680835 | AN113: 0.6961164876 | AO113: 0.7647883791 | AP113: 10000 | AQ113: 1000000 | AR113: 100000000 | AS113: 250000 | AT113: 250000 | AU113: 7283.698849 | AV113: 728369.8849 | AW113: 72836988.49 | AX113: 182092.4712 | AY113: 191197.0948 | AZ113: 736857.4291 | BA113: 73685742.91 | BB113: 7368574291 | BC113: 18421435.73 | BD113: 19342507.51 | BE113: 23808.6801 | BF113: 2380868.01 | BG113: 238086801 | BH113: 595217.0025 | BI113: 624977.8527 | BJ113: 200.2877409 | BK113: 20028.77409 | BL113: 2002877.409 | BM113: 5007.193523 | BN113: 5257.553199 | BO113: 82 | BP113: 61084.90358 | BQ113: 6108490.358 | BR113: 610849035.8 | BS113: 1527122.589 | BT113: 1603478.719
AA114: 83 | AB114: 3.38807211 | AC114: 2.178559521 | AD114: 3.38807211 | AE114: 5.256793114 | AF114: 0.659653243 | AG114: 0.6266705809 | AH114: 0.659653243 | AI114: 0.6926359052 | AJ114: 0.7247280355 | AK114: 0.659653243 | AL114: 0.6266705809 | AM114: 0.659653243 | AN114: 0.6926359052 | AO114: 0.7609644372 | AP114: 10000 | AQ114: 1000000 | AR114: 100000000 | AS114: 250000 | AT114: 250000 | AU114: 7247.280355 | AV114: 724728.0355 | AW114: 72472803.55 | AX114: 181182.0089 | AY114: 190241.1093 | AZ114: 744104.7094 | BA114: 74410470.94 | BB114: 7441047094 | BC114: 18602617.74 | BD114: 19532748.62 | BE114: 24554.30844 | BF114: 2455430.844 | BG114: 245543084.4 | BH114: 613857.711 | BI114: 644550.5966 | BJ114: 194.8681625 | BK114: 19486.81625 | BL114: 1948681.625 | BM114: 4871.704062 | BN114: 5115.289265 | BO114: 83 | BP114: 61279.77174 | BQ114: 6127977.174 | BR114: 612797717.4 | BS114: 1531994.293 | BT114: 1608594.008
AA115: 84 | AB115: 3.511736742 | AC115: 2.246094866 | AD115: 3.511736742 | AE115: 5.477578425 | AF115: 0.6563549768 | AG115: 0.623537228 | AH115: 0.6563549768 | AI115: 0.6891727257 | AJ115: 0.7211043953 | AK115: 0.6563549768 | AL115: 0.623537228 | AM115: 0.6563549768 | AN115: 0.6891727257 | AO115: 0.7571596151 | AP115: 10000 | AQ115: 1000000 | AR115: 100000000 | AS115: 250000 | AT115: 250000 | AU115: 7211.043953 | AV115: 721104.3953 | AW115: 72110439.53 | AX115: 180276.0988 | AY115: 189289.9038 | AZ115: 751315.7534 | BA115: 75131575.34 | BB115: 7513157534 | BC115: 18782893.83 | BD115: 19722038.53 | BE115: 25323.288 | BF115: 2532328.8 | BG115: 253232880 | BH115: 633082.1999 | BI115: 664736.3099 | BJ115: 189.5952322 | BK115: 18959.52322 | BL115: 1895952.322 | BM115: 4739.880806 | BN115: 4976.874846 | BO115: 84 | BP115: 61469.36697 | BQ115: 6146936.697 | BR115: 614693669.7 | BS115: 1536734.174 | BT115: 1613570.883
AA116: 85 | AB116: 3.639915133 | AC116: 2.315723807 | AD116: 3.639915133 | AE116: 5.707636719 | AF116: 0.6530732019 | AG116: 0.6204195418 | AH116: 0.6530732019 | AI116: 0.685726862 | AJ116: 0.7174988733 | AK116: 0.6530732019 | AL116: 0.6204195418 | AM116: 0.6530732019 | AN116: 0.685726862 | AO116: 0.753373817 | AP116: 10000 | AQ116: 1000000 | AR116: 100000000 | AS116: 250000 | AT116: 250000 | AU116: 7174.988733 | AV116: 717498.8733 | AW116: 71749887.33 | AX116: 179374.7183 | AY116: 188343.4542 | AZ116: 758490.7421 | BA116: 75849074.21 | BB116: 7584907421 | BC116: 18962268.55 | BD116: 19910381.98 | BE116: 26116.35007 | BF116: 2611635.007 | BG116: 261163500.7 | BH116: 652908.7517 | BI116: 685554.1893 | BJ116: 184.464982 | BK116: 18446.4982 | BL116: 1844649.82 | BM116: 4611.62455 | BN116: 4842.205777 | BO116: 85 | BP116: 61653.83195 | BQ116: 6165383.195 | BR116: 616538319.5 | BS116: 1541345.799 | BT116: 1618413.089
AA117: 86 | AB117: 3.772772035 | AC117: 2.387511245 | AD117: 3.772772035 | AE117: 5.947357461 | AF117: 0.6498078359 | AG117: 0.6173174441 | AH117: 0.6498078359 | AI117: 0.6822982277 | AJ117: 0.7139113789 | AK117: 0.6498078359 | AL117: 0.6173174441 | AM117: 0.6498078359 | AN117: 0.6822982277 | AO117: 0.7496069479 | AP117: 10000 | AQ117: 1000000 | AR117: 100000000 | AS117: 250000 | AT117: 250000 | AU117: 7139.113789 | AV117: 713911.3789 | AW117: 71391137.89 | AX117: 178477.8447 | AY117: 187401.737 | AZ117: 765629.8559 | BA117: 76562985.59 | BB117: 7656298559 | BC117: 19140746.4 | BD117: 20097783.72 | BE117: =AU117*$AB117 -> 26934.24886 | BF117: =AV117*$AB117 -> 2693424.886 | BG117: =AW117*$AB117 -> 269342488.6 | BH117: 673356.2215 | BI117: 707024.0326 | BJ117: 179.473551 | BK117: 17947.3551 | BL117: 1794735.51 | BM117: 4486.838775 | BN117: 4711.180714 | BO117: 86 | BP117: 61833.30551 | BQ117: 6183330.551 | BR117: 618333055.1 | BS117: 1545832.638 | BT117: 1623124.27
AA118: 87 | AB118: 3.910478214 | AC118: 2.461524093 | AD118: 3.910478214 | AE118: 6.197146474 | AF118: 0.6465587968 | AG118: 0.6142308569 | AH118: 0.6465587968 | AI118: 0.6788867366 | AJ118: 0.7103418221 | AK118: 0.6465587968 | AL118: 0.6142308569 | AM118: 0.6465587968 | AN118: 0.6788867366 | AO118: 0.7458589132 | AP118: 10000 | AQ118: 1000000 | AR118: 100000000 | AS118: 250000 | AT118: 250000 | AU118: 7103.418221 | AV118: 710341.8221 | AW118: 71034182.21 | AX118: 177585.4555 | AY118: 186464.7283 | AZ118: 772733.2741 | BA118: 77273327.41 | BB118: 7727332741 | BC118: 19318331.85 | BD118: 20284248.45 | BE118: 27777.7622 | BF118: 2777776.22 | BG118: 277777622 | BH118: 694444.055 | BI118: 729166.2577 | BJ118: 174.617183 | BK118: 17461.7183 | BL118: 1746171.83 | BM118: 4365.429574 | BN118: 4583.701053 | BO118: 87 | BP118: 62007.92269 | BQ118: 6200792.269 | BR118: 620079226.9 | BS118: 1550198.067 | BT118: 1627707.971
AA119: 88 | AB119: 4.053210669 | AC119: 2.53783134 | AD119: 4.053210669 | AE119: 6.457426626 | AF119: 0.6433260028 | AG119: 0.6111597026 | AH119: 0.6433260028 | AI119: 0.6754923029 | AJ119: 0.7067901129 | AK119: 0.6433260028 | AL119: 0.6111597026 | AM119: 0.6433260028 | AN119: 0.6754923029 | AO119: 0.7421296186 | AP119: 10000 | AQ119: 1000000 | AR119: 100000000 | AS119: 250000 | AT119: 250000 | AU119: 7067.901129 | AV119: 706790.1129 | AW119: 70679011.29 | AX119: 176697.5282 | AY119: 185532.4046 | AZ119: 779801.1752 | BA119: 77980117.52 | BB119: 7798011752 | BC119: 19495029.38 | BD119: 20469780.85 | BE119: 28647.69227 | BF119: 2864769.227 | BG119: 286476922.7 | BH119: 716192.3067 | BI119: 752001.922 | BJ119: 169.8922232 | BK119: 16989.22232 | BL119: 1698922.232 | BM119: 4247.30558 | BN119: 4459.670859 | BO119: 88 | BP119: 62177.81491 | BQ119: 6217781.491 | BR119: 621778149.1 | BS119: 1554445.373 | BT119: 1632167.641
AA120: 89 | AB120: 4.201152859 | AC120: 2.616504112 | AD120: 4.201152859 | AE120: 6.728638545 | AF120: 0.6401093728 | AG120: 0.6081039041 | AH120: 0.6401093728 | AI120: 0.6721148414 | AJ120: 0.7032561624 | AK120: 0.6401093728 | AL120: 0.6081039041 | AM120: 0.6401093728 | AN120: 0.6721148414 | AO120: 0.7384189705 | AP120: 10000 | AQ120: 1000000 | AR120: 100000000 | AS120: 250000 | AT120: 250000 | AU120: 7032.561624 | AV120: 703256.1624 | AW120: 70325616.24 | AX120: 175814.0406 | AY120: 184604.7426 | AZ120: 786833.7369 | BA120: 78683373.69 | BB120: 7868337369 | BC120: 19670843.42 | BD120: 20654385.59 | BE120: 29544.86637 | BF120: 2954486.637 | BG120: 295448663.7 | BH120: 738621.6592 | BI120: 775552.7422 | BJ120: 165.2951159 | BK120: 16529.51159 | BL120: 1652951.159 | BM120: 4132.377899 | BN120: 4338.996794 | BO120: 89 | BP120: 62343.11003 | BQ120: 6234311.003 | BR120: 623431100.3 | BS120: 1558577.751 | BT120: 1636506.638
AA121: 90 | AB121: 4.354494938 | AC121: 2.697615739 | AD121: 4.354494938 | AE121: 7.011241364 | AF121: 0.6369088259 | AG121: 0.6050633846 | AH121: 0.6369088259 | AI121: 0.6687542672 | AJ121: 0.6997398816 | AK121: 0.6369088259 | AL121: 0.6050633846 | AM121: 0.6369088259 | AN121: 0.6687542672 | AO121: 0.7347268756 | AP121: 10000 | AQ121: 1000000 | AR121: 100000000 | AS121: 250000 | AT121: 250000 | AU121: 6997.398816 | AV121: 699739.8816 | AW121: 69973988.16 | AX121: 174934.9704 | AY121: 183681.7189 | AZ121: 793831.1357 | BA121: 79383113.57 | BB121: 7938311357 | BC121: 19845778.39 | BD121: 20838067.31 | BE121: 30470.13772 | BF121: 3047013.772 | BG121: 304701377.2 | BH121: 761753.4431 | BI121: 799841.1152 | BJ121: 160.8224016 | BK121: 16082.24016 | BL121: 1608224.016 | BM121: 4020.560041 | BN121: 4221.588043 | BO121: 90 | BP121: 62503.93243 | BQ121: 6250393.243 | BR121: 625039324.3 | BS121: 1562598.311 | BT121: 1640728.226
AA122: 91 | AB122: 4.513434003 | AC122: 2.781241827 | AD122: 4.513434003 | AE122: 7.305713501 | AF122: 0.6337242818 | AG122: 0.6020380677 | AH122: 0.6337242818 | AI122: 0.6654104959 | AJ122: 0.6962411822 | AK122: 0.6337242818 | AL122: 0.6020380677 | AM122: 0.6337242818 | AN122: 0.6654104959 | AO122: 0.7310532413 | AP122: 10000 | AQ122: 1000000 | AR122: 100000000 | AS122: 250000 | AT122: 250000 | AU122: 6962.411822 | AV122: 696241.1822 | AW122: 69624118.22 | AX122: 174060.2955 | AY122: 182763.3103 | AZ122: 800793.5475 | BA122: 80079354.75 | BB122: 8007935475 | BC122: 20019838.69 | BD122: 21020830.62 | BE122: 31424.38626 | BF122: 3142438.626 | BG122: 314243862.6 | BH122: 785609.6565 | BI122: 824890.1393 | BJ122: 156.4707143 | BK122: 15647.07143 | BL122: 1564707.143 | BM122: 3911.767859 | BN122: 4107.356252 | BO122: 91 | BP122: 62660.40314 | BQ122: 6266040.314 | BR122: 626604031.4 | BS122: 1566510.079 | BT122: 1644835.583
AA123: 92 | AB123: 4.678174344 | AC123: 2.867460324 | AD123: 4.678174344 | AE123: 7.612553468 | AF123: 0.6305556604 | AG123: 0.5990278773 | AH123: 0.6305556604 | AI123: 0.6620834434 | AJ123: 0.6927599762 | AK123: 0.6305556604 | AL123: 0.5990278773 | AM123: 0.6305556604 | AN123: 0.6620834434 | AO123: 0.7273979751 | AP123: 10000 | AQ123: 1000000 | AR123: 100000000 | AS123: 250000 | AT123: 250000 | AU123: 6927.599762 | AV123: 692759.9762 | AW123: 69275997.62 | AX123: 173189.9941 | AY123: 181849.4938 | AZ123: 807721.1473 | BA123: 80772114.73 | BB123: 8077211473 | BC123: 20193028.68 | BD123: 21202680.12 | BE123: 32408.51948 | BF123: 3240851.948 | BG123: 324085194.8 | BH123: 810212.9869 | BI123: 850723.6363 | BJ123: 152.2367792 | BK123: 15223.67792 | BL123: 1522367.792 | BM123: 3805.91948 | BN123: 3996.215454 | BO123: 92 | BP123: 62812.63992 | BQ123: 6281263.992 | BR123: 628126399.2 | BS123: 1570315.998 | BT123: 1648831.798
AA124: 93 | AB124: 4.848927708 | AC124: 2.956351594 | AD124: 4.848927708 | AE124: 7.932280714 | AF124: 0.6274028821 | AG124: 0.596032738 | AH124: 0.6274028821 | AI124: 0.6587730262 | AJ124: 0.6892961764 | AK124: 0.6274028821 | AL124: 0.596032738 | AM124: 0.6274028821 | AN124: 0.6587730262 | AO124: 0.7237609852 | AP124: 10000 | AQ124: 1000000 | AR124: 100000000 | AS124: 250000 | AT124: 250000 | AU124: 6892.961764 | AV124: 689296.1764 | AW124: 68929617.64 | AX124: 172324.0441 | AY124: 180940.2463 | AZ124: 814614.109 | BA124: 81461410.9 | BB124: 8146141090 | BC124: 20365352.73 | BD124: 21383620.36 | BE124: 33423.47329 | BF124: 3342347.329 | BG124: 334234732.9 | BH124: 835586.8321 | BI124: 877366.1737 | BJ124: 148.1174099 | BK124: 14811.74099 | BL124: 1481174.099 | BM124: 3702.935248 | BN124: 3888.082011 | BO124: 93 | BP124: 62960.75733 | BQ124: 6296075.733 | BR124: 629607573.3 | BS124: 1574018.933 | BT124: 1652719.88
AA125: 94 | AB125: 5.025913569 | AC125: 3.047998493 | AD125: 5.025913569 | AE125: 8.265436504 | AF125: 0.6242658676 | AG125: 0.5930525743 | AH125: 0.6242658676 | AI125: 0.655479161 | AJ125: 0.6858496955 | AK125: 0.6242658676 | AL125: 0.5930525743 | AM125: 0.6242658676 | AN125: 0.655479161 | AO125: 0.7201421803 | AP125: 10000 | AQ125: 1000000 | AR125: 100000000 | AS125: 250000 | AT125: 250000 | AU125: 6858.496955 | AV125: 685849.6955 | AW125: 68584969.55 | AX125: 171462.4239 | AY125: 180035.5451 | AZ125: 821472.606 | BA125: 82147260.6 | BB125: 8214726060 | BC125: 20536815.15 | BD125: 21563655.91 | BE125: 34470.21291 | BF125: 3447021.291 | BG125: 344702129.1 | BH125: 861755.3228 | BI125: 904843.0889 | BJ125: 144.1095065 | BK125: 14410.95065 | BL125: 1441095.065 | BM125: 3602.737663 | BN125: 3782.874546 | BO125: 94 | BP125: 63104.86684 | BQ125: 6310486.684 | BR125: 631048668.4 | BS125: 1577621.671 | BT125: 1656502.755
AA126: 95 | AB126: 5.209359415 | AC126: 3.142486447 | AD126: 5.209359415 | AE126: 8.612584837 | AF126: 0.6211445383 | AG126: 0.5900873114 | AH126: 0.6211445383 | AI126: 0.6522017652 | AJ126: 0.682420447 | AK126: 0.6211445383 | AL126: 0.5900873114 | AM126: 0.6211445383 | AN126: 0.6522017652 | AO126: 0.7165414694 | AP126: 10000 | AQ126: 1000000 | AR126: 100000000 | AS126: 250000 | AT126: 250000 | AU126: 6824.20447 | AV126: 682420.447 | AW126: 68242044.7 | AX126: 170605.1118 | AY126: 179135.3673 | AZ126: 828296.8105 | BA126: 82829681.05 | BB126: 8282968105 | BC126: 20707420.26 | BD126: 21742791.27 | BE126: 35549.7338 | BF126: 3554973.38 | BG126: 355497338 | BH126: 888743.3451 | BI126: 933180.5123 | BJ126: 140.2100528 | BK126: 14021.00528 | BL126: 1402100.528 | BM126: 3505.251321 | BN126: 3680.513887 | BO126: 95 | BP126: 63245.07689 | BQ126: 6324507.689 | BR126: 632450768.9 | BS126: 1581126.922 | BT126: 1660183.268
AA127: 96 | AB127: 5.399501033 | AC127: 3.239903526 | AD127: 5.399501033 | AE127: 8.9743134 | AF127: 0.6180388156 | AG127: 0.5871368748 | AH127: 0.6180388156 | AI127: 0.6489407564 | AJ127: 0.6790083448 | AK127: 0.6180388156 | AL127: 0.5871368748 | AM127: 0.6180388156 | AN127: 0.6489407564 | AO127: 0.712958762 | AP127: 10000 | AQ127: 1000000 | AR127: 100000000 | AS127: 250000 | AT127: 250000 | AU127: 6790.083448 | AV127: 679008.3448 | AW127: 67900834.48 | AX127: 169752.0862 | AY127: 178239.6905 | AZ127: 835086.8939 | BA127: 83508689.39 | BB127: 8350868939 | BC127: 20877172.35 | BD127: 21921030.96 | BE127: 36663.06259 | BF127: 3666306.259 | BG127: 366630625.9 | BH127: 916576.5648 | BI127: 962405.393 | BJ127: 136.4161143 | BK127: 13641.61143 | BL127: 1364161.143 | BM127: 3410.402857 | BN127: 3580.923 | BO127: 96 | BP127: 63381.49301 | BQ127: 6338149.301 | BR127: 633814930.1 | BS127: 1584537.325 | BT127: 1663764.191
AA128: 97 | AB128: 5.596582821 | AC128: 3.340340536 | AD128: 5.596582821 | AE128: 9.351234563 | AF128: 0.6149486215 | AG128: 0.5842011905 | AH128: 0.6149486215 | AI128: 0.6456960526 | AJ128: 0.6756133031 | AK128: 0.6149486215 | AL128: 0.5842011905 | AM128: 0.6149486215 | AN128: 0.6456960526 | AO128: 0.7093939682 | AP128: 10000 | AQ128: 1000000 | AR128: 100000000 | AS128: 250000 | AT128: 250000 | AU128: 6756.133031 | AV128: 675613.3031 | AW128: 67561330.31 | AX128: 168903.3258 | AY128: 177348.4921 | AZ128: 841843.0269 | BA128: 84184302.69 | BB128: 8418430269 | BC128: 21046075.67 | BD128: 22098379.46 | BE128: 37811.25805 | BF128: 3781125.805 | BG128: 378112580.5 | BH128: 945281.4514 | BI128: 992545.5239 | BJ128: 132.7248358 | BK128: 13272.48358 | BL128: 1327248.358 | BM128: 3318.120895 | BN128: 3484.02694 | BO128: 97 | BP128: 63514.21784 | BQ128: 6351421.784 | BR128: 635142178.4 | BS128: 1587855.446 | BT128: 1667248.218
AA129: 98 | AB129: 5.800858094 | AC129: 3.443891092 | AD129: 5.800858094 | AE129: 9.743986414 | AF129: 0.6118738784 | AG129: 0.5812801845 | AH129: 0.6118738784 | AI129: 0.6424675723 | AJ129: 0.6722352365 | AK129: 0.6118738784 | AL129: 0.5812801845 | AM129: 0.6118738784 | AN129: 0.6424675723 | AO129: 0.7058469984 | AP129: 10000 | AQ129: 1000000 | AR129: 100000000 | AS129: 250000 | AT129: 250000 | AU129: 6722.352365 | AV129: 672235.2365 | AW129: 67223523.65 | AX129: 168058.8091 | AY129: 176461.7496 | AZ129: 848565.3793 | BA129: 84856537.93 | BB129: 8485653793 | BC129: 21214134.48 | BD129: 22274841.21 | BE129: 38995.41213 | BF129: 3899541.213 | BG129: 389954121.3 | BH129: 974885.3032 | BI129: 1023629.568 | BJ129: 129.1334395 | BK129: 12913.34395 | BL129: 1291334.395 | BM129: 3228.335987 | BN129: 3389.752786 | BO129: 98 | BP129: 63643.35128 | BQ129: 6364335.128 | BR129: 636433512.8 | BS129: 1591083.782 | BT129: 1670637.971
AA130: 99 | AB130: 6.012589414 | AC130: 3.550651716 | AD130: 6.012589414 | AE130: 10.15323384 | AF130: 0.608814509 | AG130: 0.5783737836 | AH130: 0.608814509 | AI130: 0.6392552345 | AJ130: 0.6688740604 | AK130: 0.608814509 | AL130: 0.5783737836 | AM130: 0.608814509 | AN130: 0.6392552345 | AO130: 0.7023177634 | AP130: 10000 | AQ130: 1000000 | AR130: 100000000 | AS130: 250000 | AT130: 250000 | AU130: 6688.740604 | AV130: 668874.0604 | AW130: 66887406.04 | AX130: 167218.5151 | AY130: 175579.4408 | AZ130: 855254.1199 | BA130: 85525411.99 | BB130: 8552541199 | BC130: 21381353 | BD130: 22450420.65 | BE130: 40216.65095 | BF130: 4021665.095 | BG130: 402166509.5 | BH130: 1005416.274 | BI130: 1055687.087 | BJ130: 125.6392226 | BK130: 12563.92226 | BL130: 1256392.226 | BM130: 3140.980565 | BN130: 3298.029594 | BO130: 99 | BP130: 63768.9905 | BQ130: 6376899.05 | BR130: 637689905 | BS130: 1594224.763 | BT130: 1673936.001
AA131: 100 | AB131: 6.232048928 | AC131: 3.660721919 | AD131: 6.232048928 | AE131: 10.57966967 | AF131: 0.6057704365 | AG131: 0.5754819147 | AH131: 0.6057704365 | AI131: 0.6360589583 | AJ131: 0.6655296901 | AK131: 0.6057704365 | AL131: 0.5754819147 | AM131: 0.6057704365 | AN131: 0.6360589583 | AO131: 0.6988061746 | AP131: 10000 | AQ131: 1000000 | AR131: 100000000 | AS131: 250000 | AT131: 250000 | AU131: 6655.296901 | AV131: 665529.6901 | AW131: 66552969.01 | AX131: 166382.4225 | AY131: 174701.5436 | AZ131: 861909.4168 | BA131: 86190941.68 | BB131: 8619094168 | BC131: 21547735.42 | BD131: 22625122.19 | BE131: 41476.13591 | BF131: 4147613.591 | BG131: 414761359.1 | BH131: 1036903.398 | BI131: 1088748.568 | BJ131: 122.2395556 | BK131: 12223.95556 | BL131: 1222395.556 | BM131: 3055.988891 | BN131: 3208.788335 | BO131: 100 | BP131: 63891.23006 | BQ131: 6389123.006 | BR131: 638912300.6 | BS131: 1597280.751 | BT131: 1677144.789
AA132: 101 | AB132: 6.459518714 | AC132: 3.774204299 | AD132: 6.459518714 | AE132: 11.02401579 | AF132: 0.6027415843 | AG132: 0.5726045051 | AH132: 0.6027415843 | AI132: 0.6328786635 | AJ132: 0.6622020416 | AK132: 0.6027415843 | AL132: 0.5726045051 | AM132: 0.6027415843 | AN132: 0.6328786635 | AO132: 0.6953121437 | AP132: 10000 | AQ132: 1000000 | AR132: 100000000 | AS132: 250000 | AT132: 250000 | AU132: 6622.020416 | AV132: 662202.0416 | AW132: 66220204.16 | AX132: 165550.5104 | AY132: 173828.0359 | AZ132: 868531.4372 | BA132: 86853143.72 | BB132: 8685314372 | BC132: 21713285.93 | BD132: 22798950.23 | BE132: 42775.0648 | BF132: 4277506.48 | BG132: 427750648 | BH132: 1069376.62 | BI132: 1122845.451 | BJ132: 118.9318801 | BK132: 11893.18801 | BL132: 1189318.801 | BM132: 2973.297003 | BN132: 3121.961853 | BO132: 101 | BP132: 64010.16194 | BQ132: 6401016.194 | BR132: 640101619.4 | BS132: 1600254.048 | BT132: 1680266.751
AA133: 102 | AB133: 6.695291147 | AC133: 3.891204632 | AD133: 6.695291147 | AE133: 11.48702445 | AF133: 0.5997278764 | AG133: 0.5697414826 | AH133: 0.5997278764 | AI133: 0.6297142702 | AJ133: 0.6588910314 | AK133: 0.5997278764 | AL133: 0.5697414826 | AM133: 0.5997278764 | AN133: 0.6297142702 | AO133: 0.691835583 | AP133: 10000 | AQ133: 1000000 | AR133: 100000000 | AS133: 250000 | AT133: 250000 | AU133: =$AJ133*AP133 -> 6588.910314 | AV133: 658891.0314 | AW133: 65889103.14 | AX133: 164722.7578 | AY133: 172958.8957 | AZ133: 875120.3475 | BA133: 87512034.75 | BB133: 8751203475 | BC133: 21878008.69 | BD133: 22971909.12 | BE133: 44114.67289 | BF133: 4411467.289 | BG133: 441146728.9 | BH133: 1102866.822 | BI133: 1158010.163 | BJ133: 115.7137069 | BK133: 11571.37069 | BL133: 1157137.069 | BM133: 2892.842671 | BN133: 3037.484805 | BO133: 102 | BP133: 64125.87565 | BQ133: 6412587.565 | BR133: 641258756.5 | BS133: 1603146.891 | BT133: 1683304.236
AA134: 103 | AB134: 6.939669274 | AC134: 4.011831976 | AD134: 6.939669274 | AE134: 11.96947948 | AF134: 0.596729237 | AG134: 0.5668927752 | AH134: 0.596729237 | AI134: 0.6265656989 | AJ134: 0.6555965762 | AK134: 0.596729237 | AL134: 0.5668927752 | AM134: 0.596729237 | AN134: 0.6265656989 | AO134: 0.688376405 | AP134: 10000 | AQ134: 1000000 | AR134: 100000000 | AS134: 250000 | AT134: 250000 | AU134: 6555.965762 | AV134: 655596.5762 | AW134: 65559657.62 | AX134: 163899.1441 | AY134: 172094.1013 | AZ134: 881676.3133 | BA134: 88167631.33 | BB134: 8816763133 | BC134: 22041907.83 | BD134: 23144003.22 | BE134: 45496.23416 | BF134: 4549623.416 | BG134: 454962341.6 | BH134: 1137405.854 | BI134: 1194276.147 | BJ134: 112.582614 | BK134: 11258.2614 | BL134: 1125826.14 | BM134: 2814.565351 | BN134: 2955.293618 | BO134: 103 | BP134: 64238.45826 | BQ134: 6423845.826 | BR134: 642384582.6 | BS134: 1605961.457 | BT134: 1686259.529
AA135: 104 | AB135: 7.192967202 | AC135: 4.136198767 | AD135: 7.192967202 | AE135: 12.47219762 | AF135: 0.5937455908 | AG135: 0.5640583113 | AH135: 0.5937455908 | AI135: 0.6234328704 | AJ135: 0.6523185934 | AK135: 0.5937455908 | AL135: 0.5640583113 | AM135: 0.5937455908 | AN135: 0.6234328704 | AO135: 0.684934523 | AP135: 10000 | AQ135: 1000000 | AR135: 100000000 | AS135: 250000 | AT135: 250000 | AU135: 6523.185934 | AV135: 652318.5934 | AW135: 65231859.34 | AX135: 163079.6483 | AY135: 171233.6308 | AZ135: 888199.4992 | BA135: 88819949.92 | BB135: 8881994992 | BC135: 22204987.48 | BD135: 23315236.85 | BE135: 46921.06247 | BF135: 4692106.247 | BG135: 469210624.7 | BH135: 1173026.562 | BI135: 1231677.89 | BJ135: 109.5362453 | BK135: 10953.62453 | BL135: 1095362.453 | BM135: 2738.406133 | BN135: 2875.32644 | BO135: 104 | BP135: 64347.99451 | BQ135: 6434799.451 | BR135: 643479945.1 | BS135: 1608699.863 | BT135: 1689134.856
AA136: 105 | AB136: 7.455510505 | AC136: 4.264420929 | AD136: 7.455510505 | AE136: 12.99602992 | AF136: 0.5907768629 | AG136: 0.5612380197 | AH136: 0.5907768629 | AI136: 0.620315706 | AJ136: 0.6490570004 | AK136: 0.5907768629 | AL136: 0.5612380197 | AM136: 0.5907768629 | AN136: 0.620315706 | AO136: 0.6815098504 | AP136: 10000 | AQ136: 1000000 | AR136: 100000000 | AS136: 250000 | AT136: 250000 | AU136: 6490.570004 | AV136: 649057.0004 | AW136: 64905700.04 | AX136: 162264.2501 | AY136: 170377.4626 | AZ136: 894690.0692 | BA136: 89469006.92 | BB136: 8946900692 | BC136: 22367251.73 | BD136: 23485614.32 | BE136: 48390.51285 | BF136: 4839051.285 | BG136: 483905128.5 | BH136: 1209762.821 | BI136: 1270250.962 | BJ136: 106.5723082 | BK136: 10657.23082 | BL136: 1065723.082 | BM136: 2664.307705 | BN136: 2797.52309 | BO136: 105 | BP136: 64454.56681 | BQ136: 6445456.681 | BR136: 644545668.1 | BS136: 1611364.17 | BT136: 1691932.379
AA137: 106 | AB137: 7.727636638 | AC137: 4.396617978 | AD137: 7.727636638 | AE137: 13.54186318 | AF137: 0.5878229786 | AG137: 0.5584318296 | AH137: 0.5878229786 | AI137: 0.6172141275 | AJ137: 0.6458117154 | AK137: 0.5878229786 | AL137: 0.5584318296 | AM137: 0.5878229786 | AN137: 0.6172141275 | AO137: 0.6781023012 | AP137: 10000 | AQ137: 1000000 | AR137: 100000000 | AS137: 250000 | AT137: 250000 | AU137: 6458.117154 | AV137: 645811.7154 | AW137: 64581171.54 | AX137: 161452.9288 | AY137: 169525.5753 | AZ137: 901148.1864 | BA137: 90114818.64 | BB137: 9011481864 | BC137: 22528704.66 | BD137: 23655139.89 | BE137: 49905.98273 | BF137: 4990598.273 | BG137: 499059827.3 | BH137: 1247649.568 | BI137: 1310032.047 | BJ137: 103.6885721 | BK137: 10368.85721 | BL137: 1036885.721 | BM137: 2592.214303 | BN137: 2721.825018 | BO137: 106 | BP137: 64558.25539 | BQ137: 6455825.539 | BR137: 645582553.9 | BS137: 1613956.385 | BT137: 1694654.204
AA138: 107 | AB138: 8.009695376 | AC138: 4.532913135 | AD138: 8.009695376 | AE138: 14.11062143 | AF138: 0.5848838637 | AG138: 0.5556396705 | AH138: 0.5848838637 | AI138: 0.6141280568 | AJ138: 0.6425826568 | AK138: 0.5848838637 | AL138: 0.5556396705 | AM138: 0.5848838637 | AN138: 0.6141280568 | AO138: 0.6747117896 | AP138: 10000 | AQ138: 1000000 | AR138: 100000000 | AS138: 250000 | AT138: 250000 | AU138: 6425.826568 | AV138: 642582.6568 | AW138: 64258265.68 | AX138: 160645.6642 | AY138: 168677.9474 | AZ138: 907574.013 | BA138: 90757401.3 | BB138: 9075740130 | BC138: 22689350.32 | BD138: 23823817.84 | BE138: 51468.91335 | BF138: 5146891.335 | BG138: 514689133.5 | BH138: 1286722.834 | BI138: 1351058.975 | BJ138: 100.882867 | BK138: 10088.2867 | BL138: 1008828.67 | BM138: 2522.071674 | BN138: 2648.175258 | BO138: 107 | BP138: 64659.13825 | BQ138: 6465913.825 | BR138: 646591382.5 | BS138: 1616478.456 | BT138: 1697302.379
AA139: 108 | AB139: 8.302049257 | AC139: 4.673433442 | AD139: 8.302049257 | AE139: 14.70326753 | AF139: 0.5819594443 | AG139: 0.5528614721 | AH139: 0.5819594443 | AI139: 0.6110574166 | AJ139: 0.6393697435 | AK139: 0.5819594443 | AL139: 0.5528614721 | AM139: 0.5819594443 | AN139: 0.6110574166 | AO139: 0.6713382307 | AP139: 10000 | AQ139: 1000000 | AR139: 100000000 | AS139: 250000 | AT139: 250000 | AU139: 6393.697435 | AV139: 639369.7435 | AW139: 63936974.35 | AX139: 159842.4359 | AY139: 167834.5577 | AZ139: 913967.7104 | BA139: 91396771.04 | BB139: 9139677104 | BC139: 22849192.76 | BD139: 23991652.4 | BE139: 53080.79104 | BF139: 5308079.104 | BG139: 530807910.4 | BH139: 1327019.776 | BI139: 1393370.765 | BJ139: 98.15308128 | BK139: 9815.308128 | BL139: 981530.8128 | BM139: 2453.827032 | BN139: 2576.518383 | BO139: 108 | BP139: 64757.29133 | BQ139: 6475729.133 | BR139: 647572913.3 | BS139: 1618932.283 | BT139: 1699878.898
AA140: 109 | AB140: 8.605074055 | AC140: 4.818309879 | AD140: 8.605074055 | AE140: 15.32080477 | AF140: 0.5790496471 | AG140: 0.5500971648 | AH140: 0.5790496471 | AI140: 0.6080021295 | AJ140: 0.6361728948 | AK140: 0.5790496471 | AL140: 0.5500971648 | AM140: 0.5790496471 | AN140: 0.6080021295 | AO140: 0.6679815395 | AP140: 10000 | AQ140: 1000000 | AR140: 100000000 | AS140: 250000 | AT140: 250000 | AU140: 6361.728948 | AV140: 636172.8948 | AW140: 63617289.48 | AX140: 159043.2237 | AY140: 166995.3849 | AZ140: 920329.4393 | BA140: 92032943.93 | BB140: 9203294393 | BC140: 23008235.98 | BD140: 24158647.78 | BE140: 54743.14872 | BF140: 5474314.872 | BG140: 547431487.2 | BH140: 1368578.718 | BI140: 1437007.654 | BJ140: 95.49716075 | BK140: 9549.716075 | BL140: 954971.6075 | BM140: 2387.429019 | BN140: 2506.80047 | BO140: 109 | BP140: 64852.7885 | BQ140: 6485278.85 | BR140: 648527885 | BS140: 1621319.712 | BT140: 1702385.698
AA141: 110 | AB141: 8.919159258 | AC141: 4.967677485 | AD141: 8.919159258 | AE141: 15.96427857 | AF141: 0.5761543989 | AG141: 0.5473466789 | AH141: 0.5761543989 | AI141: 0.6049621188 | AJ141: 0.6329920303 | AK141: 0.5761543989 | AL141: 0.5473466789 | AM141: 0.5761543989 | AN141: 0.6049621188 | AO141: 0.6646416318 | AP141: 10000 | AQ141: 1000000 | AR141: 100000000 | AS141: 250000 | AT141: 250000 | AU141: 6329.920303 | AV141: 632992.0303 | AW141: 63299203.03 | AX141: 158248.0076 | AY141: 166160.408 | AZ141: 926659.3596 | BA141: 92665935.96 | BB141: 9266593596 | BC141: 23166483.99 | BD141: 24324808.19 | BE141: 56457.56728 | BF141: 5645756.728 | BG141: 564575672.8 | BH141: 1411439.182 | BI141: 1482011.141 | BJ141: 92.91310668 | BK141: 9291.310668 | BL141: 929131.0668 | BM141: 2322.827667 | BN141: 2438.96905 | BO141: 110 | BP141: 64945.7016 | BQ141: 6494570.16 | BR141: 649457016 | BS141: 1623642.54 | BT141: 1704824.667
AA142: 111 | AB142: 9.244708571 | AC142: 5.121675487 | AD142: 9.244708571 | AE142: 16.63477827 | AF142: 0.5732736269 | AG142: 0.5446099455 | AH142: 0.5732736269 | AI142: 0.6019373082 | AJ142: 0.6298270702 | AK142: 0.5732736269 | AL142: 0.5446099455 | AM142: 0.5732736269 | AN142: 0.6019373082 | AO142: 0.6613184237 | AP142: 10000 | AQ142: 1000000 | AR142: 100000000 | AS142: 250000 | AT142: 250000 | AU142: 6298.270702 | AV142: 629827.0702 | AW142: 62982707.02 | AX142: 157456.7675 | AY142: 165329.6059 | AZ142: 932957.6303 | BA142: 93295763.03 | BB142: 9329576303 | BC142: 23323940.76 | BD142: 24490137.8 | BE142: 58225.67714 | BF142: 5822567.714 | BG142: 582256771.4 | BH142: 1455641.928 | BI142: 1528424.025 | BJ142: 90.39897444 | BK142: 9039.897444 | BL142: 903989.7444 | BM142: 2259.974361 | BN142: 2372.973079 | BO142: 111 | BP142: 65036.10058 | BQ142: 6503610.058 | BR142: 650361005.8 | BS142: 1625902.514 | BT142: 1707197.64
AA143: 112 | AB143: 9.582140434 | AC143: 5.280447427 | AD143: 9.582140434 | AE143: 17.33343895 | AF143: 0.5704072588 | AG143: 0.5418868958 | AH143: 0.5704072588 | AI143: 0.5989276217 | AJ143: 0.6266779348 | AK143: 0.5704072588 | AL143: 0.5418868958 | AM143: 0.5704072588 | AN143: 0.5989276217 | AO143: 0.6580118316 | AP143: 10000 | AQ143: 1000000 | AR143: 100000000 | AS143: 250000 | AT143: 250000 | AU143: 6266.779348 | AV143: 626677.9348 | AW143: 62667793.48 | AX143: 156669.4837 | AY143: 164502.9579 | AZ143: 939224.4097 | BA143: 93922440.97 | BB143: 9392244097 | BC143: 23480610.24 | BD143: 24654640.75 | BE143: 60049.15978 | BF143: 6004915.978 | BG143: 600491597.8 | BH143: 1501228.995 | BI143: 1576290.444 | BJ143: 87.952872 | BK143: 8795.2872 | BL143: 879528.72 | BM143: 2198.8218 | BN143: 2308.76289 | BO143: 112 | BP143: 65124.05345 | BQ143: 6512405.345 | BR143: 651240534.5 | BS143: 1628101.336 | BT143: 1709506.403
AA144: 113 | AB144: 9.931888559 | AC144: 5.444141298 | AD144: 9.931888559 | AE144: 18.06144339 | AF144: 0.5675552225 | AG144: 0.5391774613 | AH144: 0.5675552225 | AI144: 0.5959329836 | AJ144: 0.6235445452 | AK144: 0.5675552225 | AL144: 0.5391774613 | AM144: 0.5675552225 | AN144: 0.5959329836 | AO144: 0.6547217724 | AP144: 10000 | AQ144: 1000000 | AR144: 100000000 | AS144: 250000 | AT144: 250000 | AU144: 6235.445452 | AV144: 623544.5452 | AW144: 62354454.52 | AX144: 155886.1363 | AY144: 163680.4431 | AZ144: 945459.8551 | BA144: 94545985.51 | BB144: 9454598551 | BC144: 23636496.38 | BD144: 24818321.2 | BE144: 61929.74934 | BF144: 6192974.934 | BG144: 619297493.4 | BH144: 1548243.734 | BI144: 1625655.92 | BJ144: 85.57295855 | BK144: 8557.295855 | BL144: 855729.5855 | BM144: 2139.323964 | BN144: 2246.290162 | BO144: 113 | BP144: 65209.62641 | BQ144: 6520962.641 | BR144: 652096264.1 | BS144: 1630240.66 | BT144: 1711752.693
AA145: 114 | AB145: 10.29440249 | AC145: 5.612909678 | AD145: 10.29440249 | AE145: 18.82002401 | AF145: 0.5647174463 | AG145: 0.536481574 | AH145: 0.5647174463 | AI145: 0.5929533187 | AJ145: 0.6204268224 | AK145: 0.5647174463 | AL145: 0.536481574 | AM145: 0.5647174463 | AN145: 0.5929533187 | AO145: 0.6514481636 | AP145: 10000 | AQ145: 1000000 | AR145: 100000000 | AS145: 250000 | AT145: 250000 | AU145: 6204.268224 | AV145: 620426.8224 | AW145: 62042682.24 | AX145: 155106.7056 | AY145: 162862.0409 | AZ145: 951664.1234 | BA145: 95166412.34 | BB145: 9516641234 | BC145: 23791603.08 | BD145: 24981183.24 | BE145: 63869.23427 | BF145: 6386923.427 | BG145: 638692342.7 | BH145: 1596730.857 | BI145: 1676567.4 | BJ145: 83.2574431 | BK145: 8325.74431 | BL145: 832574.431 | BM145: 2081.436077 | BN145: 2185.507881 | BO145: 114 | BP145: 65292.88385 | BQ145: 6529288.385 | BR145: 652928838.5 | BS145: 1632322.096 | BT145: 1713938.201
AA146: 115 | AB146: 10.67014818 | AC146: 5.786909878 | AD146: 10.67014818 | AE146: 19.61046502 | AF146: 0.5618938591 | AG146: 0.5337991662 | AH146: 0.5618938591 | AI146: 0.5899885521 | AJ146: 0.6173246883 | AK146: 0.5618938591 | AL146: 0.5337991662 | AM146: 0.5618938591 | AN146: 0.5899885521 | AO146: 0.6481909227 | AP146: 10000 | AQ146: 1000000 | AR146: 100000000 | AS146: 250000 | AT146: 250000 | AU146: 6173.246883 | AV146: 617324.6883 | AW146: 61732468.83 | AX146: 154331.1721 | AY146: 162047.7307 | AZ146: 957837.3702 | BA146: 95783737.02 | BB146: 9578373702 | BC146: 23945934.26 | BD146: 25143230.97 | BE146: 65869.45901 | BF146: 6586945.901 | BG146: 658694590.1 | BH146: 1646736.475 | BI146: 1729073.299 | BJ146: 81.00458309 | BK146: 8100.458309 | BL146: 810045.8309 | BM146: 2025.114577 | BN146: 2126.370306 | BO146: 115 | BP146: 65373.88843 | BQ146: 6537388.843 | BR146: 653738884.3 | BS146: 1634347.211 | BT146: 1716064.571
AA147: 116 | AB147: 11.05960859 | AC147: 5.966304084 | AD147: 11.05960859 | AE147: 20.43410455 | AF147: 0.5590843898 | AG147: 0.5311301703 | AH147: 0.5590843898 | AI147: 0.5870386093 | AJ147: 0.6142380649 | AK147: 0.5590843898 | AL147: 0.5311301703 | AM147: 0.5590843898 | AN147: 0.5870386093 | AO147: 0.6449499681 | AP147: 10000 | AQ147: 1000000 | AR147: 100000000 | AS147: 250000 | AT147: 250000 | AU147: 6142.380649 | AV147: 614238.0649 | AW147: 61423806.49 | AX147: 153559.5162 | AY147: 161237.492 | AZ147: 963979.7509 | BA147: 96397975.09 | BB147: 9639797509 | BC147: 24099493.77 | BD147: 25304468.46 | BE147: 67932.3258 | BF147: 6793232.58 | BG147: 679323258 | BH147: 1698308.145 | BI147: 1783223.552 | BJ147: 78.81268313 | BK147: 7881.268313 | BL147: 788126.8313 | BM147: 1970.317078 | BN147: 2068.832932 | BO147: 116 | BP147: 65452.70112 | BQ147: 6545270.112 | BR147: 654527011.2 | BS147: 1636317.528 | BT147: 1718133.404
AA148: 117 | AB148: 11.46328431 | AC148: 6.151259511 | AD148: 11.46328431 | AE148: 21.29233694 | AF148: 0.5562889679 | AG148: 0.5284745195 | AH148: 0.5562889679 | AI148: 0.5841034163 | AJ148: 0.6111668746 | AK148: 0.5562889679 | AL148: 0.5284745195 | AM148: 0.5562889679 | AN148: 0.5841034163 | AO148: 0.6417252183 | AP148: 10000 | AQ148: 1000000 | AR148: 100000000 | AS148: 250000 | AT148: 250000 | AU148: 6111.668746 | AV148: 611166.8746 | AW148: 61116687.46 | AX148: 152791.7186 | AY148: 160431.3046 | AZ148: 970091.4196 | BA148: 97009141.96 | BB148: 9700914196 | BC148: 24252285.49 | BD148: 25464899.77 | BE148: 70059.79641 | BF148: 7005979.641 | BG148: 700597964.1 | BH148: 1751494.91 | BI148: 1839069.656 | BJ148: 76.68009371 | BK148: 7668.009371 | BL148: 766800.9371 | BM148: 1917.002343 | BN148: 2012.85246 | BO148: 117 | BP148: 65529.38121 | BQ148: 6552938.121 | BR148: 655293812.1 | BS148: 1638234.53 | BT148: 1720146.257
AA149: 118 | AB149: 11.88169418 | AC149: 6.341948555 | AD149: 11.88169418 | AE149: 22.18661509 | AF149: 0.553507523 | AG149: 0.5258321469 | AH149: 0.553507523 | AI149: 0.5811828992 | AJ149: 0.6081110402 | AK149: 0.553507523 | AL149: 0.5258321469 | AM149: 0.553507523 | AN149: 0.5811828992 | AO149: 0.6385165922 | AP149: 10000 | AQ149: 1000000 | AR149: 100000000 | AS149: 250000 | AT149: 250000 | AU149: 6081.110402 | AV149: 608111.0402 | AW149: 60811104.02 | AX149: 152027.76 | AY149: 159629.148 | AZ149: 976172.53 | BA149: 97617253 | BB149: 9761725300 | BC149: 24404313.25 | BD149: 25624528.91 | BE149: 72253.89408 | BF149: 7225389.408 | BG149: 722538940.8 | BH149: 1806347.352 | BI149: 1896664.72 | BJ149: 74.60520995 | BK149: 7460.520995 | BL149: 746052.0995 | BM149: 1865.130249 | BN149: 1958.386761 | BO149: 118 | BP149: 65603.98642 | BQ149: 6560398.642 | BR149: 656039864.2 | BS149: 1640099.66 | BT149: 1722104.644
AA150: 119 | AB150: 12.31537602 | AC150: 6.538548961 | AD150: 12.31537602 | AE150: 23.11845293 | AF150: 0.5507399854 | AG150: 0.5232029861 | AH150: 0.5507399854 | AI150: 0.5782769847 | AJ150: 0.605070485 | AK150: 0.5507399854 | AL150: 0.5232029861 | AM150: 0.5507399854 | AN150: 0.5782769847 | AO150: 0.6353240092 | AP150: 10000 | AQ150: 1000000 | AR150: 100000000 | AS150: 250000 | AT150: 250000 | AU150: 6050.70485 | AV150: 605070.485 | AW150: 60507048.5 | AX150: 151267.6212 | AY150: 158831.0023 | AZ150: 982223.2349 | BA150: 98222323.49 | BB150: 9822232349 | BC150: 24555580.87 | BD150: 25783359.92 | BE150: 74516.70541 | BF150: 7451670.541 | BG150: 745167054.1 | BH150: 1862917.635 | BI150: 1956063.517 | BJ150: 72.58647039 | BK150: 7258.647039 | BL150: 725864.7039 | BM150: 1814.66176 | BN150: 1905.394848 | BO150: 119 | BP150: 65676.57289 | BQ150: 6567657.289 | BR150: 656765728.9 | BS150: 1641914.322 | BT150: 1724010.038
AA151: 120 | AB151: 12.76488724 | AC151: 6.741243978 | AD151: 12.76488724 | AE151: 24.08942795 | AF151: 0.5479862855 | AG151: 0.5205869712 | AH151: 0.5479862855 | AI151: 0.5753855998 | AJ151: 0.6020451326 | AK151: 0.5479862855 | AL151: 0.5205869712 | AM151: 0.5479862855 | AN151: 0.5753855998 | AO151: 0.6321473892 | AP151: 10000 | AQ151: 1000000 | AR151: 100000000 | AS151: 250000 | AT151: 250000 | AU151: 6020.451326 | AV151: 602045.1326 | AW151: 60204513.26 | AX151: 150511.2831 | AY151: 158036.8473 | AZ151: 988243.6862 | BA151: 98824368.62 | BB151: 9882436862 | BC151: 24706092.16 | BD151: 25941396.76 | BE151: 76850.38233 | BF151: 7685038.233 | BG151: 768503823.3 | BH151: 1921259.558 | BI151: 2017322.536 | BJ151: 70.62235583 | BK151: 7062.235583 | BL151: 706223.5583 | BM151: 1765.558896 | BN151: 1853.83684 | BO151: 120 | BP151: 65747.19525 | BQ151: 6574719.525 | BR151: 657471952.5 | BS151: 1643679.881 | BT151: 1725863.875
AA152: 121 | AB152: 13.23080563 | AC152: 6.950222542 | AD152: 13.23080563 | AE152: 25.10118392 | AF152: 0.5452463541 | AG152: 0.5179840364 | AH152: 0.5452463541 | AI152: 0.5725086718 | AJ152: 0.5990349069 | AK152: 0.5452463541 | AL152: 0.5179840364 | AM152: 0.5452463541 | AN152: 0.5725086718 | AO152: 0.6289866522 | AP152: 10000 | AQ152: 1000000 | AR152: 100000000 | AS152: 250000 | AT152: 250000 | AU152: 5990.349069 | AV152: 599034.9069 | AW152: 59903490.69 | AX152: 149758.7267 | AY152: 157246.6631 | AZ152: 994234.0353 | BA152: 99423403.53 | BB152: 9942340353 | BC152: 24855850.88 | BD152: 26098643.43 | BE152: 79257.14418 | BF152: 7925714.418 | BG152: 792571441.8 | BH152: 1981428.605 | BI152: 2080500.035 | BJ152: 68.71138816 | BK152: 6871.138816 | BL152: 687113.8816 | BM152: 1717.784704 | BN152: 1803.673939 | BO152: 121 | BP152: 65815.90663 | BQ152: 6581590.663 | BR152: 658159066.3 | BS152: 1645397.666 | BT152: 1727667.549
AA153: 122 | AB153: 13.71373003 | AC153: 7.165679441 | AD153: 13.71373003 | AE153: 26.15543365 | AF153: 0.5425201223 | AG153: 0.5153941162 | AH153: 0.5425201223 | AI153: 0.5696461284 | AJ153: 0.5960397324 | AK153: 0.5425201223 | AL153: 0.5153941162 | AM153: 0.5425201223 | AN153: 0.5696461284 | AO153: 0.625841719 | AP153: 10000 | AQ153: 1000000 | AR153: 100000000 | AS153: 250000 | AT153: 250000 | AU153: 5960.397324 | AV153: 596039.7324 | AW153: 59603973.24 | AX153: 149009.9331 | AY153: 156460.4297 | AZ153: 1000194.433 | BA153: 100019443.3 | BB153: 1.000194433e+10 | BC153: 25004860.82 | BD153: 26255103.86 | BE153: 81739.27979 | BF153: 8173927.979 | BG153: 817392797.9 | BH153: 2043481.995 | BI153: 2145656.095 | BJ153: 66.8521293 | BK153: 6685.21293 | BL153: 668521.293 | BM153: 1671.303233 | BN153: 1754.868394 | BO153: 122 | BP153: 65882.75876 | BQ153: 6588275.876 | BR153: 658827587.6 | BS153: 1647068.969 | BT153: 1729422.418
AA154: 123 | AB154: 14.21428118 | AC154: 7.387815503 | AD154: 14.21428118 | AE154: 27.25396186 | AF154: 0.5398075217 | AG154: 0.5128171456 | AH154: 0.5398075217 | AI154: 0.5667978978 | AJ154: 0.5930595337 | AK154: 0.5398075217 | AL154: 0.5128171456 | AM154: 0.5398075217 | AN154: 0.5667978978 | AO154: 0.6227125104 | AP154: 10000 | AQ154: 1000000 | AR154: 100000000 | AS154: 250000 | AT154: 250000 | AU154: 5930.595337 | AV154: 593059.5337 | AW154: 59305953.37 | AX154: 148264.8834 | AY154: 155678.1276 | AZ154: 1006125.028 | BA154: 100612502.8 | BB154: 1.006125028e+10 | BC154: 25153125.7 | BD154: 26410781.98 | BE154: 84299.14969 | BF154: 8429914.969 | BG154: 842991496.9 | BH154: 2107478.742 | BI154: 2212852.679 | BJ154: 65.04318006 | BK154: 6504.318006 | BL154: 650431.8006 | BM154: 1626.079502 | BN154: 1707.383477 | BO154: 123 | BP154: 65947.80194 | BQ154: 6594780.194 | BR154: 659478019.4 | BS154: 1648695.049 | BT154: 1731129.801
AA155: 124 | AB155: 14.73310244 | AC155: 7.616837784 | AD155: 14.73310244 | AE155: 28.39862826 | AF155: 0.5371084841 | AG155: 0.5102530599 | AH155: 0.5371084841 | AI155: 0.5639639083 | AJ155: 0.590094236 | AK155: 0.5371084841 | AL155: 0.5102530599 | AM155: 0.5371084841 | AN155: 0.5639639083 | AO155: 0.6195989478 | AP155: 10000 | AQ155: 1000000 | AR155: 100000000 | AS155: 250000 | AT155: 250000 | AU155: 5900.94236 | AV155: 590094.236 | AW155: 59009423.6 | AX155: 147523.559 | AY155: 154899.737 | AZ155: 1012025.97 | BA155: 101202597 | BB155: 1.01202597e+10 | BC155: 25300649.26 | BD155: 26565681.72 | BE155: 86939.18831 | BF155: 8693918.831 | BG155: 869391883.1 | BH155: 2173479.708 | BI155: 2282153.693 | BJ155: 63.28317911 | BK155: 6328.317911 | BL155: 632831.7911 | BM155: 1582.079478 | BN155: 1661.183452 | BO155: 124 | BP155: 66011.08512 | BQ155: 6601108.512 | BR155: 660110851.2 | BS155: 1650277.128 | BT155: 1732790.984
AA156: 125 | AB156: 15.27086068 | AC156: 7.852959755 | AD156: 15.27086068 | AE156: 29.59137065 | AF156: 0.5344229417 | AG156: 0.5077017946 | AH156: 0.5344229417 | AI156: 0.5611440887 | AJ156: 0.5871437648 | AK156: 0.5344229417 | AL156: 0.5077017946 | AM156: 0.5344229417 | AN156: 0.5611440887 | AO156: 0.6165009531 | AP156: 10000 | AQ156: 1000000 | AR156: 100000000 | AS156: 250000 | AT156: 250000 | AU156: 5871.437648 | AV156: 587143.7648 | AW156: 58714376.48 | AX156: 146785.9412 | AY156: 154125.2383 | AZ156: 1017897.408 | BA156: 101789740.8 | BB156: 1.017897408e+10 | BC156: 25447435.2 | BD156: 26719806.96 | BE156: 89661.90634 | BF156: 8966190.634 | BG156: 896619063.4 | BH156: 2241547.658 | BI156: 2353625.041 | BJ156: 61.57080195 | BK156: 6157.080195 | BL156: 615708.0195 | BM156: 1539.270049 | BN156: 1616.233551 | BO156: 125 | BP156: 66072.65592 | BQ156: 6607265.592 | BR156: 660726559.2 | BS156: 1651816.398 | BT156: 1734407.218
AA157: 126 | AB157: 15.8282471 | AC157: 8.096401507 | AD157: 15.8282471 | AE157: 30.83420821 | AF157: 0.5317508269 | AG157: 0.5051632856 | AH157: 0.5317508269 | AI157: 0.5583383683 | AJ157: 0.584208046 | AK157: 0.5317508269 | AL157: 0.5051632856 | AM157: 0.5317508269 | AN157: 0.5583383683 | AO157: 0.6134184483 | AP157: 10000 | AQ157: 1000000 | AR157: 100000000 | AS157: 250000 | AT157: 250000 | AU157: 5842.08046 | AV157: 584208.046 | AW157: 58420804.6 | AX157: 146052.0115 | AY157: 153354.6121 | AZ157: 1023739.488 | BA157: 102373948.8 | BB157: 1.023739488e+10 | BC157: 25593487.21 | BD157: 26873161.57 | BE157: 92469.89309 | BF157: 9246989.309 | BG157: 924698930.9 | BH157: 2311747.327 | BI157: 2427334.694 | BJ157: 59.90475994 | BK157: 5990.475994 | BL157: 599047.5994 | BM157: 1497.618999 | BN157: 1572.499949 | BO157: 126 | BP157: 66132.56068 | BQ157: 6613256.068 | BR157: 661325606.8 | BS157: 1653314.017 | BT157: 1735979.718
AA158: 127 | AB158: 16.40597812 | AC158: 8.347389954 | AD158: 16.40597812 | AE158: 32.12924496 | AF158: 0.5290920728 | AG158: 0.5026374692 | AH158: 0.5290920728 | AI158: 0.5555466764 | AJ158: 0.5812870058 | AK158: 0.5290920728 | AL158: 0.5026374692 | AM158: 0.5290920728 | AN158: 0.5555466764 | AO158: 0.6103513561 | AP158: 10000 | AQ158: 1000000 | AR158: 100000000 | AS158: 250000 | AT158: 250000 | AU158: 5812.870058 | AV158: 581287.0058 | AW158: 58128700.58 | AX158: 145321.7514 | AY158: 152587.839 | AZ158: 1029552.358 | BA158: 102955235.8 | BB158: 1.029552358e+10 | BC158: 25738808.96 | BD158: 27025749.41 | BE158: 95365.81897 | BF158: 9536581.897 | BG158: 953658189.7 | BH158: 2384145.474 | BI158: 2503352.748 | BJ158: 58.2837993 | BK158: 5828.37993 | BL158: 582837.993 | BM158: 1457.094983 | BN158: 1529.949732 | BO158: =AA158 -> 127 | BP158: 66190.84448 | BQ158: 6619084.448 | BR158: 661908444.8 | BS158: 1654771.112 | BT158: 1737509.668
AA159: 128 | AB159: 17.00479632 | AC159: 8.606159043 | AD159: 17.00479632 | AE159: 33.47867325 | AF159: 0.5264466124 | AG159: 0.5001242818 | AH159: 0.5264466124 | AI159: 0.5527689431 | AJ159: 0.5783805708 | AK159: 0.5264466124 | AL159: 0.5001242818 | AM159: 0.5264466124 | AN159: 0.5527689431 | AO159: 0.6072995993 | AP159: 10000 | AQ159: 1000000 | AR159: 100000000 | AS159: 250000 | AT159: 250000 | AU159: 5783.805708 | AV159: 578380.5708 | AW159: 57838057.08 | AX159: 144595.1427 | AY159: 151824.8998 | AZ159: 1035336.164 | BA159: 103533616.4 | BB159: 1.035336164e+10 | BC159: 25883404.1 | BD159: 27177574.31 | BE159: 98352.438 | BF159: 9835243.8 | BG159: 983524380 | BH159: =AX159*$AB159 -> 2458810.95 | BI159: =AY159*$AB159 -> 2581751.498 | BJ159: =BE159/(1+$C$11)^BO159 -> 56.70670018 | BK159: =BF159/(1+$C$11)^BO159 -> 5670.670018 | BL159: =BG159/(1+$C$11)^BO159 -> 567067.0018 | BM159: 1417.667504 | BN159: =BI159/(1+$F$11)^BO159 -> 1488.55088 | BO159: 128 | BP159: 66247.55118 | BQ159: 6624755.118 | BR159: 662475511.8 | BS159: 1656188.78 | BT159: 1738998.219
AA160: 129 | AB160: =IF($C$9=1,AC160,IF($C$9=2,AD160,AE160)) -> 17.62547138 | AC160: =AC159*(1+($C$20-$C$21)) -> 8.872949973 | AD160: =AD159*(1+$C$20) -> 17.62547138 | AE160: =AE159*(1+($C$20+$C$21)) -> 34.88477752 | AF160: =IF($C$9=1,AG160,IF($C$9=2,AH160,AI160)) -> 0.5238143794 | AG160: =AG159*(1-$C$18) -> 0.4976236604 | AH160: =AH159*(1-$C$18) -> 0.5238143794 | AI160: =AI159*(1-$C$18) -> 0.5500050984 | AJ160: =AF160*$C$16*$C$15*365/1000 -> 0.5754886679 | AK160: =IF($C$9=1,AL160,IF($C$9=2,AM160,AN160)) -> 0.5238143794 | AL160: =AL159*(1-$F$18) -> 0.4976236604 | AM160: =AM159*(1-$F$18) -> 0.5238143794 | AN160: =AN159*(1-$F$18) -> 0.5500050984 | AO160: =AK160*($F$16)*($F$15*365)/1000 -> 0.6042631013 | AP160: 10000 | AQ160: 1000000 | AR160: 100000000 | AS160: 250000 | AT160: 250000 | AU160: 5754.886679 | AV160: =$AJ160*AQ160 -> 575488.6679 | AW160: =$AJ160*AR160 -> 57548866.79 | AX160: =$AJ160*AS160 -> 143872.167 | AY160: 151065.7753 | AZ160: 1041091.051 | BA160: 104109105.1 | BB160: 1.041091051e+10 | BC160: 26027276.27 | BD160: 27328640.09 | BE160: 101432.5905 | BF160: 10143259.05 | BG160: 1014325905 | BH160: 2535814.762 | BI160: 2662605.5 | BJ160: 55.17227572 | BK160: 5517.227572 | BL160: 551722.7572 | BM160: =BH160/(1+$C$11)^BO160 -> 1379.306893 | BN160: 1448.272238 | BO160: 129 | BP160: 66302.72346 | BQ160: 6630272.346 | BR160: 663027234.6 | BS160: 1657568.086 | BT160: 1740446.491
AA161: =AA160+1 -> 130 | AB161: 18.26880109 | AC161: 9.148011422 | AD161: 18.26880109 | AE161: 36.34993818 | AF161: 0.5211953075 | AG161: 0.4951355421 | AH161: 0.5211953075 | AI161: 0.5472550729 | AJ161: 0.5726112246 | AK161: 0.5211953075 | AL161: 0.4951355421 | AM161: 0.5211953075 | AN161: 0.5472550729 | AO161: 0.6012417858 | AP161: =AP160 -> 10000 | AQ161: =AQ160 -> 1000000 | AR161: =AR160 -> 100000000 | AS161: =AS160 -> 250000 | AT161: =AT160 -> 250000 | AU161: 5726.112246 | AV161: 572611.2246 | AW161: 57261122.46 | AX161: 143152.8061 | AY161: =$AO161*AT161 -> 150310.4464 | AZ161: =AZ160+AU161 -> 1046817.163 | BA161: =BA160+AV161 -> 104681716.3 | BB161: =BB160+AW161 -> 1.046817163e+10 | BC161: =BC160+AX161 -> 26170429.08 | BD161: =BD160+AY161 -> 27478950.53 | BE161: 104609.2056 | BF161: 10460920.56 | BG161: 1046092056 | BH161: 2615230.141 | BI161: 2745991.648 | BJ161: 53.67937119 | BK161: 5367.937119 | BL161: 536793.7119 | BM161: 1341.98428 | BN161: 1409.083494 | BO161: 130 | BP161: 66356.40283 | BQ161: 6635640.283 | BR161: 663564028.3 | BS161: 1658910.071 | BT161: 1741855.574
AA162: 131 | AB162: 18.93561233 | AC162: 9.431599776 | AD162: 18.93561233 | AE162: 37.87663558 | AF162: 0.5185893309 | AG162: 0.4926598644 | AH162: 0.5185893309 | AI162: 0.5445187975 | AJ162: 0.5697481684 | AK162: 0.5185893309 | AL162: 0.4926598644 | AM162: 0.5185893309 | AN162: 0.5445187975 | AO162: 0.5982355769 | AP162: 10000 | AQ162: 1000000 | AR162: 100000000 | AS162: 250000 | AT162: 250000 | AU162: 5697.481684 | AV162: 569748.1684 | AW162: 56974816.84 | AX162: 142437.0421 | AY162: 149558.8942 | AZ162: 1052514.645 | BA162: 105251464.5 | BB162: 1.052514645e+10 | BC162: 26312866.12 | BD162: 27628509.43 | BE162: 107885.3044 | BF162: 10788530.44 | BG162: 1078853044 | BH162: 2697132.611 | BI162: 2831989.241 | BJ162: 52.22686311 | BK162: 5222.686311 | BL162: 522268.6311 | BM162: 1305.671578 | BN162: 1370.955157 | BO162: 131 | BP162: 66408.62969 | BQ162: 6640862.969 | BR162: 664086296.9 | BS162: 1660215.742 | BT162: 1743226.529
AA163: 132 | AB163: 19.62676218 | AC163: 9.723979369 | AD163: 19.62676218 | AE163: 39.46745428 | AF163: 0.5159963843 | AG163: 0.4901965651 | AH163: 0.5159963843 | AI163: 0.5417962035 | AJ163: 0.5668994276 | AK163: 0.5159963843 | AL163: 0.4901965651 | AM163: 0.5159963843 | AN163: 0.5417962035 | AO163: 0.595244399 | AP163: 10000 | AQ163: 1000000 | AR163: 100000000 | AS163: 250000 | AT163: 250000 | AU163: 5668.994276 | AV163: 566899.4276 | AW163: 56689942.76 | AX163: 141724.8569 | AY163: 148811.0997 | AZ163: 1058183.639 | BA163: 105818363.9 | BB163: 1.058183639e+10 | BC163: 26454590.98 | BD163: 27777320.53 | BE163: 111264.0025 | BF163: 11126400.25 | BG163: 1112640025 | BH163: 2781600.061 | BI163: 2920680.064 | BJ163: 50.81365839 | BK163: 5081.365839 | BL163: 508136.5839 | BM163: 1270.34146 | BN163: 1333.858533 | BO163: 132 | BP163: 66459.44335 | BQ163: 6645944.335 | BR163: 664594433.5 | BS163: 1661486.084 | BT163: 1744560.388
AA164: 133 | AB164: 20.343139 | AC164: 10.02542273 | AD164: 20.343139 | AE164: 41.12508736 | AF164: 0.5134164024 | AG164: 0.4877455823 | AH164: 0.5134164024 | AI164: 0.5390872225 | AJ164: 0.5640649305 | AK164: 0.5134164024 | AL164: 0.4877455823 | AM164: 0.5134164024 | AN164: 0.5390872225 | AO164: 0.592268177 | AP164: 10000 | AQ164: 1000000 | AR164: 100000000 | AS164: 250000 | AT164: 250000 | AU164: 5640.649305 | AV164: 564064.9305 | AW164: 56406493.05 | AX164: 141016.2326 | AY164: 148067.0442 | AZ164: 1063824.288 | BA164: 106382428.8 | BB164: 1.063824288e+10 | BC164: 26595607.21 | BD164: 27925387.57 | BE164: 114748.5128 | BF164: 11474851.28 | BG164: 1147485128 | BH164: 2868712.821 | BI164: 3012148.462 | BJ164: 49.43869353 | BK164: 4943.869353 | BL164: 494386.9353 | BM164: 1235.967338 | BN164: 1297.765705 | BO164: 133 | BP164: 66508.88205 | BQ164: 6650888.205 | BR164: 665088820.5 | BS164: 1662722.051 | BT164: 1745858.154
AA165: 134 | AB165: 21.08566357 | AC165: 10.33621083 | AD165: 21.08566357 | AE165: 42.85234103 | AF165: 0.5108493204 | AG165: 0.4853068543 | AH165: 0.5108493204 | AI165: 0.5363917864 | AJ165: 0.5612446058 | AK165: 0.5108493204 | AL165: 0.4853068543 | AM165: 0.5108493204 | AN165: 0.5363917864 | AO165: 0.5893068361 | AP165: 10000 | AQ165: 1000000 | AR165: 100000000 | AS165: 250000 | AT165: 250000 | AU165: 5612.446058 | AV165: 561244.6058 | AW165: 56124460.58 | AX165: 140311.1515 | AY165: 147326.709 | AZ165: 1069436.734 | BA165: 106943673.4 | BB165: 1.069436734e+10 | BC165: 26735918.36 | BD165: 28072714.28 | BE165: 118342.1494 | BF165: 11834214.94 | BG165: 1183421494 | BH165: 2958553.735 | BI165: 3106481.422 | BJ165: 48.10093379 | BK165: 4810.093379 | BL165: 481009.3379 | BM165: 1202.523345 | BN165: 1262.649512 | BO165: 134 | BP165: 66556.98298 | BQ165: 6655698.298 | BR165: 665569829.8 | BS165: 1663924.574 | BT165: 1747120.803
AA166: 135 | AB166: 21.85529029 | AC166: 10.65663337 | AD166: 21.85529029 | AE166: 44.65213935 | AF166: 0.5082950738 | AG166: 0.4828803201 | AH166: 0.5082950738 | AI166: 0.5337098274 | AJ166: 0.5584383828 | AK166: 0.5082950738 | AL166: 0.4828803201 | AM166: 0.5082950738 | AN166: 0.5337098274 | AO166: 0.5863603019 | AP166: 10000 | AQ166: 1000000 | AR166: 100000000 | AS166: 250000 | AT166: 250000 | AU166: 5584.383828 | AV166: 558438.3828 | AW166: 55843838.28 | AX166: 139609.5957 | AY166: 146590.0755 | AZ166: 1075021.118 | BA166: 107502111.8 | BB166: 1.075021118e+10 | BC166: 26875527.96 | BD166: 28219304.35 | BE166: 122048.3297 | BF166: 12204832.97 | BG166: 1220483297 | BH166: 3051208.242 | BI166: 3203768.654 | BJ166: 46.79937243 | BK166: 4679.937243 | BL166: 467993.7243 | BM166: 1169.984311 | BN166: 1228.483526 | BO166: 135 | BP166: 66603.78235 | BQ166: 6660378.235 | BR166: 666037823.5 | BS166: 1665094.559 | BT166: 1748349.287
AA167: 136 | AB167: 22.65300839 | AC167: 10.986989 | AD167: 22.65300839 | AE167: 46.5275292 | AF167: 0.5057535984 | AG167: 0.4804659185 | AH167: 0.5057535984 | AI167: 0.5310412783 | AJ167: 0.5556461909 | AK167: 0.5057535984 | AL167: 0.4804659185 | AM167: 0.5057535984 | AN167: 0.5310412783 | AO167: 0.5834285004 | AP167: 10000 | AQ167: 1000000 | AR167: 100000000 | AS167: 250000 | AT167: 250000 | AU167: 5556.461909 | AV167: 555646.1909 | AW167: 55564619.09 | AX167: 138911.5477 | AY167: 145857.1251 | AZ167: 1080577.58 | BA167: 108057758 | BB167: 1.08057758e+10 | BC167: 27014439.5 | BD167: 28365161.48 | BE167: 125870.5782 | BF167: 12587057.82 | BG167: 1258705782 | BH167: 3146764.456 | BI167: 3304102.678 | BJ167: 45.53302998 | BK167: 4553.302998 | BL167: 455330.2998 | BM167: 1138.32575 | BN167: 1195.242037 | BO167: 136 | BP167: 66649.31538 | BQ167: 6664931.538 | BR167: 666493153.8 | BS167: 1666232.885 | BT167: 1749544.529
AA168: 137 | AB168: 23.47984319 | AC168: 11.32758566 | AD168: 23.47984319 | AE168: 48.48168543 | AF168: 0.5032248304 | AG168: 0.4780635889 | AH168: 0.5032248304 | AI168: 0.5283860719 | AJ168: 0.5528679599 | AK168: 0.5032248304 | AL168: 0.4780635889 | AM168: 0.5032248304 | AN168: 0.5283860719 | AO168: 0.5805113579 | AP168: 10000 | AQ168: 1000000 | AR168: 100000000 | AS168: 250000 | AT168: 250000 | AU168: 5528.679599 | AV168: 552867.9599 | AW168: 55286795.99 | AX168: 138216.99 | AY168: 145127.8395 | AZ168: 1086106.26 | BA168: 108610626 | BB168: 1.08610626e+10 | BC168: 27152656.49 | BD168: 28510289.32 | BE168: 129812.5301 | BF168: 12981253.01 | BG168: 1298125301 | BH168: 3245313.252 | BI168: 3407578.914 | BJ168: 44.30095344 | BK168: 4430.095344 | BL168: 443009.5344 | BM168: 1107.523836 | BN168: 1162.900028 | BO168: 137 | BP168: 66693.61634 | BQ168: 6669361.634 | BR168: 666936163.4 | BS168: 1667340.408 | BT168: 1750707.429
AA169: 138 | AB169: 24.33685747 | AC169: 11.67874082 | AD169: 24.33685747 | AE169: 50.51791622 | AF169: 0.5007087062 | AG169: 0.4756732709 | AH169: 0.5007087062 | AI169: 0.5257441416 | AJ169: 0.5501036201 | AK169: 0.5007087062 | AL169: 0.4756732709 | AM169: 0.5007087062 | AN169: 0.5257441416 | AO169: 0.5776088011 | AP169: 10000 | AQ169: 1000000 | AR169: 100000000 | AS169: 250000 | AT169: 250000 | AU169: 5501.036201 | AV169: 550103.6201 | AW169: 55010362.01 | AX169: 137525.905 | AY169: 144402.2003 | AZ169: 1091607.296 | BA169: 109160729.6 | BB169: 1.091607296e+10 | BC169: 27290182.4 | BD169: 28654691.52 | BE169: 133877.934 | BF169: 13387793.4 | BG169: 1338779340 | BH169: 3346948.349 | BI169: 3514295.767 | BJ169: 43.10221561 | BK169: 4310.221561 | BL169: 431022.1561 | BM169: 1077.55539 | BN169: 1131.43316 | BO169: 138 | BP169: 66736.71855 | BQ169: 6673671.855 | BR169: 667367185.5 | BS169: 1668417.964 | BT169: 1751838.862
AA170: 139 | AB170: 25.22515277 | AC170: 12.04078179 | AD170: 25.22515277 | AE170: 52.6396687 | AF170: 0.4982051627 | AG170: 0.4732949046 | AH170: 0.4982051627 | AI170: 0.5231154209 | AJ170: 0.547353102 | AK170: 0.4982051627 | AL170: 0.4732949046 | AM170: 0.4982051627 | AN170: 0.5231154209 | AO170: 0.5747207571 | AP170: 10000 | AQ170: 1000000 | AR170: 100000000 | AS170: 250000 | AT170: 250000 | AU170: 5473.53102 | AV170: 547353.102 | AW170: 54735310.2 | AX170: 136838.2755 | AY170: 143680.1893 | AZ170: 1097080.827 | BA170: 109708082.7 | BB170: 1.097080827e+10 | BC170: 27427020.67 | BD170: 28798371.71 | BE170: 138070.6562 | BF170: 13807065.62 | BG170: 1380706562 | BH170: 3451766.404 | BI170: 3624354.724 | BJ170: 41.93591439 | BK170: 4193.591439 | BL170: 419359.1439 | BM170: 1048.39786 | BN170: 1100.817753 | BO170: 139 | BP170: 66778.65447 | BQ170: 6677865.447 | BR170: 667786544.7 | BS170: 1669466.362 | BT170: 1752939.68
AA171: 140 | AB171: 26.14587084 | AC171: 12.41404602 | AD171: 26.14587084 | AE171: 54.85053478 | AF171: 0.4957141369 | AG171: 0.4709284301 | AH171: 0.4957141369 | AI171: 0.5204998437 | AJ171: 0.5446163365 | AK171: 0.4957141369 | AL171: 0.4709284301 | AM171: 0.4957141369 | AN171: 0.5204998437 | AO171: 0.5718471533 | AP171: 10000 | AQ171: 1000000 | AR171: 100000000 | AS171: 250000 | AT171: 250000 | AU171: 5446.163365 | AV171: 544616.3365 | AW171: 54461633.65 | AX171: 136154.0841 | AY171: 142961.7883 | AZ171: 1102526.99 | BA171: 110252699 | BB171: 1.10252699e+10 | BC171: 27563174.76 | BD171: 28941333.5 | BE171: 142394.6839 | BF171: 14239468.39 | BG171: 1423946839 | BH171: 3559867.099 | BI171: 3737860.453 | BJ171: 40.80117206 | BK171: 4080.117206 | BL171: 408011.7206 | BM171: 1020.029302 | BN171: 1071.030767 | BO171: 140 | BP171: =BP170+BJ171 -> 66819.45564 | BQ171: =BQ170+BK171 -> 6681945.564 | BR171: =BR170+BL171 -> 668194556.4 | BS171: =BS170+BM171 -> 1670486.391 | BT171: =BT170+BN171 -> 1754010.71
AA172: 141 | AB172: 27.10019513 | AC172: 12.79888145 | AD172: 27.10019513 | AE172: 57.15425724 | AF172: 0.4932355662 | AG172: 0.4685737879 | AH172: 0.4932355662 | AI172: 0.5178973445 | AJ172: 0.5418932548 | AK172: 0.4932355662 | AL172: 0.4685737879 | AM172: 0.4932355662 | AN172: 0.5178973445 | AO172: 0.5689879176 | AP172: 10000 | AQ172: 1000000 | AR172: 100000000 | AS172: 250000 | AT172: 250000 | AU172: 5418.932548 | AV172: 541893.2548 | AW172: 54189325.48 | AX172: 135473.3137 | AY172: 142246.9794 | AZ172: 1107945.923 | BA172: 110794592.3 | BB172: 1.107945923e+10 | BC172: 27698648.07 | BD172: 29083580.48 | BE172: 146854.1295 | BF172: 14685412.95 | BG172: 1468541295 | BH172: 3671353.236 | BI172: 3854920.898 | BJ172: 39.69713469 | BK172: 3969.713469 | BL172: 396971.3469 | BM172: 992.4283672 | BN172: 1042.049786 | BO172: 141 | BP172: 66859.15277 | BQ172: 6685915.277 | BR172: 668591527.7 | BS172: 1671478.819 | BT172: 1755052.76
AA173: 142 | AB173: 28.08935225 | AC173: 13.19564677 | AD173: 28.08935225 | AE173: 59.55473605 | AF173: 0.4907693884 | AG173: 0.466230919 | AH173: 0.4907693884 | AI173: 0.5153078578 | AJ173: 0.5391837885 | AK173: 0.4907693884 | AL173: 0.466230919 | AM173: 0.4907693884 | AN173: 0.5153078578 | AO173: 0.566142978 | AP173: 10000 | AQ173: 1000000 | AR173: 100000000 | AS173: 250000 | AT173: 250000 | AU173: 5391.837885 | AV173: 539183.7885 | AW173: 53918378.85 | AX173: 134795.9471 | AY173: 141535.7445 | AZ173: 1113337.761 | BA173: 111333776.1 | BB173: 1.113337761e+10 | BC173: 27833444.02 | BD173: 29225116.22 | BE173: 151453.2337 | BF173: 15145323.37 | BG173: 1514532337 | BH173: 3786330.841 | BI173: 3975647.383 | BJ173: 38.62297142 | BK173: 3862.297142 | BL173: 386229.7142 | BM173: 965.5742855 | BN173: 1013.853 | BO173: 142 | BP173: 66897.77574 | BQ173: 6689777.574 | BR173: 668977757.4 | BS173: 1672444.394 | BT173: 1756066.613
AA174: 143 | AB174: 29.11461361 | AC174: 13.60471182 | AD174: 29.11461361 | AE174: 62.05603496 | AF174: 0.4883155414 | AG174: 0.4638997644 | AH174: 0.4883155414 | AI174: 0.5127313185 | AJ174: 0.5364878696 | AK174: 0.4883155414 | AL174: 0.4638997644 | AM174: 0.4883155414 | AN174: 0.5127313185 | AO174: 0.5633122631 | AP174: 10000 | AQ174: 1000000 | AR174: 100000000 | AS174: 250000 | AT174: 250000 | AU174: 5364.878696 | AV174: 536487.8696 | AW174: 53648786.96 | AX174: 134121.9674 | AY174: 140828.0658 | AZ174: 1118702.639 | BA174: 111870263.9 | BB174: 1.118702639e+10 | BC174: 27967565.99 | BD174: 29365944.29 | BE174: 156196.3703 | BF174: 15619637.03 | BG174: 1561963703 | BH174: 3904909.258 | BI174: 4100154.72 | BJ174: 37.57787389 | BK174: 3757.787389 | BL174: 375778.7389 | BM174: 939.4468473 | BN174: 986.4191897 | BO174: 143 | BP174: 66935.35362 | BQ174: 6693535.362 | BR174: 669353536.2 | BS174: 1673383.84 | BT174: 1757053.032
AA175: 144 | AB175: 30.17729701 | AC175: 14.02645789 | AD175: 30.17729701 | AE175: 64.66238843 | AF175: 0.4858739637 | AG175: 0.4615802655 | AH175: 0.4858739637 | AI175: 0.5101676619 | AJ175: 0.5338054303 | AK175: 0.4858739637 | AL175: 0.4615802655 | AM175: 0.4858739637 | AN175: 0.5101676619 | AO175: 0.5604957018 | AP175: 10000 | AQ175: 1000000 | AR175: 100000000 | AS175: 250000 | AT175: 250000 | AU175: 5338.054303 | AV175: 533805.4303 | AW175: 53380543.03 | AX175: 133451.3576 | AY175: 140123.9254 | AZ175: 1124040.694 | BA175: 112404069.4 | BB175: 1.124040694e+10 | BC175: 28101017.34 | BD175: 29506068.21 | BE175: 161088.0501 | BF175: 16108805.01 | BG175: 1610880501 | BH175: 4027201.253 | BI175: 4228561.316 | BJ175: 36.56105562 | BK175: 3656.105562 | BL175: 365610.5562 | BM175: 914.0263905 | BN175: 959.7277101 | BO175: 144 | BP175: 66971.91467 | BQ175: 6697191.467 | BR175: 669719146.7 | BS175: 1674297.867 | BT175: 1758012.76
AA176: 145 | AB176: 31.27876835 | AC176: 14.46127808 | AD176: 31.27876835 | AE176: 67.37820875 | AF176: 0.4834445939 | AG176: 0.4592723642 | AH176: 0.4834445939 | AI176: 0.5076168236 | AJ176: 0.5311364031 | AK176: 0.4834445939 | AL176: 0.4592723642 | AM176: 0.4834445939 | AN176: 0.5076168236 | AO176: 0.5576932233 | AP176: 10000 | AQ176: 1000000 | AR176: 100000000 | AS176: 250000 | AT176: 250000 | AU176: 5311.364031 | AV176: 531136.4031 | AW176: 53113640.31 | AX176: 132784.1008 | AY176: 139423.3058 | AZ176: 1129352.058 | BA176: 112935205.8 | BB176: 1.129352058e+10 | BC176: 28233801.45 | BD176: 29645491.52 | BE176: 166132.9251 | BF176: 16613292.51 | BG176: 1661329251 | BH176: 4153323.128 | BI176: 4360989.285 | BJ176: 35.5717514 | BK176: 3557.17514 | BL176: 355717.514 | BM176: 889.2937849 | BN176: 933.7584742 | BO176: 145 | BP176: 67007.48642 | BQ176: 6700748.642 | BR176: 670074864.2 | BS176: 1675187.161 | BT176: 1758946.519
AA177: 146 | AB177: 32.42044339 | AC177: 14.9095777 | AD177: 32.42044339 | AE177: 70.20809351 | AF177: 0.4810273709 | AG177: 0.4569760024 | AH177: 0.4810273709 | AI177: 0.5050787395 | AJ177: 0.5284807211 | AK177: 0.4810273709 | AL177: 0.4569760024 | AM177: 0.4810273709 | AN177: 0.5050787395 | AO177: 0.5549047571 | AP177: 10000 | AQ177: 1000000 | AR177: 100000000 | AS177: 250000 | AT177: 250000 | AU177: 5284.807211 | AV177: 528480.7211 | AW177: 52848072.11 | AX177: 132120.1803 | AY177: 138726.1893 | AZ177: 1134636.865 | BA177: 113463686.5 | BB177: 1.134636865e+10 | BC177: 28365921.63 | BD177: 29784217.71 | BE177: 171335.793 | BF177: 17133579.3 | BG177: 1713357930 | BH177: 4283394.826 | BI177: 4497564.567 | BJ177: 34.60921672 | BK177: 3460.921672 | BL177: 346092.1672 | BM177: 865.2304179 | BN177: 908.4919388 | BO177: 146 | BP177: 67042.09564 | BQ177: 6704209.564 | BR177: 670420956.4 | BS177: 1676052.391 | BT177: 1759855.011
AA178: 147 | AB178: 33.60378958 | AC178: 15.37177461 | AD178: 33.60378958 | AE178: 73.15683344 | AF178: 0.4786222341 | AG178: 0.4546911224 | AH178: 0.4786222341 | AI178: 0.5025533458 | AJ178: 0.5258383175 | AK178: 0.4786222341 | AL178: 0.4546911224 | AM178: 0.4786222341 | AN178: 0.5025533458 | AO178: 0.5521302334 | AP178: 10000 | AQ178: 1000000 | AR178: 100000000 | AS178: 250000 | AT178: 250000 | AU178: 5258.383175 | AV178: 525838.3175 | AW178: 52583831.75 | AX178: 131459.5794 | AY178: 138032.5583 | AZ178: 1139895.248 | BA178: 113989524.8 | BB178: 1.139895248e+10 | BC178: 28497381.21 | BD178: 29922250.27 | BE178: 176701.6017 | BF178: 17670160.17 | BG178: 1767016017 | BH178: 4417540.043 | BI178: 4638417.045 | BJ178: 33.67272723 | BK178: 3367.272723 | BL178: 336727.2723 | BM178: 841.8181807 | BN178: 883.9090898 | BO178: 147 | BP178: 67075.76837 | BQ178: 6707576.837 | BR178: 670757683.7 | BS178: 1676894.209 | BT178: 1760738.92
AA179: 148 | AB179: 34.8303279 | AC179: 15.84829963 | AD179: 34.8303279 | AE179: 76.22942044 | AF179: 0.4762291229 | AG179: 0.4524176668 | AH179: 0.4762291229 | AI179: 0.5000405791 | AJ179: 0.5232091259 | AK179: 0.4762291229 | AL179: 0.4524176668 | AM179: 0.4762291229 | AN179: 0.5000405791 | AO179: 0.5493695822 | AP179: 10000 | AQ179: 1000000 | AR179: 100000000 | AS179: 250000 | AT179: 250000 | AU179: 5232.091259 | AV179: 523209.1259 | AW179: 52320912.59 | AX179: 130802.2815 | AY179: 137342.3955 | AZ179: 1145127.339 | BA179: 114512733.9 | BB179: 1.145127339e+10 | BC179: 28628183.49 | BD179: 30059592.66 | BE179: 182235.4541 | BF179: 18223545.41 | BG179: 1822354541 | BH179: 4555886.353 | BI179: 4783680.671 | BJ179: 32.76157817 | BK179: 3276.157817 | BL179: 327615.7817 | BM179: 819.0394543 | BN179: 859.991427 | BO179: 148 | BP179: 67108.52995 | BQ179: 6710852.995 | BR179: 671085299.5 | BS179: 1677713.249 | BT179: 1761598.911
AA180: 149 | AB180: 36.10163486 | AC180: 16.33959691 | AD180: 36.10163486 | AE180: 79.4310561 | AF180: 0.4738479773 | AG180: 0.4501555784 | AH180: 0.4738479773 | AI180: 0.4975403762 | AJ180: 0.5205930803 | AK180: 0.4738479773 | AL180: 0.4501555784 | AM180: 0.4738479773 | AN180: 0.4975403762 | AO180: 0.5466227343 | AP180: 10000 | AQ180: 1000000 | AR180: 100000000 | AS180: 250000 | AT180: 250000 | AU180: 5205.930803 | AV180: 520593.0803 | AW180: 52059308.03 | AX180: 130148.2701 | AY180: 136655.6836 | AZ180: 1150333.27 | BA180: 115033327 | BB180: 1.15033327e+10 | BC180: 28758331.76 | BD180: 30196248.34 | BE180: 187942.613 | BF180: 18794261.3 | BG180: 1879426130 | BH180: 4698565.324 | BI180: 4933493.59 | BJ180: 31.87508387 | BK180: 3187.508387 | BL180: 318750.8387 | BM180: 796.8770966 | BN180: 836.7209515 | BO180: 149 | BP180: 67140.40503 | BQ180: 6714040.503 | BR180: 671404050.3 | BS180: 1678510.126 | BT180: 1762435.632
AA181: 150 | AB181: 37.41934454 | AC181: 16.84612442 | AD181: 37.41934454 | AE181: 82.76716046 | AF181: 0.4714787374 | AG181: 0.4479048006 | AH181: 0.4714787374 | AI181: 0.4950526743 | AJ181: 0.5179901149 | AK181: 0.4714787374 | AL181: 0.4479048006 | AM181: 0.4714787374 | AN181: 0.4950526743 | AO181: 0.5438896206 | AP181: 10000 | AQ181: 1000000 | AR181: 100000000 | AS181: 250000 | AT181: 250000 | AU181: 5179.901149 | AV181: 517990.1149 | AW181: 51799011.49 | AX181: 129497.5287 | AY181: 135972.4052 | AZ181: 1155513.171 | BA181: 115551317.1 | BB181: 1.155513171e+10 | BC181: 28887829.29 | BD181: 30332220.75 | BE181: =AU181*$AB181 -> 193828.5057 | BF181: =AV181*$AB181 -> 19382850.57 | BG181: =AW181*$AB181 -> 1938285057 | BH181: 4845712.644 | BI181: 5087998.276 | BJ181: 31.01257717 | BK181: 3101.257717 | BL181: 310125.7717 | BM181: 775.3144294 | BN181: 814.0801508 | BO181: 150 | BP181: 67171.41761 | BQ181: 6717141.761 | BR181: 671714176.1 | BS181: 1679285.44 | BT181: 1763249.712
AA182: 151 | AB182: 38.78515061 | AC182: 17.36835427 | AD182: 38.78515061 | AE182: 86.2433812 | AF182: 0.4691213437 | AG182: 0.4456652765 | AH182: 0.4691213437 | AI182: 0.4925774109 | AJ182: 0.5154001643 | AK182: 0.4691213437 | AL182: 0.4456652765 | AM182: 0.4691213437 | AN182: 0.4925774109 | AO182: 0.5411701725 | AP182: 10000 | AQ182: 1000000 | AR182: 100000000 | AS182: 250000 | AT182: 250000 | AU182: 5154.001643 | AV182: 515400.1643 | AW182: 51540016.43 | AX182: 128850.0411 | AY182: 135292.5431 | AZ182: 1160667.173 | BA182: 116066717.3 | BB182: 1.160667173e+10 | BC182: 29016679.33 | BD182: 30467513.29 | BE182: 199898.73 | BF182: 19989873 | BG182: 1998987300 | BH182: 4997468.249 | BI182: 5247341.662 | BJ182: 30.17340902 | BK182: 3017.340902 | BL182: 301734.0902 | BM182: 754.3352255 | BN182: 792.0519867 | BO182: 151 | BP182: 67201.59102 | BQ182: 6720159.102 | BR182: 672015910.2 | BS182: 1680039.775 | BT182: 1764041.764
AA183: 152 | AB183: 40.20080861 | AC183: 17.90677326 | AD183: 40.20080861 | AE183: 89.86560321 | AF183: 0.466775737 | AG183: 0.4434369502 | AH183: 0.466775737 | AI183: 0.4901145239 | AJ183: 0.5128231635 | AK183: 0.466775737 | AL183: 0.4434369502 | AM183: 0.466775737 | AN183: 0.4901145239 | AO183: 0.5384643216 | AP183: 10000 | AQ183: 1000000 | AR183: 100000000 | AS183: 250000 | AT183: 250000 | AU183: 5128.231635 | AV183: 512823.1635 | AW183: 51282316.35 | AX183: 128205.7909 | AY183: 134616.0804 | AZ183: 1165795.405 | BA183: 116579540.5 | BB183: 1.165795405e+10 | BC183: 29144885.12 | BD183: 30602129.37 | BE183: 206159.0585 | BF183: 20615905.85 | BG183: 2061590585 | BH183: 5153976.461 | BI183: 5411675.284 | BJ183: 29.35694788 | BK183: 2935.694788 | BL183: 293569.4788 | BM183: 733.9236971 | BN183: 770.6198819 | BO183: 152 | BP183: 67230.94796 | BQ183: 6723094.796 | BR183: 672309479.6 | BS183: 1680773.699 | BT183: 1764812.384
AA184: 153 | AB184: 41.66813812 | AC184: 18.46188323 | AD184: 41.66813812 | AE184: 93.63995854 | AF184: 0.4644418583 | AG184: 0.4412197654 | AH184: 0.4644418583 | AI184: 0.4876639512 | AJ184: 0.5102590477 | AK184: 0.4644418583 | AL184: 0.4412197654 | AM184: 0.4644418583 | AN184: 0.4876639512 | AO184: 0.535772 | AP184: 10000 | AQ184: 1000000 | AR184: 100000000 | AS184: 250000 | AT184: 250000 | AU184: 5102.590477 | AV184: 510259.0477 | AW184: 51025904.77 | AX184: 127564.7619 | AY184: 133943 | AZ184: 1170897.995 | BA184: 117089799.5 | BB184: 1.170897995e+10 | BC184: 29272449.88 | BD184: 30736072.37 | BE184: 212615.4448 | BF184: 21261544.48 | BG184: 2126154448 | BH184: 5315386.119 | BI184: 5581155.425 | BJ184: 28.56257934 | BK184: 2856.257934 | BL184: 285625.7934 | BM184: 714.0644834 | BN184: 749.7677076 | BO184: 153 | BP184: 67259.51054 | BQ184: 6725951.054 | BR184: 672595105.4 | BS184: 1681487.764 | BT184: 1765562.152
AA185: 154 | AB185: 43.18902517 | AC185: 19.03420161 | AD185: 43.18902517 | AE185: 97.5728368 | AF185: 0.462119649 | AG185: 0.4390136666 | AH185: 0.462119649 | AI185: 0.4852256315 | AJ185: 0.5077077524 | AK185: 0.462119649 | AL185: 0.4390136666 | AM185: 0.462119649 | AN185: 0.4852256315 | AO185: 0.53309314 | AP185: 10000 | AQ185: 1000000 | AR185: 100000000 | AS185: 250000 | AT185: 250000 | AU185: 5077.077524 | AV185: 507707.7524 | AW185: 50770775.24 | AX185: 126926.9381 | AY185: 133273.285 | AZ185: 1175975.073 | BA185: 117597507.3 | BB185: 1.175975073e+10 | BC185: 29399376.82 | BD185: 30869345.66 | BE185: 219274.029 | BF185: 21927402.9 | BG185: 2192740290 | BH185: 5481850.724 | BI185: 5755943.26 | BJ185: 27.78970558 | BK185: 2778.970558 | BL185: 277897.0558 | BM185: 694.7426395 | BN185: 729.4797715 | BO185: 154 | BP185: 67287.30025 | BQ185: 6728730.025 | BR185: 672873002.5 | BS185: 1682182.506 | BT185: 1766291.632
AA186: 155 | AB186: 44.76542458 | AC186: 19.62426186 | AD186: 44.76542458 | AE186: 101.6708959 | AF186: 0.4598090508 | AG186: 0.4368185983 | AH186: 0.4598090508 | AI186: 0.4827995033 | AJ186: 0.5051692137 | AK186: 0.4598090508 | AL186: 0.4368185983 | AM186: 0.4598090508 | AN186: 0.4827995033 | AO186: 0.5304276743 | AP186: 10000 | AQ186: 1000000 | AR186: 100000000 | AS186: 250000 | AT186: 250000 | AU186: 5051.692137 | AV186: 505169.2137 | AW186: 50516921.37 | AX186: 126292.3034 | AY186: 132606.9186 | AZ186: 1181026.765 | BA186: 118102676.5 | BB186: 1.181026765e+10 | BC186: 29525669.12 | BD186: 31001952.58 | BE186: 226141.1434 | BF186: 22614114.34 | BG186: 2261411434 | BH186: 5653528.584 | BI186: 5936205.013 | BJ186: 27.03774499 | BK186: 2703.774499 | BL186: 270377.4499 | BM186: 675.9436247 | BN186: 709.7408059 | BO186: 155 | BP186: 67314.33799 | BQ186: 6731433.799 | BR186: 673143379.9 | BS186: 1682858.45 | BT186: 1767001.372
AA187: 156 | AB187: 46.39936258 | AC187: 20.23261398 | AD187: 46.39936258 | AE187: 105.9410736 | AF187: 0.4575100055 | AG187: 0.4346345053 | AH187: 0.4575100055 | AI187: 0.4803855058 | AJ187: 0.5026433676 | AK187: 0.4575100055 | AL187: 0.4346345053 | AM187: 0.4575100055 | AN187: 0.4803855058 | AO187: 0.527775536 | AP187: 10000 | AQ187: 1000000 | AR187: 100000000 | AS187: 250000 | AT187: 250000 | AU187: 5026.433676 | AV187: 502643.3676 | AW187: 50264336.76 | AX187: 125660.8419 | AY187: 131943.884 | AZ187: 1186053.199 | BA187: 118605319.9 | BB187: 1.186053199e+10 | BC187: 29651329.96 | BD187: 31133896.46 | BE187: 233223.3186 | BF187: 23322331.86 | BG187: 2332233186 | BH187: 5830582.965 | BI187: 6122112.114 | BJ187: 26.30613167 | BK187: 2630.613167 | BL187: 263061.3167 | BM187: 657.6532916 | BN187: 690.5359562 | BO187: 156 | BP187: 67340.64413 | BQ187: 6734064.413 | BR187: 673406441.3 | BS187: 1683516.103 | BT187: 1767691.908
AA188: 157 | AB188: 48.09293932 | AC188: 20.85982501 | AD188: 48.09293932 | AE188: 110.3905987 | AF188: 0.4552224555 | AG188: 0.4324613327 | AH188: 0.4552224555 | AI188: 0.4779835783 | AJ188: 0.5001301507 | AK188: 0.4552224555 | AL188: 0.4324613327 | AM188: 0.4552224555 | AN188: 0.4779835783 | AO188: 0.5251366583 | AP188: 10000 | AQ188: 1000000 | AR188: 100000000 | AS188: 250000 | AT188: 250000 | AU188: 5001.301507 | AV188: 500130.1507 | AW188: 50013015.07 | AX188: 125032.5377 | AY188: 131284.1646 | AZ188: 1191054.5 | BA188: 119105450 | BB188: 1.1910545e+10 | BC188: 29776362.5 | BD188: 31265180.63 | BE188: 240527.2899 | BF188: 24052728.99 | BG188: 2405272899 | BH188: 6013182.247 | BI188: 6313841.36 | BJ188: 25.59431504 | BK188: 2559.431504 | BL188: 255943.1504 | BM188: 639.857876 | BN188: 671.8507698 | BO188: 157 | BP188: 67366.23844 | BQ188: 6736623.844 | BR188: 673662384.4 | BS188: 1684155.961 | BT188: 1768363.759
AA189: 158 | AB189: 49.8483316 | AC189: 21.50647958 | AD189: 49.8483316 | AE189: 115.0270038 | AF189: 0.4529463432 | AG189: 0.4302990261 | AH189: 0.4529463432 | AI189: 0.4755936604 | AJ189: 0.4976295 | AK189: 0.4529463432 | AL189: 0.4302990261 | AM189: 0.4529463432 | AN189: 0.4755936604 | AO189: 0.522510975 | AP189: 10000 | AQ189: 1000000 | AR189: 100000000 | AS189: 250000 | AT189: 250000 | AU189: 4976.295 | AV189: 497629.5 | AW189: 49762950 | AX189: 124407.375 | AY189: 130627.7437 | AZ189: 1196030.795 | BA189: 119603079.5 | BB189: 1.196030795e+10 | BC189: 29900769.88 | BD189: 31395808.37 | BE189: 248060.0033 | BF189: 24806000.33 | BG189: 2480600033 | BH189: 6201500.082 | BI189: 6511575.087 | BJ189: 24.90175944 | BK189: 2490.175944 | BL189: 249017.5944 | BM189: 622.5439859 | BN189: 653.6711852 | BO189: 158 | BP189: 67391.1402 | BQ189: 6739114.02 | BR189: 673911402 | BS189: 1684778.505 | BT189: 1769017.43
AA190: 159 | AB190: 51.6677957 | AC190: 22.17318045 | AD190: 51.6677957 | AE190: 119.858138 | AF190: 0.4506816115 | AG190: 0.4281475309 | AH190: 0.4506816115 | AI190: 0.4732156921 | AJ190: 0.4951413525 | AK190: 0.4506816115 | AL190: 0.4281475309 | AM190: 0.4506816115 | AN190: 0.4732156921 | AO190: 0.5198984201 | AP190: 10000 | AQ190: 1000000 | AR190: 100000000 | AS190: 250000 | AT190: 250000 | AU190: 4951.413525 | AV190: 495141.3525 | AW190: 49514135.25 | AX190: 123785.3381 | AY190: 129974.605 | AZ190: 1200982.209 | BA190: 120098220.9 | BB190: 1.200982209e+10 | BC190: 30024555.21 | BD190: 31525782.97 | BE190: 255828.6225 | BF190: 25582862.25 | BG190: 2558286225 | BH190: 6395715.561 | BI190: 6715501.339 | BJ190: 24.22794367 | BK190: 2422.794367 | BL190: 242279.4367 | BM190: 605.6985917 | BN190: 635.9835213 | BO190: 159 | BP190: 67415.36814 | BQ190: 6741536.814 | BR190: 674153681.4 | BS190: 1685384.204 | BT190: 1769653.414
AA191: 160 | AB191: 53.55367025 | AC191: 22.86054905 | AD191: 53.55367025 | AE191: 124.8921798 | AF191: 0.4484282035 | AG191: 0.4260067933 | AH191: 0.4484282035 | AI191: 0.4708496136 | AJ191: 0.4926656457 | AK191: 0.4484282035 | AL191: 0.4260067933 | AM191: 0.4484282035 | AN191: 0.4708496136 | AO191: 0.517298928 | AP191: 10000 | AQ191: 1000000 | AR191: 100000000 | AS191: 250000 | AT191: 250000 | AU191: 4926.656457 | AV191: 492665.6457 | AW191: 49266564.57 | AX191: 123166.4114 | AY191: 129324.732 | AZ191: 1205908.865 | BA191: 120590886.5 | BB191: 1.205908865e+10 | BC191: 30147721.62 | BD191: 31655107.71 | BE191: 263840.5353 | BF191: 26384053.53 | BG191: 2638405353 | BH191: 6596013.383 | BI191: 6925814.053 | BJ191: 23.57236065 | BK191: 2357.236065 | BL191: 235723.6065 | BM191: 589.3090164 | BN191: 618.7744672 | BO191: 160 | BP191: 67438.94051 | BQ191: 6743894.051 | BR191: 674389405.1 | BS191: 1685973.513 | BT191: 1770272.188
AA192: 161 | AB192: 55.50837921 | AC192: 23.56922607 | AD192: 55.50837921 | AE192: 130.1376513 | AF192: 0.4461860624 | AG192: 0.4238767593 | AH192: 0.4461860624 | AI192: 0.4684953656 | AJ192: 0.4902023175 | AK192: 0.4461860624 | AL192: 0.4238767593 | AM192: 0.4461860624 | AN192: 0.4684953656 | AO192: 0.5147124334 | AP192: 10000 | AQ192: 1000000 | AR192: 100000000 | AS192: 250000 | AT192: 250000 | AU192: 4902.023175 | AV192: 490202.3175 | AW192: 49020231.75 | AX192: 122550.5794 | AY192: 128678.1083 | AZ192: 1210810.888 | BA192: 121081088.8 | BB192: 1.210810888e+10 | BC192: 30270272.2 | BD192: 31783785.81 | BE192: 272103.3613 | BF192: 27210336.13 | BG192: 2721033613 | BH192: 6802584.032 | BI192: 7142713.234 | BJ192: 22.93451704 | BK192: 2293.451704 | BL192: 229345.1704 | BM192: 573.3629259 | BN192: 602.0310722 | BO192: 161 | BP192: 67461.87502 | BQ192: 6746187.502 | BR192: 674618750.2 | BS192: 1686546.876 | BT192: 1770874.219
AA193: 162 | AB193: 57.53443505 | AC193: 24.29987207 | AD193: 57.53443505 | AE193: 135.6034327 | AF193: 0.4439551321 | AG193: 0.4217573755 | AH193: 0.4439551321 | AI193: 0.4661528887 | AJ193: 0.4877513059 | AK193: 0.4439551321 | AL193: 0.4217573755 | AM193: 0.4439551321 | AN193: 0.4661528887 | AO193: 0.5121388712 | AP193: 10000 | AQ193: 1000000 | AR193: 100000000 | AS193: 250000 | AT193: 250000 | AU193: 4877.513059 | AV193: 487751.3059 | AW193: 48775130.59 | AX193: 121937.8265 | AY193: 128034.7178 | AZ193: 1215688.401 | BA193: 121568840.1 | BB193: 1.215688401e+10 | BC193: 30392210.03 | BD193: 31911820.53 | BE193: 280624.9583 | BF193: 28062495.83 | BG193: 2806249583 | BH193: 7015623.958 | BI193: 7366405.156 | BJ193: 22.31393281 | BK193: 2231.393281 | BL193: 223139.3281 | BM193: 557.8483201 | BN193: 585.7407361 | BO193: 162 | BP193: 67484.18895 | BQ193: 6748418.895 | BR193: 674841889.5 | BS193: 1687104.724 | BT193: 1771459.96
AA194: 163 | AB194: 59.63444193 | AC194: 25.05316811 | AD194: 59.63444193 | AE194: 141.2987768 | AF194: 0.4417353565 | AG194: 0.4196485886 | AH194: 0.4417353565 | AI194: 0.4638221243 | AJ194: 0.4853125494 | AK194: 0.4417353565 | AL194: 0.4196485886 | AM194: 0.4417353565 | AN194: 0.4638221243 | AO194: 0.5095781769 | AP194: 10000 | AQ194: 1000000 | AR194: 100000000 | AS194: 250000 | AT194: 250000 | AU194: 4853.125494 | AV194: 485312.5494 | AW194: 48531254.94 | AX194: 121328.1373 | AY194: 127394.5442 | AZ194: 1220541.527 | BA194: 122054152.7 | BB194: 1.220541527e+10 | BC194: 30513538.17 | BD194: 32039215.08 | BE194: 289413.4304 | BF194: 28941343.04 | BG194: 2894134304 | BH194: 7235335.761 | BI194: 7597102.549 | BJ194: 21.71014094 | BK194: 2171.014094 | BL194: 217101.4094 | BM194: 542.7535235 | BN194: 569.8911997 | BO194: 163 | BP194: 67505.8991 | BQ194: 6750589.91 | BR194: 675058991 | BS194: 1687647.477 | BT194: 1772029.851
AA195: 164 | AB195: 61.81109906 | AC195: 25.82981632 | AD195: 61.81109906 | AE195: 147.2333255 | AF195: 0.4395266797 | AG195: 0.4175503457 | AH195: 0.4395266797 | AI195: 0.4615030137 | AJ195: 0.4828859866 | AK195: 0.4395266797 | AL195: 0.4175503457 | AM195: 0.4395266797 | AN195: 0.4615030137 | AO195: 0.507030286 | AP195: 10000 | AQ195: 1000000 | AR195: 100000000 | AS195: 250000 | AT195: 250000 | AU195: 4828.859866 | AV195: 482885.9866 | AW195: 48288598.66 | AX195: 120721.4967 | AY195: 126757.5715 | AZ195: 1225370.387 | BA195: 122537038.7 | BB195: 1.225370387e+10 | BC195: 30634259.66 | BD195: 32165972.65 | BE195: 298477.1356 | BF195: 29847713.56 | BG195: 2984771356 | BH195: 7461928.389 | BI195: 7835024.808 | BJ195: 21.12268706 | BK195: 2112.268706 | BL195: 211226.8706 | BM195: 528.0671764 | BN195: 554.4705352 | BO195: 164 | BP195: 67527.02178 | BQ195: 6752702.178 | BR195: 675270217.8 | BS195: 1688175.545 | BT195: 1772584.322
AA196: 165 | AB196: 64.06720418 | AC196: 26.63054063 | AD196: 64.06720418 | AE196: 153.4171251 | AF196: 0.4373290463 | AG196: 0.415462594 | AH196: 0.4373290463 | AI196: 0.4591954986 | AJ196: 0.4804715567 | AK196: 0.4373290463 | AL196: 0.415462594 | AM196: 0.4373290463 | AN196: 0.4591954986 | AO196: 0.5044951345 | AP196: 10000 | AQ196: 1000000 | AR196: 100000000 | AS196: 250000 | AT196: 250000 | AU196: 4804.715567 | AV196: 480471.5567 | AW196: 48047155.67 | AX196: 120117.8892 | AY196: 126123.7836 | AZ196: 1230175.102 | BA196: 123017510.2 | BB196: 1.230175102e+10 | BC196: 30754377.55 | BD196: 32292096.43 | BE196: 307824.6933 | BF196: 30782469.33 | BG196: 3078246933 | BH196: 7695617.331 | BI196: 8080398.198 | BJ196: 20.55112906 | BK196: 2055.112906 | BL196: 205511.2906 | BM196: 513.7782266 | BN196: 539.4671379 | BO196: 165 | BP196: 67547.57291 | BQ196: 6754757.291 | BR196: 675475729.1 | BS196: 1688689.323 | BT196: 1773123.789
AA197: 166 | AB197: 66.40565713 | AC197: 27.45608738 | AD197: 66.40565713 | AE197: 159.8606444 | AF197: 0.4351424011 | AG197: 0.413385281 | AH197: 0.4351424011 | AI197: 0.4568995211 | AJ197: 0.4780691989 | AK197: 0.4351424011 | AL197: 0.413385281 | AM197: 0.4351424011 | AN197: 0.4568995211 | AO197: 0.5019726589 | AP197: 10000 | AQ197: 1000000 | AR197: 100000000 | AS197: 250000 | AT197: 250000 | AU197: =$AJ197*AP197 -> 4780.691989 | AV197: 478069.1989 | AW197: 47806919.89 | AX197: 119517.2997 | AY197: 125493.1647 | AZ197: 1234955.794 | BA197: 123495579.4 | BB197: 1.234955794e+10 | BC197: 30873894.85 | BD197: 32417589.6 | BE197: 317464.9931 | BF197: 31746499.31 | BG197: 3174649931 | BH197: 7936624.827 | BI197: 8333456.068 | BJ197: 19.99503684 | BK197: 1999.503684 | BL197: 199950.3684 | BM197: 499.8759209 | BN197: 524.869717 | BO197: 166 | BP197: 67567.56795 | BQ197: 6756756.795 | BR197: 675675679.5 | BS197: 1689189.199 | BT197: 1773648.659
AA198: 167 | AB198: 68.82946362 | AC198: 28.30722609 | AD198: 68.82946362 | AE198: 166.5747915 | AF198: 0.4329666891 | AG198: 0.4113183546 | AH198: 0.4329666891 | AI198: 0.4546150235 | AJ198: 0.4756788529 | AK198: 0.4329666891 | AL198: 0.4113183546 | AM198: 0.4329666891 | AN198: 0.4546150235 | AO198: 0.4994627956 | AP198: 10000 | AQ198: 1000000 | AR198: 100000000 | AS198: 250000 | AT198: 250000 | AU198: 4756.788529 | AV198: 475678.8529 | AW198: 47567885.29 | AX198: 118919.7132 | AY198: 124865.6989 | AZ198: 1239712.583 | BA198: 123971258.3 | BB198: 1.239712583e+10 | BC198: 30992814.57 | BD198: 32542455.3 | BE198: 327407.203 | BF198: 32740720.3 | BG198: 3274072030 | BH198: 8185180.075 | BI198: 8594439.079 | BJ198: 19.45399189 | BK198: 1945.399189 | BL198: 194539.9189 | BM198: 486.3497973 | BN198: 510.6672871 | BO198: 167 | BP198: 67587.02194 | BQ198: 6758702.194 | BR198: 675870219.4 | BS198: 1689675.549 | BT198: 1774159.326
AA199: 168 | AB199: 71.34173904 | AC199: 29.1847501 | AD199: 71.34173904 | AE199: 173.5709327 | AF199: 0.4308018556 | AG199: 0.4092617628 | AH199: 0.4308018556 | AI199: 0.4523419484 | AJ199: 0.4733004587 | AK199: 0.4308018556 | AL199: 0.4092617628 | AM199: 0.4308018556 | AN199: 0.4523419484 | AO199: 0.4969654816 | AP199: 10000 | AQ199: 1000000 | AR199: 100000000 | AS199: 250000 | AT199: 250000 | AU199: 4733.004587 | AV199: 473300.4587 | AW199: 47330045.87 | AX199: 118325.1147 | AY199: 124241.3704 | AZ199: 1244445.587 | BA199: 124444558.7 | BB199: 1.244445587e+10 | BC199: 31111139.68 | BD199: 32666696.67 | BE199: 337660.7781 | BF199: 33766077.81 | BG199: 3376607781 | BH199: 8441519.452 | BI199: 8863595.425 | BJ199: 18.92758706 | BK199: 1892.758706 | BL199: 189275.8706 | BM199: 473.1896765 | BN199: 496.8491603 | BO199: 168 | BP199: 67605.94953 | BQ199: 6760594.953 | BR199: 676059495.3 | BS199: 1690148.738 | BT199: 1774656.175
AA200: 169 | AB200: 73.94571251 | AC200: 30.08947736 | AD200: 73.94571251 | AE200: 180.8609119 | AF200: 0.4286478463 | AG200: 0.407215454 | AH200: 0.4286478463 | AI200: 0.4500802386 | AJ200: 0.4709339564 | AK200: 0.4286478463 | AL200: 0.407215454 | AM200: 0.4286478463 | AN200: 0.4500802386 | AO200: 0.4944806542 | AP200: 10000 | AQ200: 1000000 | AR200: 100000000 | AS200: 250000 | AT200: 250000 | AU200: 4709.339564 | AV200: 470933.9564 | AW200: 47093395.64 | AX200: 117733.4891 | AY200: 123620.1635 | AZ200: 1249154.927 | BA200: 124915492.7 | BB200: 1.249154927e+10 | BC200: 31228873.17 | BD200: 32790316.83 | BE200: 348235.4695 | BF200: 34823546.95 | BG200: 3482354695 | BH200: 8705886.737 | BI200: 9141181.074 | BJ200: 18.41542619 | BK200: 1841.542619 | BL200: 184154.2619 | BM200: 460.3856549 | BN200: 483.4049376 | BO200: 169 | BP200: 67624.36495 | BQ200: 6762436.495 | BR200: 676243649.5 | BS200: 1690609.124 | BT200: 1775139.58
AA201: 170 | AB201: 76.64473102 | AC201: 31.02225115 | AD201: 76.64473102 | AE201: 188.4570702 | AF201: 0.4265046071 | AG201: 0.4051793767 | AH201: 0.4265046071 | AI201: 0.4478298375 | AJ201: 0.4685792866 | AK201: 0.4265046071 | AL201: 0.4051793767 | AM201: 0.4265046071 | AN201: 0.4478298375 | AO201: 0.4920082509 | AP201: 10000 | AQ201: 1000000 | AR201: 100000000 | AS201: 250000 | AT201: 250000 | AU201: 4685.792866 | AV201: 468579.2866 | AW201: 46857928.66 | AX201: 117144.8216 | AY201: 123002.0627 | AZ201: 1253840.72 | BA201: 125384072 | BB201: 1.25384072e+10 | BC201: 31346017.99 | BD201: 32913318.89 | BE201: 359141.3338 | BF201: 35914133.38 | BG201: 3591413338 | BH201: 8978533.345 | BI201: 9427460.013 | BJ201: 17.91712387 | BK201: 1791.712387 | BL201: 179171.2387 | BM201: 447.9280968 | BN201: 470.3245016 | BO201: 170 | BP201: 67642.28208 | BQ201: 6764228.208 | BR201: 676422820.8 | BS201: 1691057.052 | BT201: 1775609.905
AA202: 171 | AB202: 79.4422637 | AC202: 31.98394094 | AD202: 79.4422637 | AE202: 196.3722671 | AF202: 0.4243720841 | AG202: 0.4031534799 | AH202: 0.4243720841 | AI202: 0.4455906883 | AJ202: 0.4662363902 | AK202: 0.4243720841 | AL202: 0.4031534799 | AM202: 0.4243720841 | AN202: 0.4455906883 | AO202: 0.4895482097 | AP202: 10000 | AQ202: 1000000 | AR202: 100000000 | AS202: 250000 | AT202: 250000 | AU202: 4662.363902 | AV202: 466236.3902 | AW202: 46623639.02 | AX202: 116559.0975 | AY202: 122387.0524 | AZ202: 1258503.084 | BA202: 125850308.4 | BB202: 1.258503084e+10 | BC202: 31462577.09 | BD202: 33035705.94 | BE202: 370388.7425 | BF202: 37038874.25 | BG202: 3703887425 | BH202: 9259718.563 | BI202: 9722704.492 | BJ202: 17.43230509 | BK202: 1743.230509 | BL202: 174323.0509 | BM202: 435.8076273 | BN202: 457.5980087 | BO202: 171 | BP202: 67659.71438 | BQ202: 6765971.438 | BR202: 676597143.8 | BS202: 1691492.86 | BT202: 1776067.503
AA203: 172 | AB203: 82.34190633 | AC203: 32.97544311 | AD203: 82.34190633 | AE203: 204.6199023 | AF203: 0.4222502236 | AG203: 0.4011377125 | AH203: 0.4222502236 | AI203: 0.4433627348 | AJ203: 0.4639052082 | AK203: 0.4222502236 | AL203: 0.4011377125 | AM203: 0.4222502236 | AN203: 0.4433627348 | AO203: 0.4871004686 | AP203: 10000 | AQ203: 1000000 | AR203: 100000000 | AS203: 250000 | AT203: 250000 | AU203: 4639.052082 | AV203: 463905.2082 | AW203: 46390520.82 | AX203: 115976.3021 | AY203: 121775.1172 | AZ203: 1263142.136 | BA203: 126314213.6 | BB203: 1.263142136e+10 | BC203: 31578553.39 | BD203: 33157481.06 | BE203: 381988.392 | BF203: 38198839.2 | BG203: 3819883920 | BH203: 9549709.8 | BI203: 10027195.29 | BJ203: 16.96060501 | BK203: 1696.060501 | BL203: 169606.0501 | BM203: 424.0151252 | BN203: 445.2158814 | BO203: 172 | BP203: 67676.67499 | BQ203: 6767667.499 | BR203: 676766749.9 | BS203: 1691916.875 | BT203: 1776512.718
AA204: 173 | AB204: 85.34738591 | AC204: 33.99768185 | AD204: 85.34738591 | AE204: 213.2139382 | AF204: 0.4201389725 | AG204: 0.3991320239 | AH204: 0.4201389725 | AI204: 0.4411459212 | AJ204: 0.4615856822 | AK204: 0.4201389725 | AL204: 0.3991320239 | AM204: 0.4201389725 | AN204: 0.4411459212 | AO204: 0.4846649663 | AP204: 10000 | AQ204: 1000000 | AR204: 100000000 | AS204: 250000 | AT204: 250000 | AU204: 4615.856822 | AV204: 461585.6822 | AW204: 46158568.22 | AX204: 115396.4205 | AY204: 121166.2416 | AZ204: 1267757.992 | BA204: 126775799.2 | BB204: 1.267757992e+10 | BC204: 31693949.81 | BD204: 33278647.3 | BE204: 393951.3134 | BF204: 39395131.34 | BG204: 3939513134 | BH204: 9848782.836 | BI204: 10341221.98 | BJ204: 16.50166864 | BK204: 1650.166864 | BL204: 165016.6864 | BM204: 412.5417159 | BN204: 433.1688017 | BO204: 173 | BP204: 67693.17666 | BQ204: 6769317.666 | BR204: 676931766.6 | BS204: 1692329.416 | BT204: 1776945.887
... 138 more rows

Sheet Electricity Price
B1: Use this sheet to determine the average electricity price for the solar panel installation. Since the expected production for solar occurs during daylight hours, the weighted average electricity price must be used if the
B2: system sells electricity at a variable rate. If a simple flat rate is desired, simply use that rate as the hourly price for each hour of the day. Otherwise, update the hourly ETR of the location of interest and define hourly prices.
B4: Peak-Sun Hours | C4: ='Solar Calculator'!C15 -> 3.5
B7: Hour | C7: Avg. Hourly ETR [Extraterrestrial Radiation] (W/m^2) | D7: Proportion of Peak-sun Hours (%) | E7: Distribution of Peak-sun Hours (hr) | F7: Hourly Electricity Price ($/kWh)
B8: 01:00:00 | C8: 0 | D8: =C8/SUM($C$8:$C$31) -> 0 | E8: =D8*$C$4 -> 0 | F8: 0.1409795522 | G8: =$F$34 -> 0.1728622698
B9: 02:00:00 | C9: 0 | D9: =C9/SUM($C$8:$C$31) -> 0 | E9: =D9*$C$4 -> 0 | F9: 0.1249531343 | G9: 0.1728622698
B10: 03:00:00 | C10: 0 | D10: 0 | E10: 0 | F10: 0.1089247754 | G10: 0.1728622698
B11: 04:00:00 | C11: 0 | D11: 0 | E11: 0 | F11: 0.1075969403 | G11: 0.1728622698
B12: 05:00:00 | C12: 0 | D12: 0 | E12: 0 | F12: 0.1090820896 | G12: 0.1728622698
B13: 06:00:00 | C13: 4.915068493 | D13: 0.0005590319337 | E13: 0.001956611768 | F13: 0.1132601493 | G13: 0.1728622698
B14: 07:00:00 | C14: 90.23287671 | D14: 0.01026294132 | E14: 0.03592029464 | F14: 0.1394448507 | G14: 0.1728622698
B15: 08:00:00 | C15: 295.8794521 | D15: 0.03365284989 | E15: 0.1177849746 | F15: 0.1596447761 | G15: 0.1728622698
B16: 09:00:00 | C16: 560.7479452 | D16: 0.06377856352 | E16: 0.2232249723 | F16: 0.1315085821 | G16: 0.1728622698
B17: 10:00:00 | C17: 794.709589 | D17: 0.09038898215 | E17: 0.3163614375 | F17: 0.1429677612 | G17: 0.1728622698
B18: 11:00:00 | C18: 974.8465753 | D18: 0.1108774714 | E18: 0.3880711497 | F18: 0.1491274627 | G18: 0.1728622698
B19: 12:00:00 | C19: 1088.624658 | D19: 0.1238184062 | E19: 0.4333644218 | F19: 0.1579228358 | G19: 0.1728622698
B20: 13:00:00 | C20: 1128.268493 | D20: 0.1283274319 | E20: 0.4491460117 | F20: 0.1575977612 | G20: 0.1728622698
B21: 14:00:00 | C21: 1091.10137 | D21: 0.1241001035 | E21: 0.4343503622 | F21: 0.1739425373 | G21: 0.1728622698
B22: 15:00:00 | C22: 979.5945205 | D22: 0.111417495 | E22: 0.3899612324 | F22: 0.180145597 | G22: 0.1728622698
B23: 16:00:00 | C23: 801.5232877 | D23: 0.0911639612 | E23: 0.3190738642 | F23: 0.2330492537 | G23: 0.1728622698
B24: 17:00:00 | C24: 569.0465753 | D24: 0.06472243628 | E24: 0.226528527 | F24: 0.2500508209 | G24: 0.1728622698
B25: 18:00:00 | C25: 305.5232877 | D25: 0.03474972415 | E25: 0.1216240345 | F25: 0.2000947015 | G25: 0.1728622698
B26: 19:00:00 | C26: 99.76986301 | D26: 0.01134766271 | E26: 0.03971681948 | F26: 0.1915097015 | G26: 0.1728622698
B27: 20:00:00 | C27: 7.323287671 | D27: 0.0008329388845 | E27: 0.002915286096 | F27: 0.190626791 | G27: 0.1728622698
B28: 21:00:00 | C28: 0 | D28: 0 | E28: 0 | F28: 0.1710208333 | G28: 0.1728622698
B29: 22:00:00 | C29: 0 | D29: 0 | E29: 0 | F29: 0.1757302083 | G29: 0.1728622698
B30: 23:00:00 | C30: 0 | D30: 0 | E30: 0 | F30: 0.1694865327 | G30: 0.1728622698
B31: 24:00 | C31: 0 | D31: 0 | E31: 0 | F31: 0.1488696429 | G31: =$F$34 -> 0.1728622698
E34: Avg Electricity Price ($/kWh) | F34: =SUMPRODUCT($D$8:$D$31,F8:F31) -> 0.1728622698 | I34: This Avg Electricity Price will be used for calculating the value of solar production in the Solar Calculator sheet allowing the user to consider variable pricing.

Sheet Monte Carlo Assumptions
B1: This sheet is used to save the distributions used in the paper when running Monte Carlo analysis to compare the different types of installations.
C4: Distributions used to model each type of installation
D5: Residential | G5: Commercial | J5: Utility
B6: Model Assumptions | C6: Distribution | D6: Mean/Min | E6: Std. Dev/Max | F6: Distribution | G6: Mean/Min | H6: Std. Dev/Max | I6: Distribution | J6: Mean/Min | K6: Std. Dev/Max
B7: Scenario (1=Worst-case, 2=Expected, 3=Best-case)
B8: System Lifetime (yr) | C8: Uniform | D8: 20 | E8: 30 | F8: Uniform | G8: 20 | H8: 30 | I8: Uniform | J8: 20 | K8: 30
B9: Discount Rate (%) | C9: Uniform | D9: 0.04 | E9: 0.08 | F9: Uniform | G9: 0.04 | H9: 0.08 | I9: Uniform | J9: 0.04 | K9: 0.08
B10: Inflation Rate (%) | C10: Normal | D10: 0.0236 | E10: 0.0104 | F10: Normal | G10: 0.0236 | H10: 0.0104 | I10: Normal | J10: 0.0236 | K10: 0.0104
B11: _Inflation Rate Deviation (±%)
B12: Annual O&M Cost (% of Install Cost) | C12: Uniform | D12: 0 | E12: 0.005 | F12: Uniform | G12: 0.0015 | H12: 0.0065 | I12: Uniform | J12: 0.0035 | K12: 0.0085
B13: Avg. Daily Peak-Sun Hours [location dependent] (hr/day) | C13: Uniform | D13: 3.5 | E13: 6 | F13: Uniform | G13: 3.5 | H13: 6 | I13: Uniform | J13: 3.5 | K13: 6
B14: DC to AC Derating [setup dependent] (%) | C14: Normal | D14: 0.86 | E14: 0.025 | F14: Normal | G14: 0.86 | H14: 0.025 | I14: Normal | J14: 0.86 | K14: 0.025
B15: _DC to AC Derating Deviation (±%)
B16: Panel Degradation Per Year (%) | C16: Normal | D16: 0.005 | E16: 0.001 | F16: Normal | G16: 0.005 | H16: 0.001 | I16: Normal | J16: 0.005 | K16: 0.001
B17: Electricity Price ($/kWh) | C17: Uniform | D17: 0.09367 | E17: 0.18543 | F17: Uniform | G17: 0.09367 | H17: 0.18543 | I17: Uniform | J17: 0.09367 | K17: 0.18543
B18: Annual Electricity Price Gain (%/yr) | C18: Normal | D18: 0.0365 | E18: 0.0038 | F18: Normal | G18: 0.0365 | H18: 0.0038 | I18: Normal | J18: 0.0365 | K18: 0.0038
B19: _Annual Electricity Price Gain Deviation (±%/yr)
B20: Depreciation (1=True, 0=False) | C20: Set to 0 (no depreciation) | F20: Set to 1 (depreciation included) | I20: Set to 1 (depreciation included)
B21: Depreciable Basis (% of Est. Installation Cost) | C21: Uniform | D21: 0.3 | E21: 0.5 | F21: Uniform | G21: 0.3 | H21: 0.5 | I21: Uniform | J21: 0.3 | K21: 0.5
B22: Effective Corporate Tax Rate (%) | C22: Uniform | D22: 0.3 | E22: 0.4 | F22: Uniform | G22: 0.3 | H22: 0.4 | I22: Uniform | J22: 0.3 | K22: 0.4
